Workbook

Sheet Green Star SA
B13: Green Star SA - Public & Education Building v1 validates the environmental initiatives of new Public & Education Buildings or public base building refurbishments.
B15: You are invited to use Green Star SA - Public & Education Building v1 to predict a Green Star SA rating. The Green Building Council of South Africa (GBCSA) does not endorse any self-assessed rating and you are prohibited from presenting self-assessment results in the public domain. The GBCSA offers a formal certification process for ratings of Four Stars and above. This service provides for independent third party review of points claimed to ensure all points can be demonstrated to be achieved by the provision of the necessary documentary evidence. The use of Green Star SA - Public & Education Building v1 without formal certification by the GBCSA does not entitle the user or any other party to promote a Green Star SA rating publicly.
B17: Use the tabs at the bottom of the pages to navigate.
B19: © Green Building Council of South Africa
B20: Last Modified: 16 January 2018

Sheet Introduction
B3: Green Star SA - Public & Education Building v1
B7: Introduction to Green Star SA - Public & Education Building v1
B11: What is Green Star SA?
B13: What does Green Star SA - Public & Education Building v1 do?
B15: Who can use Green Star SA - Public & Education Building v1?
B17: What do Green Star SA ratings mean?
B19: Acknowledgements
B27: =$B$11 -> What is Green Star SA?
B28: The Green Star SA environmental rating system for buildings was developed by the Green Building Council of South Africa (GBCSA). Green Star SA is a comprehensive rating system for evaluating the environmental design and performance of South African buildings based on a number of criteria, including energy and water efficiency, indoor environment quality and resource conservation.
B30: The Green Star SA environmental rating system is based upon the Australian Green Star system and has been customised for the South African environment by the GBCSA, under licence from the Green Building Council of Australia.
B31: Green Star SA has built on existing systems and tools in overseas markets, primarily the Australian Green Star system, but also including the British Building Research Establishment Environmental Assessment Method (BREEAM) system and the North American Leadership in Energy and Environmental Design (LEED) system. Environmental measurement criteria relevant to the South African marketplace and environmental context have been created.
B33: The Green Star rating system was created to:
B35: • establish a common language and standard of measurement for green buildings;
B36: • promote integrated, whole-building design;
B37: • raise awareness of green building benefits;
B38: • recognise and reward environmental leadership; and
B39: • reduce the environmental impact of development.
B44: =$B$13 -> What does Green Star SA - Public & Education Building v1 do?
B46: Green Star SA - Public & Education Building v1 validates the environmental initiatives of new Public & Education Buildings or public base building refurbishments.
B51: =$B$15 -> Who can use Green Star SA - Public & Education Building v1?
B52: The GBCSA encourages all interested parties to use Green Star SA - Public & Education Building v1 to validate the environmental initiatives of new Public & Education Buildings or public base building refurbishments. The use of Green Star SA - Public & Education Building v1 is encouraged on all such projects to assess and improve their environmental design attributes.
B54: The use of Green Star SA - Public & Education Building v1 without formal certification by the GBCSA does not entitle the user or any other party to promote the Green Star rating achieved. No fee is payable to the GBCSA for such use, however formal recognition of the Green Star SA rating - and the right to promote the same - requires undertaking the formal certification process offered by the GBCSA.
B59: =$B$17 -> What do Green Star SA ratings mean?
B60: Green Star SA rating tools use six stars to measure performance. Projects that obtain a predicted rating of one, two or three stars are not eligible for formal certification. Projects that obtain a predicted 4 Star rating or above are eligible to apply for formal certification, whereby a:
B61: • 4 Star Green Star Certified Rating recognises and rewards "Best Practice";
B62: • 5 Star Green Star Certified Rating recognises and rewards "South African Excellence"; and
B63: • 6 Star Green Star Certified Rating recognises and rewards "World Leadership".
B65: The Green Star SA – Public & Education Building v1 provides for both Green Star SA – Public & Education Building Design and Green Star SA – Public & Education Building As Built certification criteria. All credits are the same for both ratings; only the documentation differs.
B67: Again, the use of Green Star SA - Public & Education Building v1 without formal certification by the GBCSA does not entitle the user or any other party to promote a Green Star SA rating publicly.
B72: =$B$19 -> Acknowledgements
B73: The Green Building Council would like to acknowledge all parties that worked on and supported the development of the Green Star SA – Public & Education Building v1 rating tool.
B75: The GBCSA thanks all those individuals and organisations who provided feedback and expertise to the technical development of the Green Star SA – Public & Education Building v1 rating tool. In particular, the GBCSA would like to thank all Technical Steering Committee and Technical Working Group members, as well as technical consultants AGAMA Energy, Spoormaker & Partners, Shared Energy Management, Solid Green Consulting and Viridis E3. The GBCSA also acknowledges the tremendous support of the Green Building Council of Australia.
B77: The GBCSA’s founding members, along with Green Star SA - Public & Education Building v1 tool sponsor, the Construction Industry Development Board (CIDB) provided much-needed financial support to develop the rating tool.
B79: Green Star SA – Public & Education Building v1 is based on national and international guidelines, including primarily the Australian Green Star system, as well as the US LEED Green Building Rating System and UK's BREEAM Environmental Assessment Method.
B81: Green Star SA - Public & Education Building v1 Tool Sponsor:

Sheet How to use
B3: Green Star SA - Public & Education Building v1
B7: How to use this tool
A9: 1. | B9: Complete the Building Input worksheet as the building's type and location may affect the predicted rating.
A11: 2. | B11: Complete the remaining worksheets by reviewing each credit in each category and entering the number of points you predict the building will achieve in the 'No. of Points Achieved' column. Calculators are provided for a number of the tool's credits.
A13: 3. | B13: Enter any points that may be achieved but need to be confirmed in the 'Points to be Confirmed' column.
A15: 4. | B15: Enter any comments required in the 'Comments' column. Note these comments are for internal design team purposes only. Do NOT include ANY comments within the workbook submitted as a part of a submission for a certified rating.
A17: 5. | B17: The predicted rating is shown in the Summary worksheet. More detail on point scores (both achieved and those to be confirmed) are shown in the Credit Summary and Graphical Summary worksheets at the end of the tool.
B19: Limitations
B20: The GBCSA does not endorse any self-assessed rating achieved by the use of Green Star SA - Public & Education Building v1. The GBCSA offers a formal certification process for ratings of Four Stars and above; this service provides for independent third party review of points claimed to ensure all points can be demonstrated to be achieved by the provision of the necessary documentary evidence. The use of Green Star SA - Public & Education Building v1 without formal certification does not entitle the user or any other party to promote the Green Star SA rating achieved.
B22: The application of Green Star SA - Public & Education Building v1 to all Public & Education Building projects is encouraged to assess and improve their environmental design attributes. No fee is payable to the GBCSA for such use, however formal recognition of the Green Star SA rating - and the right to promote the same - requires undertaking the formal certification process offered by the GBCSA.

Sheet Disclaimer
B3: Green Star SA - Public & Education Building v1
B7: Disclaimer
B10: Authorisation, Acknowledgement and Disclaimer
B11: The Green Star SA environmental rating system for buildings (“Green Star SA”) and the Green Star SA – Public & Education Building v1 rating tool (“Green Star SA – Public & Education Building v1”) have been developed by the Green Building Council of South Africa (“GBCSA”). Green Star SA – Public & Education Buildings v1 is intended for use by project teams, contractors and other interested parties to validate the environmental initiatives of the design phase of new Public & Education Building construction or base building refurbishment; construction and procurement phase of a Public & Education Building; and/or to validate that environmental initiatives proposed in the design phase have been implemented by the building contractor. As with all Green Star SA rating tools, Green Star SA - Public & Education Building v1 may be subject to further development in the future.
B13: Green Star SA and Green Star SA - Public & Education Building v1 have been developed with the assistance and participation of representatives from many organisations. The views and opinions expressed have been determined upon by the GBCSA and its Committees.
B15: The GBCSA authorises you to view and use Green Star SA - Public & Education Building v1 for information purposes only. In exchange for this authorisation, you agree that the GBCSA retains all copyright and other proprietary rights contained in and in relation to Green Star SA - Public & Education Building v1 and agree not to sell, let, distribute, modify, or use for another purpose the tool or to reproduce, display or distribute the tool in any way for any public or commercial purpose, including display on a website or in a networked environment. Unauthorised use of Green Star SA and/or Green Star SA - Public & Education Building v1 will violate copyright and other laws, and is prohibited. All text, graphics, layout and other elements of content contained in Green Star SA and its rating tools are owned by the GBCSA and are protected by copyright, trade mark and other laws.
B17: The GBCSA does not accept responsibility, including for negligence, for any inaccuracy, error or omission within Green Star SA and/or its rating tools and makes no warranty, expressed or implied, including the warranties of merchantability and fitness for a particular purpose, nor assumes any legal liability or responsibility to you or any third parties for the accuracy, completeness, use of or reliance on any information contained in Green Star SA and/or Green Star SA – Public & Education Building v1, or for any injuries, losses or damages (including, without limitation, equitable relief and economic loss) arising out of such use or reliance.
B19: Green Star SA and Green Star SA - Public & Education Building v1 are not substitutes for professional advice, nor do they purport to be a professional service. You should seek your own professional and other appropriate advice on the matters addressed by them.
B21: As a condition of use, you undertake not to institute legal proceedings in whatever form against the trade mark and copyright proprietor, and agree to waive and release the GBCSA, its officers, agents, employees and its members from any and all claims, demands and causes of action for any injury, loss, destruction or damage (including, without limitation, equitable relief and economic loss) that you may now or hereafter have a right to assert against such parties as a result of your use of, or reliance on, Green Star SA and/or Green Star SA – Public & Education Building v1.
B23: The GBCSA does not endorse or otherwise acknowledge the Green Star SA rating achieved by the use of Green Star SA – Public & Education Building v1. The GBCSA offers a formal certification process for ratings of Four Stars and above. The service provides for independent third party review of points claimed to ensure all credits can be demonstrated to be achieved by the provision of the necessary documentary evidence. The use of Green Star SA - Public & Education Building v1 without formal certification by the GBCSA does not entitle the user or any other party to promote the achieved Green Star SA rating or make use of the Green Star trade marks in whatever manner or form.
B25: The application of Green Star SA - Public & Education Building v1 to all Public & Education Building projects is encouraged to assess and improve their environmental attributes. No fee is payable to the GBCSA for such use; however, formal recognition of the Green Star SA rating - and the right to promote the same - requires undertaking the formal certification process offered by the GBCSA, and use of this service shall not constitute such a certification process.
B27: You are only authorised to proceed to use Green Star SA and Green Star SA – Public & Education Building v1 on this basis.
B29: © 2011 Green Building Council of South Africa. All rights reserved.

Sheet Change Log
B3: Green Star SA - Public & Education Building v1
B7: Change Log
B9: Green Star SA - Public & Education Building v1 Tool Release Date
B10: 2012-10-16
B14: Changes & Amendments
B16: The GBCSA reserves the right to correct errors and omissions in the Green Star SA - Public & Education Building v1 rating tool as necessary. The changes noted in this change log do not reflect Technical Clarifications or Credit Interpretation Request rulings. Project teams are advised to check the GBCSA website for the latest TC and CIR rulings. The changes noted in this change log also do not represent changes to points awarded for credits, or changes to credit critera. The changes noted below are those of minor nature related to the operation of the rating tool and associated calculators.
B18: Reissue Date | C18: Changes
B19: 2012-10-26 | C19: Cells unlocked and aesthetics of Potable Water Calculator edited
B20: 2012-11-15 | C20: Naming adjusted to 'PILOT (Updated)' pending final licensing agreements before v1 release. Technical content not altered.
B21: 2013-02-20 | C21: Errors corrected in links between building input areas and lighting calculator.
B22: 2013-03-14 | C22: Added in R1 and R2 Pre-Submission Checklist that all documents (each page) is labelled to indicate which Documentation Requirement it is submitted towards. Added in R2 Pre-Submission Checklist that project team must submit 2 x images/renderings of project in the general section Added several dates under Building Input. Unlocked input cells in tool
B23: 2013-05-24 | C23: Corrected the error with the point allocation for the IEQ1 credit creditia and totalling of IEQ23 points. Corrected 'na' link in ENE-2. Corrected TRA-4 tickbox link. Corrected dropdowns in WAT-1 calculator.
B24: 2013-06-06 | C24: Corrected sewage reduction calculation
B25: 2013-09-02 | C25: Corrected the 'Credit Summary' sheet to add all points in the Emissions category. Corrected credit 'Eco-5' NA clause and points.
B26: 2013-09-11 | C26: Corrected credit Eco-5 in 'Credit Summary' showing a 'VALUE' error.
B27: 2017-06-13 | C27: Update of R1 and R2 Pre-Submission Checklists
B28: 2018-01-16 | C28: Update of includion of DataExtract Sheets for ENE/WAT/TRA/ECO/SEW Calculators

Sheet R1 Pre-Submission Checklist
B3: Green Star SA - New Buildings
B7: Round 1 Pre-Submission Checklist
B8: Please complete the white cells only below, and submit the completed submission only if all aspects have been addressed.
B10: Pre-submission checklist is included to provide an overview of the project and ensure all relevant documentations have been submitted.
C11: General Submission Requirements
C12: The followingmust be uploaded to the 'General' section to ensure the Assessor and/or/moderator understands your project
B13: i | C13: The building's general description provided is in line with GEN00-T-OB1-1384 -Base Building Scope definition | D13: Please Confirm
B14: ii | C14: Site Drawing (Architectural drawings, elevations) showing extent of the building and project site | D14: Please Confirm
B15: iii | C15: Area schedule showing full GFA and UA of building seeking certification | D15: Please Confirm
B16: iv | C16: Completed Scoresheet | D16: Please Confirm
B17: v | C17: AP Declaration | D17: Please Confirm
B18: vi | C18: Any relevant GBCSA correspondence, clarifications or approved alternatives (TC's and CIR's) | D18: Please Confirm
C19: Administration
B20: 1 | C20: Signed Certification Agreement has been received by the GBCSA | D20: Please Confirm
B21: 2 | C21: The correct and full assessment fee has been received by the GBCSA | D21: Please Confirm
B22: 3 | C22: No Credit Interpretation Requests or Technical Clarifications are outstanding | D22: Please Confirm
B23: 4 | C23: The latest version of the GSSA rating tool and calculators have been used | D23: Please Confirm
B24: 5 | C24: Is this submission for a Multiple Building | D24: Please Confirm
C25: Eligibility
B26: 6 | C26: Eligibility Criteria 1: Spatial differentiation | D26: Please Confirm
B27: 7 | C27: Eligibility Criteria 2: Space use | D27: Please Confirm
B28: 8 | C28: Eligibility Criteria 3: Conditional requirements (project meets Ene-0 and Eco-0 conditional requirements) | D28: Please Confirm
B29: 9 | C29: Eligibility Criteria 4: Timing of Certification (project must be certified within 24 months of practical completion) | D29: Please Confirm
C30: Submission content and presentation
B31: 10 | C31: All files are in PDF format only and unlocked, in one layer. Calculators are in excel format | D31: Please Confirm
B32: 11 | C32: All PDF documents are to be bookmarked. | D32: Please Confirm
B33: 12 | C33: All documents are orientated in the same direction. | D33: Please Confirm
B34: 13 | C34: A PDF or calculator as required by the TM & the CE should be uploaded onto the CE for each category and credit being targeted. | D34: Please Confirm
B35: 14 | C35: Each page of all documents must be marked by use of a label indicating what Documentation Requirement it is supporting | D35: Please Confirm
B36: 15 | C36: Relevant sections of the documentation and drawings have been highlighted to draw the assessors attention to relevant information | D36: Please Confirm
B37: 16 | C37: A completed Green Star SA Excel spreadsheet (for the relevant tool) is included | D37: Please Confirm
B38: 17 | C38: Projects are to provide credit cover sheets for each credit. Cover sheets are to include the following information: | D38: Please Confirm
C39: i) Project identification -Name, number, rating tool ii) Assessment details-Assessment type i.e. multiple building, submission round, credit name, points avaiable, points claimed iii) Report checklist of all relevant documentations per credit as required by the Technical Manual. iv) CIRs and TCs submitted and/or used v) Credit criteria summary vi) Compliance with credit criteria vii)General notes/discussion that could be useful
B40: 18 | C40: All reports, letters and drawings referring to the project are on a letterhead and signed where stipulated or where they confirm a commitment | D40: Please Confirm
B41: 19 | C41: Drawings or Pictures are not in draft form and where applicable carry the "Tender" or "As Built" stamp/status | D41: Please Confirm
B42: 20 | C42: Specifications are not in draft format | D42: Please Confirm
B43: 21 | C43: All relevant information is included and linked as evidence to the credit it supports. (Appendices for each credit can be included as additional documunts within the credit , but must be clearly referenced within the documentation and have relevant sections highlighted.) | D43: Please Confirm
B44: 22 | C44: All drawings are still legible after scaling (especially small stamps, monitors/sensors etc.) | D44: Please Confirm
B45: 23 | C45: All inputs are consistent throughout the submission. | D45: Please Confirm
B46: 24 | C46: All credits claiming “na” have the required supporting documentation | D46: Please Confirm
B47: 25 | C47: The AP declaration has been signed and submitted with the submission | D47: Please Confirm
B51: Name: ___________________________________ Company: ___________________________________
B53: Signature of Applicant: ___________________________________
B55: Note: If any of the above have not been complied with, the GBCSA reserves the right to return submission documentation to the project for re-submission and compliance with the above.
B142: Yes
B143: No
B144: Not Applicable

Sheet R2 Pre-Submission Checklist
B3: Green Star SA - New Buildings
B7: Round 2 Pre-Submission Checklist
B8: Please complete the white cells only below, and submit the completed submission only if all aspects have been addressed.
B10: Pre-submission checklist is included to provide an overview of the project and ensure all relevant documentations have been submitted.
C11: General Submission Requirements
C12: The followingmust be uploaded to the 'General' section to ensure the Assessor and/or/moderator understands your project
B13: i | C13: The building's general description provided is in line with GEN00-T-OB1-1384 -Base Building Scope definition | D13: Please Confirm
B14: ii | C14: Site Drawing (Architectural drawings, elevations) showing extent of the building and project site | D14: Please Confirm
B15: iii | C15: Area schedule showing full GFA and UA of building seeking certification | D15: Please Confirm
B16: iv | C16: Completed Scoresheet | D16: Please Confirm
B17: v | C17: AP Declaration | D17: Please Confirm
B18: vi | C18: Any relevant GBCSA correspondence, clarifications or approved alternatives (TC's and CIR's) | D18: Please Confirm
C19: Administration
B20: 1 | C20: Number of TCs submitted by the project team.
B21: 2 | C21: Number of CIRs submitted by the project team.
B22: 3 | C22: There are no Credit Interpretation Requests or Technical Clarifications are outstanding | D22: Please Confirm
B23: 4 | C23: The project team has paid fees related to TCEs if any | D23: Please Confirm
C24: Eligibility
B25: 5 | C25: Eligibility has been established and all conditional requirements have been met OR any eligibility issues raised in Round 1 have been addressed | D25: Please Confirm
C26: Submission content and presentation
B27: 6 | C27: All files are in PDF format only and unlocked, in one layer. Calculators are in excel format | D27: Please Confirm
B28: 7 | C28: All PDF documents are to be bookmarked. | D28: Please Confirm
B29: 8 | C29: All documents are orientated in the same direction. | D29: Please Confirm
B30: 9 | C30: Relevant sections of the documentation and drawings have been highlighted to draw the assessors attention to relevant information. | D30: Please Confirm
B31: 10 | C31: All changes in the documentation as a result of Assessors' R1 comments have been highlighted | D31: Please Confirm
B32: 11 | C32: A completed Green Star SA Excel spreadsheet (for the relevant tool) is included | D32: Please Confirm
B33: 12 | C33: Projects are to provide credit cover sheets for each credit. Cover sheets are to include the following information: | D33: Please Confirm
C34: i) Project identification -Name, number, rating tool ii) Assessment details-Assessment type i.e. multiple building, submission round, credit name, points avaiable, points claimed iii) Report checklist of all relevant documentations per credit as required by the Technical Manual. iv) CIRs and TCs submitted and/or used v) Credit criteria summary vi) Compliance with credit criteria vii)General notes/discussion that could be useful
B35: 13 | C35: All reports, letters and drawings referring to the project are on a letterhead and signed where stipulated or where they confirm a commitment | D35: Please Confirm
B36: 14 | C36: Drawings or Pictures are not in draft form and where applicable carry the "Tender" or "As Built" stamp/status | D36: Please Confirm
B37: 15 | C37: All relevant information is included and linked as evidence to the credit it supports. (Appendices for each credit can be included as additional documunts within the credit , but must be clearly referenced within the documentation and have relevant sections highlighted.) | D37: Please Confirm
B38: 16 | C38: All drawings are still legible after scaling (especially small stamps, monitors/sensors etc.) | D38: Please Confirm
B39: 17 | C39: All inputs are consistent throughout the submission. | D39: Please Confirm
B40: 18 | C40: Submission for each credit includes all documentation stipulated in the technical manual, and the TC/CIR portal on the GBCSA website | D40: Please Confirm
B41: 19 | C41: All credits claiming “na” have the required supporting documentation | D41: Please Confirm
B42: 20 | C42: The AP declaration has been signed and submitted with the submission | D42: Please Confirm | G42: For EBP only
B43: 21 | C43: The Project team has uploaded case study information for final submission round with the following: | D43: Please Confirm
C44: i) Project information confirmation form | D44: Please Confirm
C45: ii) Case study document form | D45: Please Confirm
C46: iii) 2x High Res Images (min 300 DPI) of the building | D46: Please Confirm
B51: Name: ___________________________________ Company: ___________________________________
B53: Signature of Applicant: ___________________________________
B55: Note: If any of the above have not been complied with, the GBCSA reserves the right to return submission documentation to the project for re-submission and compliance with the above.
B143: Yes
B144: No
B145: Not Applicable

Sheet Applicant Declaration
B3: Green Star SA - Public & Education Building v1
B7: Green Star SA Project Submission - Applicant Declaration
B8: *This page must be printed and signed by the project applicant, and included in the general section of the project submission for Round 1 and Round 2.
B11: The Green Building Council of South Africa (GBCSA) aims to ensure that every Green Star SA submission is of a good quality and reflects the appropriate correct and true contractual documents on the project (whether they are Design or As Built project contractual documents). In this regard, the GBCSA requires that all Green Star SA project applicants sign this acknowledgement and declaration letter. Acknowledgement and declaration by the Green Star SA project applicant: I/We,___________________________________________________, the person/s responsible for compiling the Green Star SA submission on behalf of ________________________________________________ (the Applicant), confirm that I/we have taken due care, and acknowledge and declare that (to the best of my/our knowledge): 1. I/We have read and understood the relevant technical manual, the conditions of certification and any relevant Technical Clarifications, Errata and Credit Interpretation Requests. 2. All documentation submitted by me/us on behalf of the Applicant towards this Green Star SA submission has been verified by the appropriate professional/s as being true, correct and accurate. 3. All documentation submitted by me/us on behalf of the Applicant complies with all applicable legislation. 4. All documents and reports submitted to me/us by the Applicant's project team are true and correct and accurately reflect the project’s contractual documentation (whether for a Design or As Built submission). 5. All documents and reports which I/we have prepared for the submission are true and correct and accurately reflect the project’s contractual documentation (whether for a Design or As Built submission). 6. I/We have disclosed all applicable information relevant to the Application and undertake to disclose any further information that may influence the Application. Where the GBCSA identifies any serious or systematic non-conformances on project documentation in a submission from the Applicant, the GBCSA has the right to query such non-conformance/s with the Applicant, at which point the Applicant is required to investigate this further with its project team, and provide a written response to the GBCSA by no later than 7 (seven) business days from the date on which the query was made to the Applicant by the GBCSA. If the response from the Applicant confirms that the information provided was incorrect, the Applicant's project team can: a) For a Round 1 submission re-submit the correct information in Round 2 (as per assessor comments) or clarify that the information is not available and concede the point in Round 2 b) For a Round 2 submission, confirm to the GBCSA the incorrect nature of the information submitted, in which event the incorrect information will be excluded from the submission documents counted in the Round 2 results. If the response from the Applicant confirms that the information provided was correct, the Applicant's project team can, on behalf of the Applicant: c) In a Round 1 submission re-submit the correct information in Round 2. d) In a Round 2 submission, notify the GBCSA that such information was in fact correct, in which event the GBCSA will run this by the assessors for a final review before the results are published. Where these processes are not followed and the relevant submission documents remain under question, the GBCSA will notify the Applicant, and the credit/s to which this information relates will be unobtainable. Where this incomplete process occurs more than once, with the Applicant, the GBCSA reserves the right not to accept any further submissions from this Applicant in future. At the first instance where this incomplete process occurs, the Applicant will be placed on twelve (12) months’ probation, during which time any similar infringement would allow the GBCSA to exercise its right to not accept any further submissions from the Applicant. Further to this, where the Applicant is a Green Star SA Accredited Professional (GSSA AP), the GBCSA reserves the right to remove the Applicant’s GSSA AP qualification and remove them from the GSSA AP registry on the GBCSA’s website. Signature: ___________________________________ Date: ___________________________________ Name: ___________________________________ Company: ___________________________________ Signature of Applicant’s line manager warranting that s/he is duly authorised: ___________________________________ Name of Applicant’s line manager warranting that s/he is duly authorised: ___________________________________

Sheet Building Input
B1: Green Star SA - Public & Education Building v1 | C1: Building Input Worksheet
B2: New or Refurbished Building:
B3: Type of Rating
B5: Name of Building:
B6: Address of Building: | F6: New Building
F7: Refurbishment
F8: 1
B9: Postcode:
B10: Province: | F10: Design Rating
F11: As Built Rating
B12: Applicant: | F12: 1
B13: Contact Person:
B15: Green Star SA Accredited Professional(s):
B16: Project Manager:
B17: Architect:
B18: Structural/Civil Engineer:
B19: Mechanical Engineer:
B20: Electrical Engineer:
B21: Wet Services Engineer:
B22: Fire Systems Engineer:
B23: Quantity Surveyor:
B24: Acoustic Consultant:
B25: Landscaping Consultant:
B26: Other consultant:
B27: Other consultant:
B28: Building Surveyor:
B29: Main Contractor:
B30: Local Planning Authority:
B32: Type of Building
B33: Total Building Gross Floor Area (GFA) in m² excluding car parks and external areas: (i)
B35: Breakdown of building areas that support the primary function of the building:
B36: The breakdown of building areas per space types below must support the primary function of the building and is used in the energy and lighting calculators in this tool
B37: Common Space Types - Public & Education Buildings | C37: Conditioned Area | D37: Mechanically Ventilated Area | E37: Naturally Ventilated Area | G37: Occupied Space
B38: =B130&" area in m²:" -> Cellular office area in m²: | G38: =SUM(C38:E38) -> 0 | H38: m²
B39: =B131&" area in m²:" -> Changing facilities area in m²: | G39: Not an occupied space
B40: Circulation area (corridors and stairways) - non public area in m²: | H40: =IF(CELL("type",G40)="v","m²","Enter occupied space area") -> Enter occupied space area
B41: Common room/staff room/lounge area in m²: | G41: =SUM(C41:E41) -> 0 | H41: m²
B42: Eating/drinking area in m²: | G42: =SUM(C42:E42) -> 0 | H42: m²
B43: Food preparation area in m²: | G43: =SUM(C43:E43) -> 0 | H43: m²
B44: Hall/lecture theatre/assembly area in m²: | G44: =SUM(C44:E44) -> 0 | H44: m²
B45: High density IT work space area in m²: | G45: =SUM(C45:E45) -> 0 | H45: m²
B46: IT equipment area in m²: | G46: Not an occupied space
B47: Meeting room area in m²: | G47: =SUM(C47:E47) -> 0 | H47: m²
B48: Open plan office area in m²: | G48: =SUM(C48:E48) -> 0 | H48: m²
B49: Plant room area in m²: | G49: Not an occupied space
B50: Public circulation area in m²: | G50: =SUM(C50:E50) -> 0 | H50: m²
B51: Reception area in m²: | G51: =SUM(C51:E51) -> 0 | H51: m²
B52: Storage area in m²: | G52: Not an occupied space
B53: Tea Kitchen area in m²: | G53: Not an occupied space
B54: Toilet area in m²: | G54: Not an occupied space
B55: Internal Covered Vehicle Parking Area (B1, ground and above ground) area in m²: | G55: Not an occupied space
B56: =B148&" area in m²:" -> Sub-basement Vehicle Parking Area (B2 and below) area in m²: | G56: Not an occupied space
B57: =B149&" area in m²:" -> External Area (including external Car Parking) area in m²: | G57: Not an occupied space
B58: Specialised Space Types - Public & Education Buildings | C58: Conditioned Area | D58: Mechanically Ventilated Area | E58: Naturally Ventilated Area
B59: =B152&" area in m²:" -> Baggage Reclaim area in m²: | G59: =SUM(C59:E59) -> 0 | H59: m²
B60: Cell (police/prison) area in m²: | G60: =SUM(C60:E60) -> 0 | H60: m²
B61: Check in area in m²: | G61: =SUM(C61:E61) -> 0 | H61: m²
B62: Classroom area in m²: | G62: =SUM(C62:E62) -> 0 | H62: m²
B63: Consulting room area in m²: | G63: =SUM(C63:E63) -> 0 | H63: m²
B64: Display area in m²: | G64: Not an occupied space
B65: Dry sports hall area in m²: | G65: =SUM(C65:E65) -> 0 | H65: m²
B66: Fitness Studio area in m²: | G66: 0 | H66: m²
B67: Fitness suite/gym area in m²: | G67: 0 | H67: m²
B68: Ice rink area in m²: | G68: 0 | H68: m²
B69: Laboratory area in m²: | G69: 0 | H69: m²
B70: Laundry area in m²: | G70: 0 | H70: m²
B71: Performance area (stage) area in m²: | G71: 0 | H71: m²
B72: Sales area - chilled area in m²: | G72: 0 | H72: m²
B73: Sales area - general area in m²: | G73: 0 | H73: m²
B74: Security check area in m²: | G74: 0 | H74: m²
B75: Storage area - chilled area in m²: | G75: Not an occupied space
B76: =B169&" area in m²:" -> Storage area - cold room (<0degC) area in m²: | G76: Not an occupied space
B77: =B170&" area in m²:" -> Swimming pool area in m²: | G77: =SUM(C77:E77) -> 0 | H77: m²
B78: =B171&" area in m²:" -> Workshop - small scale area in m²: | G78: =SUM(C78:E78) -> 0 | H78: m²
B79: Subtotal of spaces supporting the primary function in m² excluding car parks and external areas(ii) | C79: =SUM(C38:C54)+SUM(C59:C78) -> 0 | D79: =SUM(D38:D54)+SUM(D59:D78) -> 0 | E79: =SUM(E38:E54)+SUM(E59:E78) -> 0
B80: % Space supporting the primary function (equal to (ii)/(i)): | C80: =IF(AND(SUM(C79:E79)>0,C33>0),SUM(C79:E79)/C33,0) -> 0
B81: Eligibility for Assessment | C81: =IF(C80>=80%,"The project meets area compliance for Green Star SA assessment.","Area compliance not met. To be eligible for Green Star SA assessment, spaces supporting the primary function must account for at least 80% of the total GFA.") -> Area compliance not met. To be eligible for Green Star SA assessment, spaces supporting the primary function must account for at least 80% of the total GFA.
B84: Total area defined as OCCUPIED SPACE. | G84: =SUM(G38:G78) -> 0 | H84: m²
B86: Building Description: (Orientation, Form, Structure, Façade, etc.)
B88: Building Services: (Heating, Cooling, Ventilation, Lighting, Lifts, Domestic Hot Water)
B90: Todays Date:
B91: Current Project Phase:
B92: Fully Registered Date:
B93: Site Handover Date:
B94: Construction Commencement Date:
B95: Practical Completion Date:
B97: NOTE: Use of Green Star SA - Public & Education Building v1 may predict a rating that differs from that achieved via formal Green Star SA certification.
B110: Drop Down Lists
B112: Building Type List
B113: A1: Casino
B114: A1: Community/ day centre
B115: A1: Restaurant/ public house
B116: A2: Sports centre/ leisure centre
B117: A2: Theatres/ cinemas/ and music halls
B118: A3: Primary school
B119: A3: Secondary school
B120: A3: Higher Education
B121: A4: Worship
B122: C1: Convention Centre and Exhibition Hall
B123: C2: Libraries/ museums/ and galleries
B124: Airport terminals
B125: Public transport terminals
B126: Courts
B127: Fire station/Police station
B129: Common Space Types
B130: Cellular office
B131: Changing facilities
B132: Circulation area (corridors and stairways) - non public
B133: Common room/staff room/lounge
B134: Eating/drinking
B135: Food preparation
B136: Hall/lecture theatre/assembly
B137: High density IT work space
B138: IT equipment
B139: Meeting room
B140: Open plan office
B141: Plant room
B142: Public circulation
B143: Reception
B144: Storage
B145: Tea Kitchen
B146: Toilet
B147: Internal Covered Vehicle Parking Area (B1, ground and above ground)
B148: Sub-basement Vehicle Parking Area (B2 and below)
B149: External Area (including external Car Parking)
B151: Uncommon Space Types
B152: Baggage Reclaim
B153: Cell (police/prison)
B154: Check in
B155: Classroom
B156: Consulting room
B157: Display
B158: Dry sports hall
B159: Fitness Studio
B160: Fitness suite/gym
B161: Ice rink
B162: Laboratory
B163: Laundry
B164: Performance area (stage)
B165: Sales area - chilled
B166: Sales area - general
B167: Security check
B168: Storage area - chilled
B169: Storage area - cold room (<0degC)
B170: Swimming pool
B171: Workshop - small scale
B173: Space Conditioning Type
B174: Air Conditioned
B175: Mechanically Ventilated
B176: Naturally Ventilated
B179: Calculations
B181: Breakdowb of areas supporting the primary function
B182: Air conditioned space area | C182: =C79 -> 0 | E182: m²
B183: Mechanically ventilated space area | C183: =D79 -> 0 | E183: m²
B184: Naturally ventilated space area | C184: =E79 -> 0 | E184: m²
B185: Total | C185: =SUM(C182:C184) -> 0 | E185: m²

Sheet Management
A1: ='Building Input'!B1 -> Green Star SA - Public & Education Building v1 | F1: Category Weighting: | G1: ='Credit Summary'!J19 -> 0.11 | H1: Category Weighted Score
A2: Management | D2: Category Summary: | E2: =E22 -> 17 | F2: =F22 -> 0 | G2: =G22 -> 0 | H2: ='Credit Summary'!K19 -> 0
A3: Credit Summary for: | C3: =IF('Building Input'!$C$5=0,"",'Building Input'!$C$5) ->  | F3: =IF(OR((I3=Calculation1!$B$84),(I3=Calculation1!$B$85),((F2+G2)>E2)),Calculation1!$B$86,"") ->  | I3: =T(I5:I17) -> 
A4: Ref No. | B4: Title | C4: Aim of Credit | D4: Credit Criteria Summary | E4: No. of Points Available | F4: No. of Points Achieved | G4: Points to be Confirmed | H4: Comments
A5: Man-1 | B5: Green Star SA Accredited Professional | C5: To encourage and recognise the engagement of professionals who can assist the project team with the integration of Green Star SA aims and processes throughout design and construction phases. | D5: Two points are awarded where: • A member of the design team is a Green Star SA Accredited Professional and has; – Been engaged by the Building Owner to provide green building advice from the schematic design phase through to construction completion; AND – Provided guidance to the project team regarding, or was responsible for, the Green Star SA documentation submission compilation. | E5: 2 | I5: =IF(ISBLANK(F5),IF(G5>E5,Calculation1!$B$84,""),IF(F5="na","",IF(OR(F5="na",ISNUMBER(F5)),IF(F5+G5>E5,Calculation1!$B$84,""),Calculation1!$B$85))) -> 
A6: Man-2 | B6: Commissioning Clauses | C6: To encourage and recognise commissioning and handover initiatives that ensure that all building services can operate to optimal design potential. | D6: Up to two points are awarded as follows: One point is awarded where it is demonstrated that: • Comprehensive pre-commissioning, commissioning, and quality monitoring are contractually required to be performed for all applicable building services as defined in Table Man 2.1; AND • The works outlined above are done in exact accordance with CIBSE Commissioning Codes. Alternatively, ASHRAE Commissioning Guideline 1-1996 - The HVAC Commissioning Process can be used for the mechanical services (only). | E6: 1 | I6: =IF(OR(ISTEXT(F6)=TRUE,ISTEXT(G6)=TRUE),Calculation1!$B$87,IF(F6+G6>E6,Calculation1!$B$84,"")) -> 
D7: An additional point is awarded where it is demonstrated that: • The point above is achieved; AND • The Design Team and Contractor transfer ‘Project Knowledge’ to the building Owner/Manager through the provision of the following: – Documented design intent; – As Built drawings (complete set); – Operations and Maintenance (O&M) Manual; – Commissioning Report(s), in accordance with the Additional Guidance; and – Training of building management staff, in accordance with the Additional Guidance. | E7: 1 | I7: =IF(OR(ISTEXT(F7)=TRUE,ISTEXT(G7)=TRUE),Calculation1!$B$87,IF(F7+G7>E7,Calculation1!$B$84,"")) -> 
A8: Man-3 | B8: Building Tuning | C8: To encourage and recognise commissioning initiatives that ensure optimum occupant comfort as well as energy and water efficient services performance throughout the year. | D8: Two points are awarded where: • At practical completion the Building Owner implements a comprehensive building tuning program that; - Continues for a period of no less than 12 months after commencement; - Involves a relevant member of the Design Team; - Includes the monitoring and tuning of all applicable building services as defined in Table Man-3.1; and, - Requires monthly monitoring and the outcomes are reported to the Building Owner quarterly to allow corrective action to be taken; AND • At 12 months after practical completion; - A full re-commissioning service is undertaken; and, - A 'Building Tuning Report' on the outcomes of the tuning program is provided to both the Building Owner and the Design Team. This credit applies to all building systems (which include, but are not limited to ventilation, heating, cooling, electrical, lighting and hot water systems), not just mechanical systems. The credit does not include fire and wet services, except that on-site recycled water systems (black, grey and rain water) are included. | E8: 2 | I8: =IF(OR(ISTEXT(F8)=TRUE,ISTEXT(G8)=TRUE),Calculation1!$B$87,IF(F8+G8>E8,Calculation1!$B$84,"")) -> 
A9: Man-4 | B9: Independent Commissioning Agent | C9: To encourage and recognise the appointment of an Independent Commissioning Agent from project design through to handover. | D9: One point is awarded where : • A suitably qualified or experienced person, not directly involved in the day-to-day project design or implementation, is appointed as ‘Independent Commissioning Agent’ (ICA) by the Building Owner to: – Provide independent advice on commissioning issues to the Building Owner and the Design Team; – Produce input within the design phase covering commissioning of building services; – Produce an appropriate guide to commissioning at detailed design stage; – Introduce commissioning standards and strategies, and monitor and verify the commissioning of all building systems; – Produce a Commissioning Report summarising the commissioning, major findings and recommendations of the commissioning process; and, – Where applicable, be involved in the building tuning program. | E9: 1 | I9: =IF(OR(ISTEXT(F9)=TRUE,ISTEXT(G9)=TRUE),Calculation1!$B$87,IF(F9+G9>E9,Calculation1!$B$84,"")) -> 
A10: Man-5 | B10: Building Users' Guide | C10: To encourage and recognise information management that enables building users to optimise the building’s environmental performance. | D10: One point is awarded where: • A simple and easy-to-read ‘Building Users’ Guide’, which includes information relevant for the building users, occupants and tenants’ representatives, is developed; AND • The Building Users’ Guide, at a minimum, contains the sections and information in accordance with the Additional Guidance. | E10: 1 | I10: =IF(OR(ISTEXT(F10)=TRUE,ISTEXT(G10)=TRUE),Calculation1!$B$87,IF(F10+G10>E10,Calculation1!$B$84,"")) -> 
A11: Man-6 | B11: Environmental Management | C11: To encourage and recognise the adoption of a formal environmental management system in line with established guidelines during construction. | D11: Up to two points are awarded independently as follows: One point is awarded where: • The Contractor implements a comprehensive, project-specific Environmental Management Plan (EMP) throughout the construction phase of the project (i.e. from construction commencement to practical completion); AND • The EMP is in strict accordance with the Provincial Government of the Western Cape Environmental Management Plan Guidelines (2005) as evidence by correlation with Table Man-6.1 of the Additional Guidance; AND • The Contractor and Sub-Contractors achieve compliance with the EMP. | E11: 1 | I11: =IF(OR(ISTEXT(F11)=TRUE,ISTEXT(G11)=TRUE),Calculation1!$B$87,IF(F11+G11>E11,Calculation1!$B$84,"")) -> 
D12: One point is awarded where: • The Contractor has valid ISO14001 Environmental Management System (EMS) accreditation throughout the construction phase of the project (i.e. from construction commencement to practical completion); AND • All Sub-Contractors relevant to the project and engaged by the Contractor, adhere to all applicable ISO14001 requirements. | E12: 1 | I12: =IF(OR(ISTEXT(F12)=TRUE,ISTEXT(G12)=TRUE),Calculation1!$B$87,IF(F12+G12>E12,Calculation1!$B$84,"")) -> 
A13: Man-7 | B13: Waste Management | C13: To encourage and recognise management practices that minimise the amount of demolition and construction waste going to disposal. | D13: Up to three points are awarded where: • The Contractor develops and implements a Waste Management Plan (WMP) throughout the construction phase of the project (i.e. from construction commencement to practical completion); AND • The Contractor retains waste records and issues quarterly reports to the Building Owner; AND • The Contractor diverts a minimum percentage (by mass) of all demolition and construction waste for reuse or recycling, awarded as follows: – 30% for one point; – 50% for two points; – 70% for three points. | E13: 3 | I13: =IF(OR(ISTEXT(F13)=TRUE,ISTEXT(G13)=TRUE),Calculation1!$B$87,IF(F13+G13>E13,Calculation1!$B$84,"")) -> 
A14: Man-8 | B14: Air tightness testing | D14: This credit is not relevant to the Green Star SA Public & Education Building v1 tool | E14: x | F14: x | G14: x
A15: Man-9 | B15: Waste and Recycling Management Plan | D15: This credit is not relevant to the Green Star SA Public & Education Building v1 tool | E15: x | F15: x | G15: x | I15: =IF(OR(ISTEXT(F15)=TRUE,ISTEXT(G15)=TRUE),Calculation1!$B$87,IF(F15+G15>E15,Calculation1!$B$84,"")) -> ERROR, text not valid!
A16: Man-10 | B16: Building Management Systems | C16: To encourage and recognise the incorporation of Building Management Systems to actively control and maximise the effectiveness of building services. | D16: One point is awarded where: • A Building Management System (BMS) is integrated into the building with functionality to: – Monitor and report on energy and water consumption; and – Monitor and control building services systems. | E16: 1 | I16: =IF(OR(ISTEXT(F16)=TRUE,ISTEXT(G16)=TRUE),Calculation1!$B$87,IF(F16+G16>E16,Calculation1!$B$84,"")) -> 
A17: Man-11 | B17: Green Lease | D17: This credit is not relevant to the Green Star SA Public & Education Building v1 tool | E17: x | F17: x | G17: x | I17: =IF(OR(ISTEXT(F17)=TRUE,ISTEXT(G17)=TRUE),Calculation1!$B$87,IF(F17+G17>E17,Calculation1!$B$84,"")) -> ERROR, text not valid!
A18: Man 12 | B18: Common Property Management Rules Clauses | D18: This credit is not relevant to the Green Star SA Public & Education Building v1 tool | E18: x | F18: x | G18: x | I18: =IF(OR(ISTEXT(F18)=TRUE,ISTEXT(G18)=TRUE),Calculation1!$B$87,IF(F18+G18>E18,Calculation1!$B$84,"")) -> ERROR, text not valid!
A19: Man 13 | B19: Learning Resources | C19: To encourage and recognise sustainability initiatives implemented in the development as learning resources for building users and visitors | D19: One point is awarded where: • Within the building or the broader site , the following ‘Learning Resources’ are provided for building occupants and visitors: – A minimum of one sustainability initiative related to a Green Star SA Public Building Energy Credit is described and displayed, and the resulting energy use and greenhouse gas emissions are continuously presented; AND – A minimum of one sustainability initiative related to a Green Star SA Public Building Water Credit is described and displayed, and the resulting potable water savings are continuously presented; AND – A minimum of one sustainability initiative, related to a Green Star SA Public & Education Building Credit and not related to energy and water, and the resulting benefit(s) are described and displayed. Further guidance, definitions and examples are provided in the Additional Guidance section. | E19: 1
A20: Man 14 | B20: Life cycle costing | C20: To recognise and encourage the development of a Life Cycle Cost (LCC) analysis to consider environmentally sustainable attributes in assessing improved design, specification and through-life maintenance and operation. | D20: One point is awarded where: • A life cycle cost (LCC) analysis has been carried out during the concept design/design development stages covering construction, operations, maintenance, and end of life; AND • The LCC analysis is in accordance with the Additional Guidance and covers at least one of the following building elements; – Building structure; – Envelope; – Services; and/or, – Finishes. AND • The LCC analysis considers environmentally preferable alternative options for the building element(s) examined; AND • It is demonstrated that the lowest discounted LCC option was considered in the selection criteria, if not incorporated in the design. Where not incorporated, the reasons for the decision to not incorporate the lowest LCC option must be justified. | E20: 1
A21: Man 15 | B21: Maintainability | C21: To encourage and recognise building design that facilitates ongoing maintenance, and minimises the need for ongoing building maintenance throughout a building's lifecycle. | D21: One point is awarded where: • At both preliminary and final design stages, a design review is completed that: – Is undertaken by the person responsible for the facility’s maintenance, or a suitably qualified maintenance staff member, or an independent qualified facilities/maintenance manager; AND – Each review considers the design with respect to plant access, on-going maintenance and cleaning of building services, internal building surfaces and external building features. AND • A Building Maintenance Guide, providing detailed guidance on accessing and maintaining both the building’s services and fabric, is developed by the Design Team and made available to the Building Owner or Manager. | E21: 1
D22: Total Points: | E22: =SUM(E5:E21) -> 17 | F22: =SUM(F5:F21) -> 0 | G22: =SUM(G5:G21) -> 0
A26: =Calculation1!$B$93 -> Project Teams are to refer to the Green Star SA Public Building PILOT Technical Manual for explicit credit criteria and documentation requirements.
A27: =Calculation1!$B$94 -> The Green Star Technical Clarifications (TC) and Credit Interpretation Request (CIR) rulings provide an essential source of information to all
A28: =Calculation1!$B$95 -> projects undertaking Green Star assessment. They are available on the GBCSA website http://www.gbcsa.org.za . Technical Clarifications
A29: =Calculation1!$B$96 -> often represent the GBCSA answers to technical queries and complement Green Star SA Technical Manuals. They do not amend but clarify
A30: =Calculation1!$B$97 -> Credit Criteria or Compliance Requirements. They are an extension of the Technical Manual; it is the responsibility of the project teams to stay
A31: =Calculation1!$B$98 -> up-to-date with this section of the GBCSA website. The CIR rulings offer alternative compliance options whenever those have been deemed
A32: =Calculation1!$B$99 -> equivalent in meeting the Aim of Credit.

Sheet IEQ
A1: ='Building Input'!B1 -> Green Star SA - Public & Education Building v1 | F1: Category Weighting: | G1: ='Credit Summary'!J36 -> 0.15 | H1: Category Weighted Score
A2: Indoor Environment Quality | D2: Category Summary: | E2: =E32 -> 23 | F2: =F32 -> 0 | G2: =G32 -> 0 | H2: ='Credit Summary'!K36 -> 0
A3: Credit Summary for: | C3: =IF('Building Input'!$C$5=0,"",'Building Input'!$C$5) ->  | F3: =IF(OR((I3=Calculation1!$B$84),(I3=Calculation1!$B$85),((F2+G2)>E2)),Calculation1!$B$86,"") ->  | I3: =T(I5:I25) -> 
A4: Ref No. | B4: Title | C4: Aim of Credit | D4: Credit Criteria Summary | E4: No. of Points Available | F4: No. of Points Achieved | G4: Points to be Confirmed | H4: Comments
A5: IEQ-1 | B5: Ventilation | C5: To encourage and recognise designs that provide ample amounts of good quality outside air to counteract build-up of indoor pollutants. | D5: Up to two points are awarded as follows: Naturally ventilated spaces Up to two points are awarded where: • It is demonstrated that 95% of the Nominated Area is naturally ventilated in accordance with SANS 10400-O:2011; Mechanically ventilated spaces Up to two points are awarded where: • It is demonstrated that for 95% of the Nominated Area, outside air is provided at rates greater than the l/s per person requirements of SANS 10400-O:2011, awarded as follows: – 33% improvement for one point; – 66% improvement for two points; or Mixed-mode ventilated spaces Up to two points are awarded where: • Both modes of operation individually satisfy the relevant criteria for naturally ventilated spaces and mechanically ventilated spaces. Points awarded are limited to the maximum points awarded under the mechanically ventilated space criteria. Displacement ventilated spaces Up to two points are awarded where: • It is demonstrated that for 95% of the Nominated Area, outside air is provided at rates greater than the requirements of SANS 10400-O:2011, awarded as follows: – 25% improvement for one point; – 70% improvement for two points; or – 110% improvement for three points. For the purposes of this credit, the ‘Nominated Area’ is Occupied Space. | E5: 2 | I5: =IF(ISBLANK(F5),IF(G5>E5,Calculation1!$B$84,""),IF(F5="na","",IF(OR(F5="na",ISNUMBER(F5)),IF(F5+G5>E5,Calculation1!$B$84,""),Calculation1!$B$85))) -> 
A6: IEQ-2 | B6: Air Change Effectiveness | D6: This credit is not relevant to the Green Star SA Public & Education Building v1 tool | E6: x | F6: x | G6: x | I6: =IF(ISBLANK(F6),IF(G6>E6,Calculation1!$B$84,""),IF(F6="na","",IF(OR(F6="na",ISNUMBER(F6)),IF(F6+G6>E6,Calculation1!$B$84,""),Calculation1!$B$85))) -> ERROR, Value entered in 'No. of points achieved' must be a number or 'na'
A7: IEQ-3 | B7: Carbon Dioxide Monitoring and Control | C7: To encourage and recognise the provision of response monitoring of Carbon Dioxide levels to ensure delivery of optimum quantities of outside air. | D7: One point is awarded where: Naturally ventilated spaces • No less than 95% of the Nominated Area is naturally ventilated in accordance with SANS 10400-O:2011 ; AND • Carbon Dioxide (CO2) monitoring is provided for every room or 100 m2 (whichever is smaller) to provide an audible or visual alarm if CO2 levels rise above 900ppm; AND • In Nominated Areas, occupants are provided with the ability to control the ventilation rates. Mechanically ventilated spaces • A carbon dioxide (CO2) monitoring and control system is installed that meets the following; – Provides a minimum of one CO2 sensor per zone, to a maximum of 100 m2, in 95% of the Nominated Area; and, – Facilitates continuous monitoring and adjustment of outside air ventilation rates at each air-handling unit, to ensure independent control of ventilation rates to achieve outside air requirements; OR • The HVAC system supply air is 100% outside air with no recirculated component. Mixed-mode ventilated spaces • Both modes of operation must satisfy the relevant mechanical and natural ventilation criteria. For the purposes of this credit, ‘Nominated Area’ is Occupied Space. | E7: =IF(F7="na",0,1) -> 1 | I7: =IF(ISBLANK(F7),IF(G7>E7,Calculation1!$B$84,""),IF(F7="na","",IF(OR(F7="na",ISNUMBER(F7)),IF(F7+G7>E7,Calculation1!$B$84,""),Calculation1!$B$85))) -> 
A8: IEQ-4 | B8: Daylight | C8: To encourage and recognise designs that provide good levels of daylight for building users. | D8: Up to three points are awarded where: • A minimum percentage of the nominated area meets a Daylight Factor (DF) of at least 2.0% OR • A minimum percentage of the nominal area meets a Daylight Illuminance (DI) of at least 250 lux, as measured at finished floor level (FFL) under a Uniform Design Sky OR • A minimum percentage of the nominal area meets a Daylight Illuminance of at least 300 lux based on an annual dynamic simulation model, for 70% of the standard occupied hours (Daylight Autonomy (DA) continuous method). Points are awarded as follows: – 30% for one point; – 60% for two points; – 90% for three points. For the purposes of this credit, ‘nominated area’ is defined as Occupied Space with the exception of theatres, cinemas, performance areas (stages), galleries, archives and other spaces that for functional reasons do not allow daylight. | E8: 3 | I8: =IF(OR(ISTEXT(F8)=TRUE,ISTEXT(G8)=TRUE),Calculation1!$B$87,IF(F8+G8>E8,Calculation1!$B$84,"")) -> 
A9: IEQ-5 | B9: Daylight Glare Control | C9: To encourage and recognise buildings that are designed to reduce the discomfort of glare from natural light. | D9: One point is awarded where: • It is demonstrated that glare from daylight is reduced through either, or any combination, of the following: – Fixed shading devices that shade the working plane at desk height (720mm AFFL), 1.5m in from the centre of glazing, from direct sun for 80% of standard working hours ; OR – Blinds or screens, fitted as a base building provision, which meet the following criteria: i. Eliminate 95% of all direct sun penetration; AND ii. Have a visual light transmittance (VLT) of <10%; AND iii. Can be controlled by occupants. For the purpose of this credit ‘Nominated Area’ is Occupied Space. | E9: 1
A10: IEQ-6 | B10: High Frequency Ballasts | D10: This credit is not relevant to the Green Star SA Public & Education Building v1 tool | E10: x | F10: x | G10: x
A11: IEQ-7 | B11: Electric Lighting Levels | C11: To encourage and recognise public building lighting that is not over designed. | D11: One point is awarded where for 95% of the Nominated Area: • The lighting design achieves a maximum maintained illuminance level at any point of no more than 80% of the illuminance levels prescribed in SANS 10114-1:2005. For the purpose of this credit ‘Nominated Area’ is defined as Occupied Space with the exception of performance area (stage). | E11: 1
A12: IEQ-8 | B12: External Views | C12: To encourage and recognise designs that provide occupants with a visual connection to the external environment. | D12: Up to two points are awarded where: • A minimum percentage of the Nominated Area has a direct line of sight to the outdoors or into an adequately sized and day-lit atrium, awarded as follows: – 60% for one point; OR – 80% for two points. For the purpose of this credit Nominated Area is defined as Occupied Space with the exception of theatres, cinemas, performance areas (stages), galleries and other spaces that for functional reasons do not allow daylight. | E12: 2
A13: IEQ-9 | B13: Thermal Comfort | C13: To encourage and recognise buildings that achieve a high level of thermal comfort. | D13: Up to two points are awarded where a high level of thermal comfort is achieved for the occupied area on an area-weighted basis: Mechanically Ventilated Spaces, Mixed Mode and Naturally Ventilated Spaces Up to two points are awarded where: • The Predicted Mean Vote (PMV) levels, calculated in accordance with ISO7730 using standard clothing and metabolic rate values, are within the following limits for at least 98% of occupied hours: – One point for PMV levels between -1 and +1 (inclusive); OR – Two points for PMV levels between -0.5 and +0.5 (inclusive). Naturally Ventilated Spaces An alternate method to show compliance is available in naturally ventilated spaces. Up to two points are awarded where: • Internal operative temperatures are within the ASHRAE Standard 55-2004 Acceptability Limits for at least 98% of occupied hours, awarded as follows: – One point for meeting the 80% Acceptability Limits; OR – Two points for meeting the 90% Acceptability Limits. For the purpose of this credit ‘Nominated Area’ is defined as Occupied Space. | E13: 2 | I13: =IF(ISBLANK(F13),IF(G13>E13,Calculation1!$B$84,""),IF(F13="na","",IF(OR(F13="na",ISNUMBER(F13)),IF(F13+G13>E13,Calculation1!$B$84,""),Calculation1!$B$85))) -> 
A15: IEQ-10 | B15: Individual Comfort Control | D15: This credit is not relevant to the Green Star SA Public & Education Building v1 tool | E15: x | F15: x | G15: x | I15: =IF(OR(ISTEXT(F15)=TRUE,ISTEXT(G15)=TRUE),Calculation1!$B$87,IF(F15+G15>E15,Calculation1!$B$84,"")) -> ERROR, text not valid!
A16: IEQ-11 | B16: Hazardous Materials | C16: To encourage and recognise actions taken to reduce health risks to occupants from the presence of hazardous materials. | D16: One point is awarded where: • A comprehensive hazardous material survey has been carried out on the project site, as defined by the South African Occupational Health and Safety Act (OH&S); AND • Wherever asbestos, lead or polychlorinated biphenyls (PCBs) were found, they have been removed in accordance with the standards listed under Table IEQ-11.1. Where no buildings or structures existed at the time of site purchase, or for refurbishments or redevelopments where none of the above hazardous materials were found, this credit is ‘Not Applicable’ and is excluded from the points available, used to calculate the Indoor Environment Quality Category score. | E16: =IF(F16="na",0,1) -> 1 | I16: =IF(ISBLANK(F16),IF(G16>E16,Calculation1!$B$84,""),IF(F16="na","",IF(OR(F16="na",ISNUMBER(F16)),IF(F16+G16>E16,Calculation1!$B$84,""),Calculation1!$B$85))) -> 
A17: IEQ-12 | B17: Internal Noise Levels | C17: To encourage and recognise buildings that are designed to maintain internal noise levels at an appropriate level. | D17: Up to three points are awarded as follows: Building Services Design - One point is awarded where: • For a minimum of 95% of the Nominated Area, noise from the building services does not exceed the design equivalent continuous rating levels as set out in SANS 10103:2008. Overall Building One point is awarded where: • For a minimum of 95% of the Nominated Area, the ambient sound level does not exceed the design equivalent continuous rating levels as set out in SANS 10103:2008. Note: For spaces where a maximum ambient sound level is not provided in SANS 10103:2008, a maximum sound level of 45 dB(a)eq shall apply. | E17: 2 | I17: =IF(ISBLANK(F17),IF(G17>E17,Calculation1!$B$84,""),IF(F17="na","",IF(OR(F17="na",ISNUMBER(F17)),IF(F17+G17>E17,Calculation1!$B$84,""),Calculation1!$B$85))) -> 
D18: Educational Spaces (only) An additional point is awarded where: • Two points (above) are achieved ; AND • For all classrooms and lecture theatres provided within the building: – The total surface area finished with a material with a Noise Reduction Coefficient (NRC) of 0.70 or higher, equals or exceeds the total ceiling area (excluding lights, diffusers and grilles); OR – The reverberation time in each space, measured in accordance with (BS EN) ISO 140-4:1998 does not exceed the following values:. - Classrooms: 0.8 seconds - Small lecture theatres (< 50 people): 0.8 seconds - Large lecture theatres (≥ 50 people): 1.0 seconds Where no classrooms or lecture theatres are provided within in the building, the additional point is ‘Not Applicable’ and is excluded from the points available used to calculate the Indoor Environment Quality Category score. For the purpose of this credit ‘Nominated Area’ is defined as Occupied Space. | E18: =IF(F18="na",0,1) -> 1
A19: IEQ-13 | B19: Volatile Organic Compounds | C19: To encourage and recognise specification of interior finishes that minimise the contribution and levels of Volatile Organic Compounds in buildings. | D19: Up to three points are awarded independently as follows: Paints One point is awarded where: • At least 95% of all painted surfaces within the Nominated Area meet the TVOC Content Limits outlined in Table IEQ-13.1 and must not contain any added lead in the form of driers or pigments; OR • No paint is used within the Nominated Area | E19: 1 | I19: =IF(OR(ISTEXT(F19)=TRUE,ISTEXT(G19)=TRUE),Calculation1!$B$87,IF(F19+G19>E19,Calculation1!$B$84,"")) -> 
D20: Adhesives and Sealants One point is awarded where: • At least 95% of all adhesives and sealants within the Nominated Area meet the TVOC Content Limits outlined in Table IEQ-13.2; OR • No adhesives or sealants are used within the Nominated Area. | E20: 1
D21: Carpets & Floor Coverings One point is awarded where: • At least 95% of all carpets and floor coverings within the Nominated Area meet the TVOC emissions limits outlined in Table IEQ-13.3. Where no carpet or floor covering is installed in the Nominated Area, the carpet and floor coverings point is ‘Not Applicable’ and is excluded from the Points Available, used to calculate the IEQ category score. For the purpose of this credit, 'nominated areas' are all internal areas. Refer to Additional Guidance for further guidance. | E21: =IF(F21="na",0,1) -> 1 | I21: =IF(OR(ISTEXT(F21)=TRUE,ISTEXT(G21)=TRUE),Calculation1!$B$87,IF(F21+G21>E21,Calculation1!$B$84,"")) -> 
A22: IEQ-14 | B22: Formaldehyde Minimisation | C22: To encourage and recognise the specification of products with low formaldehyde emission levels. | D22: One point is awarded where: • All composite wood products used within the Nominated Area, either: – Comply with the formaldehyde emission limits in Table IEQ-14.1; OR – Contain zero formaldehyde. Where no composite wood products are used within the Nominated Area, this credit is ‘Not Applicable’ and is excluded from the points available, used to calculate the Indoor Environment Quality category score. For the purpose of this credit, 'nominated areas' are all internal areas. Refer to Additional Guidance for further guidance. | E22: =IF(F22="na",0,1) -> 1 | I22: =IF(ISBLANK(F22),IF(G22>E22,Calculation1!$B$84,""),IF(F22="na","",IF(OR(F22="na",ISNUMBER(F22)),IF(F22+G22>E22,Calculation1!$B$84,""),Calculation1!$B$85))) -> 
A23: IEQ-15 | B23: Mould Prevention | C23: To encourage and recognise the design of services that eliminate the risk of mould growth and its associated detrimental impact on occupant health. | D23: One point is awarded where: • It is demonstrated that for no less than 95% of the Nominated Area, the HVAC system maintains humidity levels at; – No more than 60% RH (Relative Humidity) in the space; AND – No more than 80% RH in the supply ductwork; OR • It is demonstrated that for no less than 95% of the Nominated Area, the spaces are naturally ventilated. For the purposes of this credit, ‘nominated area’ is defined as Occupied Space. | E23: 1 | I23: =IF(ISBLANK(F23),IF(G23>E23,Calculation1!$B$84,""),IF(F23="na","",IF(OR(F23="na",ISNUMBER(F23)),IF(F23+G23>E23,Calculation1!$B$84,""),Calculation1!$B$85))) -> 
A24: IEQ-16 | B24: Dedicated Exhaust Riser | C24: To encourage and recognise the design of buildings with a dedicated exhaust riser that is used to remove indoor pollutants from printing and photocopy rooms. | D24: One point is awarded where: • Dedicated print/photocopy room(s) are provided; AND • All print/photocopy room(s) are exhausted to a dedicated exhaust riser which meets the following requirements: – Provides at least 3 air changes per hour for each print/photocopy room(s); AND – The exhaust system is not recycled and is discharged outside of the building . Where no dedicated print/photocopy area(s) (whether separate enclosed rooms or not) are provided in the building, this credit is ‘Not Applicable’ and is excluded from the points available used to calculate the IEQ category score. | E24: =IF(F24="na",0,1) -> 1
A25: IEQ-17 | B25: Environmental Tobacco Smoke (ETS) Avoidance | D25: This credit is not relevant to the Green Star SA Public & Education Building v1 tool | E25: x | F25: x | G25: x
A26: IEQ-18 | B26: Places of Respite and Connection to Nature | D26: This credit is not relevant to the Green Star SA Public & Education Building v1 tool | E26: x | F26: x | G26: x | I26: =IF(OR(ISTEXT(F26)=TRUE,ISTEXT(G26)=TRUE),Calculation1!$B$87,IF(F26+G26>E26,Calculation1!$B$84,"")) -> ERROR, text not valid!
A27: IEQ-19 | B27: Private Outdoor Space | D27: This credit is not relevant to the Green Star SA Public & Education Building v1 tool | E27: x | F27: x | G27: x | I27: =IF(OR(ISTEXT(F27)=TRUE,ISTEXT(G27)=TRUE),Calculation1!$B$87,IF(F27+G27>E27,Calculation1!$B$84,"")) -> ERROR, text not valid!
A28: IEQ-20 | B28: Kitchen Extract | D28: This credit is not relevant to the Green Star SA Public & Education Building v1 tool | E28: x | F28: x | G28: x | I28: =IF(OR(ISTEXT(F28)=TRUE,ISTEXT(G28)=TRUE),Calculation1!$B$87,IF(F28+G28>E28,Calculation1!$B$84,"")) -> ERROR, text not valid!
A29: IEQ-21 | B29: Carbon Monoxide Monitoring & Control | D29: This credit is not relevant to the Green Star SA Public & Education Building v1 tool | E29: x | F29: x | G29: x | I29: =IF(OR(ISTEXT(F29)=TRUE,ISTEXT(G29)=TRUE),Calculation1!$B$87,IF(F29+G29>E29,Calculation1!$B$84,"")) -> ERROR, text not valid!
A30: IEQ-22 | B30: Universal Access | D30: This credit is not relevant to the Green Star SA Public & Education Building v1 tool | E30: x | F30: x | G30: x | I30: =IF(OR(ISTEXT(F30)=TRUE,ISTEXT(G30)=TRUE),Calculation1!$B$87,IF(F30+G30>E30,Calculation1!$B$84,"")) -> ERROR, text not valid!
A31: IEQ-23 | B31: Stairs | C31: To encourage and recognise designs that promote the wellbeing of occupants by encouraging the use of stairs as an alternative to vertical transportation by lift. | D31: One point is awarded where: Internal stairs are provided and are: • Available for use by the building users and, where relevant, the public; AND • Highly visible (i.e. not visually blocked behind doors or other visual obstructions); AND • Located within 5m of the primary set of lifts OR within 20m of a main entrance; AND • At least one of the following requirements is met: – 25% of the stairwell wall area is exterior glazing; OR – Each level within the stairwell has a Daylight Factor of at least 2.0 at finished floor level (FFL); OR – The stair is fully open to the interior on at least one side over the entire span of the stairwell. Where the building is single storey or does not have a passenger or goods lift (dedicated disabled persons lift can be excluded), then this credit is ‘Not Applicable’ and is excluded from the points available used to calculate the IEQ score. | E31: =IF(F31="na",0,1) -> 1
D32: Total Points: | E32: =SUM(E5:E31) -> 23 | F32: =SUM(F5:F31) -> 0 | G32: =SUM(G5:G31) -> 0
A36: =Calculation1!$B$93 -> Project Teams are to refer to the Green Star SA Public Building PILOT Technical Manual for explicit credit criteria and documentation requirements.
A37: =Calculation1!$B$94 -> The Green Star Technical Clarifications (TC) and Credit Interpretation Request (CIR) rulings provide an essential source of information to all
A38: =Calculation1!$B$95 -> projects undertaking Green Star assessment. They are available on the GBCSA website http://www.gbcsa.org.za . Technical Clarifications
A39: =Calculation1!$B$96 -> often represent the GBCSA answers to technical queries and complement Green Star SA Technical Manuals. They do not amend but clarify
A40: =Calculation1!$B$97 -> Credit Criteria or Compliance Requirements. They are an extension of the Technical Manual; it is the responsibility of the project teams to stay
A41: =Calculation1!$B$98 -> up-to-date with this section of the GBCSA website. The CIR rulings offer alternative compliance options whenever those have been deemed
A42: =Calculation1!$B$99 -> equivalent in meeting the Aim of Credit.

Sheet Energy
A1: ='Building Input'!B1 -> Green Star SA - Public & Education Building v1 | F1: Category Weighting: | G1: ='Credit Summary'!J45 -> 0.25 | H1: Category Weighted Score
A2: Energy | D2: Category Summary: | E2: =E20 -> 30 | F2: =F20 -> 0 | G2: =G20 -> 0 | H2: ='Credit Summary'!K45 -> 0
A3: Credit Summary for: | C3: =IF('Building Input'!$C$5=0,"",'Building Input'!$C$5) ->  | F3: =IF(OR((I3=Calculation1!$B$84),(I3=Calculation1!$B$85),((F2+G2)>E2)),Calculation1!$B$86,"") ->  | I3: =T(I6:I14) -> ERROR, text not valid!
A4: Ref No. | B4: Title | C4: Aim of Credit | D4: Credit Criteria Summary | E4: No. of Points Available | F4: No. of Points Achieved | G4: Points to be Confirmed | H4: Comments
A5: Ene- | B5: Conditional Requirement | C5: To encourage and recognise designs that minimise the greenhouse gas emissions associated with operational energy consumption. | D5: To meet the Ene-0 Conditional Requirement, the Project must demonstrate compliance using one of the three compliance routes described below: NOTE: Projects are required to select Compliance Route 1, Compliance Route 2 OR Compliance Route 3. Projects are NOT required to demonstrate compliance to all routes. Compliance Route 1 - Energy Modelling The predicted greenhouse gas emissions of the ‘Actual Building’ are less than or equal to the predicted greenhouse gas emissions of the ‘Notional Building’ in the same location, when modelled in accordance with the Green Star SA - Public & Education Building - Energy Calculator & Modelling Protocol Guide v1 Guide. Compliance Route 2 - ASHRAE Deemed-to-Satisfy (DTS) The building fabric and building services design fully comply with the ASHRAE Advanced Energy Design Guide for Small Office Buildings. Refer to Green Star SA - Public & Education Building - Energy Calculator & Modelling Protocol Guide v1 for additional guidance. Compliance Route 3 - SANS 204:2011 Deemed-to-Comply The design complies with all of the SANS 204:2011 Energy Efficiency in Buildings 'Deemed-toComply' clauses regarding building fabric and building services. Refer to Green Star SA - Public & Education Building - Energy Calculator & Modelling Protocol Guide v1 for additional guidance. | E5: Conditional Requirement Achieved? | F5: ='Energy Calculator'!I5 -> Not Achieved | H5: =IF('Energy Calculator'!I5:I7="Achieved",'Energy Calculator'!E194,IF('Energy Calculator'!F22>='Energy Calculator'!E109,'Energy Calculator'!E196,'Energy Calculator'!E195)) -> Compliance is determined from information entered into the Energy Calculator. The project team acknowledges that the design does NOT meet the minimum energy efficiency requirements as stipulated in the Green Star SA Public & Education Building v1 Technical Manual. This Green Star SA project is therefore NOT eligible for formal certification by the GBCSA. Please refer to the Technical Manual for further information.
A6: Ene-1 | B6: Greenhouse Gas Emissions | C6: To encourage and recognise designs that minimise greenhouse gas emissions associated with operational energy consumption. | D6: Up to 20 points are awarded where it is demonstrated that the building’s predicted greenhouse gas emissions have been reduced. NOTE: Projects are required to select Compliance Route 1, Compliance Route 2 OR Compliance Route 3. Projects are NOT required to demonstrate compliance to all routes. Compliance Route 1 - Energy Modelling (up to 20 points) The building is to be modelled in accordance with the Green Star SA - Public & Education Building v1 Energy Modelling Protocol Guide. The predicted greenhouse gas emissions determined for the ‘Actual Building’ must be compared with those determined for the ‘Notional Building’ at the same location. Whilst the ‘Actual Building’ represents the intended building design, the ‘Notional Building’, however, is modelled based on fabric and services performance characteristics as per the Green Star SA - Public & Education Building - Energy Calculator & Modelling Protocol Guide v1. | E6: 20 | F6: =IF('Energy Calculator'!I2="Error",0,'Energy Calculator'!I2) -> - | I6: =IF(OR(ISTEXT(F6)=TRUE,ISTEXT(G6)=TRUE),Calculation1!$B$87,IF(F6+G6>E6,Calculation1!$B$84,"")) -> ERROR, text not valid!
D7: Compliance Route 2 - ASHRAE Deemed-to-Satisfy (DTS) As an alternative to the energy modelling route the building fabric and building services need to comply with the relevant clauses in ASHRAE Advanced Energy Design Guide for Small Office Buildings. The reduction in HVAC energy consumption of the building is assumed to be 20% and no energy modelling is required. Refer to Green Star SA - Public & Education Building - Energy Calculator & Modelling Protocol Guide v1 for additional guidance. Compliance Route 3 – SANS 204:2011 Deemed-to-Comply (DTC) The design complies with all of the SANS 204:2011 Energy Efficiency in Buildings ‘Deemed-to-Comply’ clauses regarding building fabric and building services. The notional and actual buildings are assumed to be air conditioned and the HVAC energy consumption of both buildings is assumed to be the same. Refer to Green Star SA - Public & Education Building - Energy Calculator & Modelling Protocol Guide v1 for additional guidance. For all Compliance Routes points are determined by the Green Star SA - Public & Education Building Energy Calculator and awarded on a linear scale with 0 points for the notional building and 20 points for a net zero operating emissions building. One point is awarded for every 5% saving below the notional building level.
A8: Ene-2 | B8: Energy Sub-metering | C8: To encourage and recognise the installation of energy sub-metering to facilitate on-going management of energy consumption. | D8: Up to three points are awarded as follows: One point is awarded where: • Electrical sub-metering is provided for: – All substantive electrical energy uses within the building ; AND • An effective monitoring system is installed to monitor all sub-meters and an automated metering strategy is prepared ; | E8: 1 | I8: =IF(OR(ISTEXT(F8)=TRUE,ISTEXT(G8)=TRUE),Calculation1!$B$87,IF(F8+G8>E8,Calculation1!$B$84,"")) -> 
D9: One point is awarded where: • Thermal sub-metering is provided for: – All substantive thermal energy uses within the building; AND – An effective monitoring system is installed to monitor all sub-meters and an automated metering strategy is prepared. If centralised space heating or cooling reticulation systems are not included within the base-built, this point is ‘Not Applicable’ and is excluded from the points available used to calculate the Energy Category Score. Type ‘na’ in the No. of Points Achieved column in the rating tool. | E9: =IF(F9="na",0,1) -> 1
D10: An additional point is awarded where: • The first point above is achieved; AND • Electrical sub-metering is provided separately for lighting and separately for power for 95% of the building; AND • An effective monitoring system is installed to monitor all sub-meters and an automated metering strategy is prepared. | E10: 1
A11: Ene-3 | B11: Lighting Power Density | D11: This credit is not relevant to the Green Star SA Public & Education Building v1 tool | E11: x | F11: x | G11: x | I11: =IF(OR(ISTEXT(F11)=TRUE,ISTEXT(G11)=TRUE),Calculation1!$B$87,IF(F11+G11>E11,Calculation1!$B$84,"")) -> ERROR, text not valid!
A12: Ene-4 | B12: Lighting Zoning | C12: To encourage and recognise lighting design practices that offer greater flexibility for light switching, making it easier to light only occupied areas. | D12: Up to two points are awarded as follows: • One point is awarded where it is demonstrated that: - All individual or enclosed spaces are individually switched; AND - Individually switched lighting zones do not exceed 100m² for 95% of the nominated area; AND - Switching is clearly labelled and easily accessible by building occupants. • An additional point is awarded where: - The point above is achieved; AND - An individually addressable lighting system is provided for 90% of the nominated area. For the purpose of this credit, 'nominated area' is defined as Occupied Space | E12: 2 | I12: =IF(OR(ISTEXT(F12)=TRUE,ISTEXT(G12)=TRUE),Calculation1!$B$87,IF(F12+G12>E12,Calculation1!$B$84,"")) -> 
A13: Ene-5 | B13: Maximum Electrical Demand Reduction | C13: To encourage and recognise designs that reduce the maximum demand on the electrical supply infrastructure. | D13: Up to three points are awarded where it is demonstrated that the building has reduced its peak electrical demand load on electricity infrastructure as follows: • One point where: - Peak electrical demand is actively reduced by 10%; OR - The difference between the peak and average demand does not exceed 40% • Two points where: - Peak electrical demand is actively reduced by 20%; OR - The difference between the peak and average demand does not exceed 30% • Three points where: - Peak electrical demand is actively reduced by 30%; OR - The difference between the peak and average demand does not exceed 20% | E13: 3 | I13: =IF(OR(ISTEXT(F13)=TRUE,ISTEXT(G13)=TRUE),Calculation1!$B$87,IF(F13+G13>E13,Calculation1!$B$84,"")) -> 
A14: Ene-6 | B14: Thermal Energy Sub-metering | D14: This credit is not relevant to the Green Star SA Public & Education Building v1 tool | E14: x | F14: x | G14: x | I14: =IF(ISBLANK(F14),IF(G14>E14,Calculation1!$B$84,""),IF(F14="na","",IF(OR(F14="na",ISNUMBER(F14)),IF(F14+G14>E14,Calculation1!$B$84,""),Calculation1!$B$85))) -> ERROR, Value entered in 'No. of points achieved' must be a number or 'na'
A15: Ene-7 | B15: Hot Water Energy Usage | D15: This credit is not relevant to the Green Star SA Public & Education Building v1 tool | E15: x | F15: x | G15: x | I15: =IF(OR(ISTEXT(F15)=TRUE,ISTEXT(G15)=TRUE),Calculation1!$B$87,IF(F15+G15>E15,Calculation1!$B$84,"")) -> ERROR, text not valid!
A16: Ene-8 | B16: Common Property Services Energy Use | D16: This credit is not relevant to the Green Star SA Public & Education Building v1 tool | E16: x | F16: x | G16: x | I16: =IF(OR(ISTEXT(F16)=TRUE,ISTEXT(G16)=TRUE),Calculation1!$B$87,IF(F16+G16>E16,Calculation1!$B$84,"")) -> ERROR, text not valid!
A17: Ene-9 | B17: Renewable Energy Generation | D17: This credit is not relevant to the Green Star SA Public & Education Building v1 tool | E17: x | F17: x | G17: x | I17: =IF(OR(ISTEXT(F17)=TRUE,ISTEXT(G17)=TRUE),Calculation1!$B$87,IF(F17+G17>E17,Calculation1!$B$84,"")) -> ERROR, text not valid!
A18: Ene-10 | B18: Energy Efficient Aplliances | D18: This credit is not relevant to the Green Star SA Public & Education Building v1 tool | E18: x | F18: x | G18: x | I18: =IF(OR(ISTEXT(F18)=TRUE,ISTEXT(G18)=TRUE),Calculation1!$B$87,IF(F18+G18>E18,Calculation1!$B$84,"")) -> ERROR, text not valid!
A19: Ene-11 | B19: Unoccupied spaces | C19: To encourage and recognise designs that minimise or eliminate energy use for spaces when unoccupied | D19: Up to two points are awarded as follows: One point is awarded where: • A minimum of 60% of the Nominated Area achieves the Unoccupied Space criteria detailed below. OR Two points are awarded where: • A minimum of 90% of the Nominated Area achieves the Unoccupied Space criteria detailed below. The Unoccupied Space criteria for Credit Criteria compliance are: • The space is naturally ventilated in accordance with SANS 10400-O:2011; OR • The air-conditioning system in each separate enclosed space is: – Designed for automatic shut down after a set unoccupied period; OR – Designed with a “set-back” control band (i.e. wider temperature control band) which commences after a set unoccupied period. For the purpose of this credit, the 'nominated area is defined as Occupied Space.. | E19: 2 | I19: =IF(OR(ISTEXT(F19)=TRUE,ISTEXT(G19)=TRUE),Calculation1!$B$87,IF(F19+G19>E19,Calculation1!$B$84,"")) -> 
D20: Total Points: | E20: =SUM(E6:E19) -> 30 | F20: =SUM(F5:F19) -> 0 | G20: =SUM(G6:G19) -> 0
A24: =Calculation1!$B$93 -> Project Teams are to refer to the Green Star SA Public Building PILOT Technical Manual for explicit credit criteria and documentation requirements.
A25: =Calculation1!$B$94 -> The Green Star Technical Clarifications (TC) and Credit Interpretation Request (CIR) rulings provide an essential source of information to all
A26: =Calculation1!$B$95 -> projects undertaking Green Star assessment. They are available on the GBCSA website http://www.gbcsa.org.za . Technical Clarifications
A27: =Calculation1!$B$96 -> often represent the GBCSA answers to technical queries and complement Green Star SA Technical Manuals. They do not amend but clarify
A28: =Calculation1!$B$97 -> Credit Criteria or Compliance Requirements. They are an extension of the Technical Manual; it is the responsibility of the project teams to stay
A29: =Calculation1!$B$98 -> up-to-date with this section of the GBCSA website. The CIR rulings offer alternative compliance options whenever those have been deemed
A30: =Calculation1!$B$99 -> equivalent in meeting the Aim of Credit.

Sheet Energy Calculator
B1: ='Building Input'!B1 -> Green Star SA - Public & Education Building v1
B2: Energy Calculator | H2: Points Achieved: | I2: =I62 -> -
B4: Notes & Instructions:
B5: 1. User must enter values into or select options in white cells ONLY | G5: Ene-0 Conditional Requirement Result: | I5: =IF(AND(F10=B91,F18="Not Available"),"Not Achieved",IF(F10=B93,"Not Achieved",IF(AND(F18="Yes",OR(F14="Yes",F14="N/A")),"Achieved",IF(AND(H59<H58,OR(F14="Yes",F14="N/A"),SUM(E33:E37)>0,SUM(F33:F37)>0),"Achieved","Not Achieved")))) -> Not Achieved
B6: 2. Refer to Green Star SA - Public & Education Building v1 Energy Calculator Protocol
B7: Guide for detailed information and assistance in using this calculator.
B10: Please select Compliance Route adopted: | F10: None
H11: =IF(F14="no","All naturally ventilated spaces that do not meet the comfort criteria must be entered as conditioned spaces on the building input sheet and treated as conditioned spaces in the modelling (refer Energy Calculator Guide for more information).","") -> 
B14: If parts or all of the Building is Naturally Ventilated, is thermal comfort criteria met for those spaces? (Thermal comfort requirements need to be met to accept this as an option - refer to the Technical Manual for details) | F14: N/A
B18: Route 2 - ASHRAE Advanced Energy Design Guide for Small Office Buildings: 'deemed to satisfy' route has been met? | F18: =IF(F22>=E109,"Not Available",IF(F10=B90,"No (Route 1 used)",IF(F10=B91,"Yes",IF(F10=B92,"No (Route 3 used)",IF(F10=B93,"No",""))))) -> No
A19: ` | H19: =IF(F22>=E109," (Public & Education Building GFA limit exceeded)","") -> 
B22: Total Building GFA | F22: ='Building Input'!C33 -> 0 | G22: m² | H22: =IF(F22=0,"",IF(F22<2200,"Compliance Route 2 permitted (GFA requirement satisfied)","")) -> 
B23: Total Area of the building supporting the primary function | F23: =SUM('Building Input'!C79:E79) -> 0 | G23: m²
B24: Total Internal Covered Car Parking Area | F24: =SUM('Building Input'!C55:E56) -> 0 | G24: m²
B25: External Area (including external Car Parking) | F25: =SUM('Building Input'!C57:E57) -> 0 | G25: m²
B27: ENERGY USE
E28: Notional Building | F28: Actual Building
E29: Electrical use kWh/year | F29: Electrical use kWh/year | G29: Gas use kWh/year
D32: fuel CO2 factor | E32: =E187 -> 1.2 | F32: =E187 -> 1.2 | G32: =E188 -> 0.202
B33: Heating (nominated area) | H33: modelling data for nom. area (notional & actual buildings)
B34: Cooling & Heat Rejection (nominated area) | H34: modelling data for nom. area (notional & actual buildings)
B35: Pumps (nominated area) | H35: modelling data for nom. area (notional & actual buildings)
B36: Fans (nominated area) | H36: modelling data for nom. area (notional & actual buildings)
B37: Extract and Miscellaneous Fans (nominated area) | H37: modelling data for nom. area (notional & actual buildings)
B38: Subtotal HVAC (nominated area) | E38: =IF(F10=B90,SUM(E33:E37),IF(OR(F10=B91,F10=B92),VLOOKUP('Building Input'!C32,B112:H126,5,FALSE)*('Building Input'!C182+'Building Input'!C184)+VLOOKUP('Building Input'!C32,B112:H126,7,FALSE)*'Building Input'!C183,0)) -> 0 | F38: =IF(F10=B90,SUM(F33:F37),IF(F10=B91,VLOOKUP('Building Input'!C32,B112:H126,5,FALSE)*'Building Input'!C182*(1-E134)+VLOOKUP('Building Input'!C32,B112:H126,7,FALSE)*'Building Input'!C183*(1-E135),IF(F10=B92,VLOOKUP('Building Input'!C32,B112:H126,5,FALSE)*('Building Input'!C182+'Building Input'!C184)+VLOOKUP('Building Input'!C32,B112:H126,7,FALSE)*'Building Input'!C183,0))) -> 0 | G38: =IF(F10=B90,SUM(G33:G37),0) -> 0
B39: Lighting | E39: =SUM('Lighting Energy Calculator'!F21:F60) ->  | F39: =SUM('Lighting Energy Calculator'!K21:K60) -> 0 | H39: refer to 'Lighting Energy Calculator'
B40: Vertical transportation | H40: calculate for Public & Education Building GFA (notional & actual building)
B41: Domestic Hot Water | E41: =F239 -> 0 | H41: calculate for Public & Education Building GFA (notional & actual building)
B42: SUB TOTALS (kWh/year) | E42: =SUM(E38:E41) ->  | F42: =SUM(F38:F41) -> 0 | G42: =SUM(G38:G41) -> 0
B45: ON SITE RENEWABLE ELECTRICITY GENERATION (actual building only)
F46: kWh/year | G46: fuel factor kgCO2/kWh | H46: net saving kgCO2/year | I46: net saving kgCO2/m²/year
B47: Renewable Electricity generated on site including photovoltaics, wind turbines etc. | G47: 0 | H47: =F47*F32-F47*G47 -> 0 | I47: =H47/$F$23 -> 
B49: OTHER ON SITE GENERATION (actual building only)
F50: kWh/year | G50: fuel factor kgCO2/kWh | H50: net saving kgCO2/year | I50: net saving kgCO2/m²/year
B51: Onsite Electricity Generation (e.g. electricity from a co-generation system)
B52: Type of fuel used | G52: =VLOOKUP(F52,B183:E189,4,FALSE) -> 
B53: Amount of fuel used (calorific value in kWh) | H53: =IF(F52="",0,F51*F32-F53*G52) -> 0 | I53: =H53/$F$23 -> 
B55: TOTALS
C56: Energy usage (notional building) - (Spaces supporting primary function) | H56: =IF(F23=0,0,E42/$F$23) -> 0 | I56: kWh/m²/year
C57: Energy usage (actual building) - (Spaces supporting primary function) | H57: =IF(F23=0,0,(F42+G42-F47)/F23) -> 0 | I57: kWh/m²/year
C58: Carbon emissions (notional building) | H58: =IF(F23=0,0,(E42*E32)/$F$23) -> 0 | I58: kgCO2/m²/year
C59: Carbon emissions (actual building) | H59: =IF(F23=0,0,((F42*F32)+(G42*G32)-H47-H53)/$F$23) -> 0 | I59: kgCO2/m²/year
B60: PERCENTAGE IMPROVEMENT OVER NOTIONAL BUILDING | H60: =IF(H58=0,0,((H58-H59)/H58)) -> 0
B62: Energy Calculator Results: | I62: =IF(F14="No",0,IF(AND(F10=B91,F18="Not Available"),0,IF(OR(F10=B90,F10=B91,F10=B92),IF(AND(E42>0,F42>0),B245,"-"),"-"))) -> -
B87: Drop Down Lists
A89: 1 | B89: Compliance Routes
B90: Compliance Route 1
B91: Compliance Route 2
B92: Compliance Route 3
B93: None
A95: 2 | B95: Natural Ventilation
B96: Yes
B97: No
B98: N/A
B107: Database Info
A109: 1 | B109: Maximum GFA for compliance route 2 | E109: 10000000 | F109: m²
A111: 2 | B111: HVAC energy Benchmarks | E111: HVAC operating Hrs / an | F111: Air Conditioned | H111: Mechanically Ventilated
B112: ='Building Input'!B113 -> A1: Casino | E112: =24*365 -> 8760 | F112: =E112/(12*5*52)*80 -> 224.6153846 | G112: kWh/m²/an | H112: =E112/(12*5*52)*27.5 -> 77.21153846 | I112: kWh/m²/an
B113: ='Building Input'!B114 -> A1: Community/ day centre | E113: =16*365 -> 5840 | F113: =E113/(12*5*52)*80 -> 149.7435897 | G113: kWh/m²/an | H113: =E113/(12*5*52)*27.5 -> 51.47435897 | I113: kWh/m²/an
B114: ='Building Input'!B115 -> A1: Restaurant/ public house | E114: =16*365 -> 5840 | F114: 149.7435897 | G114: kWh/m²/an | H114: 51.47435897 | I114: kWh/m²/an
B115: ='Building Input'!B116 -> A2: Sports centre/ leisure centre | E115: =16*365 -> 5840 | F115: 149.7435897 | G115: kWh/m²/an | H115: 51.47435897 | I115: kWh/m²/an
B116: ='Building Input'!B117 -> A2: Theatres/ cinemas/ and music halls | E116: =16*365 -> 5840 | F116: 149.7435897 | G116: kWh/m²/an | H116: 51.47435897 | I116: kWh/m²/an
B117: ='Building Input'!B118 -> A3: Primary school | E117: =12*5*50 -> 3000 | F117: 76.92307692 | G117: kWh/m²/an | H117: 26.44230769 | I117: kWh/m²/an
B118: ='Building Input'!B119 -> A3: Secondary school | E118: =12*5*50 -> 3000 | F118: 76.92307692 | G118: kWh/m²/an | H118: 26.44230769 | I118: kWh/m²/an
B119: ='Building Input'!B120 -> A3: Higher Education | E119: =12*5*52 -> 3120 | F119: 80 | G119: kWh/m²/an | H119: 27.5 | I119: kWh/m²/an
B120: ='Building Input'!B121 -> A4: Worship | E120: =12*365 -> 4380 | F120: 112.3076923 | G120: kWh/m²/an | H120: 38.60576923 | I120: kWh/m²/an
B121: ='Building Input'!B122 -> C1: Convention Centre and Exhibition Hall | E121: =16*365 -> 5840 | F121: 149.7435897 | G121: kWh/m²/an | H121: 51.47435897 | I121: kWh/m²/an
B122: ='Building Input'!B123 -> C2: Libraries/ museums/ and galleries | E122: =16*365 -> 5840 | F122: 149.7435897 | G122: kWh/m²/an | H122: 51.47435897 | I122: kWh/m²/an
B123: ='Building Input'!B124 -> Airport terminals | E123: =24*365 -> 8760 | F123: 224.6153846 | G123: kWh/m²/an | H123: 77.21153846 | I123: kWh/m²/an
B124: ='Building Input'!B125 -> Public transport terminals | E124: =24*365 -> 8760 | F124: 224.6153846 | G124: kWh/m²/an | H124: 77.21153846 | I124: kWh/m²/an
B125: ='Building Input'!B126 -> Courts | E125: =12*5*52 -> 3120 | F125: 80 | G125: kWh/m²/an | H125: 27.5 | I125: kWh/m²/an
B126: ='Building Input'!B127 -> Fire station/Police station | E126: =16*365 -> 5840 | F126: 149.7435897 | G126: kWh/m²/an | H126: 51.47435897 | I126: kWh/m²/an
B128: Base HVAC indice is 80kWh/m²/an for 12hrs/day, 5days/week, 52 weeks/an.
B129: Actual HVAC indice is then correct for operating hours of the building
B130: Base mech vent indice is based on 1.1W/l/s, 8l/s/m², 12hrs/day, 5days/week, 52 weeks/an = 27.5 kWh/m²/an
B131: Actual mech vent indice is then correct for operating hours of the building
A133: 3 | B133: Compliance Route 2 Savings
B134: Air Conditioned Areas | E134: 0.2
B135: Mechanically Ventilated areas | E135: 0
A137: 4 | B137: Hot water consumption by space type
B138: ='Building Input'!B130 -> Cellular office | E138: 0.21 | F138: l/m²/day
B139: ='Building Input'!B131 -> Changing facilities | E139: 30 | F139: l/m²/day
B140: ='Building Input'!B132 -> Circulation area (corridors and stairways) - non public | E140: 0 | F140: l/m²/day
B141: ='Building Input'!B133 -> Common room/staff room/lounge | E141: 0.3 | F141: l/m²/day
B142: ='Building Input'!B134 -> Eating/drinking | E142: 6 | F142: l/m²/day
B143: ='Building Input'!B135 -> Food preparation | E143: 0.33 | F143: l/m²/day
B144: ='Building Input'!B136 -> Hall/lecture theatre/assembly | E144: 0.15 | F144: l/m²/day
B145: ='Building Input'!B137 -> High density IT work space | E145: 0.15 | F145: l/m²/day
B146: ='Building Input'!B138 -> IT equipment | E146: 0 | F146: l/m²/day
B147: ='Building Input'!B139 -> Meeting room | E147: 0.06 | F147: l/m²/day
B148: ='Building Input'!B140 -> Open plan office | E148: 0.33 | F148: l/m²/day
B149: ='Building Input'!B141 -> Plant room | E149: 0 | F149: l/m²/day
B150: ='Building Input'!B142 -> Public circulation | E150: 0.06 | F150: l/m²/day
B151: ='Building Input'!B143 -> Reception | E151: 0.03 | F151: l/m²/day
B152: ='Building Input'!B144 -> Storage | E152: 0 | F152: l/m²/day
B153: ='Building Input'!B145 -> Tea Kitchen | E153: 0 | F153: l/m²/day
B154: ='Building Input'!B146 -> Toilet | E154: 0 | F154: l/m²/day
B155: ='Building Input'!B152 -> Baggage Reclaim | E155: 0.75 | F155: l/m²/day
B156: ='Building Input'!B153 -> Cell (police/prison) | E156: 0 | F156: l/m²/day
B157: ='Building Input'!B154 -> Check in | E157: 0.75 | F157: l/m²/day
B158: ='Building Input'!B155 -> Classroom | E158: 1.5 | F158: l/m²/day
B159: ='Building Input'!B156 -> Consulting room | E159: 0.21 | F159: l/m²/day
B160: ='Building Input'!B157 -> Display | E160: 0 | F160: l/m²/day
B161: ='Building Input'!B158 -> Dry sports hall | E161: 0 | F161: l/m²/day
B162: ='Building Input'!B159 -> Fitness Studio | E162: 0 | F162: l/m²/day
B163: ='Building Input'!B160 -> Fitness suite/gym | E163: 0 | F163: l/m²/day
B164: ='Building Input'!B161 -> Ice rink | E164: 0.06 | F164: l/m²/day
B165: ='Building Input'!B162 -> Laboratory | E165: 0.33 | F165: l/m²/day
B166: ='Building Input'!B163 -> Laundry | E166: 40 | F166: l/m²/day
B167: ='Building Input'!B164 -> Performance area (stage) | E167: 0 | F167: l/m²/day
B168: ='Building Input'!B165 -> Sales area - chilled | E168: 0.04 | F168: l/m²/day
B169: ='Building Input'!B166 -> Sales area - general | E169: 0.04 | F169: l/m²/day
B170: ='Building Input'!B167 -> Security check | E170: 0.75 | F170: l/m²/day
B171: ='Building Input'!B168 -> Storage area - chilled | E171: 0 | F171: l/m²/day
B172: ='Building Input'!B169 -> Storage area - cold room (<0degC) | E172: 0 | F172: l/m²/day
B173: ='Building Input'!B170 -> Swimming pool | E173: 0 | F173: l/m²/day
B174: ='Building Input'!B171 -> Workshop - small scale | E174: 0.21 | F174: l/m²/day
A176: 5 | B176: Hot water temperatures and efficiency
B177: Cold water supply | E177: 20 | F177: °C
B178: Hot water supply | E178: 60 | F178: °C
B179: Efficiency factor | E179: 0.9
B180: Specific heat capacity of water | E180: 4.18 | F180: KJ/kg°C
A182: 6 | B182: Fuel CO2 Conversion Factors | E182: kg CO2/kWh
B183: Biogas | E183: 0.025
B184: Coal | E184: 0.354
B185: Diesel | E185: 0.267
B186: LPG | E186: 0.227
B187: Mains electricity | E187: 1.2
B188: Natural gas | E188: 0.202
B189: Town gas (coal) | E189: 0.16
A192: 7 | B192: Comments to appear in energy tab for compliance / non-compliance
D194: If compliance achieved: | E194: Compliance is determined from information entered into the Energy Calculator. The project team acknowledges that the design meets the minimum energy efficiency requirements as stipulated in the Green Star SA Public & Education Building v1 Technical Manual. Green Star SA projects are only eligible for formal certification by the GBCSA when ALL Eligibility Criteria (and Conditional Requirements) are met. Please refer to the Technical Manual for further information.
D195: If compliance NOT achieved | E195: Compliance is determined from information entered into the Energy Calculator. The project team acknowledges that the design does NOT meet the minimum energy efficiency requirements as stipulated in the Green Star SA Public & Education Building v1 Technical Manual. This Green Star SA project is therefore NOT eligible for formal certification by the GBCSA. Please refer to the Technical Manual for further information.
D196: If Compliance Route 2 is not applicable due to building exceeding size limits | E196: =CONCATENATE("As the Public & Education Building GFA of the project entered in the 'Building Input' page is greater or equal to "&E109&"m², Compliance Route 2 is not available to this project. Please select an alternative option.") -> As the Public & Education Building GFA of the project entered in the 'Building Input' page is greater or equal to 10000000m², Compliance Route 2 is not available to this project. Please select an alternative option.
B198: Calculations
A200: 1 | B200: Hot water consumption | E200: l/an | F200: kWh/an
B201: =B138 -> Cellular office | E201: =E138*SUM('Building Input'!C38:E38)*365 -> 0 | F201: =E201*$E$180*($E$178-$E$177)/3600/$E$179 -> 0
B202: =B139 -> Changing facilities | E202: =E139*SUM('Building Input'!C39:E39)*365 -> 0 | F202: =E202*4.18*($E$178-$E$177)/3600/$E$179 -> 0
B203: Circulation area (corridors and stairways) - non public | E203: =E140*SUM('Building Input'!C40:E40)*365 -> 0 | F203: 0
B204: Common room/staff room/lounge | E204: =E141*SUM('Building Input'!C41:E41)*365 -> 0 | F204: 0
B205: Eating/drinking | E205: =E142*SUM('Building Input'!C42:E42)*365 -> 0 | F205: 0
B206: Food preparation | E206: =E143*SUM('Building Input'!C43:E43)*365 -> 0 | F206: 0
B207: Hall/lecture theatre/assembly | E207: =E144*SUM('Building Input'!C44:E44)*365 -> 0 | F207: 0
B208: High density IT work space | E208: =E145*SUM('Building Input'!C45:E45)*365 -> 0 | F208: 0
B209: IT equipment | E209: =E146*SUM('Building Input'!C46:E46)*365 -> 0 | F209: 0
B210: Meeting room | E210: =E147*SUM('Building Input'!C47:E47)*365 -> 0 | F210: 0
B211: Open plan office | E211: =E148*SUM('Building Input'!C48:E48)*365 -> 0 | F211: 0
B212: Plant room | E212: =E149*SUM('Building Input'!C49:E49)*365 -> 0 | F212: 0
B213: Public circulation | E213: =E150*SUM('Building Input'!C50:E50)*365 -> 0 | F213: 0
B214: Reception | E214: =E151*SUM('Building Input'!C51:E51)*365 -> 0 | F214: 0
B215: Storage | E215: =E152*SUM('Building Input'!C52:E52)*365 -> 0 | F215: 0
B216: Tea Kitchen | E216: =E153*SUM('Building Input'!C53:E53)*365 -> 0 | F216: 0
B217: Toilet | E217: =E154*SUM('Building Input'!C54:E54)*365 -> 0 | F217: 0
B218: Baggage Reclaim | E218: =E155*SUM('Building Input'!C59:E59)*365 -> 0 | F218: 0
B219: Cell (police/prison) | E219: =E156*SUM('Building Input'!C60:E60)*365 -> 0 | F219: 0
B220: Check in | E220: =E157*SUM('Building Input'!C61:E61)*365 -> 0 | F220: 0
B221: Classroom | E221: =E158*SUM('Building Input'!C62:E62)*365 -> 0 | F221: 0
B222: Consulting room | E222: =E159*SUM('Building Input'!C63:E63)*365 -> 0 | F222: 0
B223: Display | E223: =E160*SUM('Building Input'!C64:E64)*365 -> 0 | F223: 0
B224: Dry sports hall | E224: =E161*SUM('Building Input'!C65:E65)*365 -> 0 | F224: 0
B225: Fitness Studio | E225: =E162*SUM('Building Input'!C66:E66)*365 -> 0 | F225: 0
B226: Fitness suite/gym | E226: =E163*SUM('Building Input'!C67:E67)*365 -> 0 | F226: 0
B227: Ice rink | E227: =E164*SUM('Building Input'!C68:E68)*365 -> 0 | F227: 0
B228: Laboratory | E228: =E165*SUM('Building Input'!C69:E69)*365 -> 0 | F228: 0
B229: Laundry | E229: =E166*SUM('Building Input'!C70:E70)*365 -> 0 | F229: 0
B230: Performance area (stage) | E230: =E167*SUM('Building Input'!C71:E71)*365 -> 0 | F230: 0
B231: Sales area - chilled | E231: =E168*SUM('Building Input'!C72:E72)*365 -> 0 | F231: 0
B232: Sales area - general | E232: =E169*SUM('Building Input'!C73:E73)*365 -> 0 | F232: 0
B233: Security check | E233: =E170*SUM('Building Input'!C74:E74)*365 -> 0 | F233: 0
B234: Storage area - chilled | E234: =E171*SUM('Building Input'!C75:E75)*365 -> 0 | F234: 0
B235: Storage area - cold room (<0degC) | E235: =E172*SUM('Building Input'!C76:E76)*365 -> 0 | F235: 0
B236: Swimming pool | E236: =E173*SUM('Building Input'!C77:E77)*365 -> 0 | F236: 0
B237: Workshop - small scale | E237: =E174*SUM('Building Input'!C78:E78)*365 -> 0 | F237: 0
B239: Total | E239: =SUM(E201:E238) -> 0 | F239: =SUM(F201:F238) -> 0
A241: 2 | B241: Modelling points awarded
B242: Number modelling points achieved without checks
B243: =IF(F42=0,0,IF(H59>0,20-(20*(H59/H58)),20)) -> 0
B244: Number modelling points achieved within performance band
B245: =VLOOKUP(1,E248:F268,2,FALSE) -> 0
B247: % Reduction from Notional ( R ) | C247: Lower Limit | D247: Upper Limit | E247: Band Check | F247: Point Awarded
B248: 0 ≤ R < 5 | C248: 0 | D248: 5 | E248: =IF((AND(($H$60*100)>=C248,($H$60*100)<D248)),1,0) -> 1 | F248: 0
B249: 5 ≤ R < 10 | C249: 5 | D249: 10 | E249: 0 | F249: 1
B250: 10 ≤ R < 15 | C250: 10 | D250: 15 | E250: 0 | F250: 2
B251: 15 ≤ R < 20 | C251: 15 | D251: 20 | E251: 0 | F251: 3
B252: 20 ≤ R < 25 | C252: 20 | D252: 25 | E252: 0 | F252: 4
B253: 25 ≤ R < 30 | C253: 25 | D253: 30 | E253: 0 | F253: 5
B254: 30 ≤ R < 35 | C254: 30 | D254: 35 | E254: 0 | F254: 6
B255: 35 ≤ R < 40 | C255: 35 | D255: 40 | E255: 0 | F255: 7
B256: 40 ≤ R < 45 | C256: 40 | D256: 45 | E256: 0 | F256: 8
B257: 45 ≤ R < 50 | C257: 45 | D257: 50 | E257: 0 | F257: 9
B258: 50 ≤ R < 55 | C258: 50 | D258: 55 | E258: 0 | F258: 10
B259: 55 ≤ R < 60 | C259: 55 | D259: 60 | E259: 0 | F259: 11
B260: 60 ≤ R < 65 | C260: 60 | D260: 65 | E260: 0 | F260: 12
B261: 65 ≤ R < 70 | C261: 65 | D261: 70 | E261: 0 | F261: 13
B262: 70 ≤ R < 75 | C262: 70 | D262: 75 | E262: 0 | F262: 14
B263: 75 ≤ R < 80 | C263: 75 | D263: 80 | E263: 0 | F263: 15
B264: 80 ≤ R < 85 | C264: 80 | D264: 85 | E264: 0 | F264: 16
B265: 85 ≤ R < 90 | C265: 85 | D265: 90 | E265: 0 | F265: 17
B266: 90 ≤ R < 95 | C266: 90 | D266: 95 | E266: 0 | F266: 18
B267: 95 ≤ R < 100 | C267: 95 | D267: 100 | E267: 0 | F267: 19
... 1 more rows

Sheet PEB_ENE_DataExtract (hidden)
A1: Dictionary | B1: Value | C1: Key | D1: Note:
A2: PEB_Energy_Points | B2: ='Energy Calculator'!I2 -> - | C2: PEnP
A3: PEB_Energy_Actual_Elec_Use | B3: ='Energy Calculator'!F42 -> 0 | C3: PEnAE | D3: kWh/yr
A4: PEB_Energy_Actual_Gas_Use | B4: ='Energy Calculator'!G42 -> 0 | C4: PEnAG | D4: kWh/yr
A5: PEB_Energy_Renewable_Generation | B5: ='Energy Calculator'!F47 -> 0 | C5: PEnRG | D5: kWh/yr
A6: PEB_Energy_Co_Generation | B6: ='Energy Calculator'!F51 -> 0 | C6: PEnCG | D6: kWh/yr
A7: PEB_En_Use_Notional | B7: ='Energy Calculator'!H56 -> 0 | C7: PEnNU | D7: kWh/m²/year
A8: PEB_En_Use_Actual | B8: ='Energy Calculator'!H57 -> 0 | C8: PEnAU | D8: kWh/m²/year
A9: PEB_En_Carbon_Emission_Notional | B9: ='Energy Calculator'!H58 -> 0 | C9: PEnNC | D9: kgCO2/m²/year
A10: PEB_En_Carbon_Emission_Actual | B10: ='Energy Calculator'!H59 -> 0 | C10: PEnAC | D10: kgCO2/m²/year
A11: PEB_En_Percentage_Improve | B11: ='Energy Calculator'!H60 -> 0 | C11: PEnPI | D11: %

Sheet Lighting Energy Calculator
B1: ='Building Input'!B1 -> Green Star SA - Public & Education Building v1
B2: Lighting Energy Calculator
B4: Notes & Instructions:
B5: 1.If the user wishes to use daylight harvesting to prove energy reductions, this can only be obtained from energy model results incorporating such a system,
B6: which applies weather data appropriate for the site, and not via this calculator.
B7: 2. The user must enter the W/m2 of the lighting system connected load (as appropriate for the particular area in the actual building).
B8: 3. Where the results are not modelled, select a schedule in the drop down menu. Please refer to the Green Star SA - Public & Education Building Energy Calculator Guide
B9: for details.
B10: 4. Where results are modelled, 'Modelled' must be selected from the drop down menu, and the results must be entered into the 'modelled numbers' column.
B11: 5. The user must only make entries into the white cells.
B12: 6. Results will automatically be exported into the Energy Calculator.
B16: LIGHTING ENERGY USE
E17: Notional Building | G17: Actual Building
E18: W/m2 | F18: Electrical use kWh/year using schedule A | G18: W/m2 | H18: Select a Schedule or are results modelled? | I18: Electrical use kWh/year (calculated using schedules herein) | J18: Electrical use kWh/year (modelled numbers) | K18: Electrical use kWh/year (overall)
B21: ='Building Input'!B130&" lighting" -> Cellular office lighting | E21: =E95 -> 13.6 | F21: =(F95+J95)*E21*SUM('Building Input'!C38:E38)/1000 ->  | I21: =IF(H21=$B$76,G21*(F95+J95)*SUM('Building Input'!C38:E38)/1000,IF(H21=$B$77,G21*F95*SUM('Building Input'!C38:E38)/1000,IF(H21=$B$78,G21*F95*H95*SUM('Building Input'!C38:E38)/1000,IF(H21=$B$79,"-","Select schedule")))) -> Select schedule | K21: =IF(H21=$B$79,J21,IF(H21="","",I21)) -> 
B22: ='Building Input'!B131&" lighting" -> Changing facilities lighting | E22: =E96 -> 6.8 | F22: =(F96+J96)*E22*SUM('Building Input'!C39:E39)/1000 ->  | I22: =IF(H22=$B$76,G22*(F96+J96)*SUM('Building Input'!C39:E39)/1000,IF(H22=$B$77,G22*F96*SUM('Building Input'!C39:E39)/1000,IF(H22=$B$78,G22*F96*H96*SUM('Building Input'!C39:E39)/1000,IF(H22=$B$79,"-","Select schedule")))) -> Select schedule | K22: =IF(H22=$B$79,J22,IF(H22="","",I22)) -> 
B23: ='Building Input'!B132&" lighting" -> Circulation area (corridors and stairways) - non public lighting | E23: 3.4 | F23: =(F97+J97)*E23*SUM('Building Input'!C40:E40)/1000 ->  | I23: =IF(H23=$B$76,G23*(F97+J97)*SUM('Building Input'!C40:E40)/1000,IF(H23=$B$77,G23*F97*SUM('Building Input'!C40:E40)/1000,IF(H23=$B$78,G23*F97*H97*SUM('Building Input'!C40:E40)/1000,IF(H23=$B$79,"-","Select schedule")))) -> Select schedule
B24: ='Building Input'!B133&" lighting" -> Common room/staff room/lounge lighting | E24: 10.2 | F24: =(F98+J98)*E24*SUM('Building Input'!C41:E41)/1000 ->  | I24: =IF(H24=$B$76,G24*(F98+J98)*SUM('Building Input'!C41:E41)/1000,IF(H24=$B$77,G24*F98*SUM('Building Input'!C41:E41)/1000,IF(H24=$B$78,G24*F98*H98*SUM('Building Input'!C41:E41)/1000,IF(H24=$B$79,"-","Select schedule")))) -> Select schedule
B25: ='Building Input'!B134&" lighting" -> Eating/drinking lighting | E25: 6.8 | F25: =(F99+J99)*E25*SUM('Building Input'!C42:E42)/1000 ->  | I25: =IF(H25=$B$76,G25*(F99+J99)*SUM('Building Input'!C42:E42)/1000,IF(H25=$B$77,G25*F99*SUM('Building Input'!C42:E42)/1000,IF(H25=$B$78,G25*F99*H99*SUM('Building Input'!C42:E42)/1000,IF(H25=$B$79,"-","Select schedule")))) -> Select schedule
B26: ='Building Input'!B135&" lighting" -> Food preparation lighting | E26: 17 | F26: =(F100+J100)*E26*SUM('Building Input'!C43:E43)/1000 ->  | I26: =IF(H26=$B$76,G26*(F100+J100)*SUM('Building Input'!C43:E43)/1000,IF(H26=$B$77,G26*F100*SUM('Building Input'!C43:E43)/1000,IF(H26=$B$78,G26*F100*H100*SUM('Building Input'!C43:E43)/1000,IF(H26=$B$79,"-","Select schedule")))) -> Select schedule
B27: ='Building Input'!B136&" lighting" -> Hall/lecture theatre/assembly lighting | E27: 16.5 | F27: =(F101+J101)*E27*SUM('Building Input'!C44:E44)/1000 ->  | I27: =IF(H27=$B$76,G27*(F101+J101)*SUM('Building Input'!C44:E44)/1000,IF(H27=$B$77,G27*F101*SUM('Building Input'!C44:E44)/1000,IF(H27=$B$78,G27*F101*H101*SUM('Building Input'!C44:E44)/1000,IF(H27=$B$79,"-","Select schedule")))) -> Select schedule
B28: ='Building Input'!B137&" lighting" -> High density IT work space lighting | E28: 10.2 | F28: =(F102+J102)*E28*SUM('Building Input'!C45:E45)/1000 ->  | I28: =IF(H28=$B$76,G28*(F102+J102)*SUM('Building Input'!C45:E45)/1000,IF(H28=$B$77,G28*F102*SUM('Building Input'!C45:E45)/1000,IF(H28=$B$78,G28*F102*H102*SUM('Building Input'!C45:E45)/1000,IF(H28=$B$79,"-","Select schedule")))) -> Select schedule
B29: ='Building Input'!B138&" lighting" -> IT equipment lighting | E29: 3.4 | F29: =(F103+J103)*E29*SUM('Building Input'!C46:E46)/1000 ->  | I29: =IF(H29=$B$76,G29*(F103+J103)*SUM('Building Input'!C46:E46)/1000,IF(H29=$B$77,G29*F103*SUM('Building Input'!C46:E46)/1000,IF(H29=$B$78,G29*F103*H103*SUM('Building Input'!C46:E46)/1000,IF(H29=$B$79,"-","Select schedule")))) -> Select schedule
B30: ='Building Input'!B139&" lighting" -> Meeting room lighting | E30: 17 | F30: =(F104+J104)*E30*SUM('Building Input'!C47:E47)/1000 ->  | I30: =IF(H30=$B$76,G30*(F104+J104)*SUM('Building Input'!C47:E47)/1000,IF(H30=$B$77,G30*F104*SUM('Building Input'!C47:E47)/1000,IF(H30=$B$78,G30*F104*H104*SUM('Building Input'!C47:E47)/1000,IF(H30=$B$79,"-","Select schedule")))) -> Select schedule
B31: ='Building Input'!B140&" lighting" -> Open plan office lighting | E31: 13.6 | F31: =(F105+J105)*E31*SUM('Building Input'!C48:E48)/1000 ->  | I31: =IF(H31=$B$76,G31*(F105+J105)*SUM('Building Input'!C48:E48)/1000,IF(H31=$B$77,G31*F105*SUM('Building Input'!C48:E48)/1000,IF(H31=$B$78,G31*F105*H105*SUM('Building Input'!C48:E48)/1000,IF(H31=$B$79,"-","Select schedule")))) -> Select schedule
B32: ='Building Input'!B141&" lighting" -> Plant room lighting | E32: 6.8 | F32: =(F106+J106)*E32*SUM('Building Input'!C49:E49)/1000 ->  | I32: =IF(H32=$B$76,G32*(F106+J106)*SUM('Building Input'!C49:E49)/1000,IF(H32=$B$77,G32*F106*SUM('Building Input'!C49:E49)/1000,IF(H32=$B$78,G32*F106*H106*SUM('Building Input'!C49:E49)/1000,IF(H32=$B$79,"-","Select schedule")))) -> Select schedule
B33: ='Building Input'!B142&" lighting" -> Public circulation lighting | E33: 6.8 | F33: =(F107+J107)*E33*SUM('Building Input'!C50:E50)/1000 ->  | I33: =IF(H33=$B$76,G33*(F107+J107)*SUM('Building Input'!C50:E50)/1000,IF(H33=$B$77,G33*F107*SUM('Building Input'!C50:E50)/1000,IF(H33=$B$78,G33*F107*H107*SUM('Building Input'!C50:E50)/1000,IF(H33=$B$79,"-","Select schedule")))) -> Select schedule
B34: ='Building Input'!B143&" lighting" -> Reception lighting | E34: 19.2 | F34: =(F108+J108)*E34*SUM('Building Input'!C51:E51)/1000 ->  | I34: =IF(H34=$B$76,G34*(F108+J108)*SUM('Building Input'!C51:E51)/1000,IF(H34=$B$77,G34*F108*SUM('Building Input'!C51:E51)/1000,IF(H34=$B$78,G34*F108*H108*SUM('Building Input'!C51:E51)/1000,IF(H34=$B$79,"-","Select schedule")))) -> Select schedule
B35: ='Building Input'!B144&" lighting" -> Storage lighting | E35: 3.4 | F35: =(F109+J109)*E35*SUM('Building Input'!C52:E52)/1000 ->  | I35: =IF(H35=$B$76,G35*(F109+J109)*SUM('Building Input'!C52:E52)/1000,IF(H35=$B$77,G35*F109*SUM('Building Input'!C52:E52)/1000,IF(H35=$B$78,G35*F109*H109*SUM('Building Input'!C52:E52)/1000,IF(H35=$B$79,"-","Select schedule")))) -> Select schedule
B36: ='Building Input'!B145&" lighting" -> Tea Kitchen lighting | E36: 6.8 | F36: =(F110+J110)*E36*SUM('Building Input'!C53:E53)/1000 ->  | I36: =IF(H36=$B$76,G36*(F110+J110)*SUM('Building Input'!C53:E53)/1000,IF(H36=$B$77,G36*F110*SUM('Building Input'!C53:E53)/1000,IF(H36=$B$78,G36*F110*H110*SUM('Building Input'!C53:E53)/1000,IF(H36=$B$79,"-","Select schedule")))) -> Select schedule
B37: ='Building Input'!B146&" lighting" -> Toilet lighting | E37: 6.8 | F37: =(F111+J111)*E37*SUM('Building Input'!C54:E54)/1000 ->  | I37: =IF(H37=$B$76,G37*(F111+J111)*SUM('Building Input'!C54:E54)/1000,IF(H37=$B$77,G37*F111*SUM('Building Input'!C54:E54)/1000,IF(H37=$B$78,G37*F111*H111*SUM('Building Input'!C54:E54)/1000,IF(H37=$B$79,"-","Select schedule")))) -> Select schedule
B38: ='Building Input'!B147&" lighting" -> Internal Covered Vehicle Parking Area (B1, ground and above ground) lighting | E38: 5 | F38: =(F112+J112)*E38*SUM('Building Input'!C55:E55)/1000 ->  | I38: =IF(H38=$B$76,G38*(F112+J112)*SUM('Building Input'!C55:E55)/1000,IF(H38=$B$77,G38*F112*SUM('Building Input'!C55:E55)/1000,IF(H38=$B$78,G38*F112*H112*SUM('Building Input'!C55:E55)/1000,IF(H38=$B$79,"-","Select schedule")))) -> Select schedule
B39: ='Building Input'!B148&" lighting" -> Sub-basement Vehicle Parking Area (B2 and below) lighting | E39: 5 | F39: =(F113+J113)*E39*SUM('Building Input'!C56:E56)/1000 ->  | I39: =IF(H39=$B$76,G39*(F113+J113)*SUM('Building Input'!C56:E56)/1000,IF(H39=$B$77,G39*F113*SUM('Building Input'!C56:E56)/1000,IF(H39=$B$78,G39*F113*H113*SUM('Building Input'!C56:E56)/1000,IF(H39=$B$79,"-","Select schedule")))) -> Select schedule
B40: ='Building Input'!B149&" lighting" -> External Area (including external Car Parking) lighting | E40: 5 | F40: =(F114+J114)*E40*SUM('Building Input'!C57:E57)/1000 ->  | I40: =IF(H40=$B$76,G40*(F114+J114)*SUM('Building Input'!C57:E57)/1000,IF(H40=$B$77,G40*F114*SUM('Building Input'!C57:E57)/1000,IF(H40=$B$78,G40*F114*H114*SUM('Building Input'!C57:E57)/1000,IF(H40=$B$79,"-","Select schedule")))) -> Select schedule
B41: ='Building Input'!B152&" lighting" -> Baggage Reclaim lighting | E41: 6.8 | F41: =(F115+J115)*E41*SUM('Building Input'!C59:E59)/1000 ->  | I41: =IF(H41=$B$76,G41*(F115+J115)*SUM('Building Input'!C59:E59)/1000,IF(H41=$B$77,G41*F115*SUM('Building Input'!C59:E59)/1000,IF(H41=$B$78,G41*F115*H115*SUM('Building Input'!C59:E59)/1000,IF(H41=$B$79,"-","Select schedule")))) -> Select schedule
B42: ='Building Input'!B153&" lighting" -> Cell (police/prison) lighting | E42: 4.6 | F42: =(F116+J116)*E42*SUM('Building Input'!C60:E60)/1000 ->  | I42: =IF(H42=$B$76,G42*(F116+J116)*SUM('Building Input'!C60:E60)/1000,IF(H42=$B$77,G42*F116*SUM('Building Input'!C60:E60)/1000,IF(H42=$B$78,G42*F116*H116*SUM('Building Input'!C60:E60)/1000,IF(H42=$B$79,"-","Select schedule")))) -> Select schedule
B43: ='Building Input'!B154&" lighting" -> Check in lighting | E43: 17 | F43: =(F117+J117)*E43*SUM('Building Input'!C61:E61)/1000 ->  | I43: =IF(H43=$B$76,G43*(F117+J117)*SUM('Building Input'!C61:E61)/1000,IF(H43=$B$77,G43*F117*SUM('Building Input'!C61:E61)/1000,IF(H43=$B$78,G43*F117*H117*SUM('Building Input'!C61:E61)/1000,IF(H43=$B$79,"-","Select schedule")))) -> Select schedule
B44: ='Building Input'!B155&" lighting" -> Classroom lighting | E44: 10.2 | F44: =(F118+J118)*E44*SUM('Building Input'!C62:E62)/1000 ->  | I44: =IF(H44=$B$76,G44*(F118+J118)*SUM('Building Input'!C62:E62)/1000,IF(H44=$B$77,G44*F118*SUM('Building Input'!C62:E62)/1000,IF(H44=$B$78,G44*F118*H118*SUM('Building Input'!C62:E62)/1000,IF(H44=$B$79,"-","Select schedule")))) -> Select schedule
B45: ='Building Input'!B156&" lighting" -> Consulting room lighting | E45: 17 | F45: =(F119+J119)*E45*SUM('Building Input'!C63:E63)/1000 ->  | I45: =IF(H45=$B$76,G45*(F119+J119)*SUM('Building Input'!C63:E63)/1000,IF(H45=$B$77,G45*F119*SUM('Building Input'!C63:E63)/1000,IF(H45=$B$78,G45*F119*H119*SUM('Building Input'!C63:E63)/1000,IF(H45=$B$79,"-","Select schedule")))) -> Select schedule
B46: ='Building Input'!B157&" lighting" -> Display lighting | E46: 33 | F46: =(F120+J120)*E46*SUM('Building Input'!C64:E64)/1000 ->  | I46: =IF(H46=$B$76,G46*(F120+J120)*SUM('Building Input'!C64:E64)/1000,IF(H46=$B$77,G46*F120*SUM('Building Input'!C64:E64)/1000,IF(H46=$B$78,G46*F120*H120*SUM('Building Input'!C64:E64)/1000,IF(H46=$B$79,"-","Select schedule")))) -> Select schedule
B47: ='Building Input'!B158&" lighting" -> Dry sports hall lighting | E47: 13.5 | F47: =(F121+J121)*E47*SUM('Building Input'!C65:E65)/1000 ->  | I47: =IF(H47=$B$76,G47*(F121+J121)*SUM('Building Input'!C65:E65)/1000,IF(H47=$B$77,G47*F121*SUM('Building Input'!C65:E65)/1000,IF(H47=$B$78,G47*F121*H121*SUM('Building Input'!C65:E65)/1000,IF(H47=$B$79,"-","Select schedule")))) -> Select schedule
B48: ='Building Input'!B159&" lighting" -> Fitness Studio lighting | E48: 10.2 | F48: =(F122+J122)*E48*SUM('Building Input'!C66:E66)/1000 ->  | I48: =IF(H48=$B$76,G48*(F122+J122)*SUM('Building Input'!C66:E66)/1000,IF(H48=$B$77,G48*F122*SUM('Building Input'!C66:E66)/1000,IF(H48=$B$78,G48*F122*H122*SUM('Building Input'!C66:E66)/1000,IF(H48=$B$79,"-","Select schedule")))) -> Select schedule
B49: ='Building Input'!B160&" lighting" -> Fitness suite/gym lighting | E49: 10.2 | F49: =(F123+J123)*E49*SUM('Building Input'!C67:E67)/1000 ->  | I49: =IF(H49=$B$76,G49*(F123+J123)*SUM('Building Input'!C67:E67)/1000,IF(H49=$B$77,G49*F123*SUM('Building Input'!C67:E67)/1000,IF(H49=$B$78,G49*F123*H123*SUM('Building Input'!C67:E67)/1000,IF(H49=$B$79,"-","Select schedule")))) -> Select schedule
B50: ='Building Input'!B161&" lighting" -> Ice rink lighting | E50: 13.5 | F50: =(F124+J124)*E50*SUM('Building Input'!C68:E68)/1000 ->  | I50: =IF(H50=$B$76,G50*(F124+J124)*SUM('Building Input'!C68:E68)/1000,IF(H50=$B$77,G50*F124*SUM('Building Input'!C68:E68)/1000,IF(H50=$B$78,G50*F124*H124*SUM('Building Input'!C68:E68)/1000,IF(H50=$B$79,"-","Select schedule")))) -> Select schedule
B51: ='Building Input'!B162&" lighting" -> Laboratory lighting | E51: 17 | F51: =(F125+J125)*E51*SUM('Building Input'!C69:E69)/1000 ->  | I51: =IF(H51=$B$76,G51*(F125+J125)*SUM('Building Input'!C69:E69)/1000,IF(H51=$B$77,G51*F125*SUM('Building Input'!C69:E69)/1000,IF(H51=$B$78,G51*F125*H125*SUM('Building Input'!C69:E69)/1000,IF(H51=$B$79,"-","Select schedule")))) -> Select schedule
B52: ='Building Input'!B163&" lighting" -> Laundry lighting | E52: 10.2 | F52: =(F126+J126)*E52*SUM('Building Input'!C70:E70)/1000 ->  | I52: =IF(H52=$B$76,G52*(F126+J126)*SUM('Building Input'!C70:E70)/1000,IF(H52=$B$77,G52*F126*SUM('Building Input'!C70:E70)/1000,IF(H52=$B$78,G52*F126*H126*SUM('Building Input'!C70:E70)/1000,IF(H52=$B$79,"-","Select schedule")))) -> Select schedule
B53: ='Building Input'!B164&" lighting" -> Performance area (stage) lighting | E53: 5.5 | F53: =(F127+J127)*E53*SUM('Building Input'!C71:E71)/1000 ->  | I53: =IF(H53=$B$76,G53*(F127+J127)*SUM('Building Input'!C71:E71)/1000,IF(H53=$B$77,G53*F127*SUM('Building Input'!C71:E71)/1000,IF(H53=$B$78,G53*F127*H127*SUM('Building Input'!C71:E71)/1000,IF(H53=$B$79,"-","Select schedule")))) -> Select schedule
B54: ='Building Input'!B165&" lighting" -> Sales area - chilled lighting | E54: 20.2 | F54: =(F128+J128)*E54*SUM('Building Input'!C72:E72)/1000 ->  | I54: =IF(H54=$B$76,G54*(F128+J128)*SUM('Building Input'!C72:E72)/1000,IF(H54=$B$77,G54*F128*SUM('Building Input'!C72:E72)/1000,IF(H54=$B$78,G54*F128*H128*SUM('Building Input'!C72:E72)/1000,IF(H54=$B$79,"-","Select schedule")))) -> Select schedule
B55: ='Building Input'!B166&" lighting" -> Sales area - general lighting | E55: 20.2 | F55: =(F129+J129)*E55*SUM('Building Input'!C73:E73)/1000 ->  | I55: =IF(H55=$B$76,G55*(F129+J129)*SUM('Building Input'!C73:E73)/1000,IF(H55=$B$77,G55*F129*SUM('Building Input'!C73:E73)/1000,IF(H55=$B$78,G55*F129*H129*SUM('Building Input'!C73:E73)/1000,IF(H55=$B$79,"-","Select schedule")))) -> Select schedule
B56: ='Building Input'!B167&" lighting" -> Security check lighting | E56: 10.2 | F56: =(F130+J130)*E56*SUM('Building Input'!C74:E74)/1000 ->  | I56: =IF(H56=$B$76,G56*(F130+J130)*SUM('Building Input'!C74:E74)/1000,IF(H56=$B$77,G56*F130*SUM('Building Input'!C74:E74)/1000,IF(H56=$B$78,G56*F130*H130*SUM('Building Input'!C74:E74)/1000,IF(H56=$B$79,"-","Select schedule")))) -> Select schedule
B57: ='Building Input'!B168&" lighting" -> Storage area - chilled lighting | E57: 6.8 | F57: =(F131+J131)*E57*SUM('Building Input'!C75:E75)/1000 ->  | I57: =IF(H57=$B$76,G57*(F131+J131)*SUM('Building Input'!C75:E75)/1000,IF(H57=$B$77,G57*F131*SUM('Building Input'!C75:E75)/1000,IF(H57=$B$78,G57*F131*H131*SUM('Building Input'!C75:E75)/1000,IF(H57=$B$79,"-","Select schedule")))) -> Select schedule
B58: ='Building Input'!B169&" lighting" -> Storage area - cold room (<0degC) lighting | E58: 6.8 | F58: =(F132+J132)*E58*SUM('Building Input'!C76:E76)/1000 ->  | I58: =IF(H58=$B$76,G58*(F132+J132)*SUM('Building Input'!C76:E76)/1000,IF(H58=$B$77,G58*F132*SUM('Building Input'!C76:E76)/1000,IF(H58=$B$78,G58*F132*H132*SUM('Building Input'!C76:E76)/1000,IF(H58=$B$79,"-","Select schedule")))) -> Select schedule
B59: ='Building Input'!B170&" lighting" -> Swimming pool lighting | E59: 13.5 | F59: =(F133+J133)*E59*SUM('Building Input'!C77:E77)/1000 ->  | I59: =IF(H59=$B$76,G59*(F133+J133)*SUM('Building Input'!C77:E77)/1000,IF(H59=$B$77,G59*F133*SUM('Building Input'!C77:E77)/1000,IF(H59=$B$78,G59*F133*H133*SUM('Building Input'!C77:E77)/1000,IF(H59=$B$79,"-","Select schedule")))) -> Select schedule
B60: ='Building Input'!B171&" lighting" -> Workshop - small scale lighting | E60: 17 | F60: =(F134+J134)*E60*SUM('Building Input'!C78:E78)/1000 ->  | I60: =IF(H60=$B$76,G60*(F134+J134)*SUM('Building Input'!C78:E78)/1000,IF(H60=$B$77,G60*F134*SUM('Building Input'!C78:E78)/1000,IF(H60=$B$78,G60*F134*H134*SUM('Building Input'!C78:E78)/1000,IF(H60=$B$79,"-","Select schedule")))) -> Select schedule
B61: Total | F61: =SUM(F21:F60) ->  | K61: =SUM(K21:K60) -> 0
B62: * The notional building W/m2 values are to some extent an improvement from SANS 204-2:2008 Table 14
B73: Drop Down Lists
B75: Modeling Type List
B76: A - Basic control
B77: B - Local control
B78: C - Occupancy sensing
B79: D - Modelled
B82: Database Info
B84: Percentage lighting left on after hours for option A (normal practice type building) | G84: 0.1
B90: Calculations
F92: Results of Loookup formula | K92: Lighting Hours Taken from NCM Schedules
B93: Lighting operating hours and load | I93: After hours | J93: Additional lighting hours left on after hours for opt A | K93: ='Building Input'!$B$113 -> A1: Casino | L93: ='Building Input'!$B$114 -> A1: Community/ day centre | M93: ='Building Input'!$B$115 -> A1: Restaurant/ public house | N93: ='Building Input'!$B$116 -> A2: Sports centre/ leisure centre | O93: ='Building Input'!$B$117 -> A2: Theatres/ cinemas/ and music halls | P93: ='Building Input'!$B$118 -> A3: Primary school | Q93: ='Building Input'!$B$119 -> A3: Secondary school | R93: ='Building Input'!$B$120 -> A3: Higher Education | S93: ='Building Input'!$B$121 -> A4: Worship | T93: ='Building Input'!$B$122 -> C1: Convention Centre and Exhibition Hall | U93: ='Building Input'!$B$123 -> C2: Libraries/ museums/ and galleries | V93: ='Building Input'!$B$124 -> Airport terminals | W93: ='Building Input'!$B$125 -> Public transport terminals | X93: ='Building Input'!$B$126 -> Courts | Y93: ='Building Input'!$B$127 -> Fire station/Police station
E94: W/m² | F94: Hrs/an | G94: row | H94: Occ sens % | I94: Hr/an | J94: Hr/an | K94: Hrs/an | L94: Hrs/an | M94: Hrs/an | N94: Hrs/an | O94: Hrs/an | P94: Hrs/an | Q94: Hrs/an | R94: Hrs/an | S94: Hrs/an | T94: Hrs/an | U94: Hrs/an | V94: Hrs/an | W94: Hrs/an | X94: Hrs/an | Y94: Hrs/an
B95: =B21 -> Cellular office lighting | E95: 13.6 | F95: =HLOOKUP('Building Input'!$C$32,$K$93:$Y$134,G95,FALSE) ->  | G95: 3 | H95: 0.82 | I95: =365*24-F95 ->  | J95: =I95*$G$84 ->  | K95: 4379.88 | L95: 2757.81 | M95: 4014.89 | N95: 4014.89 | O95: 4014.89 | P95: 2757.81 | Q95: 2757.81 | R95: 2987.644384 | S95: 2757.81 | T95: 4014.89 | U95: 3008.52 | V95: 4379.88 | W95: 4379.88 | X95: 2757.81 | Y95: 4379.88
B96: =B22 -> Changing facilities lighting | E96: 6.8 | F96: =HLOOKUP('Building Input'!$C$32,$K$93:$Y$134,G96,FALSE) ->  | G96: 4 | H96: 0.82 | I96: =365*24-F96 ->  | J96: =I96*$G$84 ->  | K96: 4379.88 | L96: 2256.39 | M96: 4379.88 | N96: 4379.88 | O96: 4379.88 | P96: 3362.697014 | Q96: 3362.697014 | R96: 1724.747425 | S96: 2256.39 | T96: 4379.88 | U96: 4379.88 | V96: 4379.88 | W96: 4379.88 | X96: 4379.88 | Y96: 4744.87
B97: Circulation area (corridors and stairways) - non public lighting | E97: 3.4 | F97: =HLOOKUP('Building Input'!$C$32,$K$93:$Y$134,G97,FALSE) ->  | G97: 5 | H97: 0.82 | K97: 4379.88 | L97: 2507.1 | M97: 5839.84 | N97: 4379.88 | O97: 4379.88 | P97: 2423.301041 | Q97: 2423.301041 | R97: 2604.367178 | S97: 2507.1 | T97: 4379.88 | U97: 2005.68 | V97: 4379.88 | W97: 4379.88 | X97: 3008.52 | Y97: 3649.9
B98: Common room/staff room/lounge lighting | E98: 10.2 | F98: =HLOOKUP('Building Input'!$C$32,$K$93:$Y$134,G98,FALSE) ->  | G98: 6 | H98: 0.82 | K98: 8759.76 | L98: 5839.84 | M98: 5839.84 | N98: 5839.84 | O98: 5839.84 | P98: 4703.871123 | Q98: 4703.871123 | R98: 4463.877699 | S98: 5839.84 | T98: 5839.84 | U98: 5839.84 | V98: 8759.76 | W98: 8759.76 | X98: 5839.84 | Y98: 5839.84
B99: Eating/drinking lighting | E99: 6.8 | F99: =HLOOKUP('Building Input'!$C$32,$K$93:$Y$134,G99,FALSE) ->  | G99: 7 | H99: 0.82 | K99: 5109.86 | L99: 1002.84 | M99: 5839.84 | N99: 1917.08 | O99: 1917.08 | P99: 1002.84 | Q99: 1002.84 | R99: 1724.747425 | S99: 1002.84 | T99: 1917.08 | U99: 1002.84 | V99: 5109.86 | W99: 5109.86 | X99: 1002.84 | Y99: 1917.08
B100: Food preparation lighting | E100: 17 | F100: =HLOOKUP('Building Input'!$C$32,$K$93:$Y$134,G100,FALSE) ->  | G100: 8 | H100: 0.82 | K100: 4744.87 | L100: 1002.84 | M100: 6569.82 | N100: 1917.08 | O100: 1917.08 | P100: 4744.87 | Q100: 4744.87 | R100: 1724.747425 | S100: 1002.84 | T100: 1917.08 | U100: 1002.84 | V100: 4744.87 | W100: 4744.87 | X100: 1002.84 | Y100: 1917.08
B101: Hall/lecture theatre/assembly lighting | E101: 16.5 | F101: =HLOOKUP('Building Input'!$C$32,$K$93:$Y$134,G101,FALSE) ->  | G101: 9 | H101: 0.82 | K101: 2757.81 | L101: 2757.81 | M101: 2757.81 | N101: 2256.39 | O101: 2256.39 | P101: 2221.359288 | Q101: 2221.359288 | R101: 2901.64674 | S101: 2757.81 | T101: 2256.39 | U101: 2005.68 | V101: 2757.81 | W101: 2757.81 | X101: 2256.39 | Y101: 2757.81
B102: High density IT work space lighting | E102: 10.2 | F102: =HLOOKUP('Building Input'!$C$32,$K$93:$Y$134,G102,FALSE) ->  | G102: 10 | H102: 0.82 | K102: 2757.81 | L102: 2757.81 | M102: 2757.81 | N102: 2757.81 | O102: 2757.81 | P102: 2757.81 | Q102: 2757.81 | R102: 1724.747425 | S102: 2757.81 | T102: 2757.81 | U102: 2757.81 | V102: 2757.81 | W102: 2757.81 | X102: 2757.81 | Y102: 2757.81
B103: IT equipment lighting | E103: 3.4 | F103: =HLOOKUP('Building Input'!$C$32,$K$93:$Y$134,G103,FALSE) ->  | G103: 11 | H103: 0.82 | K103: 4744.87 | L103: 2507.1 | M103: 4744.87 | N103: 4744.87 | O103: 4744.87 | P103: 4744.87 | Q103: 4744.87 | R103: 2299.663233 | S103: 4744.87 | T103: 4744.87 | U103: 2005.68 | V103: 4744.87 | W103: 4744.87 | X103: 2256.39 | Y103: 4744.87
B104: Meeting room lighting | E104: 17 | F104: =HLOOKUP('Building Input'!$C$32,$K$93:$Y$134,G104,FALSE) ->  | G104: 12 | H104: 0.82 | K104: 4744.87 | L104: 4744.87 | M104: 4744.87 | N104: 4744.87 | O104: 4744.87 | P104: 4744.87 | Q104: 4744.87 | R104: 4744.87 | S104: 4744.87 | T104: 4744.87 | U104: 4744.87 | V104: 4744.87 | W104: 4744.87 | X104: 4744.87 | Y104: 4744.87
B105: Open plan office lighting | E105: 13.6 | F105: =HLOOKUP('Building Input'!$C$32,$K$93:$Y$134,G105,FALSE) ->  | G105: 13 | H105: 0.82 | K105: 3008.52 | L105: 3008.52 | M105: 3008.52 | N105: 3008.52 | O105: 3008.52 | P105: 3008.52 | Q105: 3008.52 | R105: 3008.52 | S105: 3008.52 | T105: 3008.52 | U105: 3008.52 | V105: 3008.52 | W105: 3008.52 | X105: 3008.52 | Y105: 3008.52
B106: Plant room lighting | E106: 6.8 | F106: =HLOOKUP('Building Input'!$C$32,$K$93:$Y$134,G106,FALSE) ->  | G106: 14 | H106: 0.82 | K106: =2*365 -> 730 | L106: =2*365 -> 730 | M106: 730 | N106: 730 | O106: 730 | P106: 730 | Q106: 730 | R106: 730 | S106: 730 | T106: 730 | U106: 730 | V106: 730 | W106: 730 | X106: 730 | Y106: 730
B107: Public circulation lighting | E107: 6.8 | F107: =HLOOKUP('Building Input'!$C$32,$K$93:$Y$134,G107,FALSE) ->  | G107: 15 | H107: 0.82 | K107: 2554.93 | L107: 2554.93 | M107: 2554.93 | N107: 2554.93 | O107: 2554.93 | P107: 2554.93 | Q107: 2554.93 | R107: 2554.93 | S107: 2554.93 | T107: 2554.93 | U107: 4265.6 | V107: 2554.93 | W107: 2554.93 | X107: 2554.93 | Y107: 2554.93
B108: Reception lighting | E108: 19.2 | F108: =HLOOKUP('Building Input'!$C$32,$K$93:$Y$134,G108,FALSE) ->  | G108: 16 | H108: 0.82 | K108: 3649.9 | L108: 2757.81 | M108: 2757.81 | N108: 3284.91 | O108: 3284.91 | P108: 1615.534027 | Q108: 1615.534027 | R108: 1916.386027 | S108: 2757.81 | T108: 3284.91 | U108: 2507.1 | V108: 3649.9 | W108: 3649.9 | X108: 3008.52 | Y108: 4379.88
B109: Storage lighting | E109: 3.4 | F109: =HLOOKUP('Building Input'!$C$32,$K$93:$Y$134,G109,FALSE) ->  | G109: 17 | H109: 0.82 | K109: 4744.87 | L109: 2507.1 | M109: 3284.91 | N109: 4744.87 | O109: 4744.87 | P109: 2019.417534 | Q109: 2019.417534 | R109: 2299.663233 | S109: 3008.52 | T109: 4744.87 | U109: 2005.68 | V109: 4744.87 | W109: 4744.87 | X109: 2256.39 | Y109: 4379.88
B110: Tea Kitchen lighting | E110: 6.8 | F110: =HLOOKUP('Building Input'!$C$32,$K$93:$Y$134,G110,FALSE) ->  | G110: 18 | H110: 0.82 | K110: 2507.1 | L110: 2507.1 | M110: 2507.1 | N110: 2507.1 | O110: 2507.1 | P110: 2507.1 | Q110: 2507.1 | R110: 1916.386027 | S110: 2507.1 | T110: 2507.1 | U110: 2507.1 | V110: 2507.1 | W110: 2507.1 | X110: 2507.1 | Y110: 2507.1
B111: Toilet lighting | E111: 6.8 | F111: =HLOOKUP('Building Input'!$C$32,$K$93:$Y$134,G111,FALSE) ->  | G111: 19 | H111: 0.82 | K111: 8759.76 | L111: 2507.1 | M111: 5839.84 | N111: 4379.88 | O111: 4379.88 | P111: 2423.301041 | Q111: 2423.301041 | R111: 2604.367178 | S111: 2507.1 | T111: 2507.1 | U111: 2005.68 | V111: 8759.76 | W111: 8759.76 | X111: 3008.52 | Y111: 3649.9
B112: Internal Covered Vehicle Parking Area (B1, ground and above ground) lighting | E112: 5 | F112: =HLOOKUP('Building Input'!$C$32,$K$93:$Y$134,G112,FALSE) ->  | G112: 20 | H112: 0.82 | K112: 8759.76 | L112: 8759.76 | M112: 8759.76 | N112: 8759.76 | O112: 8759.76 | P112: 8759.76 | Q112: 8759.76 | R112: 8759.76 | S112: 8759.76 | T112: 8759.76 | U112: 8759.76 | V112: 8759.76 | W112: 8759.76 | X112: 8759.76 | Y112: 8759.76
B113: Sub-basement Vehicle Parking Area (B2 and below) lighting | E113: 5 | F113: =HLOOKUP('Building Input'!$C$32,$K$93:$Y$134,G113,FALSE) ->  | G113: 21 | H113: 0.82 | K113: 8759.76 | L113: 8759.76 | M113: 8759.76 | N113: 8759.76 | O113: 8759.76 | P113: 8759.76 | Q113: 8759.76 | R113: 8759.76 | S113: 8759.76 | T113: 8759.76 | U113: 8759.76 | V113: 8759.76 | W113: 8759.76 | X113: 8759.76 | Y113: 8759.76
B114: External Area (including external Car Parking) lighting | E114: 5 | F114: =HLOOKUP('Building Input'!$C$32,$K$93:$Y$134,G114,FALSE) ->  | G114: 22 | H114: 0.82 | K114: =12*365 -> 4380 | L114: =12*365 -> 4380 | M114: 4380 | N114: 4380 | O114: 4380 | P114: 4380 | Q114: 4380 | R114: 4380 | S114: 4380 | T114: 4380 | U114: 4380 | V114: 4380 | W114: 4380 | X114: 4380 | Y114: 4380
B115: Baggage Reclaim lighting | E115: 6.8 | F115: =HLOOKUP('Building Input'!$C$32,$K$93:$Y$134,G115,FALSE) ->  | G115: 23 | H115: 0.82 | K115: 8759.76 | L115: 8759.76 | M115: 8759.76 | N115: 8759.76 | O115: 8759.76 | P115: 8759.76 | Q115: 8759.76 | R115: 8759.76 | S115: 8759.76 | T115: 8759.76 | U115: 8759.76 | V115: 8759.76 | W115: 8759.76 | X115: 8759.76 | Y115: 8759.76
B116: Cell (police/prison) lighting | E116: 4.6 | F116: =HLOOKUP('Building Input'!$C$32,$K$93:$Y$134,G116,FALSE) ->  | G116: 24 | H116: 0.82 | K116: 1780.041 | L116: 1780.041 | M116: 1780.041 | N116: 1780.041 | O116: 1780.041 | P116: 1780.041 | Q116: 1780.041 | R116: 1780.041 | S116: 1780.041 | T116: 1780.041 | U116: 1780.041 | V116: 1780.041 | W116: 1780.041 | X116: 1780.041 | Y116: 1780.041
B117: Check in lighting | E117: 17 | F117: =HLOOKUP('Building Input'!$C$32,$K$93:$Y$134,G117,FALSE) ->  | G117: 25 | H117: 0.82 | K117: 8759.76 | L117: 8759.76 | M117: 8759.76 | N117: 8759.76 | O117: 8759.76 | P117: 8759.76 | Q117: 8759.76 | R117: 8759.76 | S117: 8759.76 | T117: 8759.76 | U117: 8759.76 | V117: 8759.76 | W117: 8759.76 | X117: 8759.76 | Y117: 8759.76
B118: Classroom lighting | E118: 10.2 | F118: =HLOOKUP('Building Input'!$C$32,$K$93:$Y$134,G118,FALSE) ->  | G118: 26 | H118: 0.82 | K118: 2757.81 | L118: 2757.81 | M118: 2757.81 | N118: 2757.81 | O118: 2757.81 | P118: 2757.81 | Q118: 2757.81 | R118: 2604.37 | S118: 2757.81 | T118: 2757.81 | U118: 2757.81 | V118: 2757.81 | W118: 2757.81 | X118: 2757.81 | Y118: 2757.81
B119: Consulting room lighting | E119: 17 | F119: =HLOOKUP('Building Input'!$C$32,$K$93:$Y$134,G119,FALSE) ->  | G119: 27 | H119: 0.82 | K119: 8759.76 | L119: 8759.76 | M119: 8759.76 | N119: 8759.76 | O119: 8759.76 | P119: 8759.76 | Q119: 8759.76 | R119: 8759.76 | S119: 8759.76 | T119: 8759.76 | U119: 8759.76 | V119: 8759.76 | W119: 8759.76 | X119: 8759.76 | Y119: 8759.76
B120: Display lighting | E120: 33 | F120: =HLOOKUP('Building Input'!$C$32,$K$93:$Y$134,G120,FALSE) ->  | G120: 28 | H120: 0.82 | K120: 1504.26 | L120: 1504.26 | M120: 1504.26 | N120: 1504.26 | O120: 1504.26 | P120: 1504.26 | Q120: 1504.26 | R120: 1504.26 | S120: 1504.26 | T120: 1504.26 | U120: 1504.26 | V120: 1504.26 | W120: 1504.26 | X120: 1504.26 | Y120: 1504.26
B121: Dry sports hall lighting | E121: 13.5 | F121: =HLOOKUP('Building Input'!$C$32,$K$93:$Y$134,G121,FALSE) ->  | G121: 29 | H121: 0.82 | K121: 4037.04 | L121: 2256.39 | M121: 4037.04 | N121: 4037.04 | O121: 4037.04 | P121: 3564.638767 | Q121: 3564.638767 | R121: 3085.847014 | S121: 2256.39 | T121: 4037.04 | U121: 4037.04 | V121: 4037.04 | W121: 4037.04 | X121: 4037.04 | Y121: 4379.88
B122: Fitness Studio lighting | E122: 10.2 | F122: =HLOOKUP('Building Input'!$C$32,$K$93:$Y$134,G122,FALSE) ->  | G122: 30 | H122: 0.82 | K122: 4379.88 | L122: 4379.88 | M122: 4379.88 | N122: 4379.88 | O122: 4379.88 | P122: 4379.88 | Q122: 4379.88 | R122: 4379.88 | S122: 4379.88 | T122: 4379.88 | U122: 4379.88 | V122: 4379.88 | W122: 4379.88 | X122: 4379.88 | Y122: 4379.88
B123: Fitness suite/gym lighting | E123: 10.2 | F123: =HLOOKUP('Building Input'!$C$32,$K$93:$Y$134,G123,FALSE) ->  | G123: 31 | H123: 0.82 | K123: 4608.44 | L123: 4608.44 | M123: 4608.44 | N123: 4608.44 | O123: 4608.44 | P123: 4608.44 | Q123: 4608.44 | R123: 3085.847014 | S123: 4608.44 | T123: 4608.44 | U123: 4608.44 | V123: 4608.44 | W123: 4608.44 | X123: 4608.44 | Y123: 4608.44
B124: Ice rink lighting | E124: 13.5 | F124: =HLOOKUP('Building Input'!$C$32,$K$93:$Y$134,G124,FALSE) ->  | G124: 32 | H124: 0.82 | K124: 3284.91 | L124: 3284.91 | M124: 3284.91 | N124: 3284.91 | O124: 3284.91 | P124: 3284.91 | Q124: 3284.91 | R124: 3284.91 | S124: 3284.91 | T124: 3284.91 | U124: 3284.91 | V124: 3284.91 | W124: 3284.91 | X124: 3284.91 | Y124: 3284.91
B125: Laboratory lighting | E125: 17 | F125: =HLOOKUP('Building Input'!$C$32,$K$93:$Y$134,G125,FALSE) ->  | G125: 33 | H125: 0.82 | K125: 3008.52 | L125: 3008.52 | M125: 3008.52 | N125: 3008.52 | O125: 3008.52 | P125: 2221.359288 | Q125: 2221.359288 | R125: 2901.64674 | S125: 3008.52 | T125: 3008.52 | U125: 3008.52 | V125: 3008.52 | W125: 3008.52 | X125: 3008.52 | Y125: 3008.52
B126: Laundry lighting | E126: 10.2 | F126: =HLOOKUP('Building Input'!$C$32,$K$93:$Y$134,G126,FALSE) ->  | G126: 34 | H126: 0.82 | K126: 2919.92 | L126: 2919.92 | M126: 2919.92 | N126: 2919.92 | O126: 2919.92 | P126: 2019.417534 | Q126: 2019.417534 | R126: 2040.300247 | S126: 2919.92 | T126: 2919.92 | U126: 2919.92 | V126: 2919.92 | W126: 2919.92 | X126: 2919.92 | Y126: 2919.92
B127: Performance area (stage) lighting | E127: 5.5 | F127: =HLOOKUP('Building Input'!$C$32,$K$93:$Y$134,G127,FALSE) ->  | G127: 35 | H127: 0.82 | K127: 2554.93 | L127: 2554.93 | M127: 2554.93 | N127: 2554.93 | O127: 2554.93 | P127: 2554.93 | Q127: 2554.93 | R127: 2554.93 | S127: 2554.93 | T127: 2554.93 | U127: 2554.93 | V127: 2554.93 | W127: 2554.93 | X127: 2554.93 | Y127: 2554.93
B128: Sales area - chilled lighting | E128: 20.2 | F128: =HLOOKUP('Building Input'!$C$32,$K$93:$Y$134,G128,FALSE) ->  | G128: 36 | H128: 0.82 | K128: 4014.89 | L128: 4014.89 | M128: 4014.89 | N128: 4014.89 | O128: 4014.89 | P128: 4014.89 | Q128: 4014.89 | R128: 4014.89 | S128: 4014.89 | T128: 4014.89 | U128: 4014.89 | V128: 4014.89 | W128: 4014.89 | X128: 4014.89 | Y128: 4014.89
B129: Sales area - general lighting | E129: 20.2 | F129: =HLOOKUP('Building Input'!$C$32,$K$93:$Y$134,G129,FALSE) ->  | G129: 37 | H129: 0.82 | K129: 4014.89 | L129: 4014.89 | M129: 4014.89 | N129: 4014.89 | O129: 4014.89 | P129: 4014.89 | Q129: 4014.89 | R129: 4014.89 | S129: 4014.89 | T129: 4014.89 | U129: 4014.89 | V129: 4014.89 | W129: 4014.89 | X129: 4014.89 | Y129: 4014.89
B130: Security check lighting | E130: 10.2 | F130: =HLOOKUP('Building Input'!$C$32,$K$93:$Y$134,G130,FALSE) ->  | G130: 38 | H130: 0.82 | K130: 8759.76 | L130: 8759.76 | M130: 8759.76 | N130: 8759.76 | O130: 8759.76 | P130: 8759.76 | Q130: 8759.76 | R130: 8759.76 | S130: 8759.76 | T130: 8759.76 | U130: 8759.76 | V130: 8759.76 | W130: 8759.76 | X130: 8759.76 | Y130: 8759.76
B131: Storage area - chilled lighting | E131: 6.8 | F131: =HLOOKUP('Building Input'!$C$32,$K$93:$Y$134,G131,FALSE) ->  | G131: 39 | H131: 0.82 | K131: 4744.87 | L131: 2507.1 | M131: 4744.87 | N131: 4744.87 | O131: 4744.87 | P131: 4744.87 | Q131: 4744.87 | R131: 2299.663233 | S131: 4744.87 | T131: 4744.87 | U131: 2005.68 | V131: 4744.87 | W131: 4744.87 | X131: 2256.39 | Y131: 4744.87
B132: Storage area - cold room (<0degC) lighting | E132: 6.8 | F132: =HLOOKUP('Building Input'!$C$32,$K$93:$Y$134,G132,FALSE) ->  | G132: 40 | H132: 0.82 | K132: 4744.87 | L132: 2507.1 | M132: 4744.87 | N132: 4744.87 | O132: 4744.87 | P132: 4744.87 | Q132: 4744.87 | R132: 2299.663233 | S132: 4744.87 | T132: 4744.87 | U132: 2005.68 | V132: 4744.87 | W132: 4744.87 | X132: 2256.39 | Y132: 4744.87
B133: Swimming pool lighting | E133: 13.5 | F133: =HLOOKUP('Building Input'!$C$32,$K$93:$Y$134,G133,FALSE) ->  | G133: 41 | H133: 0.82 | K133: 3808.48 | L133: 3808.48 | M133: 3808.48 | N133: 4450.87 | O133: 3808.48 | P133: 3808.48 | Q133: 3808.48 | R133: 2299.663233 | S133: 3808.48 | T133: 4744.87 | U133: 3808.48 | V133: 3808.48 | W133: 3808.48 | X133: 3808.48 | Y133: 3808.48
B134: Workshop - small scale lighting | E134: 17 | F134: =HLOOKUP('Building Input'!$C$32,$K$93:$Y$134,G134,FALSE) ->  | G134: 42 | H134: 0.82 | K134: 3008.52 | L134: 4379.88 | M134: 3008.52 | N134: 2256.39 | O134: 2256.39 | P134: 2423.301041 | Q134: 2423.301041 | R134: 2901.64674 | S134: 4379.88 | T134: 2256.39 | U134: 3008.52 | V134: 3008.52 | W134: 3008.52 | X134: 3008.52 | Y134: 3008.52

Sheet Transport
A1: =Management!A1 -> Green Star SA - Public & Education Building v1 | F1: Category Weighting: | G1: ='Credit Summary'!J54 -> 0.11 | H1: Category Weighted Score
A2: Transport | D2: Category Summary: | E2: =E16 -> 18 | F2: =F16 -> 0 | G2: =G16 -> 0 | H2: ='Credit Summary'!K54 -> 0
A3: Credit Summary for: | C3: =IF('Building Input'!$C$5=0,"",'Building Input'!$C$5) ->  | F3: =IF(OR((I3=Calculation1!$B$84),(I3=Calculation1!$B$85),((F2+G2)>E2)),Calculation1!$B$86,"") ->  | I3: =T(I5:I15) -> 
A4: Ref No. | B4: Title | C4: Aim of Credit | D4: Credit Criteria | E4: No. of Points Available | F4: No. of Points Achieved | G4: Points to be Confirmed | H4: Comments
A5: Tra-1 | B5: Provision of Car Parking | C5: To encourage and recognise developments that facilitate the use of alternative modes of transport for staff and visitors/students travelling to public or education buildings | D5: Up to two points are awarded as follows: One point is awarded where the number of car parking spaces provided is: • At least 25% lower than the maximum local planning allowances applicable to the project; OR • Does not exceed: - The local planning minimum allowance by more than 10%; OR - Where there is no minimum local planning allowance, the minimum DOT guidelines by more than 10%. OR Two points are awarded where the number of car parking spaces provided is: • At least 50% lower than the maximum local planning allowances applicable to the project; OR • Does not exceed: - The local planning minimum allowance; OR - Where there is no minimum local planning allowance, the minimum DOT guidelines. Where car parking is not permitted in the local planning scheme, this credit is ‘Not Applicable’ and is excluded from the Points Available, used calculate the Transport category score. Type 'na' in the appropriate ‘No. of Points Achieved’ column of the rating tool. | E5: =IF(F5="na",0,2) -> 2 | I5: =IF(ISBLANK(F5),IF(G5>E5,Calculation1!$B$84,""),IF(F5="na","",IF(OR(F5="na",ISNUMBER(F5)),IF(F5+G5>E5,Calculation1!$B$84,""),Calculation1!$B$85))) -> 
A6: Tra-2 | B6: Fuel-Efficient Transport | C6: To encourage and recognise developments that facilitate the use of more fuel efficient vehicles for staff and visitors/students travelling to public or education buildings | D6: Two points are awarded where: • For every 20 car parking spaces provided, a minimum of 1 parking space (or 5 parking spaces, whichever is the greater) is provided for mopeds/scooters/motorbikes; AND • A minimum of 5% of all parking spaces (or 5 parking spaces, whichever is greater) are dediccated soley for use by hybrid or other alternative fuel vehicles; AND • A minimum of 3% (or 1 parking space, whichever is greater) of staff parking spaces are dedicated soley for use by car-pool and car-share vehicles, with appropriate supporting programs as per Additional Guidance; AND • All parking spaces required above must be in preferred parking locations and be designed and labelled for the intended vehicles. Where staff car parking is less than 30% of all car parking spaces, the third criterion is void. Where no parking spaces are to be provided, this credit is ‘Not Applicable’ and is excluded from the points available, used to calculate the Transport category score. Type 'na' in the No. of Points Achieved column. | E6: =IF(F6="na",0,2) -> 2 | I6: =IF(ISBLANK(F6),IF(G6>E6,Calculation1!$B$84,""),IF(F6="na","",IF(OR(F6="na",ISNUMBER(F6)),IF(F6+G6>E6,Calculation1!$B$84,""),Calculation1!$B$85))) -> 
A7: Tra-3 | B7: Cyclist Facilities | C7: To encourage and recognise developments that facilitate the use of bicycles by staff and visitors/students. | D7: All Public Buildings (Education buidlings excluded), up to two points are awarded where: • Safe and unimpeded cycling routes are provided between the development and the adjacent street network; AND • Cyclist facilities (in accordance with the Additional Guidance) are provided for a nominated percentage of staff, awarded as follows: - 3% for one point; OR - 6% for two points; AND • Bicycle storage (in accordance with the Additional Guidance) is provided for a nominated percentage of daily visitors, awarded as follows: - 3% for one point; OR - 6% for two points; For education buildings these two points are ‘Not Applicable’ and are excluded from the Points Available, used calculate the Transport category score. Type 'na' in the appropriate ‘No. of Points Achieved’ column of the rating tool) | E7: =IF(F7="na",0,2) -> 2 | I7: =IF(OR(ISTEXT(F7)=TRUE,ISTEXT(G7)=TRUE),Calculation1!$B$87,IF(F7+G7>E7,Calculation1!$B$84,"")) -> 
D8: Basic Education Buildings (Primary and Secondary Only): Up to three points are awarded where: • Safe and unimpeded cycling routes are provided between the development and the adjacent street network; AND • Cyclist facilities (in accordance with Additional Guidance) are provided for a nominated percentage of staff, awarded as follows: - 3% for one point; OR - 6% for two points; OR - 6% for three points; AND • Bicycle storage (inaccordance with Additional Guidance) is provided for a nominated ratio of students (over Grade 4), awarded as follows: - One per seven students (over Grade 4), fo+D8r one point; OR - Two per seven students (over Grade 4), for two points; OR - Three per seven students (over Grade 4), for thee points. | E8: =IF(F8="na",0,3) -> 3 | I8: =IF(OR(ISTEXT(F8)=TRUE,ISTEXT(G8)=TRUE),Calculation1!$B$87,IF(F8+G8>E8,Calculation1!$B$84,"")) -> 
D9: Higher Education Buildings (University & College Only) Up to three poinyts are awarded where: • Safe and unimpeded cycling routes are provided between the development and the adjacent street network; AND • Cyclist facilities (in accordance with Additional Guidance) are provided for a nominated percentage of staff, awarded as follows: - 3% for one point; OR - 6% for two points; OR - 6% for three points; AND Bicycle storage (inaccordance with Additional Guidance) is provided for a nominated percentage of the peak number of students (calculated in accordance with the Additional Guidance), awarded as follows: - 5% for one point; OR - 10% for two points; OR - 15% for three points. For other Public Buildings these three points are ‘Not Applicable’ and are excluded from the Points Available, used to calculate the Transport category score. Type 'na' in the appropriate ‘No. of Points Achieved’ column of the rating tool
A10: Tra-4 | B10: Commuting Mass Transport | C10: To encourage and recognise developments that select a site near public transport and facilitate the use of mass transport. | D10: Up to five points are awarded for the quality of mass transport options available to building users - 4 points for weekday and 1 point for weekend/evening. Scoring points in the calculator is on condition that the project include a public transport information point, with the following requirements: There is at least one dedicated space for providing information about local public transport, cycling, walking and taxi services/facilities. This information must be displayed using a lockable notice board or electronically. The dedicated space must: • be in a location that is accessible to all building users, ideally in a main reception or lobby area; • be signposted at its location and throughout appropriate areas of the development indicating its existence, purpose and location. The points are determined using the Green Star Mass Transport Calculator based on: • The type of mass transport services available within 1,000m of the site; • The number of routes served; • The average interval between services during weekday peak hours; and • The average interval between services during weekends and in the evening when the facility is open for visitors/students. | E10: 4 | F10: ='Transport Calculator'!X33 -> 0 | I10: =IF(OR(ISTEXT(F10)=TRUE,ISTEXT(G10)=TRUE),Calculation1!$B$87,IF(F10+G10>E10,Calculation1!$B$84,"")) -> 
D11: Where the building does not operate on the weekends or evenings, the 1 point associated to weekend or evening operation is Not Applicable and is excluded from the Points Available, used calculate the Transport category score. Tick the box below if this credit is not applicable. | E11: =IF(F11="na",0,1) -> 1 | F11: =IF(I11=TRUE,"na",'Transport Calculator'!X27) -> 0 | I11: FALSE
A13: Tra-5 | B13: Local Connectivity | C13: To encourage and recognise public or education buildings that are integrated with or built adjacent to amenities and dwellings to encourage effective car-based trip reduction initiatives. | D13: Up to two points are awarded independently as follows: One point is awarded where: • At least four of the amenities listed below are, or are planned, within 400m unimpeded walking distance of the development site (from the public entrance), or are within the building (excluding its primary function): Accepted amenities: Hardware store/Public sports field/Pharmacy/Gym, pool or sports facility/Library/Bank or ATM/School, University or Technikon/Community food garden/Recycling depot/Garden nursery/Neighbourhood park, open landscaped area (minimum 200m2) open piazza, playground, beach or nature reserve/Post office/Retail shop/Supermarket or grocery store/Registered childcare centre/Officially designated ‘Trading Area’/Laundromat/Convenience store/Restaurant or food outlet/Cinema or theatre/Places of worship/Community centre/Hospital, clinic or healthcare centre/Offices It must be demonstrated that safe, well-lit, dedicated pedestrian facilities are provided between the public or education building development and the adjacent street network. Where this cannot be demonstrated, an amenity cannot be claimed. One point is awarded where: • An average gross density of not less than 35 du/ha (dwelling units/hectare) is achieved for the entire area within 400m of the development site. | E13: 2 | I13: =IF(OR(ISTEXT(F13)=TRUE,ISTEXT(G13)=TRUE),Calculation1!$B$87,IF(F13+G13>E13,Calculation1!$B$84,"")) -> 
A14: Tra-6 | B14: Trip Reduction - Mixed-Use | D14: This credit is not relevant to the Green Star SA Public & Education Building v1 tool | E14: x | F14: x | G14: x | I14: =IF(OR(ISTEXT(F14)=TRUE,ISTEXT(G14)=TRUE),Calculation1!$B$87,IF(F14+G14>E14,Calculation1!$B$84,"")) -> ERROR, text not valid!
A15: Tra-7 | B15: Vehicle Operating Emissions | C15: To encourage and recognise public or education buildings that reduce vehicular emissions resulting from traffic congestion by upgrading road infrastructure around the building. | D15: Two points are awarded where: • Traffic infrastructure is improved over and above the minimum peak hour traffic flow service levels compared to pre-development baseline traffic flows, awarded as follows; - One point where a 15% reduction in peak hour average CO2 emissions per vehicle is demonstrated as a result of improved infrastructure. AND - Two points where a 30% reduction in peak hour average CO2 emissions per vehicle is demonstrated as a result of improved infrastructure. Compliance must be proved via a Traffic Impact Assessment (TIA) and the software that is used to undertake the TIA. Where a Traffic Impact Assessment is not recommended by the Department of Transport’s guideline document this credit is ‘Not Applicable’ and is excluded from the Points Available, used calculate the Transport category score. Type 'na' in the appropriate ‘No. of Points Achieved’ column of the rating tool. | E15: =IF(F15="na",0,2) -> 2 | I15: =IF(OR(ISTEXT(F15)=TRUE,ISTEXT(G15)=TRUE),Calculation1!$B$87,IF(F15+G15>E15,Calculation1!$B$84,"")) -> 
D16: Total Points: | E16: =SUM(E5:E15) -> 18 | F16: =SUM(F5:F15) -> 0 | G16: =SUM(G5:G15) -> 0
A20: =Calculation1!$B$93 -> Project Teams are to refer to the Green Star SA Public Building PILOT Technical Manual for explicit credit criteria and documentation requirements.
A21: =Calculation1!$B$94 -> The Green Star Technical Clarifications (TC) and Credit Interpretation Request (CIR) rulings provide an essential source of information to all
A22: =Calculation1!$B$95 -> projects undertaking Green Star assessment. They are available on the GBCSA website http://www.gbcsa.org.za . Technical Clarifications
A23: =Calculation1!$B$96 -> often represent the GBCSA answers to technical queries and complement Green Star SA Technical Manuals. They do not amend but clarify
A24: =Calculation1!$B$97 -> Credit Criteria or Compliance Requirements. They are an extension of the Technical Manual; it is the responsibility of the project teams to stay
A25: =Calculation1!$B$98 -> up-to-date with this section of the GBCSA website. The CIR rulings offer alternative compliance options whenever those have been deemed
A26: =Calculation1!$B$99 -> equivalent in meeting the Aim of Credit.

Sheet Transport Calculator
B1: ='Building Input'!B1 -> Green Star SA - Public & Education Building v1
B2: Transport Calculator | I2: Points Achieved: | L2: =D31 -> 0
P3: THESE COLUMNS HIDDEN
AD5: FALSE
B6: Notes & Instructions:
B7: 1. User must enter values into white cells ONLY.
B8: 2. Refer to the comprehensive Green Star SA Transport Calculator Guide available on the GBCSA website www.gbcsa.org.za for additional instructions.
B11: WEEKDAY SERVICES | H11: WEEKEND & EVENING SERVICES | P11: HIDDEN CELLS:
B12: No. of Bus, Midibus or Minibus Routes | H12: No. of Bus, Midibus or Minibus Routes | P12: Mass Transport Calculator Engine:
C13: Contracted | E13: Uncontracted | I13: Contracted | K13: Uncontracted
B14: Walking Distance from Building Entrance to Public Transport | C14: Frequency of Service During Peak Periods | E14: Frequency of Service During Peak Periods | H14: Walking Distance from Building Entrance to Public Transport | I14: Frequency of Service During Peak Periods | K14: Frequency of Service During Peak Periods | P14: The weighting factors and score matrix to be calibrated using assessments of different Public & Education Building locations
C15: 15 min | D15: 30 min | E15: 15 min | F15: 30 min | I15: 15 min | J15: 30 min | K15: 15 min | L15: 30 min
B16: 0-250m | H16: 0-250m | P16: Weighting factors | T16: Weekday Score | U16: Weekend&evening Score | W16: Score Matrix
B17: 250-500m | H17: 250-500m | T17: Achieved | U17: Achieved | W17: 4 points available for weekday service
B18: 500-750m | H18: 500-750m | P18: Bus & Minibus Contract | R18: Uncontracted Minibus | W18: Score | X18: Points
B19: 750m-1km | H19: 750m-1km | P19: 15min | Q19: 30min | R19: 15min | S19: 30min | W19: 10 | X19: 1
P20: 6 | Q20: 4 | R20: 3 | S20: 1 | T20: =C16*P20+D16*Q20 +E16*R20+F16*S20 -> 0 | U20: =I16*P20+J16*Q20 +K16*R20+L16*S20 -> 0 | W20: 20 | X20: 2
B21: WEEKDAY SERVICES | H21: WEEKEND & EVENING SERVICES | P21: 5 | Q21: 3 | R21: 2 | S21: 0 | T21: =C17*P21+D17*Q21+E17*R21+F17*S21 -> 0 | U21: =I17*P21+J17*Q21 +K17*R21+L17*S21 -> 0 | W21: 40 | X21: 3
B22: No. of Train Routes | H22: No. of Train Routes | P22: 4 | Q22: 2 | R22: 1 | S22: 0 | T22: =C18*P22+D18*Q22+E18*R22+F18*S22 -> 0 | U22: =I18*P22+J18*Q22 +K18*R22+L18*S22 -> 0 | W22: 60 | X22: 4
B23: Walking Distance from Building Entrance to Public Transport | C23: Frequency of Service During Peak Periods | H23: Walking Distance from Building Entrance to Public Transport | I23: Frequency of Service During Peak Periods | P23: 3 | Q23: 1 | R23: 0 | S23: 0 | T23: =C19*P23+D19*Q23+E19*R23+F19*S23 -> 0 | U23: =I19*P23+J19*Q23 +K19*R23+L19*S23 -> 0
C24: 15 min | D24: 30 min | I24: 15 min | J24: 30 min | W24: 1 point available for Weekend/evening service
B25: 0-250m | H25: 0-250m | W25: Score | X25: Points
B26: 250-500m | H26: 250-500m | W26: 20 | X26: 1
B27: 500-750m | H27: 500-750m | P27: Train | W27: point scored | X27: =IF(U33>=W26,X26,0) -> 0
B28: 750m-1km | H28: 750m-1km | P28: 7 | Q28: 5 | T28: =C25*P28+D25*Q28 -> 0 | U28: =I25*P28+J25*Q28 -> 0
P29: 6 | Q29: 4 | T29: =C26*P29+D26*Q29 -> 0 | U29: =I26*P29+J26*Q29 -> 0
P30: 5 | Q30: 3 | T30: =C27*P30+D27*Q30 -> 0 | U30: =I27*P30+J27*Q30 -> 0
B31: Points Achieved: | D31: =X35 -> 0 | P31: 4 | Q31: 2 | T31: =C28*P31+D28*Q31 -> 0 | U31: =I28*P31+J28*Q31 -> 0
T32: weekday | U32: weekend | W32: Weekday points
R33: Total for all services | T33: =SUM(T20:T31) -> 0 | U33: =SUM(U20:U31) -> 0 | W33: Points = | X33: =IF(T33<W19,0,VLOOKUP(T33,W19:X22,2)) -> 0
V35: TOTAL POINTS = | X35: =X33+X27 -> 0

Sheet PEB_TRA_DataExtract (hidden)
A1: Dictionary | B1: Value | C1: Key | D1: Note:
A2: PEB_Transport_Points | B2: ='Transport Calculator'!L2 -> 0 | C2: PTP

Sheet Water
A1: ='Building Input'!B1 -> Green Star SA - Public & Education Building v1 | F1: Category Weighting: | G1: ='Credit Summary'!J59 -> 0.12 | H1: Category Weighted Score
A2: Water | D2: Category Summary: | E2: =E16 -> 15 | F2: =F16 -> 0 | G2: =G16 -> 0 | H2: ='Credit Summary'!K59 -> 0
A3: Credit Summary for: | C3: =IF('Building Input'!$C$5=0,"",'Building Input'!$C$5) ->  | F3: =IF(OR((I3=Calculation1!$B$84),(I3=Calculation1!$B$85),((F2+G2)>E2)),Calculation1!$B$86,"") ->  | I3: =T(I5:I11) -> 
A4: Ref No. | B4: Title | C4: Aim of Credit | D4: Credit Criteria Summary | E4: No. of Points Available | F4: No. of Points Achieved | G4: Points to be Confirmed | H4: Comments
A5: Wat-1 | B5: Potable Water | C5: To encourage and recognise designs that reduce potable water consumption. | D5: Up to twelve points are awarded for building water efficiency, assessed using the Green Star SA - Public & Education Building Potable Water Calculator | E5: 12 | F5: ='Potable Water Calculator'!M1 -> 0 | I5: =IF(OR(ISTEXT(F5)=TRUE,ISTEXT(G5)=TRUE),Calculation1!$B$87,IF(F5+G5>E5,Calculation1!$B$84,"")) -> 
A6: Wat-2 | B6: Water Sub-Metering | C6: To encourage and recognise the installation of sub-metering to facilitate on-going management of water consumption. | D6: Three points are awarded as follows: One point is awarded where it is demonstrated that: • Water meters are installed for all major water uses in the development. | E6: 1 | I6: =IF(OR(ISTEXT(F6)=TRUE,ISTEXT(G6)=TRUE),Calculation1!$B$87,IF(F6+G6>E6,Calculation1!$B$84,"")) -> 
D7: Two additional points are awarded where it is demonstrated that: • The first point is achieved; • There is an effective automated mechanism for monitoring water consumption data, which is able to perform as a leak detection system; AND • A automated metering strategy is developed for the project. OR | E7: 2
D8: One additional point is awareded where it is demonstrated that: • The first point is achieved; • For each toilet/amenity area in the building, the water supply is provided with; – Solenoid control valve(s) for automatic shut-off; AND – Supply to the toilet/amenity area is automatically controlled by occupancy sensors within each toilet/amenity area. | I8: =IF(OR(ISTEXT(F8)=TRUE,ISTEXT(G8)=TRUE),Calculation1!$B$87,IF(F8+G8>E8,Calculation1!$B$84,"")) -> 
A9: Wat-3 | B9: Landscape Irrigation | D9: This credit is not relevant to the Green Star SA Public & Education Building v1 tool | E9: x | F9: x | G9: x | I9: =IF(ISBLANK(F9),IF(G9>E9,Calculation1!$B$84,""),IF(F9="na","",IF(OR(F9="na",ISNUMBER(F9)),IF(F9+G9>E9,Calculation1!$B$84,""),Calculation1!$B$85))) -> ERROR, Value entered in 'No. of points achieved' must be a number or 'na'
A10: Wat-4 | B10: Heat Rejection Water | D10: This credit is not relevant to the Green Star SA Public & Education Building v1 tool | E10: x | F10: x | G10: x | I10: =IF(OR(ISTEXT(F10)=TRUE,ISTEXT(G10)=TRUE),Calculation1!$B$87,IF(F10+G10>E10,Calculation1!$B$84,"")) -> ERROR, text not valid!
A11: Wat-5 | B11: Fire System Water Consumption | D11: This credit is not relevant to the Green Star SA Public & Education Building v1 tool | E11: x | F11: x | G11: x | I11: =IF(ISBLANK(F11),IF(G11>E11,Calculation1!$B$84,""),IF(F11="na","",IF(OR(F11="na",ISNUMBER(F11)),IF(F11+G11>E11,Calculation1!$B$84,""),Calculation1!$B$85))) -> ERROR, Value entered in 'No. of points achieved' must be a number or 'na'
A12: Wat-6 | B12: Car Wash Facility & Refuse Yard Wash Equipment | D12: This credit is not relevant to the Green Star SA Public & Education Building v1 tool | E12: x | F12: x | G12: x | I12: =IF(OR(ISTEXT(F12)=TRUE,ISTEXT(G12)=TRUE),Calculation1!$B$87,IF(F12+G12>E12,Calculation1!$B$84,"")) -> ERROR, text not valid!
A13: Wat-7 | B13: Potable Water Efficient Appliances | D13: This credit is not relevant to the Green Star SA Public & Education Building v1 tool | E13: x | F13: x | G13: x | I13: =IF(OR(ISTEXT(F13)=TRUE,ISTEXT(G13)=TRUE),Calculation1!$B$87,IF(F13+G13>E13,Calculation1!$B$84,"")) -> ERROR, text not valid!
A14: Wat-8 | B14: Swimming Pool / Spa Water Efficiency | D14: This credit is not relevant to the Green Star SA Public & Education Building v1 tool | E14: x | F14: x | G14: x | I14: =IF(OR(ISTEXT(F14)=TRUE,ISTEXT(G14)=TRUE),Calculation1!$B$87,IF(F14+G14>E14,Calculation1!$B$84,"")) -> ERROR, text not valid!
A15: Wat-9 | B15: Building Specific Major Water Usage | D15: This credit is not relevant to the Green Star SA Public & Education Building v1 tool | E15: x | F15: x | G15: x
D16: Total Points: | E16: =SUM(E5:E15) -> 15 | F16: =SUM(F5:F15) -> 0 | G16: =SUM(G5:G15) -> 0
A20: =Calculation1!$B$93 -> Project Teams are to refer to the Green Star SA Public Building PILOT Technical Manual for explicit credit criteria and documentation requirements.
A21: =Calculation1!$B$94 -> The Green Star Technical Clarifications (TC) and Credit Interpretation Request (CIR) rulings provide an essential source of information to all
A22: =Calculation1!$B$95 -> projects undertaking Green Star assessment. They are available on the GBCSA website http://www.gbcsa.org.za . Technical Clarifications
A23: =Calculation1!$B$96 -> often represent the GBCSA answers to technical queries and complement Green Star SA Technical Manuals. They do not amend but clarify
A24: =Calculation1!$B$97 -> Credit Criteria or Compliance Requirements. They are an extension of the Technical Manual; it is the responsibility of the project teams to stay
A25: =Calculation1!$B$98 -> up-to-date with this section of the GBCSA website. The CIR rulings offer alternative compliance options whenever those have been deemed
A26: =Calculation1!$B$99 -> equivalent in meeting the Aim of Credit.

Sheet Potable Water Calculator
B1: Green Star SA | D1: Please provide input in the white cells only | K1: Points Achieved | M1: ='Potable Water Calculator'!D477 -> 0 | N1: Calculations | P1: Calculation result | BF1: =K1 -> Points Achieved | BH1: =M1 -> 0 | DJ1: Assumptions and Notional Buildinng Benchmarks
B2: Potable Water Calculator | D2: Shortcut navigation links: | L2: Heading (units)
C3: Building Info: | D3: STEP 1 Building Information Input | L3: Input | M3: unit | BJ3: Jan | BK3: Feb | BL3: Mar | BM3: Apr | BN3: May | BO3: Jun | BP3: Jul | BQ3: Aug | BR3: Sep | BS3: Oct | BT3: Nov | BU3: Dec | BV3: Total | BX3: Links / Constants
C4: Water demands: | D4: STEP 2a Occupant Ammenity Water | G4: STEP 2b Heat Rejection | I4: STEP 2c Irrigation | J4: STEP 2d Pools | L4: Calculations or Links | M4: Actual Building | BE4: =D31 -> Polokwane | BJ4: =D36 -> 82 | BK4: =D37 -> 60 | BL4: =D38 -> 52 | BM4: =D39 -> 33 | BN4: =D40 -> 11 | BO4: =D41 -> 5 | BP4: =D42 -> 3 | BQ4: =D43 -> 6 | BR4: =D44 -> 17 | BS4: =D45 -> 43 | BT4: =D46 -> 85 | BU4: =D47 -> 81 | BV4: =SUM(BJ4:BU4) -> 478 | BX4: Local calculations
D5: STEP 2e Laundry Facilities | F5: STEP 2f Large Kitchens | H5: STEP 2g Other Major Water Uses | L5: Main page row heading | M5: Notional Building | N5: Error Checking and quality control | BE5: Number of rainy days | BJ5: =E36 -> 11 | BK5: =E37 -> 8 | BL5: =E38 -> 7 | BM5: =E39 -> 4 | BN5: =E40 -> 2 | BO5: =E41 -> 1 | BP5: =E42 -> 0 | BQ5: =E43 -> 1 | BR5: =E44 -> 2 | BS5: =E45 -> 6 | BT5: =E46 -> 12 | BU5: =E47 -> 11 | BV5: =SUM(BJ5:BU5) -> 65 | BX5: Input
C6: Sustainable Supply: | D6: STEP 3 Sustainable Water Supplies | G6: SUMMARY | L6: Not applicable | BE6: Number of days in month | BJ6: 31 | BK6: 28 | BL6: 31 | BM6: 30 | BN6: 31 | BO6: 30 | BP6: 31 | BQ6: 31 | BR6: 30 | BS6: 31 | BT6: 30 | BU6: 31 | BV6: =SUM(BJ6:BU6) -> 365
B7: Building Information Inputs | BE7: Interval between rainy days | BJ7: =IFERROR(ROUND(BJ6/BJ5,0),BJ6) -> 3 | BK7: 4 | BL7: 4 | BM7: 8 | BN7: 16 | BO7: 30 | BP7: 31 | BQ7: 31 | BR7: 15 | BS7: 5 | BT7: 3 | BU7: 3 | DN7: Occupant Densities
BE8: Rain per rainy day | BJ8: =IFERROR(BJ4/BJ5,BJ4) -> 7.454545455 | BK8: 7.5 | BL8: 7.428571429 | BM8: 8.25 | BN8: 5.5 | BO8: 5 | BP8: 3 | BQ8: 6 | BR8: 8.5 | BS8: 7.166666667 | BT8: 7.083333333 | BU8: 7.363636364 | DP8: m2 per person | EQ8: GYM PROFILE
B9: STEP 1a - Please provide occupant information | N9: Total UA accounted for | P9: # of occupants calculations | R9: Person-hours per year calculations | W9: Shower usage per year calculations | AG9: Summary of schedules for calculations | DN9: Office | DP9: 15 | DS9: Office | DU9: A1 Community / day centre | DW9: A1 Restaurant / Public House | DY9: A2 Sports Centre / Leisure centre | EA9: A2 Theatres / Cinemas / Music Halls | EC9: A3 Tertiary Education | EE9: A3 Primary and Secondary Schools | EG9: A4 Places of Worship | EI9: Airport / Public Transport terminal buildings | EK9: C1 Convention Centre / Exhibition hall | EM9: C2 Libraries / Museums / Galleries | EO9: Courts | EQ9: Gym | ES9: <User Defined>
B10: Occupant Type | C10: Design Number of Occupants | D10: Occupancy profile | F10: Peak days per week | G10: Percentage of occupants with access to showers | N10: =SUM(C13:C27)=#REF! ->  | AJ10: Hours per day | AL10: Max occupancy | BE10: Total Area | BJ10: =N402 -> 0 | DN10: A1 Community / day centre | DP10: 5
N11: Irrigation | Q11: Maximum design number of occupants | R11: Number of days | T11: Occupied hours per person per year | V11: Total occupied person-hours per year | W11: Number of occupants with shower access | Y11: % of occupants who use shower | Z11: Shower usage per year | AG11: <Please select> | AJ11: Peak | AK11: Off-peak | AL11: Peak | AM11: Off-peak | BE11: Weighted Run-off co-efficient (mm captured per m2 of roof area) | BJ11: =N400 -> 0 | DN11: A1 Restaurant / Public House | DP11: 5 | DS11: Office | DU11: Hall / Lecture Theatre | DW11: Eating / Drinking area | DY11: School semester | EA11: Hall / Lecture Theatre | EC11: Classroom (Tert) | EE11: Classroom (General) | EG11: Hall / Lecture Theatre | EI11: Circulation | EK11: Hall / Lecture Theatre | EM11: Circulation | EO11: Hall / Lecture Theatre | EQ11: Fitness suite / Gym | ES11: <Enter description>
D12: Click here to enter a 'User Defined' profile | AG12: Office | AJ12: =DS39 -> 9.5 | AK12: =DT39 -> 0.45 | AL12: =DS40 -> 1 | AM12: =DT40 -> 0.05
D13: <Please select> | N13: =E30="yes" -> FALSE | AG13: =DU9 -> A1 Community / day centre | AJ13: =DU39 -> 7.1 | AK13: =DV39 -> 0 | AL13: =DU40 -> 1 | AM13: =DV40 -> 0 | BE13: Collection factor (m3 captured per mm of rain) | BJ13: =BJ10*BJ11/1000 -> 0 | BP13: DEMAND | DN13: A2 Sports Centre / Leisure centre | DP13: 5 | DR13: Time
D14: <Please select> | R14: Peak | S14: Off-peak | T14: Peak | U14: Off-peak | W14: Peak day | X14: Off-peak day | AG14: =DW9 -> A1 Restaurant / Public House | AJ14: =DW39 -> 9.25 | AK14: =DX39 -> 9.25 | AL14: =DW40 -> 1 | AM14: =DX40 -> 1 | BE14: First flush lost per event (m3) | BJ14: =DK364*BJ10/1000 -> 0 | DN14: A2 Theatres / Cinemas / Music Halls | DP14: 5 | DS14: Peak | DT14: Off-Peak | DU14: Peak | DV14: Off-peak | DW14: Peak | DX14: Off-peak | DY14: Peak | DZ14: Off-peak | EA14: Peak | EB14: Off-peak | EC14: Peak | ED14: Off-peak | EE14: Peak | EF14: Off-peak | EG14: Peak | EH14: Off-peak | EI14: Peak | EJ14: Off-peak | EK14: Peak | EL14: Off-peak | EM14: Peak | EN14: Off-peak | EO14: Peak | EP14: Off-peak | EQ14: Peak | ER14: Off-peak | ES14: Peak | ET14: Off-peak
D15: <Please select> | Q15: =C13 -> 0 | R15: =IFERROR(VLOOKUP(F13,$S$38:$AF$40,14,FALSE),0) -> 0 | S15: =IF(R15>0,365-R15,0) -> 0 | T15: =IFERROR(VLOOKUP(D13,$AG$12:$AM$25,4,FALSE)*R15,0) -> 0 | U15: =IFERROR(VLOOKUP(D13,$AG$12:$AM$25,5,FALSE)*S15,0) -> 0 | V15: =Q15*(T15+U15) -> 0 | W15: =IFERROR($Q15*$G13*VLOOKUP($D13,$AG$12:$AM$25,6,FALSE),0) -> 0 | X15: =IFERROR($Q15*$G13*VLOOKUP($D13,$AG$12:$AM$25,7,FALSE),0) -> 0 | Y15: =IF(D13=$EQ$9,$DK$77,VLOOKUP($E$91,$DJ$72:$DK$76,2,FALSE)) -> 0 | Z15: =Y15*(W15*R15+X15*S15) -> 0 | AG15: =DY9 -> A2 Sports Centre / Leisure centre | AJ15: =DY39 -> 3 | AK15: =DZ39 -> 2 | AL15: =DY40 -> 1 | AM15: =DZ40 -> 0.25 | BE15: Weekdays per year | BJ15: 261 | BP15: Toilets | BS15: Urinals | BV15: Indoor taps | BY15: Showers | CB15: Heat Rejection | CE15: Irrigation | CH15: Swimming Pool | CK15: =B422 -> Laundry Facilities | CN15: =B423 -> Large Kitchens | CQ15: =B398 -> {Other Water Use 1} | CT15: =B399 -> {Other Water Use 2} | CW15: =B426 -> {Other Water Use 3} | DN15: A3 Tertiary Education | DP15: 5 | DR15: 12am - 1am | DS15: 0 | DT15: 0 | DU15: 0 | DV15: 0 | DW15: 0 | DX15: 0 | DY15: 0 | DZ15: 0 | EA15: 0 | EB15: 0 | EC15: 0 | ED15: 0 | EE15: 0 | EF15: 0 | EG15: 0 | EH15: 0 | EI15: 0 | EJ15: 0 | EK15: 0 | EL15: 0 | EM15: 0 | EN15: 0 | EO15: 0 | EP15: 0 | EQ15: 0 | ER15: 0
D16: <Please select> | Q16: =C14 -> 0 | R16: =IFERROR(VLOOKUP(F14,$S$38:$AL$40,14,FALSE),0) -> 0 | S16: =IF(R16>0,365-R16,0) -> 0 | T16: 0 | U16: 0 | V16: =Q16*(T16+U16) -> 0 | W16: 0 | X16: 0 | Y16: 0 | Z16: 0 | AG16: =EA9 -> A2 Theatres / Cinemas / Music Halls | AJ16: =EA39 -> 8 | AK16: =EB39 -> 0 | AL16: =EA40 -> 1 | AM16: =EB40 -> 0 | BP16: % connected to rain | BR16: =$C$415 -> 0 | BU16: =$C$416 -> 0 | BX16: =$C$417 -> 0 | CA16: =$C$418 -> 0 | CD16: =$C$419 -> 0 | CG16: =$C$420 -> 0 | CJ16: =$C$421 -> 0 | CM16: =C422 -> 0 | CP16: =C423 -> 0 | CS16: =C424 -> 0 | CV16: =C425 -> 0 | CY16: =C426 -> 0 | CZ16: =CZ386 -> 0 | DA16: 0 | DB16: 0 | DC16: 0 | DD16: 0 | DE16: Total Municipal Water Used | DF16: 0 | DN16: A3 Primary and Secondary Schools | DP16: 5 | DR16: 1am - 2am | DS16: 0 | DT16: 0 | DU16: 0 | DV16: 0 | DW16: 0 | DX16: 0 | DY16: 0 | DZ16: 0 | EA16: 0 | EB16: 0 | EC16: 0 | ED16: 0 | EE16: 0 | EF16: 0 | EG16: 0 | EH16: 0 | EI16: 0 | EJ16: 0 | EK16: 0 | EL16: 0 | EM16: 0 | EN16: 0 | EO16: 0 | EP16: 0 | EQ16: 0 | ER16: 0
D17: <Please select> | Q17: 0 | R17: 0 | S17: 0 | T17: 0 | U17: 0 | V17: 0 | W17: 0 | X17: 0 | Y17: 0 | Z17: 0 | AG17: =EC9 -> A3 Tertiary Education | AJ17: =EC39 -> 9 | AK17: =ED39 -> 0 | AL17: =EC40 -> 1 | AM17: =ED40 -> 0 | BE17: DESIGN YEAR | BJ17: DESIGN RAINFALL YEAR | BM17: SUPPLY | BP17: % also connected to grey | BR17: =D415 -> 0 | BU17: =D416 -> 0 | BX17: =D417 -> 0 | CA17: =D418 -> 0 | CD17: =D419 -> 0 | CG17: =D420 -> 0 | CJ17: =D421 -> 0 | CM17: =D422 -> 0 | CP17: =D423 -> 0 | CS17: =D424 -> 0 | CV17: =D425 -> 0 | CY17: =D426 -> 0 | CZ17: SAVING DUE TO STORAGE | DC17: STORAGE | DN17: A4 Places of Worship | DP17: 5 | DR17: 2am - 3am | DS17: 0 | DT17: 0 | DU17: 0 | DV17: 0 | DW17: 0 | DX17: 0 | DY17: 0 | DZ17: 0 | EA17: 0 | EB17: 0 | EC17: 0 | ED17: 0 | EE17: 0 | EF17: 0 | EG17: 0 | EH17: 0 | EI17: 0 | EJ17: 0 | EK17: 0 | EL17: 0 | EM17: 0 | EN17: 0 | EO17: 0 | EP17: 0 | EQ17: 0 | ER17: 0
D18: <Please select> | Q18: 0 | R18: 0 | S18: 0 | T18: 0 | U18: 0 | V18: 0 | W18: 0 | X18: 0 | Y18: 0 | Z18: 0 | AG18: =EE9 -> A3 Primary and Secondary Schools | AJ18: =EE39 -> 7.1 | AK18: =EF39 -> 0 | AL18: =EE40 -> 1 | AM18: =EF40 -> 0 | BE18: Month | BF18: Nr of weekdays | BG18: Day | BH18: Day of week index | BI18: Weekday | BJ18: Rainy day | BK18: Rain per rainy day | BL18: Actual Design Rainfall (mm) | BM18: Gross run-off generated (m3) | BN18: First flush volume lost (m3) | BO18: Harvested rainwater available (m3) | BP18: Gross demand | BQ18: Reduction from greywater | BR18: Net demand | BS18: Gross demand | BT18: Reduction from greywater | BU18: Net demand | BV18: Gross demand | BW18: Reduction from greywater | BX18: Net demand | BY18: Gross demand | BZ18: Reduction from greywater | CA18: Net demand | CB18: Gross demand | CC18: Reduction from greywater | CD18: Net demand | CE18: Gross demand | CF18: Reduction from greywater | CG18: Net demand | CH18: Gross demand | CI18: Reduction from greywater | CJ18: Net demand | CK18: Gross demand | CL18: Reduction from greywater | CM18: Net demand | CN18: Gross demand | CO18: Reduction from greywater | CP18: Net demand | CQ18: Gross demand | CR18: Reduction from greywater | CS18: Net demand | CT18: Gross demand | CU18: Reduction from greywater | CV18: Net demand | CW18: Gross demand | CX18: Reduction from greywater | CY18: Net demand | CZ18: Total Supply | DA18: Total Demand | DB18: Excess Supply | DC18: Year 1 | DD18: Year 2 | DE18: Year 3 | DF18: Municipal Water Used | DN18: Airport / Public Transport terminal buildings | DP18: 10 | DR18: 3am - 4am | DS18: 0 | DT18: 0 | DU18: 0 | DV18: 0 | DW18: 0 | DX18: 0 | DY18: 0 | DZ18: 0 | EA18: 0 | EB18: 0 | EC18: 0 | ED18: 0 | EE18: 0 | EF18: 0 | EG18: 0 | EH18: 0 | EI18: 0 | EJ18: 0 | EK18: 0 | EL18: 0 | EM18: 0 | EN18: 0 | EO18: 0 | EP18: 0 | EQ18: 0 | ER18: 0
D19: <Please select> | Q19: 0 | R19: 0 | S19: 0 | T19: 0 | U19: 0 | V19: 0 | W19: 0 | X19: 0 | Y19: 0 | Z19: 0 | AG19: =EG9 -> A4 Places of Worship | AJ19: =EG39 -> 7.1 | AK19: =EH39 -> 0 | AL19: =EE40 -> 1 | AM19: =EF40 -> 0 | DN19: C1 Convention Centre / Exhibition hall | DP19: 10 | DR19: 4am - 5am | DS19: 0 | DT19: 0 | DU19: 0 | DV19: 0 | DW19: 0 | DX19: 0 | DY19: 0 | DZ19: 0 | EA19: 0 | EB19: 0 | EC19: 0 | ED19: 0 | EE19: 0 | EF19: 0 | EG19: 0 | EH19: 0 | EI19: 0 | EJ19: 0 | EK19: 0 | EL19: 0 | EM19: 0 | EN19: 0 | EO19: 0 | EP19: 0 | EQ19: 0 | ER19: 0
D20: <Please select> | Q20: 0 | R20: 0 | S20: 0 | T20: 0 | U20: 0 | V20: 0 | W20: 0 | X20: 0 | Y20: 0 | Z20: 0 | AG20: =EI9 -> Airport / Public Transport terminal buildings | AJ20: =EI39 -> 9 | AK20: =EJ39 -> 9 | AL20: =EI40 -> 1 | AM20: =EJ40 -> 1 | BE20: Jan | BF20: 21 | BG20: 1 | BH20: 5 | BI20: =BH20<=5 -> TRUE | BJ20: =MOD(BG20,$BJ$7)=0 -> FALSE | BK20: =IF(BJ20,BJ$8,0) -> 0 | BL20: =BK20 -> 0 | BM20: =BL20*$BJ$13 -> 0 | BN20: =$BJ$14*(BL20>0) -> 0 | BO20: =BM20-BN20 -> 0 | BP20: =$Q$334/$BF$20*BR$16*$BI20 -> 0 | BQ20: =AQ$369/$BF20*$BI20 -> 0 | BR20: =IF(BP20-(BQ20*$BR$17)>0,BP20-(BQ20*$BR$17),0) -> 0 | BS20: =$R$334/$BF$20*BU$16*$BI20 -> 0 | BT20: =AR$369/$BF20*$BI20 -> 0 | BU20: =IF(BS20-(BT20*BU$17)>0,BS20-(BT20*BU$17),0) -> 0 | BV20: =$S$334/$BF$20*BX$16*$BI20 -> 0 | BW20: =AS$369/$BF20*$BI20 -> 0 | BX20: =IF(BV20-(BW20*BX$17)>0,BV20-(BW20*BX$17),0) -> 0 | BY20: =$T$334/$BF$20*CA$16*$BI20 -> 0 | BZ20: =AT$369/$BF20*$BI20 -> 0 | CA20: =IF(BY20-(BZ20*CA$17)>0,BY20-(BZ20*CA$17),0) -> 0 | CB20: =$W$334/BF20*$CD$16*BI20 -> 0 | CC20: =AU$369/$BF20*$BI20 -> 0 | CD20: =IF(CB20-(CC20*CD$17)>0,CB20-(CC20*CD$17),0) -> 0 | CE20: =$X$334/BF20*$CG$16*BI20 -> 0 | CF20: =AV$369/$BF20*$BI20 -> 0 | CG20: =IF(CE20-(CF20*CG$17)>0,CE20-(CF20*CG$17),0) -> 0 | CH20: =$Y$334/BF20*BI20*$CJ$16 -> 0 | CI20: =AW$369/$BF20*$BI20 -> 0 | CJ20: =IF(CH20-(CI20*CJ$17)>0,CH20-(CI20*CJ$17),0) -> 0 | CK20: =$Z$334/BF20*BI20*$CM$16 -> 0 | CL20: =AX$369/$BF20*$BI20 -> 0 | CM20: =IF(CK20-(CL20*CM$17)>0,CK20-(CL20*CM$17),0) -> 0 | CN20: =$AA$334/BF20*BI20*$CP$16 -> 0 | CO20: =$AY$369/$BF20*$BI20 -> 0 | CP20: =IF(CN20-(CO20*CP$17)>0,CN20-(CO20*CP$17),0) -> 0 | CQ20: =$AB$334/BF20*BI20*$CS$16 -> 0 | CR20: =AZ$369/$BF20*$BI20 -> 0 | CS20: =IF(CQ20-(CR20*CS$17)>0,CQ20-(CR20*CS$17),0) -> 0 | CT20: =$AC$334/BF20*BI20*$CV$16 -> 0 | CU20: =BA$369/$BF20*$BI20 -> 0 | CV20: =IF(CT20-(CU20*CV$17)>0,CT20-(CU20*CV$17),0) -> 0 | CW20: =$AD$334/BF20*BI20*$CY$16 -> 0 | CX20: =BB$369/$BF20*$BI20 -> 0 | CY20: =IF(CW20-(CX20*CY$17)>0,CW20-(CX20*CY$17),0) -> 0 | CZ20: =BO20 -> 0 | DA20: =BR20+BU20+BX20+CA20+CD20+CG20+CJ20+CM20+CP20+CS20+CV20+CY20 -> 0 | DB20: =CZ20-DA20 -> 0 | DC20: =IF($DB20<0,0,IF($DB20>$F$405,$F$405,$DB20)) -> 0 | DD20: =IF($DB20+DC384<0,0,IF($DB20+DC384>$F$405,$F$405,$DB20+DC384)) -> 0 | DE20: =IF($DB20+DD384<0,0,IF($DB20+DD384>$F$405,$F$405,$DB20+DD384)) -> 0 | DF20: =IF(DA20-(DE384+CZ20)<0,0,DA20-(DE384+CZ20)) -> 0 | DN20: C2 Libraries / Museums / Galleries | DP20: 20 | DR20: 5am - 6am | DS20: 0 | DT20: 0 | DU20: 0 | DV20: 0 | DW20: 0 | DX20: 0 | DY20: 0 | DZ20: 0 | EA20: 0 | EB20: 0 | EC20: 0 | ED20: 0 | EE20: 0 | EF20: 0 | EG20: 0 | EH20: 0 | EI20: 0 | EJ20: 0 | EK20: 0 | EL20: 0 | EM20: 0 | EN20: 0 | EO20: 0 | EP20: 0 | EQ20: 0 | ER20: 0
D21: <Please select> | Q21: 0 | R21: 0 | S21: 0 | T21: 0 | U21: 0 | V21: 0 | W21: 0 | X21: 0 | Y21: 0 | Z21: 0 | AG21: =EK9 -> C1 Convention Centre / Exhibition hall | AJ21: =EK39 -> 8 | AK21: =EL39 -> 0 | AL21: =EK40 -> 1 | AM21: =EL40 -> 0 | BE21: Jan | BF21: 21 | BG21: 2 | BH21: 6 | BI21: =BH21<=5 -> FALSE | BJ21: =MOD(BG21,$BJ$7)=0 -> FALSE | BK21: 0 | BL21: =IF(SUM(BL$20:BL20,BK21)>$BJ$4,0,BK21) -> 0 | BM21: 0 | BN21: 0 | BO21: =BM21-BN21 -> 0 | BP21: 0 | BQ21: 0 | BR21: 0 | BS21: 0 | BT21: 0 | BU21: 0 | BV21: 0 | BW21: 0 | BX21: 0 | BY21: 0 | BZ21: 0 | CA21: 0 | CB21: 0 | CC21: 0 | CD21: 0 | CE21: 0 | CF21: 0 | CG21: 0 | CH21: 0 | CI21: 0 | CJ21: 0 | CK21: 0 | CL21: 0 | CM21: 0 | CN21: 0 | CO21: 0 | CP21: 0 | CQ21: 0 | CR21: 0 | CS21: 0 | CT21: 0 | CU21: 0 | CV21: 0 | CW21: 0 | CX21: 0 | CY21: 0 | CZ21: 0 | DA21: =BR21+BU21+BX21+CA21+CD21+CG21+CJ21+CM21+CP21+CS21+CV21+CY21 -> 0 | DB21: =CZ21-DA21 -> 0 | DC21: =IF(DC20+$DB21<0,0,IF(DC20+$DB21>$F$405,$F$405,DC20+$DB21)) -> 0 | DD21: 0 | DE21: 0 | DF21: =IF(DA21-(DE20+CZ21)<0,0,DA21-(DE20+CZ21)) -> 0 | DN21: Courts | DP21: 15 | DR21: 6am - 7am | DS21: 0 | DT21: 0 | DU21: 0 | DV21: 0 | DW21: 0 | DX21: 0 | DY21: 0 | DZ21: 0 | EA21: 0 | EB21: 0 | EC21: 0 | ED21: 0 | EE21: 0 | EF21: 0 | EG21: 0 | EH21: 0 | EI21: 0 | EJ21: 0 | EK21: 0 | EL21: 0 | EM21: 0 | EN21: 0 | EO21: 0 | EP21: 0 | EQ21: 0 | ER21: 0
D22: <Please select> | Q22: 0 | R22: 0 | S22: 0 | T22: 0 | U22: 0 | V22: 0 | W22: 0 | X22: 0 | Y22: 0 | Z22: 0 | AG22: =EM9 -> C2 Libraries / Museums / Galleries | AJ22: =EM39 -> 8 | AK22: =EN39 -> 0 | AL22: =EM40 -> 1 | AM22: =EN40 -> 0 | BE22: Jan | BF22: 21 | BG22: 3 | BH22: 7 | BI22: FALSE | BJ22: =MOD(BG22,$BJ$7)=0 -> TRUE | BK22: 7.454545455 | BL22: =IF(SUM(BL$20:BL21,BK22)>$BJ$4,0,BK22) -> 7.454545455 | BM22: 0 | BN22: 0 | BO22: =BM22-BN22 -> 0 | BP22: 0 | BQ22: 0 | BR22: 0 | BS22: 0 | BT22: 0 | BU22: 0 | BV22: 0 | BW22: 0 | BX22: 0 | BY22: 0 | BZ22: 0 | CA22: 0 | CB22: 0 | CC22: 0 | CD22: 0 | CE22: 0 | CF22: 0 | CG22: 0 | CH22: 0 | CI22: 0 | CJ22: 0 | CK22: 0 | CL22: 0 | CM22: 0 | CN22: 0 | CO22: 0 | CP22: 0 | CQ22: 0 | CR22: 0 | CS22: 0 | CT22: 0 | CU22: 0 | CV22: 0 | CW22: 0 | CX22: 0 | CY22: 0 | CZ22: 0 | DA22: 0 | DB22: 0 | DC22: 0 | DD22: 0 | DE22: 0 | DF22: =IF(DA22-(DE21+CZ22)<0,0,DA22-(DE21+CZ22)) -> 0 | DN22: Gym | DP22: 5 | DR22: 7am - 8am | DS22: 0.15 | DT22: 0 | DU22: 0 | DV22: 0 | DW22: 0.25 | DX22: 0.25 | DY22: 0 | DZ22: 0 | EA22: 0 | EB22: 0 | EC22: 0 | ED22: 0 | EE22: 0 | EF22: 0 | EG22: 0.1 | EH22: 0 | EI22: 0 | EJ22: 0 | EK22: 0 | EL22: 0 | EM22: 0 | EN22: 0 | EO22: 0 | EP22: 0 | EQ22: 0.25 | ER22: 0
D23: <Please select> | Q23: 0 | R23: 0 | S23: 0 | T23: 0 | U23: 0 | V23: 0 | W23: 0 | X23: 0 | Y23: 0 | Z23: 0 | AG23: =EO9 -> Courts | AJ23: =EO39 -> 8 | AK23: =EP39 -> 0 | AL23: =EO40 -> 1 | AM23: =EP40 -> 0 | BE23: Jan | BF23: 21 | BG23: 4 | BH23: 1 | BI23: TRUE | BJ23: =MOD(BG23,$BJ$7)=0 -> FALSE | BK23: 0 | BL23: =IF(SUM(BL$20:BL22,BK23)>$BJ$4,0,BK23) -> 0 | BM23: 0 | BN23: 0 | BO23: =BM23-BN23 -> 0 | BP23: 0 | BQ23: 0 | BR23: 0 | BS23: 0 | BT23: 0 | BU23: 0 | BV23: 0 | BW23: 0 | BX23: 0 | BY23: 0 | BZ23: 0 | CA23: 0 | CB23: 0 | CC23: 0 | CD23: 0 | CE23: 0 | CF23: 0 | CG23: 0 | CH23: 0 | CI23: 0 | CJ23: 0 | CK23: 0 | CL23: 0 | CM23: 0 | CN23: 0 | CO23: 0 | CP23: 0 | CQ23: 0 | CR23: 0 | CS23: 0 | CT23: 0 | CU23: 0 | CV23: 0 | CW23: 0 | CX23: 0 | CY23: 0 | CZ23: 0 | DA23: =BR23+BU23+BX23+CA23+CD23+CG23+CJ23+CM23+CP23+CS23+CV23+CY23 -> 0 | DB23: =CZ23-DA23 -> 0 | DC23: 0 | DD23: 0 | DE23: 0 | DF23: =IF(DA23-(DE22+CZ23)<0,0,DA23-(DE22+CZ23)) -> 0 | DR23: 8am - 9am | DS23: 0.6 | DT23: 0.05 | DU23: 0.1 | DV23: 0 | DW23: 0.25 | DX23: 0.25 | DY23: 0 | DZ23: 0 | EA23: 0 | EB23: 0 | EC23: 0.25 | ED23: 0 | EE23: 0.1 | EF23: 0 | EG23: 0.25 | EH23: 0 | EI23: 0.25 | EJ23: 0.25 | EK23: 0 | EL23: 0 | EM23: 0 | EN23: 0 | EO23: 0 | EP23: 0 | EQ23: 1 | ER23: 1
D24: <Please select> | Q24: 0 | R24: 0 | S24: 0 | T24: 0 | U24: 0 | V24: 0 | W24: 0 | X24: 0 | Y24: 0 | Z24: 0 | AG24: =EQ9 -> Gym | AJ24: =EQ39 -> 7.25 | AK24: =ER39 -> 14 | AL24: =EQ40 -> 1 | AM24: =ER40 -> 1 | BE24: Jan | BF24: 21 | BG24: 5 | BH24: 2 | BI24: TRUE | BJ24: FALSE | BK24: 0 | BL24: =IF(SUM(BL$20:BL23,BK24)>$BJ$4,0,BK24) -> 0 | BM24: 0 | BN24: 0 | BO24: =BM24-BN24 -> 0 | BP24: 0 | BQ24: 0 | BR24: 0 | BS24: 0 | BT24: 0 | BU24: 0 | BV24: 0 | BW24: 0 | BX24: 0 | BY24: 0 | BZ24: 0 | CA24: 0 | CB24: 0 | CC24: 0 | CD24: 0 | CE24: 0 | CF24: 0 | CG24: 0 | CH24: 0 | CI24: 0 | CJ24: 0 | CK24: 0 | CL24: 0 | CM24: 0 | CN24: 0 | CO24: 0 | CP24: 0 | CQ24: 0 | CR24: 0 | CS24: 0 | CT24: 0 | CU24: 0 | CV24: 0 | CW24: 0 | CX24: 0 | CY24: 0 | CZ24: 0 | DA24: 0 | DB24: 0 | DC24: 0 | DD24: 0 | DE24: 0 | DF24: 0 | DR24: 9am - 10am | DS24: 1 | DT24: 0.05 | DU24: 0.25 | DV24: 0 | DW24: 0.5 | DX24: 0.5 | DY24: 0 | DZ24: 0 | EA24: 0.75 | EB24: 0 | EC24: 0.5 | ED24: 0 | EE24: 0.25 | EF24: 0 | EG24: 0.75 | EH24: 0 | EI24: 0.5 | EJ24: 0.5 | EK24: 0.75 | EL24: 0 | EM24: 0 | EN24: 0 | EO24: 0.75 | EP24: 0 | EQ24: 0.25 | ER24: 1
D25: <Please select> | Q25: 0 | R25: 0 | S25: 0 | T25: 0 | U25: 0 | V25: 0 | W25: 0 | X25: 0 | Y25: 0 | Z25: 0 | AG25: =ES9 -> <User Defined> | AJ25: =ES39 -> 0 | AK25: =ET39 -> 0 | AL25: =ES40 -> 0 | AM25: =ET40 -> 0 | BE25: Jan | BF25: 21 | BG25: 6 | BH25: 3 | BI25: TRUE | BJ25: TRUE | BK25: 7.454545455 | BL25: =IF(SUM(BL$20:BL24,BK25)>$BJ$4,0,BK25) -> 7.454545455 | BM25: 0 | BN25: 0 | BO25: =BM25-BN25 -> 0 | BP25: 0 | BQ25: 0 | BR25: 0 | BS25: 0 | BT25: 0 | BU25: 0 | BV25: 0 | BW25: 0 | BX25: 0 | BY25: 0 | BZ25: 0 | CA25: 0 | CB25: 0 | CC25: 0 | CD25: 0 | CE25: 0 | CF25: 0 | CG25: 0 | CH25: 0 | CI25: 0 | CJ25: 0 | CK25: 0 | CL25: 0 | CM25: 0 | CN25: 0 | CO25: 0 | CP25: 0 | CQ25: 0 | CR25: 0 | CS25: 0 | CT25: 0 | CU25: 0 | CV25: 0 | CW25: 0 | CX25: 0 | CY25: 0 | CZ25: 0 | DA25: 0 | DB25: 0 | DC25: 0 | DD25: 0 | DE25: 0 | DF25: 0 | DR25: 10am - 11am | DS25: 1 | DT25: 0.05 | DU25: 0.75 | DV25: 0 | DW25: 0.5 | DX25: 0.5 | DY25: 0 | DZ25: 0.25 | EA25: 1 | EB25: 0 | EC25: 1 | ED25: 0 | EE25: 0.75 | EF25: 0 | EG25: 1 | EH25: 0 | EI25: 1 | EJ25: 1 | EK25: 1 | EL25: 0 | EM25: 1 | EN25: 0 | EO25: 1 | EP25: 0 | EQ25: 0 | ER25: 1
D26: <Please select> | Q26: 0 | R26: 0 | S26: 0 | T26: 0 | U26: 0 | V26: 0 | W26: 0 | X26: 0 | Y26: 0 | Z26: 0 | BE26: Jan | BF26: 21 | BG26: 7 | BH26: 4 | BI26: TRUE | BJ26: FALSE | BK26: 0 | BL26: =IF(SUM(BL$20:BL25,BK26)>$BJ$4,0,BK26) -> 0 | BM26: 0 | BN26: 0 | BO26: 0 | BP26: 0 | BQ26: 0 | BR26: 0 | BS26: 0 | BT26: 0 | BU26: 0 | BV26: 0 | BW26: 0 | BX26: 0 | BY26: 0 | BZ26: 0 | CA26: 0 | CB26: 0 | CC26: 0 | CD26: 0 | CE26: 0 | CF26: 0 | CG26: 0 | CH26: 0 | CI26: 0 | CJ26: 0 | CK26: 0 | CL26: 0 | CM26: 0 | CN26: 0 | CO26: 0 | CP26: 0 | CQ26: 0 | CR26: 0 | CS26: 0 | CT26: 0 | CU26: 0 | CV26: 0 | CW26: 0 | CX26: 0 | CY26: 0 | CZ26: 0 | DA26: 0 | DB26: 0 | DC26: 0 | DD26: 0 | DE26: 0 | DF26: 0 | DR26: 11am - 12pm | DS26: 1 | DT26: 0.05 | DU26: 1 | DV26: 0 | DW26: 0.5 | DX26: 0.5 | DY26: 0 | DZ26: 0.25 | EA26: 1 | EB26: 0 | EC26: 1 | ED26: 0 | EE26: 1 | EF26: 0 | EG26: 1 | EH26: 0 | EI26: 1 | EJ26: 1 | EK26: 1 | EL26: 0 | EM26: 1 | EN26: 0 | EO26: 1 | EP26: 0 | EQ26: 0 | ER26: 1
D27: <Please select> | Q27: 0 | R27: 0 | S27: 0 | T27: 0 | U27: 0 | V27: 0 | W27: 0 | X27: 0 | Y27: 0 | Z27: 0 | BE27: Jan | BF27: 21 | BG27: 8 | BH27: 5 | BI27: TRUE | BJ27: FALSE | BK27: 0 | BL27: =IF(SUM(BL$20:BL26,BK27)>$BJ$4,0,BK27) -> 0 | BM27: 0 | BN27: 0 | BO27: 0 | BP27: 0 | BQ27: 0 | BR27: 0 | BS27: 0 | BT27: 0 | BU27: 0 | BV27: 0 | BW27: 0 | BX27: 0 | BY27: 0 | BZ27: 0 | CA27: 0 | CB27: 0 | CC27: 0 | CD27: 0 | CE27: 0 | CF27: 0 | CG27: 0 | CH27: 0 | CI27: 0 | CJ27: 0 | CK27: 0 | CL27: 0 | CM27: 0 | CN27: 0 | CO27: 0 | CP27: 0 | CQ27: 0 | CR27: 0 | CS27: 0 | CT27: 0 | CU27: 0 | CV27: 0 | CW27: 0 | CX27: 0 | CY27: 0 | CZ27: 0 | DA27: 0 | DB27: 0 | DC27: 0 | DD27: 0 | DE27: 0 | DF27: 0 | DR27: 12pm - 1pm | DS27: 1 | DT27: 0.05 | DU27: 1 | DV27: 0 | DW27: 1 | DX27: 1 | DY27: 0.25 | DZ27: 0.25 | EA27: 0.75 | EB27: 0 | EC27: 1 | ED27: 0 | EE27: 1 | EF27: 0 | EG27: 0.5 | EH27: 0 | EI27: 1 | EJ27: 1 | EK27: 0.75 | EL27: 0 | EM27: 1 | EN27: 0 | EO27: 0.75 | EP27: 0 | EQ27: 0.25 | ER27: 1
C28: =SUM(C13:C27) -> 0 | Q28: 0 | R28: 0 | S28: 0 | T28: 0 | U28: 0 | V28: 0 | W28: 0 | X28: 0 | Y28: 0 | Z28: 0 | BE28: Jan | BF28: 21 | BG28: 9 | BH28: 6 | BI28: FALSE | BJ28: TRUE | BK28: 7.454545455 | BL28: =IF(SUM(BL$20:BL27,BK28)>$BJ$4,0,BK28) -> 7.454545455 | BM28: 0 | BN28: 0 | BO28: 0 | BP28: 0 | BQ28: 0 | BR28: 0 | BS28: 0 | BT28: 0 | BU28: 0 | BV28: 0 | BW28: 0 | BX28: 0 | BY28: 0 | BZ28: 0 | CA28: 0 | CB28: 0 | CC28: 0 | CD28: 0 | CE28: 0 | CF28: 0 | CG28: 0 | CH28: 0 | CI28: 0 | CJ28: 0 | CK28: 0 | CL28: 0 | CM28: 0 | CN28: 0 | CO28: 0 | CP28: 0 | CQ28: 0 | CR28: 0 | CS28: 0 | CT28: 0 | CU28: 0 | CV28: 0 | CW28: 0 | CX28: 0 | CY28: 0 | CZ28: 0 | DA28: 0 | DB28: 0 | DC28: 0 | DD28: 0 | DE28: 0 | DF28: =IF(DA28-(DE27+CZ28)<0,0,DA28-(DE27+CZ28)) -> 0 | DR28: 1pm - 2pm | DS28: 1 | DT28: 0.05 | DU28: 0.5 | DV28: 0 | DW28: 1 | DX28: 1 | DY28: 1 | DZ28: 0.25 | EA28: 0.75 | EB28: 0 | EC28: 0.75 | ED28: 0 | EE28: 0.5 | EF28: 0 | EG28: 0.5 | EH28: 0 | EI28: 0.75 | EJ28: 0.75 | EK28: 0.75 | EL28: 0 | EM28: 1 | EN28: 0 | EO28: 0.75 | EP28: 0 | EQ28: 1 | ER28: 1
Q29: 0 | R29: 0 | S29: 0 | T29: 0 | U29: 0 | V29: 0 | W29: 0 | X29: 0 | Y29: 0 | Z29: 0 | BE29: Jan | BF29: 21 | BG29: 10 | BH29: 7 | BI29: FALSE | BJ29: FALSE | BK29: 0 | BL29: =IF(SUM(BL$20:BL28,BK29)>$BJ$4,0,BK29) -> 0 | BM29: 0 | BN29: 0 | BO29: =BM29-BN29 -> 0 | BP29: 0 | BQ29: 0 | BR29: 0 | BS29: 0 | BT29: 0 | BU29: 0 | BV29: 0 | BW29: 0 | BX29: 0 | BY29: 0 | BZ29: 0 | CA29: 0 | CB29: 0 | CC29: 0 | CD29: 0 | CE29: 0 | CF29: 0 | CG29: 0 | CH29: 0 | CI29: 0 | CJ29: 0 | CK29: 0 | CL29: 0 | CM29: 0 | CN29: 0 | CO29: 0 | CP29: 0 | CQ29: 0 | CR29: 0 | CS29: 0 | CT29: 0 | CU29: 0 | CV29: 0 | CW29: 0 | CX29: 0 | CY29: 0 | CZ29: 0 | DA29: 0 | DB29: 0 | DC29: 0 | DD29: 0 | DE29: 0 | DF29: 0 | DR29: 2pm - 3pm | DS29: 1 | DT29: 0.05 | DU29: 0.5 | DV29: 0 | DW29: 0.5 | DX29: 0.5 | DY29: 1 | DZ29: 0.25 | EA29: 1 | EB29: 0 | EC29: 0.75 | ED29: 0 | EE29: 0.5 | EF29: 0 | EG29: 1 | EH29: 0 | EI29: 0.75 | EJ29: 0.75 | EK29: 1 | EL29: 0 | EM29: 1 | EN29: 0 | EO29: 1 | EP29: 0 | EQ29: 1 | ER29: 1
B30: STEP 1b - Please provide information regarding the building location | U30: Total | V30: =SUM(V15:V29) -> 0 | Z30: =SUM(Z15:Z29) -> 0 | BE30: Jan | BF30: 21 | BG30: 11 | BH30: 1 | BI30: TRUE | BJ30: FALSE | BK30: 0 | BL30: =IF(SUM(BL$20:BL29,BK30)>$BJ$4,0,BK30) -> 0 | BM30: 0 | BN30: 0 | BO30: 0 | BP30: 0 | BQ30: 0 | BR30: 0 | BS30: 0 | BT30: 0 | BU30: 0 | BV30: 0 | BW30: 0 | BX30: 0 | BY30: 0 | BZ30: 0 | CA30: 0 | CB30: 0 | CC30: 0 | CD30: 0 | CE30: 0 | CF30: 0 | CG30: 0 | CH30: 0 | CI30: 0 | CJ30: 0 | CK30: 0 | CL30: 0 | CM30: 0 | CN30: 0 | CO30: 0 | CP30: 0 | CQ30: 0 | CR30: 0 | CS30: 0 | CT30: 0 | CU30: 0 | CV30: 0 | CW30: 0 | CX30: 0 | CY30: 0 | CZ30: 0 | DA30: 0 | DB30: 0 | DC30: 0 | DD30: 0 | DE30: 0 | DF30: 0 | DR30: 3pm - 4pm | DS30: 1 | DT30: 0.05 | DU30: 1 | DV30: 0 | DW30: 0.25 | DX30: 0.25 | DY30: 0.75 | DZ30: 0.25 | EA30: 1 | EB30: 0 | EC30: 1 | ED30: 0 | EE30: 1 | EF30: 0 | EG30: 1 | EH30: 0 | EI30: 1 | EJ30: 1 | EK30: 1 | EL30: 0 | EM30: 1 | EN30: 0 | EO30: 1 | EP30: 0 | EQ30: 0.5 | ER30: 1
B31: Select building location | D31: Polokwane | BE31: Jan | BF31: 21 | BG31: 12 | BH31: 2 | BI31: TRUE | BJ31: TRUE | BK31: 7.454545455 | BL31: =IF(SUM(BL$20:BL30,BK31)>$BJ$4,0,BK31) -> 7.454545455 | BM31: 0 | BN31: 0 | BO31: 0 | BP31: 0 | BQ31: 0 | BR31: 0 | BS31: 0 | BT31: 0 | BU31: 0 | BV31: 0 | BW31: 0 | BX31: 0 | BY31: 0 | BZ31: 0 | CA31: 0 | CB31: 0 | CC31: 0 | CD31: 0 | CE31: 0 | CF31: 0 | CG31: 0 | CH31: 0 | CI31: 0 | CJ31: 0 | CK31: 0 | CL31: 0 | CM31: 0 | CN31: 0 | CO31: 0 | CP31: 0 | CQ31: 0 | CR31: 0 | CS31: 0 | CT31: 0 | CU31: 0 | CV31: 0 | CW31: 0 | CX31: 0 | CY31: 0 | CZ31: 0 | DA31: 0 | DB31: 0 | DC31: 0 | DD31: 0 | DE31: 0 | DF31: 0 | DR31: 4pm - 5pm | DS31: 1 | DT31: 0.05 | DU31: 1 | DV31: 0 | DW31: 0.25 | DX31: 0.25 | DY31: 0 | DZ31: 0.25 | EA31: 1 | EB31: 0 | EC31: 1 | ED31: 0 | EE31: 1 | EF31: 0 | EG31: 0.5 | EH31: 0 | EI31: 1 | EJ31: 1 | EK31: 1 | EL31: 0 | EM31: 1 | EN31: 0 | EO31: 1 | EP31: 0 | EQ31: 0 | ER31: 1
B32: SANS 204 climatic region | D32: =IFERROR(VLOOKUP($D$31,'Rainfall data'!$B$4:$Q$34,16,FALSE),"") -> Zone 2 - Temperate Interior | BE32: Jan | BF32: 21 | BG32: 13 | BH32: 3 | BI32: TRUE | BJ32: FALSE | BK32: 0 | BL32: =IF(SUM(BL$20:BL31,BK32)>$BJ$4,0,BK32) -> 0 | BM32: 0 | BN32: 0 | BO32: 0 | BP32: 0 | BQ32: 0 | BR32: 0 | BS32: 0 | BT32: 0 | BU32: 0 | BV32: 0 | BW32: 0 | BX32: 0 | BY32: 0 | BZ32: 0 | CA32: 0 | CB32: 0 | CC32: 0 | CD32: 0 | CE32: 0 | CF32: 0 | CG32: 0 | CH32: 0 | CI32: 0 | CJ32: 0 | CK32: 0 | CL32: 0 | CM32: 0 | CN32: 0 | CO32: 0 | CP32: 0 | CQ32: 0 | CR32: 0 | CS32: 0 | CT32: 0 | CU32: 0 | CV32: 0 | CW32: 0 | CX32: 0 | CY32: 0 | CZ32: 0 | DA32: 0 | DB32: 0 | DC32: 0 | DD32: 0 | DE32: 0 | DF32: 0 | DR32: 5pm - 6pm | DS32: 0.5 | DT32: 0 | DU32: 0.5 | DV32: 0 | DW32: 0.25 | DX32: 0.25 | DY32: 0 | DZ32: 0.25 | EA32: 0.75 | EB32: 0 | EC32: 1 | ED32: 0 | EE32: 0.5 | EF32: 0 | EG32: 0.5 | EH32: 0 | EI32: 1 | EJ32: 1 | EK32: 0.75 | EL32: 0 | EM32: 1 | EN32: 0 | EO32: 0.75 | EP32: 0 | EQ32: 0 | ER32: 1
BE33: Jan | BF33: 21 | BG33: 14 | BH33: 4 | BI33: TRUE | BJ33: FALSE | BK33: 0 | BL33: =IF(SUM(BL$20:BL32,BK33)>$BJ$4,0,BK33) -> 0 | BM33: 0 | BN33: 0 | BO33: 0 | BP33: 0 | BQ33: 0 | BR33: 0 | BS33: 0 | BT33: 0 | BU33: 0 | BV33: 0 | BW33: 0 | BX33: 0 | BY33: 0 | BZ33: 0 | CA33: 0 | CB33: 0 | CC33: 0 | CD33: 0 | CE33: 0 | CF33: 0 | CG33: 0 | CH33: 0 | CI33: 0 | CJ33: 0 | CK33: 0 | CL33: 0 | CM33: 0 | CN33: 0 | CO33: 0 | CP33: 0 | CQ33: 0 | CR33: 0 | CS33: 0 | CT33: 0 | CU33: 0 | CV33: 0 | CW33: 0 | CX33: 0 | CY33: 0 | CZ33: 0 | DA33: 0 | DB33: 0 | DC33: 0 | DD33: 0 | DE33: 0 | DF33: 0 | DR33: 6pm - 7pm | DS33: 0.15 | DT33: 0 | DU33: 0.5 | DV33: 0 | DW33: 0.5 | DX33: 0.5 | DY33: 0 | DZ33: 0 | EA33: 0 | EB33: 0 | EC33: 0.5 | ED33: 0 | EE33: 0.5 | EF33: 0 | EG33: 0 | EH33: 0 | EI33: 0.5 | EJ33: 0.5 | EK33: 0 | EL33: 0 | EM33: 0 | EN33: 0 | EO33: 0 | EP33: 0 | EQ33: 0.5 | ER33: 1
D34: Average rainfall | E34: # rainy days | R34: Number of days in week | S34: (based on 2010) | BE34: Jan | BF34: 21 | BG34: 15 | BH34: 5 | BI34: TRUE | BJ34: TRUE | BK34: 7.454545455 | BL34: =IF(SUM(BL$20:BL33,BK34)>$BJ$4,0,BK34) -> 7.454545455 | BM34: 0 | BN34: 0 | BO34: 0 | BP34: 0 | BQ34: 0 | BR34: 0 | BS34: 0 | BT34: 0 | BU34: 0 | BV34: 0 | BW34: 0 | BX34: 0 | BY34: 0 | BZ34: 0 | CA34: 0 | CB34: 0 | CC34: 0 | CD34: 0 | CE34: 0 | CF34: 0 | CG34: 0 | CH34: 0 | CI34: 0 | CJ34: 0 | CK34: 0 | CL34: 0 | CM34: 0 | CN34: 0 | CO34: 0 | CP34: 0 | CQ34: 0 | CR34: 0 | CS34: 0 | CT34: 0 | CU34: 0 | CV34: 0 | CW34: 0 | CX34: 0 | CY34: 0 | CZ34: 0 | DA34: 0 | DB34: 0 | DC34: 0 | DD34: 0 | DE34: 0 | DF34: 0 | DR34: 7pm - 8pm | DS34: 0.05 | DT34: 0 | DU34: 0 | DV34: 0 | DW34: 1 | DX34: 1 | DY34: 0 | DZ34: 0 | EA34: 0 | EB34: 0 | EC34: 0.25 | ED34: 0 | EE34: 0 | EF34: 0 | EG34: 0 | EH34: 0 | EI34: 0.25 | EJ34: 0.25 | EK34: 0 | EL34: 0 | EM34: 0 | EN34: 0 | EO34: 0 | EP34: 0 | EQ34: 1 | ER34: 1
D35: (mm/month) | E35: (days per month) | T35: Jan | U35: Feb | V35: Mar | W35: Apr | X35: May | Y35: Jun | Z35: Jul | AA35: Aug | AB35: Sep | AC35: Oct | AD35: Nov | AE35: Dec | AF35: Total | BE35: Jan | BF35: 21 | BG35: 16 | BH35: 6 | BI35: FALSE | BJ35: FALSE | BK35: 0 | BL35: =IF(SUM(BL$20:BL34,BK35)>$BJ$4,0,BK35) -> 0 | BM35: 0 | BN35: 0 | BO35: 0 | BP35: 0 | BQ35: 0 | BR35: 0 | BS35: 0 | BT35: 0 | BU35: 0 | BV35: 0 | BW35: 0 | BX35: 0 | BY35: 0 | BZ35: 0 | CA35: 0 | CB35: 0 | CC35: 0 | CD35: 0 | CE35: 0 | CF35: 0 | CG35: 0 | CH35: 0 | CI35: 0 | CJ35: 0 | CK35: 0 | CL35: 0 | CM35: 0 | CN35: 0 | CO35: 0 | CP35: 0 | CQ35: 0 | CR35: 0 | CS35: 0 | CT35: 0 | CU35: 0 | CV35: 0 | CW35: 0 | CX35: 0 | CY35: 0 | CZ35: 0 | DA35: 0 | DB35: 0 | DC35: 0 | DD35: 0 | DE35: 0 | DF35: 0 | DR35: 8pm - 9pm | DS35: 0.05 | DT35: 0 | DU35: 0 | DV35: 0 | DW35: 1 | DX35: 1 | DY35: 0 | DZ35: 0 | EA35: 0 | EB35: 0 | EC35: 0 | ED35: 0 | EE35: 0 | EF35: 0 | EG35: 0 | EH35: 0 | EI35: 0 | EJ35: 0 | EK35: 0 | EL35: 0 | EM35: 0 | EN35: 0 | EO35: 0 | EP35: 0 | EQ35: 1 | ER35: 1
C36: January | D36: =IFERROR(VLOOKUP($D$31,'Rainfall data'!$B$3:$O$33,'Potable Water Calculator'!O38,FALSE),"") -> 82 | E36: =IFERROR(VLOOKUP($D$31,'Rainfall data'!$B$44:$P$74,'Potable Water Calculator'!O38,FALSE),"") -> 11 | S36: Total days in month | T36: 31 | U36: 28 | V36: 31 | W36: 30 | X36: 31 | Y36: 30 | Z36: 31 | AA36: 31 | AB36: 30 | AC36: 31 | AD36: 30 | AE36: 31 | AF36: - | BE36: Jan | BF36: 21 | BG36: 17 | BH36: 7 | BI36: FALSE | BJ36: FALSE | BK36: 0 | BL36: =IF(SUM(BL$20:BL35,BK36)>$BJ$4,0,BK36) -> 0 | BM36: 0 | BN36: 0 | BO36: 0 | BP36: 0 | BQ36: 0 | BR36: 0 | BS36: 0 | BT36: 0 | BU36: 0 | BV36: 0 | BW36: 0 | BX36: 0 | BY36: 0 | BZ36: 0 | CA36: 0 | CB36: 0 | CC36: 0 | CD36: 0 | CE36: 0 | CF36: 0 | CG36: 0 | CH36: 0 | CI36: 0 | CJ36: 0 | CK36: 0 | CL36: 0 | CM36: 0 | CN36: 0 | CO36: 0 | CP36: 0 | CQ36: 0 | CR36: 0 | CS36: 0 | CT36: 0 | CU36: 0 | CV36: 0 | CW36: 0 | CX36: 0 | CY36: 0 | CZ36: 0 | DA36: 0 | DB36: 0 | DC36: 0 | DD36: 0 | DE36: 0 | DF36: 0 | DR36: 9pm - 10pm | DS36: 0 | DT36: 0 | DU36: 0 | DV36: 0 | DW36: 1 | DX36: 1 | DY36: 0 | DZ36: 0 | EA36: 0 | EB36: 0 | EC36: 0 | ED36: 0 | EE36: 0 | EF36: 0 | EG36: 0 | EH36: 0 | EI36: 0 | EJ36: 0 | EK36: 0 | EL36: 0 | EM36: 0 | EN36: 0 | EO36: 0 | EP36: 0 | EQ36: 0.5 | ER36: 1
C37: February | D37: =IFERROR(VLOOKUP($D$31,'Rainfall data'!$B$3:$O$33,'Potable Water Calculator'!O39,FALSE),"") -> 60 | E37: =IFERROR(VLOOKUP($D$31,'Rainfall data'!$B$44:$P$74,'Potable Water Calculator'!O39,FALSE),"") -> 8 | O37: vlookup column index | R37: # peak days | S37: Weekends in month | T37: 5 | U37: 4 | V37: 4 | W37: 4 | X37: 5 | Y37: 4 | Z37: 5 | AA37: 4 | AB37: 4 | AC37: 5 | AD37: 4 | AE37: 4 | AF37: - | BE37: Jan | BF37: 21 | BG37: 18 | BH37: 1 | BI37: TRUE | BJ37: TRUE | BK37: 7.454545455 | BL37: =IF(SUM(BL$20:BL36,BK37)>$BJ$4,0,BK37) -> 7.454545455 | BM37: 0 | BN37: 0 | BO37: 0 | BP37: 0 | BQ37: 0 | BR37: 0 | BS37: 0 | BT37: 0 | BU37: 0 | BV37: 0 | BW37: 0 | BX37: 0 | BY37: 0 | BZ37: 0 | CA37: 0 | CB37: 0 | CC37: 0 | CD37: 0 | CE37: 0 | CF37: 0 | CG37: 0 | CH37: 0 | CI37: 0 | CJ37: 0 | CK37: 0 | CL37: 0 | CM37: 0 | CN37: 0 | CO37: 0 | CP37: 0 | CQ37: 0 | CR37: 0 | CS37: 0 | CT37: 0 | CU37: 0 | CV37: 0 | CW37: 0 | CX37: 0 | CY37: 0 | CZ37: 0 | DA37: 0 | DB37: 0 | DC37: 0 | DD37: 0 | DE37: 0 | DF37: 0 | DR37: 10pm - 11pm | DS37: 0 | DT37: 0 | DU37: 0 | DV37: 0 | DW37: 0.5 | DX37: 0.5 | DY37: 0 | DZ37: 0 | EA37: 0 | EB37: 0 | EC37: 0 | ED37: 0 | EE37: 0 | EF37: 0 | EG37: 0 | EH37: 0 | EI37: 0 | EJ37: 0 | EK37: 0 | EL37: 0 | EM37: 0 | EN37: 0 | EO37: 0 | EP37: 0 | EQ37: 0 | ER37: 0
C38: March | D38: =IFERROR(VLOOKUP($D$31,'Rainfall data'!$B$3:$O$33,'Potable Water Calculator'!O40,FALSE),"") -> 52 | E38: =IFERROR(VLOOKUP($D$31,'Rainfall data'!$B$44:$P$74,'Potable Water Calculator'!O40,FALSE),"") -> 7 | O38: 3 | R38: 5 | S38: 5 day week | T38: =T36-(T37*(7-$R38)) -> 21 | U38: 20 | V38: 23 | W38: 22 | X38: 21 | Y38: 22 | Z38: 21 | AA38: 23 | AB38: 22 | AC38: 21 | AD38: 22 | AE38: 23 | AF38: =SUM(T38:AE38) -> 261 | BE38: Jan | BF38: 21 | BG38: 19 | BH38: 2 | BI38: TRUE | BJ38: FALSE | BK38: 0 | BL38: =IF(SUM(BL$20:BL37,BK38)>$BJ$4,0,BK38) -> 0 | BM38: 0 | BN38: 0 | BO38: 0 | BP38: 0 | BQ38: 0 | BR38: 0 | BS38: 0 | BT38: 0 | BU38: 0 | BV38: 0 | BW38: 0 | BX38: 0 | BY38: 0 | BZ38: 0 | CA38: 0 | CB38: 0 | CC38: 0 | CD38: 0 | CE38: 0 | CF38: 0 | CG38: 0 | CH38: 0 | CI38: 0 | CJ38: 0 | CK38: 0 | CL38: 0 | CM38: 0 | CN38: 0 | CO38: 0 | CP38: 0 | CQ38: 0 | CR38: 0 | CS38: 0 | CT38: 0 | CU38: 0 | CV38: 0 | CW38: 0 | CX38: 0 | CY38: 0 | CZ38: 0 | DA38: 0 | DB38: 0 | DC38: 0 | DD38: 0 | DE38: 0 | DF38: 0 | DR38: 11pm - 12am | DS38: 0 | DT38: 0 | DU38: 0 | DV38: 0 | DW38: 0 | DX38: 0 | DY38: 0 | DZ38: 0 | EA38: 0 | EB38: 0 | EC38: 0 | ED38: 0 | EE38: 0 | EF38: 0 | EG38: 0 | EH38: 0 | EI38: 0 | EJ38: 0 | EK38: 0 | EL38: 0 | EM38: 0 | EN38: 0 | EO38: 0 | EP38: 0 | EQ38: 0 | ER38: 0
C39: April | D39: =IFERROR(VLOOKUP($D$31,'Rainfall data'!$B$3:$O$33,'Potable Water Calculator'!O41,FALSE),"") -> 33 | E39: =IFERROR(VLOOKUP($D$31,'Rainfall data'!$B$44:$P$74,'Potable Water Calculator'!O41,FALSE),"") -> 4 | O39: 4 | R39: 6 | S39: 6 day week | T39: =T36-(T37*(7-$R39)) -> 26 | U39: 24 | V39: 27 | W39: 26 | X39: 26 | Y39: 26 | Z39: 26 | AA39: 27 | AB39: 26 | AC39: 26 | AD39: 26 | AE39: 27 | AF39: =SUM(T39:AE39) -> 313 | BE39: Jan | BF39: 21 | BG39: 20 | BH39: 3 | BI39: TRUE | BJ39: FALSE | BK39: 0 | BL39: =IF(SUM(BL$20:BL38,BK39)>$BJ$4,0,BK39) -> 0 | BM39: 0 | BN39: 0 | BO39: 0 | BP39: 0 | BQ39: 0 | BR39: 0 | BS39: 0 | BT39: 0 | BU39: 0 | BV39: 0 | BW39: 0 | BX39: 0 | BY39: 0 | BZ39: 0 | CA39: 0 | CB39: 0 | CC39: 0 | CD39: 0 | CE39: 0 | CF39: 0 | CG39: 0 | CH39: 0 | CI39: 0 | CJ39: 0 | CK39: 0 | CL39: 0 | CM39: 0 | CN39: 0 | CO39: 0 | CP39: 0 | CQ39: 0 | CR39: 0 | CS39: 0 | CT39: 0 | CU39: 0 | CV39: 0 | CW39: 0 | CX39: 0 | CY39: 0 | CZ39: 0 | DA39: 0 | DB39: 0 | DC39: 0 | DD39: 0 | DE39: 0 | DF39: 0 | DR39: Daily occupancy (person hours per day) | DS39: =SUM(DS15:DS38) -> 9.5 | DT39: 0.45 | DU39: 7.1 | DV39: 0 | DW39: 9.25 | DX39: 9.25 | DY39: 3 | DZ39: 2 | EA39: 8 | EB39: 0 | EC39: 9 | ED39: 0 | EE39: 7.1 | EF39: 0 | EG39: 7.1 | EH39: 0 | EI39: 9 | EJ39: 9 | EK39: 8 | EL39: 0 | EM39: 8 | EN39: 0 | EO39: 8 | EP39: 0 | EQ39: 7.25 | ER39: 14 | ES39: 0 | ET39: 0
C40: May | D40: =IFERROR(VLOOKUP($D$31,'Rainfall data'!$B$3:$O$33,'Potable Water Calculator'!O42,FALSE),"") -> 11 | E40: =IFERROR(VLOOKUP($D$31,'Rainfall data'!$B$44:$P$74,'Potable Water Calculator'!O42,FALSE),"") -> 2 | O40: 5 | R40: 7 | S40: 7day week | T40: =T36-(T37*(7-$R40)) -> 31 | U40: 28 | V40: 31 | W40: 30 | X40: 31 | Y40: 30 | Z40: 31 | AA40: 31 | AB40: 30 | AC40: 31 | AD40: 30 | AE40: 31 | AF40: =SUM(T40:AE40) -> 365 | BE40: Jan | BF40: 21 | BG40: 21 | BH40: 4 | BI40: TRUE | BJ40: TRUE | BK40: 7.454545455 | BL40: =IF(SUM(BL$20:BL39,BK40)>$BJ$4,0,BK40) -> 7.454545455 | BM40: 0 | BN40: 0 | BO40: 0 | BP40: 0 | BQ40: 0 | BR40: 0 | BS40: 0 | BT40: 0 | BU40: 0 | BV40: 0 | BW40: 0 | BX40: 0 | BY40: 0 | BZ40: 0 | CA40: 0 | CB40: 0 | CC40: 0 | CD40: 0 | CE40: 0 | CF40: 0 | CG40: 0 | CH40: 0 | CI40: 0 | CJ40: 0 | CK40: 0 | CL40: 0 | CM40: 0 | CN40: 0 | CO40: 0 | CP40: 0 | CQ40: 0 | CR40: 0 | CS40: 0 | CT40: 0 | CU40: 0 | CV40: 0 | CW40: 0 | CX40: 0 | CY40: 0 | CZ40: 0 | DA40: 0 | DB40: 0 | DC40: 0 | DD40: 0 | DE40: 0 | DF40: 0 | DR40: Maximum occupancy | DS40: =MAX(DS15:DS38) -> 1 | DT40: 0.05 | DU40: 1 | DV40: 0 | DW40: 1 | DX40: 1 | DY40: 1 | DZ40: 0.25 | EA40: 1 | EB40: 0 | EC40: 1 | ED40: 0 | EE40: 1 | EF40: 0 | EG40: 1 | EH40: 0 | EI40: 1 | EJ40: 1 | EK40: 1 | EL40: 0 | EM40: 1 | EN40: 0 | EO40: 1 | EP40: 0 | EQ40: 1 | ER40: 1 | ES40: 0 | ET40: 0
C41: June | D41: =IFERROR(VLOOKUP($D$31,'Rainfall data'!$B$3:$O$33,'Potable Water Calculator'!O43,FALSE),"") -> 5 | E41: =IFERROR(VLOOKUP($D$31,'Rainfall data'!$B$44:$P$74,'Potable Water Calculator'!O43,FALSE),"") -> 1 | O41: 6 | BE41: Jan | BF41: 21 | BG41: 22 | BH41: 5 | BI41: TRUE | BJ41: FALSE | BK41: 0 | BL41: =IF(SUM(BL$20:BL40,BK41)>$BJ$4,0,BK41) -> 0 | BM41: 0 | BN41: 0 | BO41: 0 | BP41: 0 | BQ41: 0 | BR41: 0 | BS41: 0 | BT41: 0 | BU41: 0 | BV41: 0 | BW41: 0 | BX41: 0 | BY41: 0 | BZ41: 0 | CA41: 0 | CB41: 0 | CC41: 0 | CD41: 0 | CE41: 0 | CF41: 0 | CG41: 0 | CH41: 0 | CI41: 0 | CJ41: 0 | CK41: 0 | CL41: 0 | CM41: 0 | CN41: 0 | CO41: 0 | CP41: 0 | CQ41: 0 | CR41: 0 | CS41: 0 | CT41: 0 | CU41: 0 | CV41: 0 | CW41: 0 | CX41: 0 | CY41: 0 | CZ41: 0 | DA41: 0 | DB41: 0 | DC41: 0 | DD41: 0 | DE41: 0 | DF41: 0
C42: July | D42: =IFERROR(VLOOKUP($D$31,'Rainfall data'!$B$3:$O$33,'Potable Water Calculator'!O44,FALSE),"") -> 3 | E42: =IFERROR(VLOOKUP($D$31,'Rainfall data'!$B$44:$P$74,'Potable Water Calculator'!O44,FALSE),"") -> 0 | O42: 7 | BE42: Jan | BF42: 21 | BG42: 23 | BH42: 6 | BI42: FALSE | BJ42: FALSE | BK42: 0 | BL42: =IF(SUM(BL$20:BL41,BK42)>$BJ$4,0,BK42) -> 0 | BM42: 0 | BN42: 0 | BO42: 0 | BP42: 0 | BQ42: 0 | BR42: 0 | BS42: 0 | BT42: 0 | BU42: 0 | BV42: 0 | BW42: 0 | BX42: 0 | BY42: 0 | BZ42: 0 | CA42: 0 | CB42: 0 | CC42: 0 | CD42: 0 | CE42: 0 | CF42: 0 | CG42: 0 | CH42: 0 | CI42: 0 | CJ42: 0 | CK42: 0 | CL42: 0 | CM42: 0 | CN42: 0 | CO42: 0 | CP42: 0 | CQ42: 0 | CR42: 0 | CS42: 0 | CT42: 0 | CU42: 0 | CV42: 0 | CW42: 0 | CX42: 0 | CY42: 0 | CZ42: 0 | DA42: 0 | DB42: 0 | DC42: 0 | DD42: 0 | DE42: 0 | DF42: 0
C43: August | D43: =IFERROR(VLOOKUP($D$31,'Rainfall data'!$B$3:$O$33,'Potable Water Calculator'!O45,FALSE),"") -> 6 | E43: =IFERROR(VLOOKUP($D$31,'Rainfall data'!$B$44:$P$74,'Potable Water Calculator'!O45,FALSE),"") -> 1 | O43: 8 | BE43: Jan | BF43: 21 | BG43: 24 | BH43: 7 | BI43: FALSE | BJ43: TRUE | BK43: 7.454545455 | BL43: =IF(SUM(BL$20:BL42,BK43)>$BJ$4,0,BK43) -> 7.454545455 | BM43: 0 | BN43: 0 | BO43: 0 | BP43: 0 | BQ43: 0 | BR43: 0 | BS43: 0 | BT43: 0 | BU43: 0 | BV43: 0 | BW43: 0 | BX43: 0 | BY43: 0 | BZ43: 0 | CA43: 0 | CB43: 0 | CC43: 0 | CD43: 0 | CE43: 0 | CF43: 0 | CG43: 0 | CH43: 0 | CI43: 0 | CJ43: 0 | CK43: 0 | CL43: 0 | CM43: 0 | CN43: 0 | CO43: 0 | CP43: 0 | CQ43: 0 | CR43: 0 | CS43: 0 | CT43: 0 | CU43: 0 | CV43: 0 | CW43: 0 | CX43: 0 | CY43: 0 | CZ43: 0 | DA43: 0 | DB43: 0 | DC43: 0 | DD43: 0 | DE43: 0 | DF43: 0
C44: September | D44: =IFERROR(VLOOKUP($D$31,'Rainfall data'!$B$3:$O$33,'Potable Water Calculator'!O46,FALSE),"") -> 17 | E44: =IFERROR(VLOOKUP($D$31,'Rainfall data'!$B$44:$P$74,'Potable Water Calculator'!O46,FALSE),"") -> 2 | O44: 9 | BE44: Jan | BF44: 21 | BG44: 25 | BH44: 1 | BI44: TRUE | BJ44: FALSE | BK44: 0 | BL44: =IF(SUM(BL$20:BL43,BK44)>$BJ$4,0,BK44) -> 0 | BM44: 0 | BN44: 0 | BO44: 0 | BP44: 0 | BQ44: 0 | BR44: 0 | BS44: 0 | BT44: 0 | BU44: 0 | BV44: 0 | BW44: 0 | BX44: 0 | BY44: 0 | BZ44: 0 | CA44: 0 | CB44: 0 | CC44: 0 | CD44: 0 | CE44: 0 | CF44: 0 | CG44: 0 | CH44: 0 | CI44: 0 | CJ44: 0 | CK44: 0 | CL44: 0 | CM44: 0 | CN44: 0 | CO44: 0 | CP44: 0 | CQ44: 0 | CR44: 0 | CS44: 0 | CT44: 0 | CU44: 0 | CV44: 0 | CW44: 0 | CX44: 0 | CY44: 0 | CZ44: 0 | DA44: 0 | DB44: 0 | DC44: 0 | DD44: 0 | DE44: 0 | DF44: 0
C45: October | D45: =IFERROR(VLOOKUP($D$31,'Rainfall data'!$B$3:$O$33,'Potable Water Calculator'!O47,FALSE),"") -> 43 | E45: =IFERROR(VLOOKUP($D$31,'Rainfall data'!$B$44:$P$74,'Potable Water Calculator'!O47,FALSE),"") -> 6 | O45: 10 | BE45: Jan | BF45: 21 | BG45: 26 | BH45: 2 | BI45: TRUE | BJ45: FALSE | BK45: 0 | BL45: =IF(SUM(BL$20:BL44,BK45)>$BJ$4,0,BK45) -> 0 | BM45: 0 | BN45: 0 | BO45: 0 | BP45: 0 | BQ45: 0 | BR45: 0 | BS45: 0 | BT45: 0 | BU45: 0 | BV45: 0 | BW45: 0 | BX45: 0 | BY45: 0 | BZ45: 0 | CA45: 0 | CB45: 0 | CC45: 0 | CD45: 0 | CE45: 0 | CF45: 0 | CG45: 0 | CH45: 0 | CI45: 0 | CJ45: 0 | CK45: 0 | CL45: 0 | CM45: 0 | CN45: 0 | CO45: 0 | CP45: 0 | CQ45: 0 | CR45: 0 | CS45: 0 | CT45: 0 | CU45: 0 | CV45: 0 | CW45: 0 | CX45: 0 | CY45: 0 | CZ45: 0 | DA45: 0 | DB45: 0 | DC45: 0 | DD45: 0 | DE45: 0 | DF45: 0
C46: November | D46: =IFERROR(VLOOKUP($D$31,'Rainfall data'!$B$3:$O$33,'Potable Water Calculator'!O48,FALSE),"") -> 85 | E46: =IFERROR(VLOOKUP($D$31,'Rainfall data'!$B$44:$P$74,'Potable Water Calculator'!O48,FALSE),"") -> 12 | O46: 11 | BE46: Jan | BF46: 21 | BG46: 27 | BH46: 3 | BI46: TRUE | BJ46: TRUE | BK46: 7.454545455 | BL46: =IF(SUM(BL$20:BL45,BK46)>$BJ$4,0,BK46) -> 7.454545455 | BM46: 0 | BN46: 0 | BO46: 0 | BP46: 0 | BQ46: 0 | BR46: 0 | BS46: 0 | BT46: 0 | BU46: 0 | BV46: 0 | BW46: 0 | BX46: 0 | BY46: 0 | BZ46: 0 | CA46: 0 | CB46: 0 | CC46: 0 | CD46: 0 | CE46: 0 | CF46: 0 | CG46: 0 | CH46: 0 | CI46: 0 | CJ46: 0 | CK46: 0 | CL46: 0 | CM46: 0 | CN46: 0 | CO46: 0 | CP46: 0 | CQ46: 0 | CR46: 0 | CS46: 0 | CT46: 0 | CU46: 0 | CV46: 0 | CW46: 0 | CX46: 0 | CY46: 0 | CZ46: 0 | DA46: 0 | DB46: 0 | DC46: 0 | DD46: 0 | DE46: 0 | DF46: 0
C47: December | D47: =IFERROR(VLOOKUP($D$31,'Rainfall data'!$B$3:$O$33,'Potable Water Calculator'!O49,FALSE),"") -> 81 | E47: =IFERROR(VLOOKUP($D$31,'Rainfall data'!$B$44:$P$74,'Potable Water Calculator'!O49,FALSE),"") -> 11 | O47: 12 | BE47: Jan | BF47: 21 | BG47: 28 | BH47: 4 | BI47: TRUE | BJ47: FALSE | BK47: 0 | BL47: =IF(SUM(BL$20:BL46,BK47)>$BJ$4,0,BK47) -> 0 | BM47: 0 | BN47: 0 | BO47: 0 | BP47: 0 | BQ47: 0 | BR47: 0 | BS47: 0 | BT47: 0 | BU47: 0 | BV47: 0 | BW47: 0 | BX47: 0 | BY47: 0 | BZ47: 0 | CA47: 0 | CB47: 0 | CC47: 0 | CD47: 0 | CE47: 0 | CF47: 0 | CG47: 0 | CH47: 0 | CI47: 0 | CJ47: 0 | CK47: 0 | CL47: 0 | CM47: 0 | CN47: 0 | CO47: 0 | CP47: 0 | CQ47: 0 | CR47: 0 | CS47: 0 | CT47: 0 | CU47: 0 | CV47: 0 | CW47: 0 | CX47: 0 | CY47: 0 | CZ47: 0 | DA47: 0 | DB47: 0 | DC47: 0 | DD47: 0 | DE47: 0 | DF47: =IF(DA47-(DE46+CZ47)<0,0,DA47-(DE46+CZ47)) -> 0
C48: Total | D48: =SUM(D36:D47) -> 478 | E48: =SUM(E36:E47) -> 65 | O48: 13 | BE48: Jan | BF48: 21 | BG48: 29 | BH48: 5 | BI48: TRUE | BJ48: FALSE | BK48: 0 | BL48: =IF(SUM(BL$20:BL47,BK48)>$BJ$4,0,BK48) -> 0 | BM48: 0 | BN48: 0 | BO48: 0 | BP48: 0 | BQ48: 0 | BR48: 0 | BS48: 0 | BT48: 0 | BU48: 0 | BV48: 0 | BW48: 0 | BX48: 0 | BY48: 0 | BZ48: 0 | CA48: 0 | CB48: 0 | CC48: 0 | CD48: 0 | CE48: 0 | CF48: 0 | CG48: 0 | CH48: 0 | CI48: 0 | CJ48: 0 | CK48: 0 | CL48: 0 | CM48: 0 | CN48: 0 | CO48: 0 | CP48: 0 | CQ48: 0 | CR48: 0 | CS48: 0 | CT48: 0 | CU48: 0 | CV48: 0 | CW48: 0 | CX48: 0 | CY48: 0 | CZ48: 0 | DA48: 0 | DB48: 0 | DC48: 0 | DD48: 0 | DE48: 0 | DF48: 0
O49: 14 | BE49: Jan | BF49: 21 | BG49: 30 | BH49: 6 | BI49: FALSE | BJ49: TRUE | BK49: 7.454545455 | BL49: =IF(SUM(BL$20:BL48,BK49)>$BJ$4,0,BK49) -> 7.454545455 | BM49: 0 | BN49: 0 | BO49: 0 | BP49: 0 | BQ49: 0 | BR49: 0 | BS49: 0 | BT49: 0 | BU49: 0 | BV49: 0 | BW49: 0 | BX49: 0 | BY49: 0 | BZ49: 0 | CA49: 0 | CB49: 0 | CC49: 0 | CD49: 0 | CE49: 0 | CF49: 0 | CG49: 0 | CH49: 0 | CI49: 0 | CJ49: 0 | CK49: 0 | CL49: 0 | CM49: 0 | CN49: 0 | CO49: 0 | CP49: 0 | CQ49: 0 | CR49: 0 | CS49: 0 | CT49: 0 | CU49: 0 | CV49: 0 | CW49: 0 | CX49: 0 | CY49: 0 | CZ49: 0 | DA49: 0 | DB49: 0 | DC49: 0 | DD49: 0 | DE49: 0 | DF49: 0
O50: 15 | BE50: Jan | BF50: 21 | BG50: 31 | BH50: 7 | BI50: FALSE | BJ50: FALSE | BK50: 0 | BL50: =$BJ$4-SUM(BL20:BL49) -> 7.454545455 | BM50: 0 | BN50: 0 | BO50: 0 | BP50: 0 | BQ50: 0 | BR50: 0 | BS50: 0 | BT50: 0 | BU50: 0 | BV50: 0 | BW50: 0 | BX50: 0 | BY50: 0 | BZ50: 0 | CA50: 0 | CB50: 0 | CC50: 0 | CD50: 0 | CE50: 0 | CF50: 0 | CG50: 0 | CH50: 0 | CI50: 0 | CJ50: 0 | CK50: 0 | CL50: 0 | CM50: 0 | CN50: 0 | CO50: 0 | CP50: 0 | CQ50: 0 | CR50: 0 | CS50: 0 | CT50: 0 | CU50: 0 | CV50: 0 | CW50: 0 | CX50: 0 | CY50: 0 | CZ50: 0 | DA50: 0 | DB50: 0 | DC50: 0 | DD50: 0 | DE50: 0 | DF50: 0
BE51: Feb | BF51: 20 | BG51: 1 | BH51: 1 | BI51: TRUE | BJ51: =MOD(BG51,$BK$7)=0 -> FALSE | BK51: =IF(BJ51,BK$8,0) -> 0 | BL51: =BK51 -> 0 | BM51: 0 | BN51: 0 | BO51: 0 | BP51: =$Q$335/$BF$51*BR$16*$BI51 -> 0 | BQ51: =AQ$370/$BF51*$BI51 -> 0 | BR51: 0 | BS51: =$R$335/$BF51*BU$16*$BI51 -> 0 | BT51: =AR$370/$BF51*$BI51 -> 0 | BU51: 0 | BV51: =$S$335/$BF51*BX$16*$BI51 -> 0 | BW51: =AS$370/$BF51*$BI51 -> 0 | BX51: 0 | BY51: =$T$335/$BF51*CA$16*$BI51 -> 0 | BZ51: =AT$370/$BF51*$BI51 -> 0 | CA51: 0 | CB51: =$W$335/BF51*$C$419*BI51 -> 0 | CC51: =AU$370/$BF51*$BI51 -> 0 | CD51: 0 | CE51: =$X$335/BF51*BI51*$C$420 -> 0 | CF51: =AV$370/$BF51*$BI51 -> 0 | CG51: 0 | CH51: =$Y$335/BF51*BI51*$C$421 -> 0 | CI51: =AW$370/$BF51*$BI51 -> 0 | CJ51: 0 | CK51: =$Z$335/BF51*BI51*$CM$16 -> 0 | CL51: =AX$370/$BF51*$BI51 -> 0 | CM51: 0 | CN51: =$AA$335/BF51*BI51*$CP$16 -> 0 | CO51: =$AY$370/$BF51*$BI51 -> 0 | CP51: 0 | CQ51: =$AB$335/BF51*BI51*$CS$16 -> 0 | CR51: =AZ$370/$BF51*$BI51 -> 0 | CS51: 0 | CT51: =$AC$335/BF51*BI51*$CV$16 -> 0 | CU51: =BA$370/$BF51*$BI51 -> 0 | CV51: 0 | CW51: =$AD$335/BF51*BI51*$CY$16 -> 0 | CX51: =BB$370/$BF51*$BI51 -> 0 | CY51: 0 | CZ51: 0 | DA51: 0 | DB51: 0 | DC51: 0 | DD51: 0 | DE51: 0 | DF51: =IF(DA51-(DE50+CZ51)<0,0,DA51-(DE50+CZ51)) -> 0
B52: Water Demand | BE52: Feb | BF52: 20 | BG52: 2 | BH52: 2 | BI52: TRUE | BJ52: FALSE | BK52: 0 | BL52: =IF(SUM(BL$51:BL51,BK52)>$BK$4,0,BK52) -> 0 | BM52: 0 | BN52: 0 | BO52: 0 | BP52: 0 | BQ52: 0 | BR52: 0 | BS52: 0 | BT52: 0 | BU52: 0 | BV52: 0 | BW52: 0 | BX52: 0 | BY52: 0 | BZ52: 0 | CA52: 0 | CB52: 0 | CC52: 0 | CD52: 0 | CE52: 0 | CF52: 0 | CG52: 0 | CH52: 0 | CI52: 0 | CJ52: 0 | CK52: 0 | CL52: 0 | CM52: 0 | CN52: 0 | CO52: 0 | CP52: 0 | CQ52: 0 | CR52: 0 | CS52: 0 | CT52: 0 | CU52: 0 | CV52: 0 | CW52: 0 | CX52: 0 | CY52: 0 | CZ52: 0 | DA52: 0 | DB52: 0 | DC52: 0 | DD52: 0 | DE52: 0 | DF52: 0
B53: Occupant Amenity Water | BE53: Feb | BF53: 20 | BG53: 3 | BH53: 3 | BI53: TRUE | BJ53: FALSE | BK53: 0 | BL53: =IF(SUM(BL$51:BL52,BK53)>$BK$4,0,BK53) -> 0 | BM53: 0 | BN53: 0 | BO53: 0 | BP53: 0 | BQ53: 0 | BR53: 0 | BS53: 0 | BT53: 0 | BU53: 0 | BV53: 0 | BW53: 0 | BX53: 0 | BY53: 0 | BZ53: 0 | CA53: 0 | CB53: 0 | CC53: 0 | CD53: 0 | CE53: 0 | CF53: 0 | CG53: 0 | CH53: 0 | CI53: 0 | CJ53: 0 | CK53: 0 | CL53: 0 | CM53: 0 | CN53: 0 | CO53: 0 | CP53: 0 | CQ53: 0 | CR53: 0 | CS53: 0 | CT53: 0 | CU53: 0 | CV53: 0 | CW53: 0 | CX53: 0 | CY53: 0 | CZ53: 0 | DA53: 0 | DB53: 0 | DC53: 0 | DD53: 0 | DE53: 0 | DF53: 0
B54: STEP 2a - Please provide information regarding the indoor fittings installed in the building | BE54: Feb | BF54: 20 | BG54: 4 | BH54: 4 | BI54: TRUE | BJ54: TRUE | BK54: 7.5 | BL54: =IF(SUM(BL$51:BL53,BK54)>$BK$4,0,BK54) -> 7.5 | BM54: 0 | BN54: 0 | BO54: 0 | BP54: 0 | BQ54: 0 | BR54: 0 | BS54: 0 | BT54: 0 | BU54: 0 | BV54: 0 | BW54: 0 | BX54: 0 | BY54: 0 | BZ54: 0 | CA54: 0 | CB54: 0 | CC54: 0 | CD54: 0 | CE54: 0 | CF54: 0 | CG54: 0 | CH54: 0 | CI54: 0 | CJ54: 0 | CK54: 0 | CL54: 0 | CM54: 0 | CN54: 0 | CO54: 0 | CP54: 0 | CQ54: 0 | CR54: 0 | CS54: 0 | CT54: 0 | CU54: 0 | CV54: 0 | CW54: 0 | CX54: 0 | CY54: 0 | CZ54: 0 | DA54: 0 | DB54: 0 | DC54: 0 | DD54: 0 | DE54: 0 | DF54: 0
BE55: Feb | BF55: 20 | BG55: 5 | BH55: 5 | BI55: TRUE | BJ55: FALSE | BK55: 0 | BL55: =IF(SUM(BL$51:BL54,BK55)>$BK$4,0,BK55) -> 0 | BM55: 0 | BN55: 0 | BO55: 0 | BP55: 0 | BQ55: 0 | BR55: 0 | BS55: 0 | BT55: 0 | BU55: 0 | BV55: 0 | BW55: 0 | BX55: 0 | BY55: 0 | BZ55: 0 | CA55: 0 | CB55: 0 | CC55: 0 | CD55: 0 | CE55: 0 | CF55: 0 | CG55: 0 | CH55: 0 | CI55: 0 | CJ55: 0 | CK55: 0 | CL55: 0 | CM55: 0 | CN55: 0 | CO55: 0 | CP55: 0 | CQ55: 0 | CR55: 0 | CS55: 0 | CT55: 0 | CU55: 0 | CV55: 0 | CW55: 0 | CX55: 0 | CY55: 0 | CZ55: 0 | DA55: 0 | DB55: 0 | DC55: 0 | DD55: 0 | DE55: 0 | DF55: 0
B56: WC | P56: Person-hours per year | R56: =$V$30 -> 0 | T56: Actual Building | X56: Notional Building | BE56: Feb | BF56: 20 | BG56: 6 | BH56: 6 | BI56: FALSE | BJ56: FALSE | BK56: 0 | BL56: =IF(SUM(BL$51:BL55,BK56)>$BK$4,0,BK56) -> 0 | BM56: 0 | BN56: 0 | BO56: 0 | BP56: 0 | BQ56: 0 | BR56: 0 | BS56: 0 | BT56: 0 | BU56: 0 | BV56: 0 | BW56: 0 | BX56: 0 | BY56: 0 | BZ56: 0 | CA56: 0 | CB56: 0 | CC56: 0 | CD56: 0 | CE56: 0 | CF56: 0 | CG56: 0 | CH56: 0 | CI56: 0 | CJ56: 0 | CK56: 0 | CL56: 0 | CM56: 0 | CN56: 0 | CO56: 0 | CP56: 0 | CQ56: 0 | CR56: 0 | CS56: 0 | CT56: 0 | CU56: 0 | CV56: 0 | CW56: 0 | CX56: 0 | CY56: 0 | CZ56: 0 | DA56: 0 | DB56: 0 | DC56: 0 | DD56: 0 | DE56: 0 | DF56: 0
B57: Type | E57: Flow rate (litres/flush) | F57: % of each type | R57: Uses per person-hour | S57: Uses per year | T57: Duration per use (min) | U57: Litres/min | V57: Litres per use | W57: Demand per year | X57: Duration per use (min) | Y57: Litres/min | Z57: Litres per use | AA57: Demand per year | BE57: Feb | BF57: 20 | BG57: 7 | BH57: 7 | BI57: FALSE | BJ57: FALSE | BK57: 0 | BL57: =IF(SUM(BL$51:BL56,BK57)>$BK$4,0,BK57) -> 0 | BM57: 0 | BN57: 0 | BO57: 0 | BP57: 0 | BQ57: 0 | BR57: 0 | BS57: 0 | BT57: 0 | BU57: 0 | BV57: 0 | BW57: 0 | BX57: 0 | BY57: 0 | BZ57: 0 | CA57: 0 | CB57: 0 | CC57: 0 | CD57: 0 | CE57: 0 | CF57: 0 | CG57: 0 | CH57: 0 | CI57: 0 | CJ57: 0 | CK57: 0 | CL57: 0 | CM57: 0 | CN57: 0 | CO57: 0 | CP57: 0 | CQ57: 0 | CR57: 0 | CS57: 0 | CT57: 0 | CU57: 0 | CV57: 0 | CW57: 0 | CX57: 0 | CY57: 0 | CZ57: 0 | DA57: 0 | DB57: 0 | DC57: 0 | DD57: 0 | DE57: 0 | DF57: 0 | DK57: Fitting consumption | DL57: Uses per day (based on 9.5hr workday) | DM57: Uses per person-hour | DN57: Duration per use (s)
B58: Toilet 1 | BE58: Feb | BF58: 20 | BG58: 8 | BH58: 1 | BI58: TRUE | BJ58: TRUE | BK58: 7.5 | BL58: =IF(SUM(BL$51:BL57,BK58)>$BK$4,0,BK58) -> 7.5 | BM58: 0 | BN58: 0 | BO58: 0 | BP58: 0 | BQ58: 0 | BR58: 0 | BS58: 0 | BT58: 0 | BU58: 0 | BV58: 0 | BW58: 0 | BX58: 0 | BY58: 0 | BZ58: 0 | CA58: 0 | CB58: 0 | CC58: 0 | CD58: 0 | CE58: 0 | CF58: 0 | CG58: 0 | CH58: 0 | CI58: 0 | CJ58: 0 | CK58: 0 | CL58: 0 | CM58: 0 | CN58: 0 | CO58: 0 | CP58: 0 | CQ58: 0 | CR58: 0 | CS58: 0 | CT58: 0 | CU58: 0 | CV58: 0 | CW58: 0 | CX58: 0 | CY58: 0 | CZ58: 0 | DA58: 0 | DB58: 0 | DC58: 0 | DD58: 0 | DE58: 0 | DF58: 0 | DJ58: Toilet - no urinal (l/flush) | DK58: 4 | DL58: 2.3 | DM58: =DL58/9.5 -> 0.2421052632 | DN58: -
B59: Toilet 2 | P59: Toilet | R59: =IF(D67="Yes",DM59,DM58) -> 0.1368421053 | S59: =R59*$R$56 -> 0 | T59: n/a | U59: n/a | V59: =F58*E58+F59*E59+F60*E60+F61*E61 -> 0 | W59: =S59*V59/1000 -> 0 | X59: n/a | Y59: n/a | Z59: =DK58 -> 4 | AA59: =S59*Z59/1000 -> 0 | BE59: Feb | BF59: 20 | BG59: 9 | BH59: 2 | BI59: TRUE | BJ59: FALSE | BK59: 0 | BL59: =IF(SUM(BL$51:BL58,BK59)>$BK$4,0,BK59) -> 0 | BM59: 0 | BN59: 0 | BO59: 0 | BP59: 0 | BQ59: 0 | BR59: 0 | BS59: 0 | BT59: 0 | BU59: 0 | BV59: 0 | BW59: 0 | BX59: 0 | BY59: 0 | BZ59: 0 | CA59: 0 | CB59: 0 | CC59: 0 | CD59: 0 | CE59: 0 | CF59: 0 | CG59: 0 | CH59: 0 | CI59: 0 | CJ59: 0 | CK59: 0 | CL59: 0 | CM59: 0 | CN59: 0 | CO59: 0 | CP59: 0 | CQ59: 0 | CR59: 0 | CS59: 0 | CT59: 0 | CU59: 0 | CV59: 0 | CW59: 0 | CX59: 0 | CY59: 0 | CZ59: 0 | DA59: 0 | DB59: 0 | DC59: 0 | DD59: 0 | DE59: 0 | DF59: 0 | DJ59: Toilet with urinal (l/flush) | DK59: 4 | DL59: 1.3 | DM59: =DL59/9.5 -> 0.1368421053 | DN59: -
B60: Toilet 3 | P60: Urinal | R60: =IF(D67="Yes",DM60,0) -> 0.1052631579 | S60: =R60*R56 -> 0 | T60: n/a | U60: n/a | V60: =F69*E69+F70*E70+F71*E71+F72*E72 -> 0 | W60: =S60*V60/1000 -> 0 | X60: n/a | Y60: n/a | Z60: =DK60 -> 2 | AA60: =S60*Z60/1000 -> 0 | BE60: Feb | BF60: 20 | BG60: 10 | BH60: 3 | BI60: TRUE | BJ60: FALSE | BK60: 0 | BL60: =IF(SUM(BL$51:BL59,BK60)>$BK$4,0,BK60) -> 0 | BM60: 0 | BN60: 0 | BO60: 0 | BP60: 0 | BQ60: 0 | BR60: 0 | BS60: 0 | BT60: 0 | BU60: 0 | BV60: 0 | BW60: 0 | BX60: 0 | BY60: 0 | BZ60: 0 | CA60: 0 | CB60: 0 | CC60: 0 | CD60: 0 | CE60: 0 | CF60: 0 | CG60: 0 | CH60: 0 | CI60: 0 | CJ60: 0 | CK60: 0 | CL60: 0 | CM60: 0 | CN60: 0 | CO60: 0 | CP60: 0 | CQ60: 0 | CR60: 0 | CS60: 0 | CT60: 0 | CU60: 0 | CV60: 0 | CW60: 0 | CX60: 0 | CY60: 0 | CZ60: 0 | DA60: 0 | DB60: 0 | DC60: 0 | DD60: 0 | DE60: 0 | DF60: 0 | DJ60: Urinal (l/flush) | DK60: 2 | DL60: 1 | DM60: =DL60/9.5 -> 0.1052631579 | DN60: -
B61: Toilet 4 | N61: Please complete for 100% of fittings | P61: Urinals - autoflush | S61: =365*C74 -> 0 | T61: n/a | U61: n/a | V61: =D74*E74 -> 0 | W61: =S61*V61/1000 -> 0 | BE61: Feb | BF61: 20 | BG61: 11 | BH61: 4 | BI61: TRUE | BJ61: FALSE | BK61: 0 | BL61: =IF(SUM(BL$51:BL60,BK61)>$BK$4,0,BK61) -> 0 | BM61: 0 | BN61: 0 | BO61: 0 | BP61: 0 | BQ61: 0 | BR61: 0 | BS61: 0 | BT61: 0 | BU61: 0 | BV61: 0 | BW61: 0 | BX61: 0 | BY61: 0 | BZ61: 0 | CA61: 0 | CB61: 0 | CC61: 0 | CD61: 0 | CE61: 0 | CF61: 0 | CG61: 0 | CH61: 0 | CI61: 0 | CJ61: 0 | CK61: 0 | CL61: 0 | CM61: 0 | CN61: 0 | CO61: 0 | CP61: 0 | CQ61: 0 | CR61: 0 | CS61: 0 | CT61: 0 | CU61: 0 | CV61: 0 | CW61: 0 | CX61: 0 | CY61: 0 | CZ61: 0 | DA61: 0 | DB61: 0 | DC61: 0 | DD61: 0 | DE61: 0 | DF61: 0 | DJ61: Taps (l/min) | DK61: 9
B62: =IF(F62<>1,$N$61,"") -> Please complete for 100% of fittings | F62: =SUM(F58:F61) -> 0 | N62: Toilet usage adjusted accordingly | P62: Taps | R62: =DM63 -> 0.2631578947 | S62: =R62*$R$56 -> 0 | T62: Calculated using table below | V62: =F82*E82*U82+F83*E83*U83+F84*E84*U84+F85*E85*U85 -> 0 | W62: =S62*V62/1000 -> 0 | X62: =DN63/60 -> 0.15 | Y62: =DK61 -> 9 | Z62: =X62*Y62 -> 1.35 | AA62: =S62*Z62/1000 -> 0 | BE62: Feb | BF62: 20 | BG62: 12 | BH62: 5 | BI62: TRUE | BJ62: TRUE | BK62: 7.5 | BL62: =IF(SUM(BL$51:BL61,BK62)>$BK$4,0,BK62) -> 7.5 | BM62: 0 | BN62: 0 | BO62: 0 | BP62: 0 | BQ62: 0 | BR62: 0 | BS62: 0 | BT62: 0 | BU62: 0 | BV62: 0 | BW62: 0 | BX62: 0 | BY62: 0 | BZ62: 0 | CA62: 0 | CB62: 0 | CC62: 0 | CD62: 0 | CE62: 0 | CF62: 0 | CG62: 0 | CH62: 0 | CI62: 0 | CJ62: 0 | CK62: 0 | CL62: 0 | CM62: 0 | CN62: 0 | CO62: 0 | CP62: 0 | CQ62: 0 | CR62: 0 | CS62: 0 | CT62: 0 | CU62: 0 | CV62: 0 | CW62: 0 | CX62: 0 | CY62: 0 | CZ62: 0 | DA62: 0 | DB62: 0 | DC62: 0 | DD62: 0 | DE62: 0 | DF62: 0 | DJ62: <Please select> | DN62: 0
B63: Actual Building Predicted Consumtion (m3 / year) | F63: =W59 -> 0 | P63: Showers | S63: =Z30 -> 0 | T63: 5 | U63: =F93*E93+F94*E94+F95*E95 -> 0 | V63: =U63*$DN$66/60 -> 0 | W63: =V63*Z30/1000 -> 0 | X63: =DN66/60 -> 5 | Y63: =DK66 -> 12 | Z63: =X63*Y63 -> 60 | AA63: =S63*Z63/1000 -> 0 | BE63: Feb | BF63: 20 | BG63: 13 | BH63: 6 | BI63: FALSE | BJ63: FALSE | BK63: 0 | BL63: =IF(SUM(BL$51:BL62,BK63)>$BK$4,0,BK63) -> 0 | BM63: 0 | BN63: 0 | BO63: 0 | BP63: 0 | BQ63: 0 | BR63: 0 | BS63: 0 | BT63: 0 | BU63: 0 | BV63: 0 | BW63: 0 | BX63: 0 | BY63: 0 | BZ63: 0 | CA63: 0 | CB63: 0 | CC63: 0 | CD63: 0 | CE63: 0 | CF63: 0 | CG63: 0 | CH63: 0 | CI63: 0 | CJ63: 0 | CK63: 0 | CL63: 0 | CM63: 0 | CN63: 0 | CO63: 0 | CP63: 0 | CQ63: 0 | CR63: 0 | CS63: 0 | CT63: 0 | CU63: 0 | CV63: 0 | CW63: 0 | CX63: 0 | CY63: 0 | CZ63: 0 | DA63: 0 | DB63: 0 | DC63: 0 | DD63: 0 | DE63: 0 | DF63: 0 | DJ63: Manual WHB/Sink tap | DL63: 2.5 | DM63: =DL63/9.5 -> 0.2631578947 | DN63: 9
B64: Notional Building Predicted Consumption (m3 / year) | F64: =AA59 -> 0 | BE64: Feb | BF64: 20 | BG64: 14 | BH64: 7 | BI64: FALSE | BJ64: FALSE | BK64: 0 | BL64: =IF(SUM(BL$51:BL63,BK64)>$BK$4,0,BK64) -> 0 | BM64: 0 | BN64: 0 | BO64: 0 | BP64: 0 | BQ64: 0 | BR64: 0 | BS64: 0 | BT64: 0 | BU64: 0 | BV64: 0 | BW64: 0 | BX64: 0 | BY64: 0 | BZ64: 0 | CA64: 0 | CB64: 0 | CC64: 0 | CD64: 0 | CE64: 0 | CF64: 0 | CG64: 0 | CH64: 0 | CI64: 0 | CJ64: 0 | CK64: 0 | CL64: 0 | CM64: 0 | CN64: 0 | CO64: 0 | CP64: 0 | CQ64: 0 | CR64: 0 | CS64: 0 | CT64: 0 | CU64: 0 | CV64: 0 | CW64: 0 | CX64: 0 | CY64: 0 | CZ64: 0 | DA64: 0 | DB64: 0 | DC64: 0 | DD64: 0 | DE64: 0 | DF64: 0 | DJ64: Timed WHB/Sink tap | DL64: 2.5 | DM64: =DL64/9.5 -> 0.2631578947 | DN64: 7
BE65: Feb | BF65: 20 | BG65: 15 | BH65: 1 | BI65: TRUE | BJ65: FALSE | BK65: 0 | BL65: =IF(SUM(BL$51:BL64,BK65)>$BK$4,0,BK65) -> 0 | BM65: 0 | BN65: 0 | BO65: 0 | BP65: 0 | BQ65: 0 | BR65: 0 | BS65: 0 | BT65: 0 | BU65: 0 | BV65: 0 | BW65: 0 | BX65: 0 | BY65: 0 | BZ65: 0 | CA65: 0 | CB65: 0 | CC65: 0 | CD65: 0 | CE65: 0 | CF65: 0 | CG65: 0 | CH65: 0 | CI65: 0 | CJ65: 0 | CK65: 0 | CL65: 0 | CM65: 0 | CN65: 0 | CO65: 0 | CP65: 0 | CQ65: 0 | CR65: 0 | CS65: 0 | CT65: 0 | CU65: 0 | CV65: 0 | CW65: 0 | CX65: 0 | CY65: 0 | CZ65: 0 | DA65: 0 | DB65: 0 | DC65: 0 | DD65: 0 | DE65: 0 | DF65: 0 | DJ65: PIR WHB / Sink tap | DL65: 2.5 | DM65: =DL65/9.5 -> 0.2631578947 | DN65: 6
B66: Urinals | BE66: Feb | BF66: 20 | BG66: 16 | BH66: 2 | BI66: TRUE | BJ66: TRUE | BK66: 7.5 | BL66: =IF(SUM(BL$51:BL65,BK66)>$BK$4,0,BK66) -> 7.5 | BM66: 0 | BN66: 0 | BO66: 0 | BP66: 0 | BQ66: 0 | BR66: 0 | BS66: 0 | BT66: 0 | BU66: 0 | BV66: 0 | BW66: 0 | BX66: 0 | BY66: 0 | BZ66: 0 | CA66: 0 | CB66: 0 | CC66: 0 | CD66: 0 | CE66: 0 | CF66: 0 | CG66: 0 | CH66: 0 | CI66: 0 | CJ66: 0 | CK66: 0 | CL66: 0 | CM66: 0 | CN66: 0 | CO66: 0 | CP66: 0 | CQ66: 0 | CR66: 0 | CS66: 0 | CT66: 0 | CU66: 0 | CV66: 0 | CW66: 0 | CX66: 0 | CY66: 0 | CZ66: 0 | DA66: 0 | DB66: 0 | DC66: 0 | DD66: 0 | DE66: 0 | DF66: 0 | DJ66: Shower (l/min) | DK66: 12 | DL66: 0 or 0.03 | DN66: 300
B67: Are urinals installed in the building? | D67: Yes | E67: =IF(D67="No",N62,"") ->  | BE67: Feb | BF67: 20 | BG67: 17 | BH67: 3 | BI67: TRUE | BJ67: FALSE | BK67: 0 | BL67: =IF(SUM(BL$51:BL66,BK67)>$BK$4,0,BK67) -> 0 | BM67: 0 | BN67: 0 | BO67: 0 | BP67: 0 | BQ67: 0 | BR67: 0 | BS67: 0 | BT67: 0 | BU67: 0 | BV67: 0 | BW67: 0 | BX67: 0 | BY67: 0 | BZ67: 0 | CA67: 0 | CB67: 0 | CC67: 0 | CD67: 0 | CE67: 0 | CF67: 0 | CG67: 0 | CH67: 0 | CI67: 0 | CJ67: 0 | CK67: 0 | CL67: 0 | CM67: 0 | CN67: 0 | CO67: 0 | CP67: 0 | CQ67: 0 | CR67: 0 | CS67: 0 | CT67: 0 | CU67: 0 | CV67: 0 | CW67: 0 | CX67: 0 | CY67: 0 | CZ67: 0 | DA67: 0 | DB67: 0 | DC67: 0 | DD67: 0 | DE67: 0 | DF67: 0 | DJ67: Kitchen | DK67: -
B68: Type - Manually flushed urinals | E68: Flow rate (litres/flush) | F68: % of each type | BE68: Feb | BF68: 20 | BG68: 18 | BH68: 4 | BI68: TRUE | BJ68: FALSE | BK68: 0 | BL68: =IF(SUM(BL$51:BL67,BK68)>$BK$4,0,BK68) -> 0 | BM68: 0 | BN68: 0 | BO68: 0 | BP68: 0 | BQ68: 0 | BR68: 0 | BS68: 0 | BT68: 0 | BU68: 0 | BV68: 0 | BW68: 0 | BX68: 0 | BY68: 0 | BZ68: 0 | CA68: 0 | CB68: 0 | CC68: 0 | CD68: 0 | CE68: 0 | CF68: 0 | CG68: 0 | CH68: 0 | CI68: 0 | CJ68: 0 | CK68: 0 | CL68: 0 | CM68: 0 | CN68: 0 | CO68: 0 | CP68: 0 | CQ68: 0 | CR68: 0 | CS68: 0 | CT68: 0 | CU68: 0 | CV68: 0 | CW68: 0 | CX68: 0 | CY68: 0 | CZ68: 0 | DA68: 0 | DB68: 0 | DC68: 0 | DD68: 0 | DE68: 0 | DF68: 0 | DJ68: Dishwasher | DK68: -
B69: Urinal 1 | BE69: Feb | BF69: 20 | BG69: 19 | BH69: 5 | BI69: TRUE | BJ69: FALSE | BK69: 0 | BL69: =IF(SUM(BL$51:BL68,BK69)>$BK$4,0,BK69) -> 0 | BM69: 0 | BN69: 0 | BO69: 0 | BP69: 0 | BQ69: 0 | BR69: 0 | BS69: 0 | BT69: 0 | BU69: 0 | BV69: 0 | BW69: 0 | BX69: 0 | BY69: 0 | BZ69: 0 | CA69: 0 | CB69: 0 | CC69: 0 | CD69: 0 | CE69: 0 | CF69: 0 | CG69: 0 | CH69: 0 | CI69: 0 | CJ69: 0 | CK69: 0 | CL69: 0 | CM69: 0 | CN69: 0 | CO69: 0 | CP69: 0 | CQ69: 0 | CR69: 0 | CS69: 0 | CT69: 0 | CU69: 0 | CV69: 0 | CW69: 0 | CX69: 0 | CY69: 0 | CZ69: 0 | DA69: 0 | DB69: 0 | DC69: 0 | DD69: 0 | DE69: 0 | DF69: 0 | DJ69: Laundry | DK69: -
B70: Urinal 2 | BE70: Feb | BF70: 20 | BG70: 20 | BH70: 6 | BI70: FALSE | BJ70: TRUE | BK70: 7.5 | BL70: =IF(SUM(BL$51:BL69,BK70)>$BK$4,0,BK70) -> 7.5 | BM70: 0 | BN70: 0 | BO70: 0 | BP70: 0 | BQ70: 0 | BR70: 0 | BS70: 0 | BT70: 0 | BU70: 0 | BV70: 0 | BW70: 0 | BX70: 0 | BY70: 0 | BZ70: 0 | CA70: 0 | CB70: 0 | CC70: 0 | CD70: 0 | CE70: 0 | CF70: 0 | CG70: 0 | CH70: 0 | CI70: 0 | CJ70: 0 | CK70: 0 | CL70: 0 | CM70: 0 | CN70: 0 | CO70: 0 | CP70: 0 | CQ70: 0 | CR70: 0 | CS70: 0 | CT70: 0 | CU70: 0 | CV70: 0 | CW70: 0 | CX70: 0 | CY70: 0 | CZ70: 0 | DA70: 0 | DB70: 0 | DC70: 0 | DD70: 0 | DE70: 0 | DF70: 0
B71: Urinal 3 | BE71: Feb | BF71: 20 | BG71: 21 | BH71: 7 | BI71: FALSE | BJ71: FALSE | BK71: 0 | BL71: =IF(SUM(BL$51:BL70,BK71)>$BK$4,0,BK71) -> 0 | BM71: 0 | BN71: 0 | BO71: 0 | BP71: 0 | BQ71: 0 | BR71: 0 | BS71: 0 | BT71: 0 | BU71: 0 | BV71: 0 | BW71: 0 | BX71: 0 | BY71: 0 | BZ71: 0 | CA71: 0 | CB71: 0 | CC71: 0 | CD71: 0 | CE71: 0 | CF71: 0 | CG71: 0 | CH71: 0 | CI71: 0 | CJ71: 0 | CK71: 0 | CL71: 0 | CM71: 0 | CN71: 0 | CO71: 0 | CP71: 0 | CQ71: 0 | CR71: 0 | CS71: 0 | CT71: 0 | CU71: 0 | CV71: 0 | CW71: 0 | CX71: 0 | CY71: 0 | CZ71: 0 | DA71: 0 | DB71: 0 | DC71: 0 | DD71: 0 | DE71: 0 | DF71: 0 | DJ71: Percentage of occupants who use shower
B72: Urinal 4 | BE72: Feb | BF72: 20 | BG72: 22 | BH72: 1 | BI72: TRUE | BJ72: FALSE | BK72: 0 | BL72: =IF(SUM(BL$51:BL71,BK72)>$BK$4,0,BK72) -> 0 | BM72: 0 | BN72: 0 | BO72: 0 | BP72: 0 | BQ72: 0 | BR72: 0 | BS72: 0 | BT72: 0 | BU72: 0 | BV72: 0 | BW72: 0 | BX72: 0 | BY72: 0 | BZ72: 0 | CA72: 0 | CB72: 0 | CC72: 0 | CD72: 0 | CE72: 0 | CF72: 0 | CG72: 0 | CH72: 0 | CI72: 0 | CJ72: 0 | CK72: 0 | CL72: 0 | CM72: 0 | CN72: 0 | CO72: 0 | CP72: 0 | CQ72: 0 | CR72: 0 | CS72: 0 | CT72: 0 | CU72: 0 | CV72: 0 | CW72: 0 | CX72: 0 | CY72: 0 | CZ72: 0 | DA72: 0 | DB72: 0 | DC72: 0 | DD72: 0 | DE72: 0 | DF72: 0 | DJ72: <Please select> | DK72: 0
B73: Urinals on Auto-timer | C73: Flushes per day | D73: No. of cisterns | E73: Flow rate (litres/flush) | F73: % of each type | BE73: Feb | BF73: 20 | BG73: 23 | BH73: 2 | BI73: TRUE | BJ73: FALSE | BK73: 0 | BL73: =IF(SUM(BL$51:BL72,BK73)>$BK$4,0,BK73) -> 0 | BM73: 0 | BN73: 0 | BO73: 0 | BP73: 0 | BQ73: 0 | BR73: 0 | BS73: 0 | BT73: 0 | BU73: 0 | BV73: 0 | BW73: 0 | BX73: 0 | BY73: 0 | BZ73: 0 | CA73: 0 | CB73: 0 | CC73: 0 | CD73: 0 | CE73: 0 | CF73: 0 | CG73: 0 | CH73: 0 | CI73: 0 | CJ73: 0 | CK73: 0 | CL73: 0 | CM73: 0 | CN73: 0 | CO73: 0 | CP73: 0 | CQ73: 0 | CR73: 0 | CS73: 0 | CT73: 0 | CU73: 0 | CV73: 0 | CW73: 0 | CX73: 0 | CY73: 0 | CZ73: 0 | DA73: 0 | DB73: 0 | DC73: 0 | DD73: 0 | DE73: 0 | DF73: 0 | DJ73: No showers installed | DK73: 0
B74: Type 1 | BE74: Feb | BF74: 20 | BG74: 24 | BH74: 3 | BI74: TRUE | BJ74: TRUE | BK74: 7.5 | BL74: =IF(SUM(BL$51:BL73,BK74)>$BK$4,0,BK74) -> 7.5 | BM74: 0 | BN74: 0 | BO74: 0 | BP74: 0 | BQ74: 0 | BR74: 0 | BS74: 0 | BT74: 0 | BU74: 0 | BV74: 0 | BW74: 0 | BX74: 0 | BY74: 0 | BZ74: 0 | CA74: 0 | CB74: 0 | CC74: 0 | CD74: 0 | CE74: 0 | CF74: 0 | CG74: 0 | CH74: 0 | CI74: 0 | CJ74: 0 | CK74: 0 | CL74: 0 | CM74: 0 | CN74: 0 | CO74: 0 | CP74: 0 | CQ74: 0 | CR74: 0 | CS74: 0 | CT74: 0 | CU74: 0 | CV74: 0 | CW74: 0 | CX74: 0 | CY74: 0 | CZ74: 0 | DA74: 0 | DB74: 0 | DC74: 0 | DD74: 0 | DE74: 0 | DF74: 0 | DJ74: No significant gym or cyclist facilities | DK74: 0.03
B75: Type 2 | BE75: Feb | BF75: 20 | BG75: 25 | BH75: 4 | BI75: TRUE | BJ75: FALSE | BK75: 0 | BL75: =IF(SUM(BL$51:BL74,BK75)>$BK$4,0,BK75) -> 0 | BM75: 0 | BN75: 0 | BO75: 0 | BP75: 0 | BQ75: 0 | BR75: 0 | BS75: 0 | BT75: 0 | BU75: 0 | BV75: 0 | BW75: 0 | BX75: 0 | BY75: 0 | BZ75: 0 | CA75: 0 | CB75: 0 | CC75: 0 | CD75: 0 | CE75: 0 | CF75: 0 | CG75: 0 | CH75: 0 | CI75: 0 | CJ75: 0 | CK75: 0 | CL75: 0 | CM75: 0 | CN75: 0 | CO75: 0 | CP75: 0 | CQ75: 0 | CR75: 0 | CS75: 0 | CT75: 0 | CU75: 0 | CV75: 0 | CW75: 0 | CX75: 0 | CY75: 0 | CZ75: 0 | DA75: 0 | DB75: 0 | DC75: 0 | DD75: 0 | DE75: 0 | DF75: 0 | DJ75: 1 pt for Tra-3 | DK75: 0.03
B76: =IF(F76<>1,$N$61,"") -> Please complete for 100% of fittings | F76: =SUM(F69:F72)+SUM(F74:F75) -> 0 | BE76: Feb | BF76: 20 | BG76: 26 | BH76: 5 | BI76: TRUE | BJ76: FALSE | BK76: 0 | BL76: =IF(SUM(BL$51:BL75,BK76)>$BK$4,0,BK76) -> 0 | BM76: 0 | BN76: 0 | BO76: 0 | BP76: 0 | BQ76: 0 | BR76: 0 | BS76: 0 | BT76: 0 | BU76: 0 | BV76: 0 | BW76: 0 | BX76: 0 | BY76: 0 | BZ76: 0 | CA76: 0 | CB76: 0 | CC76: 0 | CD76: 0 | CE76: 0 | CF76: 0 | CG76: 0 | CH76: 0 | CI76: 0 | CJ76: 0 | CK76: 0 | CL76: 0 | CM76: 0 | CN76: 0 | CO76: 0 | CP76: 0 | CQ76: 0 | CR76: 0 | CS76: 0 | CT76: 0 | CU76: 0 | CV76: 0 | CW76: 0 | CX76: 0 | CY76: 0 | CZ76: 0 | DA76: 0 | DB76: 0 | DC76: 0 | DD76: 0 | DE76: 0 | DF76: 0 | DJ76: 2 or 3 pts for Tra-3 | DK76: 0.06
B77: Actual Building Predicted Consumtion (m3 / year) | F77: =W60+W61 -> 0 | BE77: Feb | BF77: 20 | BG77: 27 | BH77: 6 | BI77: FALSE | BJ77: FALSE | BK77: 0 | BL77: =IF(SUM(BL$51:BL76,BK77)>$BK$4,0,BK77) -> 0 | BM77: 0 | BN77: 0 | BO77: 0 | BP77: 0 | BQ77: 0 | BR77: 0 | BS77: 0 | BT77: 0 | BU77: 0 | BV77: 0 | BW77: 0 | BX77: 0 | BY77: 0 | BZ77: 0 | CA77: 0 | CB77: 0 | CC77: 0 | CD77: 0 | CE77: 0 | CF77: 0 | CG77: 0 | CH77: 0 | CI77: 0 | CJ77: 0 | CK77: 0 | CL77: 0 | CM77: 0 | CN77: 0 | CO77: 0 | CP77: 0 | CQ77: 0 | CR77: 0 | CS77: 0 | CT77: 0 | CU77: 0 | CV77: 0 | CW77: 0 | CX77: 0 | CY77: 0 | CZ77: 0 | DA77: 0 | DB77: 0 | DC77: 0 | DD77: 0 | DE77: 0 | DF77: 0 | DJ77: Gym area | DK77: 0.8
B78: Notional Building Predicted Consumption (m3 / year) | F78: =AA60 -> 0 | BE78: Feb | BF78: 20 | BG78: 28 | BH78: 7 | BI78: FALSE | BJ78: TRUE | BK78: 7.5 | BL78: =$BK$4-SUM(BL51:BL77) -> 15 | BM78: 0 | BN78: 0 | BO78: 0 | BP78: 0 | BQ78: 0 | BR78: 0 | BS78: 0 | BT78: 0 | BU78: 0 | BV78: 0 | BW78: 0 | BX78: 0 | BY78: 0 | BZ78: 0 | CA78: 0 | CB78: 0 | CC78: 0 | CD78: 0 | CE78: 0 | CF78: 0 | CG78: 0 | CH78: 0 | CI78: 0 | CJ78: 0 | CK78: 0 | CL78: 0 | CM78: 0 | CN78: 0 | CO78: 0 | CP78: 0 | CQ78: 0 | CR78: 0 | CS78: 0 | CT78: 0 | CU78: 0 | CV78: 0 | CW78: 0 | CX78: 0 | CY78: 0 | CZ78: 0 | DA78: 0 | DB78: 0 | DC78: 0 | DD78: 0 | DE78: 0 | DF78: 0
BE79: Mar | BF79: 23 | BG79: 1 | BH79: 1 | BI79: TRUE | BJ79: =MOD(BG79,$BL$7)=0 -> FALSE | BK79: =IF(BJ79,BL$8,0) -> 0 | BL79: =BK79 -> 0 | BM79: 0 | BN79: 0 | BO79: 0 | BP79: =$Q$336/$BF$79*BR$16*$BI79 -> 0 | BQ79: =AQ$371/$BF79*$BI79 -> 0 | BR79: 0 | BS79: =$R$336/$BF79*BU$16*$BI79 -> 0 | BT79: =AR$371/$BF79*$BI79 -> 0 | BU79: 0 | BV79: =$S$336/$BF79*BX$16*$BI79 -> 0 | BW79: =AS$371/$BF79*$BI79 -> 0 | BX79: 0 | BY79: =$T$336/$BF79*CA$16*$BI79 -> 0 | BZ79: =AT$371/$BF79*$BI79 -> 0 | CA79: 0 | CB79: =$W$336/BF79*BI79*$C$419 -> 0 | CC79: =AU$371/$BF79*$BI79 -> 0 | CD79: 0 | CE79: =$X$336/BF79*BI79*$C$420 -> 0 | CF79: =AV$371/$BF79*$BI79 -> 0 | CG79: 0 | CH79: =$Y$336/BF79*BI79*$C$421 -> 0 | CI79: =AW$371/$BF79*$BI79 -> 0 | CJ79: 0 | CK79: =$Z$336/BF79*BI79*$CM$16 -> 0 | CL79: =AX$371/$BF79*$BI79 -> 0 | CM79: 0 | CN79: =$AA$336/BF79*BI79*$CP$16 -> 0 | CO79: =$AY$371/$BF79*$BI79 -> 0 | CP79: 0 | CQ79: =$AB$336/BF79*BI79*$CS$16 -> 0 | CR79: =AZ$371/$BF79*$BI79 -> 0 | CS79: 0 | CT79: =$AC$336/BF79*BI79*$CV$16 -> 0 | CU79: =BA$371/$BF79*$BI79 -> 0 | CV79: 0 | CW79: =$AD$336/BF79*BI79*$CY$16 -> 0 | CX79: =BB$371/$BF79*$BI79 -> 0 | CY79: 0 | CZ79: 0 | DA79: 0 | DB79: 0 | DC79: 0 | DD79: 0 | DE79: 0 | DF79: =IF(DA79-(DE78+CZ79)<0,0,DA79-(DE78+CZ79)) -> 0
B80: Indoor taps | N80: Tap input verification - Check that "Controls" were entered, otherwise flowrate is not included in total | BE80: Mar | BF80: 23 | BG80: 2 | BH80: 2 | BI80: TRUE | BJ80: FALSE | BK80: 0 | BL80: =IF(SUM(BL$79:BL79,BK80)>$BL$4,0,BK80) -> 0 | BM80: 0 | BN80: 0 | BO80: 0 | BP80: 0 | BQ80: 0 | BR80: 0 | BS80: 0 | BT80: 0 | BU80: 0 | BV80: 0 | BW80: 0 | BX80: 0 | BY80: 0 | BZ80: 0 | CA80: 0 | CB80: 0 | CC80: 0 | CD80: 0 | CE80: 0 | CF80: 0 | CG80: 0 | CH80: 0 | CI80: 0 | CJ80: 0 | CK80: 0 | CL80: 0 | CM80: 0 | CN80: 0 | CO80: 0 | CP80: 0 | CQ80: 0 | CR80: 0 | CS80: 0 | CT80: 0 | CU80: 0 | CV80: 0 | CW80: 0 | CX80: 0 | CY80: 0 | CZ80: 0 | DA80: 0 | DB80: 0 | DC80: 0 | DD80: 0 | DE80: 0 | DF80: 0
B81: Type | D81: Controls | E81: Flow rate (litres/min) | F81: % of each type | N81: Flow rate entered | O81: Controls entered | P81: ERROR | U81: Duration per use (min) | BE81: Mar | BF81: 23 | BG81: 3 | BH81: 3 | BI81: TRUE | BJ81: FALSE | BK81: 0 | BL81: =IF(SUM(BL$79:BL80,BK81)>$BL$4,0,BK81) -> 0 | BM81: 0 | BN81: 0 | BO81: 0 | BP81: 0 | BQ81: 0 | BR81: 0 | BS81: 0 | BT81: 0 | BU81: 0 | BV81: 0 | BW81: 0 | BX81: 0 | BY81: 0 | BZ81: 0 | CA81: 0 | CB81: 0 | CC81: 0 | CD81: 0 | CE81: 0 | CF81: 0 | CG81: 0 | CH81: 0 | CI81: 0 | CJ81: 0 | CK81: 0 | CL81: 0 | CM81: 0 | CN81: 0 | CO81: 0 | CP81: 0 | CQ81: 0 | CR81: 0 | CS81: 0 | CT81: 0 | CU81: 0 | CV81: 0 | CW81: 0 | CX81: 0 | CY81: 0 | CZ81: 0 | DA81: 0 | DB81: 0 | DC81: 0 | DD81: 0 | DE81: 0 | DF81: 0
B82: Indoor tap 1 | D82: Manual WHB/Sink tap | N82: =1-ISBLANK(E82) -> 0 | O82: =1-(OR(ISBLANK(D82),D82=$DJ$62)) -> 1 | P82: =IF(N82+O82=1,1,0) -> 1 | U82: =IFERROR(VLOOKUP(D82,$DJ$62:$DN$65,5,FALSE)/60,0) -> 0.15 | BE82: Mar | BF82: 23 | BG82: 4 | BH82: 4 | BI82: TRUE | BJ82: TRUE | BK82: 7.428571429 | BL82: =IF(SUM(BL$79:BL81,BK82)>$BL$4,0,BK82) -> 7.428571429 | BM82: 0 | BN82: 0 | BO82: 0 | BP82: 0 | BQ82: 0 | BR82: 0 | BS82: 0 | BT82: 0 | BU82: 0 | BV82: 0 | BW82: 0 | BX82: 0 | BY82: 0 | BZ82: 0 | CA82: 0 | CB82: 0 | CC82: 0 | CD82: 0 | CE82: 0 | CF82: 0 | CG82: 0 | CH82: 0 | CI82: 0 | CJ82: 0 | CK82: 0 | CL82: 0 | CM82: 0 | CN82: 0 | CO82: 0 | CP82: 0 | CQ82: 0 | CR82: 0 | CS82: 0 | CT82: 0 | CU82: 0 | CV82: 0 | CW82: 0 | CX82: 0 | CY82: 0 | CZ82: 0 | DA82: 0 | DB82: 0 | DC82: 0 | DD82: 0 | DE82: 0 | DF82: 0
B83: Indoor tap 2 | N83: =1-ISBLANK(E83) -> 0 | O83: =1-(OR(ISBLANK(D83),D83=$DJ$62)) -> 0 | P83: =IF(N83+O83=1,1,0) -> 0 | U83: =IFERROR(VLOOKUP(D83,$DJ$62:$DN$65,5,FALSE)/60,0) -> 0 | BE83: Mar | BF83: 23 | BG83: 5 | BH83: 5 | BI83: TRUE | BJ83: FALSE | BK83: 0 | BL83: =IF(SUM(BL$79:BL82,BK83)>$BL$4,0,BK83) -> 0 | BM83: 0 | BN83: 0 | BO83: 0 | BP83: 0 | BQ83: 0 | BR83: 0 | BS83: 0 | BT83: 0 | BU83: 0 | BV83: 0 | BW83: 0 | BX83: 0 | BY83: 0 | BZ83: 0 | CA83: 0 | CB83: 0 | CC83: 0 | CD83: 0 | CE83: 0 | CF83: 0 | CG83: 0 | CH83: 0 | CI83: 0 | CJ83: 0 | CK83: 0 | CL83: 0 | CM83: 0 | CN83: 0 | CO83: 0 | CP83: 0 | CQ83: 0 | CR83: 0 | CS83: 0 | CT83: 0 | CU83: 0 | CV83: 0 | CW83: 0 | CX83: 0 | CY83: 0 | CZ83: 0 | DA83: 0 | DB83: 0 | DC83: 0 | DD83: 0 | DE83: 0 | DF83: 0
B84: Indoor tap 3 | N84: =1-ISBLANK(E84) -> 0 | O84: =1-(OR(ISBLANK(D84),D84=$DJ$62)) -> 0 | P84: =IF(N84+O84=1,1,0) -> 0 | U84: =IFERROR(VLOOKUP(D84,$DJ$62:$DN$65,5,FALSE)/60,0) -> 0 | BE84: Mar | BF84: 23 | BG84: 6 | BH84: 6 | BI84: FALSE | BJ84: FALSE | BK84: 0 | BL84: =IF(SUM(BL$79:BL83,BK84)>$BL$4,0,BK84) -> 0 | BM84: =BL84*$BJ$13 -> 0 | BN84: =$BJ$14*(BL84>0) -> 0 | BO84: 0 | BP84: 0 | BQ84: 0 | BR84: =IF(BP84-(BQ84*$BR$17)>0,BP84-(BQ84*$BR$17),0) -> 0 | BS84: 0 | BT84: 0 | BU84: =IF(BS84-(BT84*BU$17)>0,BS84-(BT84*BU$17),0) -> 0 | BV84: 0 | BW84: 0 | BX84: =IF(BV84-(BW84*BX$17)>0,BV84-(BW84*BX$17),0) -> 0 | BY84: 0 | BZ84: 0 | CA84: =IF(BY84-(BZ84*CA$17)>0,BY84-(BZ84*CA$17),0) -> 0 | CB84: 0 | CC84: 0 | CD84: =IF(CB84-(CC84*CD$17)>0,CB84-(CC84*CD$17),0) -> 0 | CE84: 0 | CF84: 0 | CG84: =IF(CE84-(CF84*CG$17)>0,CE84-(CF84*CG$17),0) -> 0 | CH84: 0 | CI84: 0 | CJ84: =IF(CH84-(CI84*CJ$17)>0,CH84-(CI84*CJ$17),0) -> 0 | CK84: 0 | CL84: 0 | CM84: =IF(CK84-(CL84*CM$17)>0,CK84-(CL84*CM$17),0) -> 0 | CN84: 0 | CO84: 0 | CP84: =IF(CN84-(CO84*CP$17)>0,CN84-(CO84*CP$17),0) -> 0 | CQ84: 0 | CR84: 0 | CS84: =IF(CQ84-(CR84*CS$17)>0,CQ84-(CR84*CS$17),0) -> 0 | CT84: 0 | CU84: 0 | CV84: =IF(CT84-(CU84*CV$17)>0,CT84-(CU84*CV$17),0) -> 0 | CW84: 0 | CX84: 0 | CY84: =IF(CW84-(CX84*CY$17)>0,CW84-(CX84*CY$17),0) -> 0 | CZ84: =BO84 -> 0 | DA84: 0 | DB84: 0 | DC84: 0 | DD84: 0 | DE84: 0 | DF84: 0
B85: Indoor tap 4 | N85: =1-ISBLANK(E85) -> 0 | O85: =1-(OR(ISBLANK(D85),D85=$DJ$62)) -> 0 | P85: =IF(N85+O85=1,1,0) -> 0 | U85: =IFERROR(VLOOKUP(D85,$DJ$62:$DN$65,5,FALSE)/60,0) -> 0 | BE85: Mar | BF85: 23 | BG85: 7 | BH85: 7 | BI85: =BH85<=5 -> FALSE | BJ85: FALSE | BK85: 0 | BL85: =IF(SUM(BL$79:BL84,BK85)>$BL$4,0,BK85) -> 0 | BM85: 0 | BN85: 0 | BO85: 0 | BP85: 0 | BQ85: 0 | BR85: 0 | BS85: 0 | BT85: 0 | BU85: 0 | BV85: 0 | BW85: 0 | BX85: 0 | BY85: 0 | BZ85: 0 | CA85: 0 | CB85: 0 | CC85: 0 | CD85: 0 | CE85: 0 | CF85: 0 | CG85: 0 | CH85: 0 | CI85: 0 | CJ85: 0 | CK85: 0 | CL85: 0 | CM85: 0 | CN85: 0 | CO85: 0 | CP85: 0 | CQ85: 0 | CR85: 0 | CS85: 0 | CT85: 0 | CU85: 0 | CV85: 0 | CW85: 0 | CX85: 0 | CY85: 0 | CZ85: 0 | DA85: =BR85+BU85+BX85+CA85+CD85+CG85+CJ85+CM85+CP85+CS85+CV85+CY85 -> 0 | DB85: =CZ85-DA85 -> 0 | DC85: =IF(DC84+$DB85<0,0,IF(DC84+$DB85>$F$405,$F$405,DC84+$DB85)) -> 0 | DD85: 0 | DE85: 0 | DF85: 0
B86: =IF(F86<>1,$N$61,"") -> Please complete for 100% of fittings | F86: =SUM(F82:F85) -> 0 | G86: =IF(SUM(P82:P85)>0,N87,"") -> Please specify flow rate and controls for each different indoor tap type | BE86: Mar | BF86: 23 | BG86: 8 | BH86: 1 | BI86: TRUE | BJ86: TRUE | BK86: 7.428571429 | BL86: =IF(SUM(BL$79:BL85,BK86)>$BL$4,0,BK86) -> 7.428571429 | BM86: 0 | BN86: 0 | BO86: 0 | BP86: 0 | BQ86: 0 | BR86: 0 | BS86: 0 | BT86: 0 | BU86: 0 | BV86: 0 | BW86: 0 | BX86: 0 | BY86: 0 | BZ86: 0 | CA86: 0 | CB86: 0 | CC86: 0 | CD86: 0 | CE86: 0 | CF86: 0 | CG86: 0 | CH86: 0 | CI86: 0 | CJ86: 0 | CK86: 0 | CL86: 0 | CM86: 0 | CN86: 0 | CO86: 0 | CP86: 0 | CQ86: 0 | CR86: 0 | CS86: 0 | CT86: 0 | CU86: 0 | CV86: 0 | CW86: 0 | CX86: 0 | CY86: 0 | CZ86: 0 | DA86: 0 | DB86: 0 | DC86: 0 | DD86: 0 | DE86: 0 | DF86: =IF(DA86-(DE85+CZ86)<0,0,DA86-(DE85+CZ86)) -> 0
B87: Actual Building Predicted Consumtion (m3 / year) | F87: =W62 -> 0 | N87: Please specify flow rate and controls for each different indoor tap type | BE87: Mar | BF87: 23 | BG87: 9 | BH87: 2 | BI87: TRUE | BJ87: FALSE | BK87: 0 | BL87: =IF(SUM(BL$79:BL86,BK87)>$BL$4,0,BK87) -> 0 | BM87: 0 | BN87: 0 | BO87: 0 | BP87: 0 | BQ87: 0 | BR87: 0 | BS87: 0 | BT87: 0 | BU87: 0 | BV87: 0 | BW87: 0 | BX87: 0 | BY87: 0 | BZ87: 0 | CA87: 0 | CB87: 0 | CC87: 0 | CD87: 0 | CE87: 0 | CF87: 0 | CG87: 0 | CH87: 0 | CI87: 0 | CJ87: 0 | CK87: 0 | CL87: 0 | CM87: 0 | CN87: 0 | CO87: 0 | CP87: 0 | CQ87: 0 | CR87: 0 | CS87: 0 | CT87: 0 | CU87: 0 | CV87: 0 | CW87: 0 | CX87: 0 | CY87: 0 | CZ87: 0 | DA87: 0 | DB87: 0 | DC87: 0 | DD87: 0 | DE87: 0 | DF87: 0
B88: Notional Building Predicted Consumption (m3 / year) | F88: =AA62 -> 0 | BE88: Mar | BF88: 23 | BG88: 10 | BH88: 3 | BI88: TRUE | BJ88: FALSE | BK88: 0 | BL88: =IF(SUM(BL$79:BL87,BK88)>$BL$4,0,BK88) -> 0 | BM88: 0 | BN88: 0 | BO88: 0 | BP88: 0 | BQ88: 0 | BR88: 0 | BS88: 0 | BT88: 0 | BU88: 0 | BV88: 0 | BW88: 0 | BX88: 0 | BY88: 0 | BZ88: 0 | CA88: 0 | CB88: 0 | CC88: 0 | CD88: 0 | CE88: 0 | CF88: 0 | CG88: 0 | CH88: 0 | CI88: 0 | CJ88: 0 | CK88: 0 | CL88: 0 | CM88: 0 | CN88: 0 | CO88: 0 | CP88: 0 | CQ88: 0 | CR88: 0 | CS88: 0 | CT88: 0 | CU88: 0 | CV88: 0 | CW88: 0 | CX88: 0 | CY88: 0 | CZ88: 0 | DA88: 0 | DB88: 0 | DC88: 0 | DD88: 0 | DE88: 0 | DF88: 0
BE89: Mar | BF89: 23 | BG89: 11 | BH89: 4 | BI89: TRUE | BJ89: FALSE | BK89: 0 | BL89: =IF(SUM(BL$79:BL88,BK89)>$BL$4,0,BK89) -> 0 | BM89: 0 | BN89: 0 | BO89: =BM89-BN89 -> 0 | BP89: 0 | BQ89: 0 | BR89: 0 | BS89: 0 | BT89: 0 | BU89: 0 | BV89: 0 | BW89: 0 | BX89: 0 | BY89: 0 | BZ89: 0 | CA89: 0 | CB89: 0 | CC89: 0 | CD89: 0 | CE89: 0 | CF89: 0 | CG89: 0 | CH89: 0 | CI89: 0 | CJ89: 0 | CK89: 0 | CL89: 0 | CM89: 0 | CN89: 0 | CO89: 0 | CP89: 0 | CQ89: 0 | CR89: 0 | CS89: 0 | CT89: 0 | CU89: 0 | CV89: 0 | CW89: 0 | CX89: 0 | CY89: 0 | CZ89: 0 | DA89: 0 | DB89: 0 | DC89: 0 | DD89: 0 | DE89: 0 | DF89: 0
B90: Showers | BE90: Mar | BF90: 23 | BG90: 12 | BH90: 5 | BI90: TRUE | BJ90: TRUE | BK90: 7.428571429 | BL90: =IF(SUM(BL$79:BL89,BK90)>$BL$4,0,BK90) -> 7.428571429 | BM90: 0 | BN90: 0 | BO90: 0 | BP90: 0 | BQ90: 0 | BR90: 0 | BS90: 0 | BT90: 0 | BU90: 0 | BV90: 0 | BW90: 0 | BX90: 0 | BY90: 0 | BZ90: 0 | CA90: 0 | CB90: 0 | CC90: 0 | CD90: 0 | CE90: 0 | CF90: 0 | CG90: 0 | CH90: 0 | CI90: 0 | CJ90: 0 | CK90: 0 | CL90: 0 | CM90: 0 | CN90: 0 | CO90: 0 | CP90: 0 | CQ90: 0 | CR90: 0 | CS90: 0 | CT90: 0 | CU90: 0 | CV90: 0 | CW90: 0 | CX90: 0 | CY90: 0 | CZ90: 0 | DA90: 0 | DB90: 0 | DC90: 0 | DD90: 0 | DE90: 0 | DF90: 0
B91: Please select expected anticipated shower usage | E91: <Please select> | G91: ERROR: PLEASE SELECT SHOWER USAGE | N91: No shower usage selected, but there are occupants | BE91: Mar | BF91: 23 | BG91: 13 | BH91: 6 | BI91: FALSE | BJ91: FALSE | BK91: 0 | BL91: =IF(SUM(BL$79:BL90,BK91)>$BL$4,0,BK91) -> 0 | BM91: 0 | BN91: 0 | BO91: 0 | BP91: 0 | BQ91: 0 | BR91: 0 | BS91: 0 | BT91: 0 | BU91: 0 | BV91: 0 | BW91: 0 | BX91: 0 | BY91: 0 | BZ91: 0 | CA91: 0 | CB91: 0 | CC91: 0 | CD91: 0 | CE91: 0 | CF91: 0 | CG91: 0 | CH91: 0 | CI91: 0 | CJ91: 0 | CK91: 0 | CL91: 0 | CM91: 0 | CN91: 0 | CO91: 0 | CP91: 0 | CQ91: 0 | CR91: 0 | CS91: 0 | CT91: 0 | CU91: 0 | CV91: 0 | CW91: 0 | CX91: 0 | CY91: 0 | CZ91: 0 | DA91: 0 | DB91: 0 | DC91: 0 | DD91: 0 | DE91: 0 | DF91: 0
B92: Type | E92: Flow rate (litres/min) | F92: % of each type | N92: =(AND(SUM(G13:G27)>0,E91=DJ72,(SUM(E93:F95)>0))) -> FALSE | BE92: Mar | BF92: 23 | BG92: 14 | BH92: 7 | BI92: FALSE | BJ92: FALSE | BK92: 0 | BL92: =IF(SUM(BL$79:BL91,BK92)>$BL$4,0,BK92) -> 0 | BM92: 0 | BN92: 0 | BO92: 0 | BP92: 0 | BQ92: 0 | BR92: 0 | BS92: 0 | BT92: 0 | BU92: 0 | BV92: 0 | BW92: 0 | BX92: 0 | BY92: 0 | BZ92: 0 | CA92: 0 | CB92: 0 | CC92: 0 | CD92: 0 | CE92: 0 | CF92: 0 | CG92: 0 | CH92: 0 | CI92: 0 | CJ92: 0 | CK92: 0 | CL92: 0 | CM92: 0 | CN92: 0 | CO92: 0 | CP92: 0 | CQ92: 0 | CR92: 0 | CS92: 0 | CT92: 0 | CU92: 0 | CV92: 0 | CW92: 0 | CX92: 0 | CY92: 0 | CZ92: 0 | DA92: 0 | DB92: 0 | DC92: 0 | DD92: 0 | DE92: 0 | DF92: 0
B93: Shower 1 | G93: ERROR: SHOWER FLOW RATES HAVE BEEN ENTERED, BUT NO OCCUPANTS HAVE ACCESS TO SHOWER UNDER BUIDLING INPUTS. PLEASE CHECK 'BUILDING INFORMATION INPUT' | N93: Number of occupants with access to shower defined | BE93: Mar | BF93: 23 | BG93: 15 | BH93: 1 | BI93: TRUE | BJ93: FALSE | BK93: 0 | BL93: =IF(SUM(BL$79:BL92,BK93)>$BL$4,0,BK93) -> 0 | BM93: 0 | BN93: 0 | BO93: 0 | BP93: 0 | BQ93: 0 | BR93: 0 | BS93: 0 | BT93: 0 | BU93: 0 | BV93: 0 | BW93: 0 | BX93: 0 | BY93: 0 | BZ93: 0 | CA93: 0 | CB93: 0 | CC93: 0 | CD93: 0 | CE93: 0 | CF93: 0 | CG93: 0 | CH93: 0 | CI93: 0 | CJ93: 0 | CK93: 0 | CL93: 0 | CM93: 0 | CN93: 0 | CO93: 0 | CP93: 0 | CQ93: 0 | CR93: 0 | CS93: 0 | CT93: 0 | CU93: 0 | CV93: 0 | CW93: 0 | CX93: 0 | CY93: 0 | CZ93: 0 | DA93: 0 | DB93: 0 | DC93: 0 | DD93: 0 | DE93: 0 | DF93: 0
B94: Shower 2 | N94: =AND(SUM(E93:F95)>0,SUM(G13:G27)=0) -> FALSE | BE94: Mar | BF94: 23 | BG94: 16 | BH94: 2 | BI94: TRUE | BJ94: TRUE | BK94: 7.428571429 | BL94: =IF(SUM(BL$79:BL93,BK94)>$BL$4,0,BK94) -> 7.428571429 | BM94: 0 | BN94: 0 | BO94: 0 | BP94: 0 | BQ94: 0 | BR94: 0 | BS94: 0 | BT94: 0 | BU94: 0 | BV94: 0 | BW94: 0 | BX94: 0 | BY94: 0 | BZ94: 0 | CA94: 0 | CB94: 0 | CC94: 0 | CD94: 0 | CE94: 0 | CF94: 0 | CG94: 0 | CH94: 0 | CI94: 0 | CJ94: 0 | CK94: 0 | CL94: 0 | CM94: 0 | CN94: 0 | CO94: 0 | CP94: 0 | CQ94: 0 | CR94: 0 | CS94: 0 | CT94: 0 | CU94: 0 | CV94: 0 | CW94: 0 | CX94: 0 | CY94: 0 | CZ94: 0 | DA94: 0 | DB94: 0 | DC94: 0 | DD94: 0 | DE94: 0 | DF94: 0
B95: Shower 3 | BE95: Mar | BF95: 23 | BG95: 17 | BH95: 3 | BI95: TRUE | BJ95: FALSE | BK95: 0 | BL95: =IF(SUM(BL$79:BL94,BK95)>$BL$4,0,BK95) -> 0 | BM95: 0 | BN95: 0 | BO95: 0 | BP95: 0 | BQ95: 0 | BR95: 0 | BS95: 0 | BT95: 0 | BU95: 0 | BV95: 0 | BW95: 0 | BX95: 0 | BY95: 0 | BZ95: 0 | CA95: 0 | CB95: 0 | CC95: 0 | CD95: 0 | CE95: 0 | CF95: 0 | CG95: 0 | CH95: 0 | CI95: 0 | CJ95: 0 | CK95: 0 | CL95: 0 | CM95: 0 | CN95: 0 | CO95: 0 | CP95: 0 | CQ95: 0 | CR95: 0 | CS95: 0 | CT95: 0 | CU95: 0 | CV95: 0 | CW95: 0 | CX95: 0 | CY95: 0 | CZ95: 0 | DA95: 0 | DB95: 0 | DC95: 0 | DD95: 0 | DE95: 0 | DF95: 0
B96: =IF(F96<>1,$N$61,"") -> Please complete for 100% of fittings | F96: =SUM(F93:F95) -> 0 | BE96: Mar | BF96: 23 | BG96: 18 | BH96: 4 | BI96: TRUE | BJ96: FALSE | BK96: 0 | BL96: =IF(SUM(BL$79:BL95,BK96)>$BL$4,0,BK96) -> 0 | BM96: 0 | BN96: 0 | BO96: 0 | BP96: 0 | BQ96: 0 | BR96: 0 | BS96: 0 | BT96: 0 | BU96: 0 | BV96: 0 | BW96: 0 | BX96: 0 | BY96: 0 | BZ96: 0 | CA96: 0 | CB96: 0 | CC96: 0 | CD96: 0 | CE96: 0 | CF96: 0 | CG96: 0 | CH96: 0 | CI96: 0 | CJ96: 0 | CK96: 0 | CL96: 0 | CM96: 0 | CN96: 0 | CO96: 0 | CP96: 0 | CQ96: 0 | CR96: 0 | CS96: 0 | CT96: 0 | CU96: 0 | CV96: 0 | CW96: 0 | CX96: 0 | CY96: 0 | CZ96: 0 | DA96: 0 | DB96: 0 | DC96: 0 | DD96: 0 | DE96: 0 | DF96: 0
B97: Actual Building Predicted Consumtion (m3 / year) | F97: =W63 -> 0 | BE97: Mar | BF97: 23 | BG97: 19 | BH97: 5 | BI97: TRUE | BJ97: FALSE | BK97: 0 | BL97: =IF(SUM(BL$79:BL96,BK97)>$BL$4,0,BK97) -> 0 | BM97: 0 | BN97: 0 | BO97: 0 | BP97: 0 | BQ97: 0 | BR97: 0 | BS97: 0 | BT97: 0 | BU97: 0 | BV97: 0 | BW97: 0 | BX97: 0 | BY97: 0 | BZ97: 0 | CA97: 0 | CB97: 0 | CC97: 0 | CD97: 0 | CE97: 0 | CF97: 0 | CG97: 0 | CH97: 0 | CI97: 0 | CJ97: 0 | CK97: 0 | CL97: 0 | CM97: 0 | CN97: 0 | CO97: 0 | CP97: 0 | CQ97: 0 | CR97: 0 | CS97: 0 | CT97: 0 | CU97: 0 | CV97: 0 | CW97: 0 | CX97: 0 | CY97: 0 | CZ97: 0 | DA97: 0 | DB97: 0 | DC97: 0 | DD97: 0 | DE97: 0 | DF97: 0
B98: Notional Building Predicted Consumption (m3 / year) | F98: =AA63 -> 0 | BE98: Mar | BF98: 23 | BG98: 20 | BH98: 6 | BI98: FALSE | BJ98: TRUE | BK98: 7.428571429 | BL98: =IF(SUM(BL$79:BL97,BK98)>$BL$4,0,BK98) -> 7.428571429 | BM98: 0 | BN98: 0 | BO98: 0 | BP98: 0 | BQ98: 0 | BR98: 0 | BS98: 0 | BT98: 0 | BU98: 0 | BV98: 0 | BW98: 0 | BX98: 0 | BY98: 0 | BZ98: 0 | CA98: 0 | CB98: 0 | CC98: 0 | CD98: 0 | CE98: 0 | CF98: 0 | CG98: 0 | CH98: 0 | CI98: 0 | CJ98: 0 | CK98: 0 | CL98: 0 | CM98: 0 | CN98: 0 | CO98: 0 | CP98: 0 | CQ98: 0 | CR98: 0 | CS98: 0 | CT98: 0 | CU98: 0 | CV98: 0 | CW98: 0 | CX98: 0 | CY98: 0 | CZ98: 0 | DA98: 0 | DB98: 0 | DC98: 0 | DD98: 0 | DE98: 0 | DF98: 0
BE99: Mar | BF99: 23 | BG99: 21 | BH99: 7 | BI99: FALSE | BJ99: FALSE | BK99: 0 | BL99: =IF(SUM(BL$79:BL98,BK99)>$BL$4,0,BK99) -> 0 | BM99: 0 | BN99: 0 | BO99: 0 | BP99: 0 | BQ99: 0 | BR99: 0 | BS99: 0 | BT99: 0 | BU99: 0 | BV99: 0 | BW99: 0 | BX99: 0 | BY99: 0 | BZ99: 0 | CA99: 0 | CB99: 0 | CC99: 0 | CD99: 0 | CE99: 0 | CF99: 0 | CG99: 0 | CH99: 0 | CI99: 0 | CJ99: 0 | CK99: 0 | CL99: 0 | CM99: 0 | CN99: 0 | CO99: 0 | CP99: 0 | CQ99: 0 | CR99: 0 | CS99: 0 | CT99: 0 | CU99: 0 | CV99: 0 | CW99: 0 | CX99: 0 | CY99: 0 | CZ99: 0 | DA99: 0 | DB99: 0 | DC99: 0 | DD99: 0 | DE99: 0 | DF99: 0
BE100: Mar | BF100: 23 | BG100: 22 | BH100: 1 | BI100: TRUE | BJ100: FALSE | BK100: 0 | BL100: =IF(SUM(BL$79:BL99,BK100)>$BL$4,0,BK100) -> 0 | BM100: 0 | BN100: 0 | BO100: 0 | BP100: 0 | BQ100: 0 | BR100: 0 | BS100: 0 | BT100: 0 | BU100: 0 | BV100: 0 | BW100: 0 | BX100: 0 | BY100: 0 | BZ100: 0 | CA100: 0 | CB100: 0 | CC100: 0 | CD100: 0 | CE100: 0 | CF100: 0 | CG100: 0 | CH100: 0 | CI100: 0 | CJ100: 0 | CK100: 0 | CL100: 0 | CM100: 0 | CN100: 0 | CO100: 0 | CP100: 0 | CQ100: 0 | CR100: 0 | CS100: 0 | CT100: 0 | CU100: 0 | CV100: 0 | CW100: 0 | CX100: 0 | CY100: 0 | CZ100: 0 | DA100: 0 | DB100: 0 | DC100: 0 | DD100: 0 | DE100: 0 | DF100: 0
B101: Summary of occupant amenity water consumption | BE101: Mar | BF101: 23 | BG101: 23 | BH101: 2 | BI101: TRUE | BJ101: FALSE | BK101: 0 | BL101: =IF(SUM(BL$79:BL100,BK101)>$BL$4,0,BK101) -> 0 | BM101: 0 | BN101: 0 | BO101: 0 | BP101: 0 | BQ101: 0 | BR101: 0 | BS101: 0 | BT101: 0 | BU101: 0 | BV101: 0 | BW101: 0 | BX101: 0 | BY101: 0 | BZ101: 0 | CA101: 0 | CB101: 0 | CC101: 0 | CD101: 0 | CE101: 0 | CF101: 0 | CG101: 0 | CH101: 0 | CI101: 0 | CJ101: 0 | CK101: 0 | CL101: 0 | CM101: 0 | CN101: 0 | CO101: 0 | CP101: 0 | CQ101: 0 | CR101: 0 | CS101: 0 | CT101: 0 | CU101: 0 | CV101: 0 | CW101: 0 | CX101: 0 | CY101: 0 | CZ101: 0 | DA101: 0 | DB101: 0 | DC101: 0 | DD101: 0 | DE101: 0 | DF101: 0
BE102: Mar | BF102: 23 | BG102: 24 | BH102: 3 | BI102: TRUE | BJ102: TRUE | BK102: 7.428571429 | BL102: =IF(SUM(BL$79:BL101,BK102)>$BL$4,0,BK102) -> 7.428571429 | BM102: 0 | BN102: 0 | BO102: 0 | BP102: 0 | BQ102: 0 | BR102: 0 | BS102: 0 | BT102: 0 | BU102: 0 | BV102: 0 | BW102: 0 | BX102: 0 | BY102: 0 | BZ102: 0 | CA102: 0 | CB102: 0 | CC102: 0 | CD102: 0 | CE102: 0 | CF102: 0 | CG102: 0 | CH102: 0 | CI102: 0 | CJ102: 0 | CK102: 0 | CL102: 0 | CM102: 0 | CN102: 0 | CO102: 0 | CP102: 0 | CQ102: 0 | CR102: 0 | CS102: 0 | CT102: 0 | CU102: 0 | CV102: 0 | CW102: 0 | CX102: 0 | CY102: 0 | CZ102: 0 | DA102: 0 | DB102: 0 | DC102: 0 | DD102: 0 | DE102: 0 | DF102: 0
C103: =$T$56 -> Actual Building | D103: =$X$56 -> Notional Building | BE103: Mar | BF103: 23 | BG103: 25 | BH103: 4 | BI103: TRUE | BJ103: FALSE | BK103: 0 | BL103: =IF(SUM(BL$79:BL102,BK103)>$BL$4,0,BK103) -> 0 | BM103: 0 | BN103: 0 | BO103: 0 | BP103: 0 | BQ103: 0 | BR103: 0 | BS103: 0 | BT103: 0 | BU103: 0 | BV103: 0 | BW103: 0 | BX103: 0 | BY103: 0 | BZ103: 0 | CA103: 0 | CB103: 0 | CC103: 0 | CD103: 0 | CE103: 0 | CF103: 0 | CG103: 0 | CH103: 0 | CI103: 0 | CJ103: 0 | CK103: 0 | CL103: 0 | CM103: 0 | CN103: 0 | CO103: 0 | CP103: 0 | CQ103: 0 | CR103: 0 | CS103: 0 | CT103: 0 | CU103: 0 | CV103: 0 | CW103: 0 | CX103: 0 | CY103: 0 | CZ103: 0 | DA103: 0 | DB103: 0 | DC103: 0 | DD103: 0 | DE103: 0 | DF103: 0
C104: (m3 per year) | D104: =C104 -> (m3 per year) | BE104: Mar | BF104: 23 | BG104: 26 | BH104: 5 | BI104: TRUE | BJ104: FALSE | BK104: 0 | BL104: =IF(SUM(BL$79:BL103,BK104)>$BL$4,0,BK104) -> 0 | BM104: 0 | BN104: 0 | BO104: 0 | BP104: 0 | BQ104: 0 | BR104: 0 | BS104: 0 | BT104: 0 | BU104: 0 | BV104: 0 | BW104: 0 | BX104: 0 | BY104: 0 | BZ104: 0 | CA104: 0 | CB104: 0 | CC104: 0 | CD104: 0 | CE104: 0 | CF104: 0 | CG104: 0 | CH104: 0 | CI104: 0 | CJ104: 0 | CK104: 0 | CL104: 0 | CM104: 0 | CN104: 0 | CO104: 0 | CP104: 0 | CQ104: 0 | CR104: 0 | CS104: 0 | CT104: 0 | CU104: 0 | CV104: 0 | CW104: 0 | CX104: 0 | CY104: 0 | CZ104: 0 | DA104: 0 | DB104: 0 | DC104: 0 | DD104: 0 | DE104: 0 | DF104: 0
B105: =B56 -> WC | C105: =F63 -> 0 | D105: =F64 -> 0 | BE105: Mar | BF105: 23 | BG105: 27 | BH105: 6 | BI105: FALSE | BJ105: FALSE | BK105: 0 | BL105: =IF(SUM(BL$79:BL104,BK105)>$BL$4,0,BK105) -> 0 | BM105: 0 | BN105: 0 | BO105: 0 | BP105: 0 | BQ105: 0 | BR105: 0 | BS105: 0 | BT105: 0 | BU105: 0 | BV105: 0 | BW105: 0 | BX105: 0 | BY105: 0 | BZ105: 0 | CA105: 0 | CB105: 0 | CC105: 0 | CD105: 0 | CE105: 0 | CF105: 0 | CG105: 0 | CH105: 0 | CI105: 0 | CJ105: 0 | CK105: 0 | CL105: 0 | CM105: 0 | CN105: 0 | CO105: 0 | CP105: 0 | CQ105: 0 | CR105: 0 | CS105: 0 | CT105: 0 | CU105: 0 | CV105: 0 | CW105: 0 | CX105: 0 | CY105: 0 | CZ105: 0 | DA105: 0 | DB105: 0 | DC105: 0 | DD105: 0 | DE105: 0 | DF105: 0
B106: Urinals | C106: =F77 -> 0 | D106: =F78 -> 0 | BE106: Mar | BF106: 23 | BG106: 28 | BH106: 7 | BI106: FALSE | BJ106: TRUE | BK106: 7.428571429 | BL106: =IF(SUM(BL$79:BL105,BK106)>$BL$4,0,BK106) -> 7.428571429 | BM106: 0 | BN106: 0 | BO106: 0 | BP106: 0 | BQ106: 0 | BR106: 0 | BS106: 0 | BT106: 0 | BU106: 0 | BV106: 0 | BW106: 0 | BX106: 0 | BY106: 0 | BZ106: 0 | CA106: 0 | CB106: 0 | CC106: 0 | CD106: 0 | CE106: 0 | CF106: 0 | CG106: 0 | CH106: 0 | CI106: 0 | CJ106: 0 | CK106: 0 | CL106: 0 | CM106: 0 | CN106: 0 | CO106: 0 | CP106: 0 | CQ106: 0 | CR106: 0 | CS106: 0 | CT106: 0 | CU106: 0 | CV106: 0 | CW106: 0 | CX106: 0 | CY106: 0 | CZ106: 0 | DA106: 0 | DB106: 0 | DC106: 0 | DD106: 0 | DE106: 0 | DF106: 0
B107: Indoor taps | C107: =F87 -> 0 | D107: =F88 -> 0 | BE107: Mar | BF107: 23 | BG107: 29 | BH107: 1 | BI107: TRUE | BJ107: FALSE | BK107: 0 | BL107: =IF(SUM(BL$79:BL106,BK107)>$BL$4,0,BK107) -> 0 | BM107: 0 | BN107: 0 | BO107: 0 | BP107: 0 | BQ107: 0 | BR107: 0 | BS107: 0 | BT107: 0 | BU107: 0 | BV107: 0 | BW107: 0 | BX107: 0 | BY107: 0 | BZ107: 0 | CA107: 0 | CB107: 0 | CC107: 0 | CD107: 0 | CE107: 0 | CF107: 0 | CG107: 0 | CH107: 0 | CI107: 0 | CJ107: 0 | CK107: 0 | CL107: 0 | CM107: 0 | CN107: 0 | CO107: 0 | CP107: 0 | CQ107: 0 | CR107: 0 | CS107: 0 | CT107: 0 | CU107: 0 | CV107: 0 | CW107: 0 | CX107: 0 | CY107: 0 | CZ107: 0 | DA107: 0 | DB107: 0 | DC107: 0 | DD107: 0 | DE107: 0 | DF107: 0
B108: Showers | C108: =F97 -> 0 | D108: =F98 -> 0 | BE108: Mar | BF108: 23 | BG108: 30 | BH108: 2 | BI108: TRUE | BJ108: FALSE | BK108: 0 | BL108: =IF(SUM(BL$79:BL107,BK108)>$BL$4,0,BK108) -> 0 | BM108: 0 | BN108: 0 | BO108: 0 | BP108: 0 | BQ108: 0 | BR108: 0 | BS108: 0 | BT108: 0 | BU108: 0 | BV108: 0 | BW108: 0 | BX108: 0 | BY108: 0 | BZ108: 0 | CA108: 0 | CB108: 0 | CC108: 0 | CD108: 0 | CE108: 0 | CF108: 0 | CG108: 0 | CH108: 0 | CI108: 0 | CJ108: 0 | CK108: 0 | CL108: 0 | CM108: 0 | CN108: 0 | CO108: 0 | CP108: 0 | CQ108: 0 | CR108: 0 | CS108: 0 | CT108: 0 | CU108: 0 | CV108: 0 | CW108: 0 | CX108: 0 | CY108: 0 | CZ108: 0 | DA108: 0 | DB108: 0 | DC108: 0 | DD108: 0 | DE108: 0 | DF108: 0
C109: =SUM(C105:C108) -> 0 | D109: =SUM(D105:D108) -> 0 | BE109: Mar | BF109: 23 | BG109: 31 | BH109: 3 | BI109: TRUE | BJ109: FALSE | BK109: 0 | BL109: =$BL$4-SUM(BL79:BL108) -> 0 | BM109: 0 | BN109: 0 | BO109: 0 | BP109: 0 | BQ109: 0 | BR109: 0 | BS109: 0 | BT109: 0 | BU109: 0 | BV109: 0 | BW109: 0 | BX109: 0 | BY109: 0 | BZ109: 0 | CA109: 0 | CB109: 0 | CC109: 0 | CD109: 0 | CE109: 0 | CF109: 0 | CG109: 0 | CH109: 0 | CI109: 0 | CJ109: 0 | CK109: 0 | CL109: 0 | CM109: 0 | CN109: 0 | CO109: 0 | CP109: 0 | CQ109: 0 | CR109: 0 | CS109: 0 | CT109: 0 | CU109: 0 | CV109: 0 | CW109: 0 | CX109: 0 | CY109: 0 | CZ109: 0 | DA109: 0 | DB109: 0 | DC109: 0 | DD109: 0 | DE109: 0 | DF109: 0
BE110: Apr | BF110: 22 | BG110: 1 | BH110: 4 | BI110: TRUE | BJ110: =MOD(BG110,$BM$7)=0 -> FALSE | BK110: =IF(BJ110,BM$8,0) -> 0 | BL110: =BK110 -> 0 | BM110: 0 | BN110: 0 | BO110: 0 | BP110: =$Q$337/$BF$110*BR$16*$BI110 -> 0 | BQ110: =AQ$372/$BF110*$BI110 -> 0 | BR110: 0 | BS110: =$R$337/$BF110*BU$16*$BI110 -> 0 | BT110: =AR$372/$BF110*$BI110 -> 0 | BU110: 0 | BV110: =$S$337/$BF110*BX$16*$BI110 -> 0 | BW110: =AS$372/$BF110*$BI110 -> 0 | BX110: 0 | BY110: =$T$337/$BF110*CA$16*$BI110 -> 0 | BZ110: =AT$372/$BF110*$BI110 -> 0 | CA110: 0 | CB110: =$W$337/BF110*BI110*$C$419 -> 0 | CC110: =AU$372/$BF110*$BI110 -> 0 | CD110: 0 | CE110: =$X$337/BF110*BI110*$C$420 -> 0 | CF110: =AV$372/$BF110*$BI110 -> 0 | CG110: 0 | CH110: =$Y$337/BF110*BI110*$C$421 -> 0 | CI110: =AW$372/$BF110*$BI110 -> 0 | CJ110: 0 | CK110: =$Z$337/BF110*BI110*$CM$16 -> 0 | CL110: =AX$372/$BF110*$BI110 -> 0 | CM110: 0 | CN110: =$AA$337/BF110*BI110*$CP$16 -> 0 | CO110: =$AY$372/$BF110*$BI110 -> 0 | CP110: 0 | CQ110: =$AB$337/BF110*BI110*$CS$16 -> 0 | CR110: =AZ$372/$BF110*$BI110 -> 0 | CS110: 0 | CT110: =$AC$337/BF110*BI110*$CV$16 -> 0 | CU110: =BA$372/$BF110*$BI110 -> 0 | CV110: 0 | CW110: =$AD$337/BF110*BI110*$CY$16 -> 0 | CX110: =BB$372/$BF110*$BI110 -> 0 | CY110: 0 | CZ110: 0 | DA110: 0 | DB110: 0 | DC110: 0 | DD110: 0 | DE110: 0 | DF110: =IF(DA110-(DE109+CZ110)<0,0,DA110-(DE109+CZ110)) -> 0
BE111: Apr | BF111: 22 | BG111: 2 | BH111: 5 | BI111: TRUE | BJ111: FALSE | BK111: 0 | BL111: =IF(SUM(BL$110:BL110,BK111)>$BM$4,0,BK111) -> 0 | BM111: 0 | BN111: 0 | BO111: 0 | BP111: 0 | BQ111: 0 | BR111: 0 | BS111: 0 | BT111: 0 | BU111: 0 | BV111: 0 | BW111: 0 | BX111: 0 | BY111: 0 | BZ111: 0 | CA111: 0 | CB111: 0 | CC111: 0 | CD111: 0 | CE111: 0 | CF111: 0 | CG111: 0 | CH111: 0 | CI111: 0 | CJ111: 0 | CK111: 0 | CL111: 0 | CM111: 0 | CN111: 0 | CO111: 0 | CP111: 0 | CQ111: 0 | CR111: 0 | CS111: 0 | CT111: 0 | CU111: 0 | CV111: 0 | CW111: 0 | CX111: 0 | CY111: 0 | CZ111: 0 | DA111: 0 | DB111: 0 | DC111: 0 | DD111: 0 | DE111: 0 | DF111: 0
BE112: Apr | BF112: 22 | BG112: 3 | BH112: 6 | BI112: FALSE | BJ112: FALSE | BK112: 0 | BL112: =IF(SUM(BL$110:BL111,BK112)>$BM$4,0,BK112) -> 0 | BM112: 0 | BN112: 0 | BO112: 0 | BP112: 0 | BQ112: 0 | BR112: 0 | BS112: 0 | BT112: 0 | BU112: 0 | BV112: 0 | BW112: 0 | BX112: 0 | BY112: 0 | BZ112: 0 | CA112: 0 | CB112: 0 | CC112: 0 | CD112: 0 | CE112: 0 | CF112: 0 | CG112: 0 | CH112: 0 | CI112: 0 | CJ112: 0 | CK112: 0 | CL112: 0 | CM112: 0 | CN112: 0 | CO112: 0 | CP112: 0 | CQ112: 0 | CR112: 0 | CS112: 0 | CT112: 0 | CU112: 0 | CV112: 0 | CW112: 0 | CX112: 0 | CY112: 0 | CZ112: 0 | DA112: 0 | DB112: 0 | DC112: 0 | DD112: 0 | DE112: 0 | DF112: 0
BE113: Apr | BF113: 22 | BG113: 4 | BH113: 7 | BI113: FALSE | BJ113: FALSE | BK113: 0 | BL113: =IF(SUM(BL$110:BL112,BK113)>$BM$4,0,BK113) -> 0 | BM113: 0 | BN113: 0 | BO113: 0 | BP113: 0 | BQ113: 0 | BR113: 0 | BS113: 0 | BT113: 0 | BU113: 0 | BV113: 0 | BW113: 0 | BX113: 0 | BY113: 0 | BZ113: 0 | CA113: 0 | CB113: 0 | CC113: 0 | CD113: 0 | CE113: 0 | CF113: 0 | CG113: 0 | CH113: 0 | CI113: 0 | CJ113: 0 | CK113: 0 | CL113: 0 | CM113: 0 | CN113: 0 | CO113: 0 | CP113: 0 | CQ113: 0 | CR113: 0 | CS113: 0 | CT113: 0 | CU113: 0 | CV113: 0 | CW113: 0 | CX113: 0 | CY113: 0 | CZ113: 0 | DA113: 0 | DB113: 0 | DC113: 0 | DD113: 0 | DE113: 0 | DF113: 0
BE114: Apr | BF114: 22 | BG114: 5 | BH114: 1 | BI114: TRUE | BJ114: FALSE | BK114: 0 | BL114: =IF(SUM(BL$110:BL113,BK114)>$BM$4,0,BK114) -> 0 | BM114: 0 | BN114: 0 | BO114: 0 | BP114: 0 | BQ114: 0 | BR114: 0 | BS114: 0 | BT114: 0 | BU114: 0 | BV114: 0 | BW114: 0 | BX114: 0 | BY114: 0 | BZ114: 0 | CA114: 0 | CB114: 0 | CC114: 0 | CD114: 0 | CE114: 0 | CF114: 0 | CG114: 0 | CH114: 0 | CI114: 0 | CJ114: 0 | CK114: 0 | CL114: 0 | CM114: 0 | CN114: 0 | CO114: 0 | CP114: 0 | CQ114: 0 | CR114: 0 | CS114: 0 | CT114: 0 | CU114: 0 | CV114: 0 | CW114: 0 | CX114: 0 | CY114: 0 | CZ114: 0 | DA114: 0 | DB114: 0 | DC114: 0 | DD114: 0 | DE114: 0 | DF114: 0
BE115: Apr | BF115: 22 | BG115: 6 | BH115: 2 | BI115: TRUE | BJ115: FALSE | BK115: 0 | BL115: =IF(SUM(BL$110:BL114,BK115)>$BM$4,0,BK115) -> 0 | BM115: 0 | BN115: 0 | BO115: 0 | BP115: 0 | BQ115: 0 | BR115: 0 | BS115: 0 | BT115: 0 | BU115: 0 | BV115: 0 | BW115: 0 | BX115: 0 | BY115: 0 | BZ115: 0 | CA115: 0 | CB115: 0 | CC115: 0 | CD115: 0 | CE115: 0 | CF115: 0 | CG115: 0 | CH115: 0 | CI115: 0 | CJ115: 0 | CK115: 0 | CL115: 0 | CM115: 0 | CN115: 0 | CO115: 0 | CP115: 0 | CQ115: 0 | CR115: 0 | CS115: 0 | CT115: 0 | CU115: 0 | CV115: 0 | CW115: 0 | CX115: 0 | CY115: 0 | CZ115: 0 | DA115: 0 | DB115: 0 | DC115: 0 | DD115: 0 | DE115: 0 | DF115: 0
BE116: Apr | BF116: 22 | BG116: 7 | BH116: 3 | BI116: TRUE | BJ116: FALSE | BK116: 0 | BL116: =IF(SUM(BL$110:BL115,BK116)>$BM$4,0,BK116) -> 0 | BM116: 0 | BN116: 0 | BO116: 0 | BP116: 0 | BQ116: 0 | BR116: 0 | BS116: 0 | BT116: 0 | BU116: 0 | BV116: 0 | BW116: 0 | BX116: 0 | BY116: 0 | BZ116: 0 | CA116: 0 | CB116: 0 | CC116: 0 | CD116: 0 | CE116: 0 | CF116: 0 | CG116: 0 | CH116: 0 | CI116: 0 | CJ116: 0 | CK116: 0 | CL116: 0 | CM116: 0 | CN116: 0 | CO116: 0 | CP116: 0 | CQ116: 0 | CR116: 0 | CS116: 0 | CT116: 0 | CU116: 0 | CV116: 0 | CW116: 0 | CX116: 0 | CY116: 0 | CZ116: 0 | DA116: 0 | DB116: 0 | DC116: 0 | DD116: 0 | DE116: 0 | DF116: 0
BE117: Apr | BF117: 22 | BG117: 8 | BH117: 4 | BI117: TRUE | BJ117: TRUE | BK117: 8.25 | BL117: =IF(SUM(BL$110:BL116,BK117)>$BM$4,0,BK117) -> 8.25 | BM117: 0 | BN117: 0 | BO117: 0 | BP117: 0 | BQ117: 0 | BR117: 0 | BS117: 0 | BT117: 0 | BU117: 0 | BV117: 0 | BW117: 0 | BX117: 0 | BY117: 0 | BZ117: 0 | CA117: 0 | CB117: 0 | CC117: 0 | CD117: 0 | CE117: 0 | CF117: 0 | CG117: 0 | CH117: 0 | CI117: 0 | CJ117: 0 | CK117: 0 | CL117: 0 | CM117: 0 | CN117: 0 | CO117: 0 | CP117: 0 | CQ117: 0 | CR117: 0 | CS117: 0 | CT117: 0 | CU117: 0 | CV117: 0 | CW117: 0 | CX117: 0 | CY117: 0 | CZ117: 0 | DA117: 0 | DB117: 0 | DC117: 0 | DD117: 0 | DE117: 0 | DF117: 0
BE118: Apr | BF118: 22 | BG118: 9 | BH118: 5 | BI118: TRUE | BJ118: FALSE | BK118: 0 | BL118: =IF(SUM(BL$110:BL117,BK118)>$BM$4,0,BK118) -> 0 | BM118: 0 | BN118: 0 | BO118: 0 | BP118: 0 | BQ118: 0 | BR118: 0 | BS118: 0 | BT118: 0 | BU118: 0 | BV118: 0 | BW118: 0 | BX118: 0 | BY118: 0 | BZ118: 0 | CA118: 0 | CB118: 0 | CC118: 0 | CD118: 0 | CE118: 0 | CF118: 0 | CG118: 0 | CH118: 0 | CI118: 0 | CJ118: 0 | CK118: 0 | CL118: 0 | CM118: 0 | CN118: 0 | CO118: 0 | CP118: 0 | CQ118: 0 | CR118: 0 | CS118: 0 | CT118: 0 | CU118: 0 | CV118: 0 | CW118: 0 | CX118: 0 | CY118: 0 | CZ118: 0 | DA118: 0 | DB118: 0 | DC118: 0 | DD118: 0 | DE118: 0 | DF118: 0
BE119: Apr | BF119: 22 | BG119: 10 | BH119: 6 | BI119: FALSE | BJ119: FALSE | BK119: 0 | BL119: =IF(SUM(BL$110:BL118,BK119)>$BM$4,0,BK119) -> 0 | BM119: 0 | BN119: 0 | BO119: 0 | BP119: 0 | BQ119: 0 | BR119: 0 | BS119: 0 | BT119: 0 | BU119: 0 | BV119: 0 | BW119: 0 | BX119: 0 | BY119: 0 | BZ119: 0 | CA119: 0 | CB119: 0 | CC119: 0 | CD119: 0 | CE119: 0 | CF119: 0 | CG119: 0 | CH119: 0 | CI119: 0 | CJ119: 0 | CK119: 0 | CL119: 0 | CM119: 0 | CN119: 0 | CO119: 0 | CP119: 0 | CQ119: 0 | CR119: 0 | CS119: 0 | CT119: 0 | CU119: 0 | CV119: 0 | CW119: 0 | CX119: 0 | CY119: 0 | CZ119: 0 | DA119: 0 | DB119: 0 | DC119: 0 | DD119: 0 | DE119: 0 | DF119: 0
BE120: Apr | BF120: 22 | BG120: 11 | BH120: 7 | BI120: FALSE | BJ120: FALSE | BK120: 0 | BL120: =IF(SUM(BL$110:BL119,BK120)>$BM$4,0,BK120) -> 0 | BM120: 0 | BN120: 0 | BO120: 0 | BP120: 0 | BQ120: 0 | BR120: 0 | BS120: 0 | BT120: 0 | BU120: 0 | BV120: 0 | BW120: 0 | BX120: 0 | BY120: 0 | BZ120: 0 | CA120: 0 | CB120: 0 | CC120: 0 | CD120: 0 | CE120: 0 | CF120: 0 | CG120: 0 | CH120: 0 | CI120: 0 | CJ120: 0 | CK120: 0 | CL120: 0 | CM120: 0 | CN120: 0 | CO120: 0 | CP120: 0 | CQ120: 0 | CR120: 0 | CS120: 0 | CT120: 0 | CU120: 0 | CV120: 0 | CW120: 0 | CX120: 0 | CY120: 0 | CZ120: 0 | DA120: 0 | DB120: 0 | DC120: 0 | DD120: 0 | DE120: 0 | DF120: 0
BE121: Apr | BF121: 22 | BG121: 12 | BH121: 1 | BI121: TRUE | BJ121: FALSE | BK121: 0 | BL121: =IF(SUM(BL$110:BL120,BK121)>$BM$4,0,BK121) -> 0 | BM121: 0 | BN121: 0 | BO121: 0 | BP121: 0 | BQ121: 0 | BR121: 0 | BS121: 0 | BT121: 0 | BU121: 0 | BV121: 0 | BW121: 0 | BX121: 0 | BY121: 0 | BZ121: 0 | CA121: 0 | CB121: 0 | CC121: 0 | CD121: 0 | CE121: 0 | CF121: 0 | CG121: 0 | CH121: 0 | CI121: 0 | CJ121: 0 | CK121: 0 | CL121: 0 | CM121: 0 | CN121: 0 | CO121: 0 | CP121: 0 | CQ121: 0 | CR121: 0 | CS121: 0 | CT121: 0 | CU121: 0 | CV121: 0 | CW121: 0 | CX121: 0 | CY121: 0 | CZ121: 0 | DA121: 0 | DB121: 0 | DC121: 0 | DD121: 0 | DE121: 0 | DF121: 0
BE122: Apr | BF122: 22 | BG122: 13 | BH122: 2 | BI122: TRUE | BJ122: FALSE | BK122: 0 | BL122: =IF(SUM(BL$110:BL121,BK122)>$BM$4,0,BK122) -> 0 | BM122: 0 | BN122: 0 | BO122: 0 | BP122: 0 | BQ122: 0 | BR122: 0 | BS122: 0 | BT122: 0 | BU122: 0 | BV122: 0 | BW122: 0 | BX122: 0 | BY122: 0 | BZ122: 0 | CA122: 0 | CB122: 0 | CC122: 0 | CD122: 0 | CE122: 0 | CF122: 0 | CG122: 0 | CH122: 0 | CI122: 0 | CJ122: 0 | CK122: 0 | CL122: 0 | CM122: 0 | CN122: 0 | CO122: 0 | CP122: 0 | CQ122: 0 | CR122: 0 | CS122: 0 | CT122: 0 | CU122: 0 | CV122: 0 | CW122: 0 | CX122: 0 | CY122: 0 | CZ122: 0 | DA122: 0 | DB122: 0 | DC122: 0 | DD122: 0 | DE122: 0 | DF122: 0
BE123: Apr | BF123: 22 | BG123: 14 | BH123: 3 | BI123: TRUE | BJ123: FALSE | BK123: 0 | BL123: =IF(SUM(BL$110:BL122,BK123)>$BM$4,0,BK123) -> 0 | BM123: 0 | BN123: 0 | BO123: 0 | BP123: 0 | BQ123: 0 | BR123: 0 | BS123: 0 | BT123: 0 | BU123: 0 | BV123: 0 | BW123: 0 | BX123: 0 | BY123: 0 | BZ123: 0 | CA123: 0 | CB123: 0 | CC123: 0 | CD123: 0 | CE123: 0 | CF123: 0 | CG123: 0 | CH123: 0 | CI123: 0 | CJ123: 0 | CK123: 0 | CL123: 0 | CM123: 0 | CN123: 0 | CO123: 0 | CP123: 0 | CQ123: 0 | CR123: 0 | CS123: 0 | CT123: 0 | CU123: 0 | CV123: 0 | CW123: 0 | CX123: 0 | CY123: 0 | CZ123: 0 | DA123: 0 | DB123: 0 | DC123: 0 | DD123: 0 | DE123: 0 | DF123: 0
BE124: Apr | BF124: 22 | BG124: 15 | BH124: 4 | BI124: TRUE | BJ124: FALSE | BK124: 0 | BL124: =IF(SUM(BL$110:BL123,BK124)>$BM$4,0,BK124) -> 0 | BM124: 0 | BN124: 0 | BO124: 0 | BP124: 0 | BQ124: 0 | BR124: 0 | BS124: 0 | BT124: 0 | BU124: 0 | BV124: 0 | BW124: 0 | BX124: 0 | BY124: 0 | BZ124: 0 | CA124: 0 | CB124: 0 | CC124: 0 | CD124: 0 | CE124: 0 | CF124: 0 | CG124: 0 | CH124: 0 | CI124: 0 | CJ124: 0 | CK124: 0 | CL124: 0 | CM124: 0 | CN124: 0 | CO124: 0 | CP124: 0 | CQ124: 0 | CR124: 0 | CS124: 0 | CT124: 0 | CU124: 0 | CV124: 0 | CW124: 0 | CX124: 0 | CY124: 0 | CZ124: 0 | DA124: 0 | DB124: 0 | DC124: 0 | DD124: 0 | DE124: 0 | DF124: 0
BE125: Apr | BF125: 22 | BG125: 16 | BH125: 5 | BI125: TRUE | BJ125: TRUE | BK125: 8.25 | BL125: =IF(SUM(BL$110:BL124,BK125)>$BM$4,0,BK125) -> 8.25 | BM125: 0 | BN125: 0 | BO125: 0 | BP125: 0 | BQ125: 0 | BR125: 0 | BS125: 0 | BT125: 0 | BU125: 0 | BV125: 0 | BW125: 0 | BX125: 0 | BY125: 0 | BZ125: 0 | CA125: 0 | CB125: 0 | CC125: 0 | CD125: 0 | CE125: 0 | CF125: 0 | CG125: 0 | CH125: 0 | CI125: 0 | CJ125: 0 | CK125: 0 | CL125: 0 | CM125: 0 | CN125: 0 | CO125: 0 | CP125: 0 | CQ125: 0 | CR125: 0 | CS125: 0 | CT125: 0 | CU125: 0 | CV125: 0 | CW125: 0 | CX125: 0 | CY125: 0 | CZ125: 0 | DA125: 0 | DB125: 0 | DC125: 0 | DD125: 0 | DE125: 0 | DF125: 0
BE126: Apr | BF126: 22 | BG126: 17 | BH126: 6 | BI126: FALSE | BJ126: FALSE | BK126: 0 | BL126: =IF(SUM(BL$110:BL125,BK126)>$BM$4,0,BK126) -> 0 | BM126: 0 | BN126: 0 | BO126: 0 | BP126: 0 | BQ126: 0 | BR126: 0 | BS126: 0 | BT126: 0 | BU126: 0 | BV126: 0 | BW126: 0 | BX126: 0 | BY126: 0 | BZ126: 0 | CA126: 0 | CB126: 0 | CC126: 0 | CD126: 0 | CE126: 0 | CF126: 0 | CG126: 0 | CH126: 0 | CI126: 0 | CJ126: 0 | CK126: 0 | CL126: 0 | CM126: 0 | CN126: 0 | CO126: 0 | CP126: 0 | CQ126: 0 | CR126: 0 | CS126: 0 | CT126: 0 | CU126: 0 | CV126: 0 | CW126: 0 | CX126: 0 | CY126: 0 | CZ126: 0 | DA126: 0 | DB126: 0 | DC126: 0 | DD126: 0 | DE126: 0 | DF126: 0
BE127: Apr | BF127: 22 | BG127: 18 | BH127: 7 | BI127: FALSE | BJ127: FALSE | BK127: 0 | BL127: =IF(SUM(BL$110:BL126,BK127)>$BM$4,0,BK127) -> 0 | BM127: 0 | BN127: 0 | BO127: 0 | BP127: 0 | BQ127: 0 | BR127: 0 | BS127: 0 | BT127: 0 | BU127: 0 | BV127: 0 | BW127: 0 | BX127: 0 | BY127: 0 | BZ127: 0 | CA127: 0 | CB127: 0 | CC127: 0 | CD127: 0 | CE127: 0 | CF127: 0 | CG127: 0 | CH127: 0 | CI127: 0 | CJ127: 0 | CK127: 0 | CL127: 0 | CM127: 0 | CN127: 0 | CO127: 0 | CP127: 0 | CQ127: 0 | CR127: 0 | CS127: 0 | CT127: 0 | CU127: 0 | CV127: 0 | CW127: 0 | CX127: 0 | CY127: 0 | CZ127: 0 | DA127: 0 | DB127: 0 | DC127: 0 | DD127: 0 | DE127: 0 | DF127: 0
BE128: Apr | BF128: 22 | BG128: 19 | BH128: 1 | BI128: TRUE | BJ128: FALSE | BK128: 0 | BL128: =IF(SUM(BL$110:BL127,BK128)>$BM$4,0,BK128) -> 0 | BM128: 0 | BN128: 0 | BO128: 0 | BP128: 0 | BQ128: 0 | BR128: 0 | BS128: 0 | BT128: 0 | BU128: 0 | BV128: 0 | BW128: 0 | BX128: 0 | BY128: 0 | BZ128: 0 | CA128: 0 | CB128: 0 | CC128: 0 | CD128: 0 | CE128: 0 | CF128: 0 | CG128: 0 | CH128: 0 | CI128: 0 | CJ128: 0 | CK128: 0 | CL128: 0 | CM128: 0 | CN128: 0 | CO128: 0 | CP128: 0 | CQ128: 0 | CR128: 0 | CS128: 0 | CT128: 0 | CU128: 0 | CV128: 0 | CW128: 0 | CX128: 0 | CY128: 0 | CZ128: 0 | DA128: 0 | DB128: 0 | DC128: 0 | DD128: 0 | DE128: 0 | DF128: 0
BE129: Apr | BF129: 22 | BG129: 20 | BH129: 2 | BI129: TRUE | BJ129: FALSE | BK129: 0 | BL129: =IF(SUM(BL$110:BL128,BK129)>$BM$4,0,BK129) -> 0 | BM129: 0 | BN129: 0 | BO129: 0 | BP129: 0 | BQ129: 0 | BR129: 0 | BS129: 0 | BT129: 0 | BU129: 0 | BV129: 0 | BW129: 0 | BX129: 0 | BY129: 0 | BZ129: 0 | CA129: 0 | CB129: 0 | CC129: 0 | CD129: 0 | CE129: 0 | CF129: 0 | CG129: 0 | CH129: 0 | CI129: 0 | CJ129: 0 | CK129: 0 | CL129: 0 | CM129: 0 | CN129: 0 | CO129: 0 | CP129: 0 | CQ129: 0 | CR129: 0 | CS129: 0 | CT129: 0 | CU129: 0 | CV129: 0 | CW129: 0 | CX129: 0 | CY129: 0 | CZ129: 0 | DA129: 0 | DB129: 0 | DC129: 0 | DD129: 0 | DE129: 0 | DF129: 0
B130: Heat Rejection Water Demand | BE130: Apr | BF130: 22 | BG130: 21 | BH130: 3 | BI130: TRUE | BJ130: FALSE | BK130: 0 | BL130: =IF(SUM(BL$110:BL129,BK130)>$BM$4,0,BK130) -> 0 | BM130: 0 | BN130: 0 | BO130: 0 | BP130: 0 | BQ130: 0 | BR130: 0 | BS130: 0 | BT130: 0 | BU130: 0 | BV130: 0 | BW130: 0 | BX130: 0 | BY130: 0 | BZ130: 0 | CA130: 0 | CB130: 0 | CC130: 0 | CD130: 0 | CE130: 0 | CF130: 0 | CG130: 0 | CH130: 0 | CI130: 0 | CJ130: 0 | CK130: 0 | CL130: 0 | CM130: 0 | CN130: 0 | CO130: 0 | CP130: 0 | CQ130: 0 | CR130: 0 | CS130: 0 | CT130: 0 | CU130: 0 | CV130: 0 | CW130: 0 | CX130: 0 | CY130: 0 | CZ130: 0 | DA130: 0 | DB130: 0 | DC130: 0 | DD130: 0 | DE130: 0 | DF130: 0
B131: STEP 2b - Please provide information regarding Heat Rejection water demand in the building. | BE131: Apr | BF131: 22 | BG131: 22 | BH131: 4 | BI131: TRUE | BJ131: FALSE | BK131: 0 | BL131: =IF(SUM(BL$110:BL130,BK131)>$BM$4,0,BK131) -> 0 | BM131: 0 | BN131: 0 | BO131: 0 | BP131: 0 | BQ131: 0 | BR131: 0 | BS131: 0 | BT131: 0 | BU131: 0 | BV131: 0 | BW131: 0 | BX131: 0 | BY131: 0 | BZ131: 0 | CA131: 0 | CB131: 0 | CC131: 0 | CD131: 0 | CE131: 0 | CF131: 0 | CG131: 0 | CH131: 0 | CI131: 0 | CJ131: 0 | CK131: 0 | CL131: 0 | CM131: 0 | CN131: 0 | CO131: 0 | CP131: 0 | CQ131: 0 | CR131: 0 | CS131: 0 | CT131: 0 | CU131: 0 | CV131: 0 | CW131: 0 | CX131: 0 | CY131: 0 | CZ131: 0 | DA131: 0 | DB131: 0 | DC131: 0 | DD131: 0 | DE131: 0 | DF131: 0
N132: Data Validation | BE132: Apr | BF132: 22 | BG132: 23 | BH132: 5 | BI132: TRUE | BJ132: FALSE | BK132: 0 | BL132: =IF(SUM(BL$110:BL131,BK132)>$BM$4,0,BK132) -> 0 | BM132: 0 | BN132: 0 | BO132: 0 | BP132: 0 | BQ132: 0 | BR132: 0 | BS132: 0 | BT132: 0 | BU132: 0 | BV132: 0 | BW132: 0 | BX132: 0 | BY132: 0 | BZ132: 0 | CA132: 0 | CB132: 0 | CC132: 0 | CD132: 0 | CE132: 0 | CF132: 0 | CG132: 0 | CH132: 0 | CI132: 0 | CJ132: 0 | CK132: 0 | CL132: 0 | CM132: 0 | CN132: 0 | CO132: 0 | CP132: 0 | CQ132: 0 | CR132: 0 | CS132: 0 | CT132: 0 | CU132: 0 | CV132: 0 | CW132: 0 | CX132: 0 | CY132: 0 | CZ132: 0 | DA132: 0 | DB132: 0 | DC132: 0 | DD132: 0 | DE132: 0 | DF132: 0 | DK132: Notional Building
B133: Please enter the project Nominated Area (HVAC), as defined for ENE-1 | F133: m2 | N133: Water cooled chiller | BE133: Apr | BF133: 22 | BG133: 24 | BH133: 6 | BI133: FALSE | BJ133: TRUE | BK133: 8.25 | BL133: =IF(SUM(BL$110:BL132,BK133)>$BM$4,0,BK133) -> 8.25 | BM133: 0 | BN133: 0 | BO133: 0 | BP133: 0 | BQ133: 0 | BR133: 0 | BS133: 0 | BT133: 0 | BU133: 0 | BV133: 0 | BW133: 0 | BX133: 0 | BY133: 0 | BZ133: 0 | CA133: 0 | CB133: 0 | CC133: 0 | CD133: 0 | CE133: 0 | CF133: 0 | CG133: 0 | CH133: 0 | CI133: 0 | CJ133: 0 | CK133: 0 | CL133: 0 | CM133: 0 | CN133: 0 | CO133: 0 | CP133: 0 | CQ133: 0 | CR133: 0 | CS133: 0 | CT133: 0 | CU133: 0 | CV133: 0 | CW133: 0 | CX133: 0 | CY133: 0 | CZ133: 0 | DA133: 0 | DB133: 0 | DC133: 0 | DD133: 0 | DE133: 0 | DF133: 0 | DJ133: Drift Co-efficient | DK133: 3e-05 | DL133: ASHRAE 2008 HVAC Systems and Equipment S39.11 SI - Cooling Towers (TC 8.6)
N134: Air cooled chiller | BE134: Apr | BF134: 22 | BG134: 25 | BH134: 7 | BI134: FALSE | BJ134: FALSE | BK134: 0 | BL134: =IF(SUM(BL$110:BL133,BK134)>$BM$4,0,BK134) -> 0 | BM134: 0 | BN134: 0 | BO134: 0 | BP134: 0 | BQ134: 0 | BR134: 0 | BS134: 0 | BT134: 0 | BU134: 0 | BV134: 0 | BW134: 0 | BX134: 0 | BY134: 0 | BZ134: 0 | CA134: 0 | CB134: 0 | CC134: 0 | CD134: 0 | CE134: 0 | CF134: 0 | CG134: 0 | CH134: 0 | CI134: 0 | CJ134: 0 | CK134: 0 | CL134: 0 | CM134: 0 | CN134: 0 | CO134: 0 | CP134: 0 | CQ134: 0 | CR134: 0 | CS134: 0 | CT134: 0 | CU134: 0 | CV134: 0 | CW134: 0 | CX134: 0 | CY134: 0 | CZ134: 0 | DA134: 0 | DB134: 0 | DC134: 0 | DD134: 0 | DE134: 0 | DF134: 0 | DJ134: Condenser Water dT | DK134: 5.5 | DL134: Industry standard
B135: Actual Building | H135: Notional Building | O135: Logical tests | BE135: Apr | BF135: 22 | BG135: 26 | BH135: 1 | BI135: TRUE | BJ135: FALSE | BK135: 0 | BL135: =IF(SUM(BL$110:BL134,BK135)>$BM$4,0,BK135) -> 0 | BM135: 0 | BN135: 0 | BO135: 0 | BP135: 0 | BQ135: 0 | BR135: 0 | BS135: 0 | BT135: 0 | BU135: 0 | BV135: 0 | BW135: 0 | BX135: 0 | BY135: 0 | BZ135: 0 | CA135: 0 | CB135: 0 | CC135: 0 | CD135: 0 | CE135: 0 | CF135: 0 | CG135: 0 | CH135: 0 | CI135: 0 | CJ135: 0 | CK135: 0 | CL135: 0 | CM135: 0 | CN135: 0 | CO135: 0 | CP135: 0 | CQ135: 0 | CR135: 0 | CS135: 0 | CT135: 0 | CU135: 0 | CV135: 0 | CW135: 0 | CX135: 0 | CY135: 0 | CZ135: 0 | DA135: 0 | DB135: 0 | DC135: 0 | DD135: 0 | DE135: 0 | DF135: 0 | DJ135: Cycles of conentration | DK135: 6 | DL135: Eurovent, 9/5, 2nd Edition: 2002, Recommended Code of Practice to Keep Your Cooling System Efficient & Safe
B136: Please select Actual building chiller type | E136: Water cooled chiller | H136: Notional Building chiller type | I136: =IF(E133>=2000,N133,N134) -> Air cooled chiller | N136: Nominated area > 2000 | O136: =E133>2000 -> FALSE | BE136: Apr | BF136: 22 | BG136: 27 | BH136: 2 | BI136: TRUE | BJ136: FALSE | BK136: 0 | BL136: =IF(SUM(BL$110:BL135,BK136)>$BM$4,0,BK136) -> 0 | BM136: 0 | BN136: 0 | BO136: 0 | BP136: 0 | BQ136: 0 | BR136: 0 | BS136: 0 | BT136: 0 | BU136: 0 | BV136: 0 | BW136: 0 | BX136: 0 | BY136: 0 | BZ136: 0 | CA136: 0 | CB136: 0 | CC136: 0 | CD136: 0 | CE136: 0 | CF136: 0 | CG136: 0 | CH136: 0 | CI136: 0 | CJ136: 0 | CK136: 0 | CL136: 0 | CM136: 0 | CN136: 0 | CO136: 0 | CP136: 0 | CQ136: 0 | CR136: 0 | CS136: 0 | CT136: 0 | CU136: 0 | CV136: 0 | CW136: 0 | CX136: 0 | CY136: 0 | CZ136: 0 | DA136: 0 | DB136: 0 | DC136: 0 | DD136: 0 | DE136: 0 | DF136: 0
B137: Please enter cooling tower characteristics. Refer to the PWC Guide for more details | H137: Drift Co-efficient | I137: =DK133 -> 3e-05 | N137: Actual cooling towers | O137: =E136=N133 -> TRUE | BE137: Apr | BF137: 22 | BG137: 28 | BH137: 3 | BI137: TRUE | BJ137: FALSE | BK137: 0 | BL137: =IF(SUM(BL$110:BL136,BK137)>$BM$4,0,BK137) -> 0 | BM137: 0 | BN137: 0 | BO137: 0 | BP137: 0 | BQ137: 0 | BR137: 0 | BS137: 0 | BT137: 0 | BU137: 0 | BV137: 0 | BW137: 0 | BX137: 0 | BY137: 0 | BZ137: 0 | CA137: 0 | CB137: 0 | CC137: 0 | CD137: 0 | CE137: 0 | CF137: 0 | CG137: 0 | CH137: 0 | CI137: 0 | CJ137: 0 | CK137: 0 | CL137: 0 | CM137: 0 | CN137: 0 | CO137: 0 | CP137: 0 | CQ137: 0 | CR137: 0 | CS137: 0 | CT137: 0 | CU137: 0 | CV137: 0 | CW137: 0 | CX137: 0 | CY137: 0 | CZ137: 0 | DA137: 0 | DB137: 0 | DC137: 0 | DD137: 0 | DE137: 0 | DF137: 0 | DJ137: List of constants
B138: Drift Co-efficient | C138: 3e-05 | H138: Condenser Water dT (oC) | I138: =DK134 -> 5.5 | N138: Actl other water hr | O138: =F158="yes" -> FALSE | BE138: Apr | BF138: 22 | BG138: 29 | BH138: 4 | BI138: TRUE | BJ138: FALSE | BK138: 0 | BL138: =IF(SUM(BL$110:BL137,BK138)>$BM$4,0,BK138) -> 0 | BM138: 0 | BN138: 0 | BO138: 0 | BP138: 0 | BQ138: 0 | BR138: 0 | BS138: 0 | BT138: 0 | BU138: 0 | BV138: 0 | BW138: 0 | BX138: 0 | BY138: 0 | BZ138: 0 | CA138: 0 | CB138: 0 | CC138: 0 | CD138: 0 | CE138: 0 | CF138: 0 | CG138: 0 | CH138: 0 | CI138: 0 | CJ138: 0 | CK138: 0 | CL138: 0 | CM138: 0 | CN138: 0 | CO138: 0 | CP138: 0 | CQ138: 0 | CR138: 0 | CS138: 0 | CT138: 0 | CU138: 0 | CV138: 0 | CW138: 0 | CX138: 0 | CY138: 0 | CZ138: 0 | DA138: 0 | DB138: 0 | DC138: 0 | DD138: 0 | DE138: 0 | DF138: 0 | DJ138: Latent heat of vaporisation (kJ/kg) | DL138: 2256
B139: Condenser Water dT (oC) | C139: 5.5 | H139: Cycles of concentration | I139: =DK135 -> 6 | N139: Conversion factor | O139: 0.9 | BE139: Apr | BF139: 22 | BG139: 30 | BH139: 5 | BI139: TRUE | BJ139: FALSE | BK139: 0 | BL139: =$BM$4-SUM(BL110:BL138) -> 8.25 | BM139: 0 | BN139: 0 | BO139: 0 | BP139: 0 | BQ139: 0 | BR139: 0 | BS139: 0 | BT139: 0 | BU139: 0 | BV139: 0 | BW139: 0 | BX139: 0 | BY139: 0 | BZ139: 0 | CA139: 0 | CB139: 0 | CC139: 0 | CD139: 0 | CE139: 0 | CF139: 0 | CG139: 0 | CH139: 0 | CI139: 0 | CJ139: 0 | CK139: 0 | CL139: 0 | CM139: 0 | CN139: 0 | CO139: 0 | CP139: 0 | CQ139: 0 | CR139: 0 | CS139: 0 | CT139: 0 | CU139: 0 | CV139: 0 | CW139: 0 | CX139: 0 | CY139: 0 | CZ139: 0 | DA139: 0 | DB139: 0 | DC139: 0 | DD139: 0 | DE139: 0 | DF139: 0 | DJ139: Density of water (kg/L) | DL139: 1
B140: Cycles of concentration | C140: 6 | BE140: May | BF140: 21 | BG140: 1 | BH140: 6 | BI140: FALSE | BJ140: =MOD(BG140,$BN$7)=0 -> FALSE | BK140: =IF(BJ140,BN$8,0) -> 0 | BL140: =BK140 -> 0 | BM140: 0 | BN140: 0 | BO140: 0 | BP140: =$Q$338/$BF$140*BR$16*$BI140 -> 0 | BQ140: =AQ$373/$BF140*$BI140 -> 0 | BR140: 0 | BS140: =$R$338/$BF140*BU$16*$BI140 -> 0 | BT140: =AR$373/$BF140*$BI140 -> 0 | BU140: 0 | BV140: =$S$338/$BF140*BX$16*$BI140 -> 0 | BW140: =AS$373/$BF140*$BI140 -> 0 | BX140: 0 | BY140: =$T$338/$BF140*CA$16*$BI140 -> 0 | BZ140: =AT$373/$BF140*$BI140 -> 0 | CA140: 0 | CB140: =$W$338/BF140*BI140*$C$419 -> 0 | CC140: =AU$373/$BF140*$BI140 -> 0 | CD140: 0 | CE140: =$X$338/BF140*BI140*$C$420 -> 0 | CF140: =AV$373/$BF140*$BI140 -> 0 | CG140: 0 | CH140: =$Y$338/BF140*BI140*$C$421 -> 0 | CI140: =AW$373/$BF140*$BI140 -> 0 | CJ140: 0 | CK140: =$Z$338/BF140*BI140*$CM$16 -> 0 | CL140: =AX$373/$BF140*$BI140 -> 0 | CM140: 0 | CN140: =$AA$338/BF140*BI140*$CP$16 -> 0 | CO140: =$AY$373/$BF140*$BI140 -> 0 | CP140: 0 | CQ140: =$AB$338/BF140*BI140*$CS$16 -> 0 | CR140: =AZ$373/$BF140*$BI140 -> 0 | CS140: 0 | CT140: =$AC$338/BF140*BI140*$CV$16 -> 0 | CU140: =BA$373/$BF140*$BI140 -> 0 | CV140: 0 | CW140: =$AD$338/BF140*BI140*$CY$16 -> 0 | CX140: =BB$373/$BF140*$BI140 -> 0 | CY140: 0 | CZ140: 0 | DA140: 0 | DB140: 0 | DC140: 0 | DD140: 0 | DE140: 0 | DF140: =IF(DA140-(DE139+CZ140)<0,0,DA140-(DE139+CZ140)) -> 0 | DJ140: Specific heat of water (kJ/LoC) | DL140: 4.18
P141: =C142 -> Actual Building | V141: =I142 -> Notional Building | BE141: May | BF141: 21 | BG141: 2 | BH141: 7 | BI141: FALSE | BJ141: FALSE | BK141: 0 | BL141: =IF(SUM(BL$140:BL140,BK141)>$BN$4,0,BK141) -> 0 | BM141: 0 | BN141: 0 | BO141: 0 | BP141: 0 | BQ141: 0 | BR141: 0 | BS141: 0 | BT141: 0 | BU141: 0 | BV141: 0 | BW141: 0 | BX141: 0 | BY141: 0 | BZ141: 0 | CA141: 0 | CB141: 0 | CC141: 0 | CD141: 0 | CE141: 0 | CF141: 0 | CG141: 0 | CH141: 0 | CI141: 0 | CJ141: 0 | CK141: 0 | CL141: 0 | CM141: 0 | CN141: 0 | CO141: 0 | CP141: 0 | CQ141: 0 | CR141: 0 | CS141: 0 | CT141: 0 | CU141: 0 | CV141: 0 | CW141: 0 | CX141: 0 | CY141: 0 | CZ141: 0 | DA141: 0 | DB141: 0 | DC141: 0 | DD141: 0 | DE141: 0 | DF141: 0
C142: =B135 -> Actual Building | I142: =H135 -> Notional Building | P142: Evaporation (litres) | Q142: Drift | S142: Bleed (litres) | T142: Monthly Make-up water (m3) | V142: Evaporation (litres) | W142: Drift | Y142: Bleed (litres) | Z142: Monthly Make-up water (m3) | BE142: May | BF142: 21 | BG142: 3 | BH142: 1 | BI142: TRUE | BJ142: FALSE | BK142: 0 | BL142: =IF(SUM(BL$140:BL141,BK142)>$BN$4,0,BK142) -> 0 | BM142: 0 | BN142: 0 | BO142: 0 | BP142: 0 | BQ142: 0 | BR142: 0 | BS142: 0 | BT142: 0 | BU142: 0 | BV142: 0 | BW142: 0 | BX142: 0 | BY142: 0 | BZ142: 0 | CA142: 0 | CB142: 0 | CC142: 0 | CD142: 0 | CE142: 0 | CF142: 0 | CG142: 0 | CH142: 0 | CI142: 0 | CJ142: 0 | CK142: 0 | CL142: 0 | CM142: 0 | CN142: 0 | CO142: 0 | CP142: 0 | CQ142: 0 | CR142: 0 | CS142: 0 | CT142: 0 | CU142: 0 | CV142: 0 | CW142: 0 | CX142: 0 | CY142: 0 | CZ142: 0 | DA142: 0 | DB142: 0 | DC142: 0 | DD142: 0 | DE142: 0 | DF142: 0
C143: Heat rejection load (kWh/month) | D143: Monthly make-up water (m3) | I143: Heat rejection load (kWh/month) | J143: Monthly make-up water (m3) | N143: Base case water cooled | O143: =I136=N133 -> FALSE | Q143: Condenser water flow | R143: Drift (litres) | W143: Condenser water flow | X143: Drift (litres) | BE143: May | BF143: 21 | BG143: 4 | BH143: 2 | BI143: TRUE | BJ143: FALSE | BK143: 0 | BL143: =IF(SUM(BL$140:BL142,BK143)>$BN$4,0,BK143) -> 0 | BM143: 0 | BN143: 0 | BO143: 0 | BP143: 0 | BQ143: 0 | BR143: 0 | BS143: 0 | BT143: 0 | BU143: 0 | BV143: 0 | BW143: 0 | BX143: 0 | BY143: 0 | BZ143: 0 | CA143: 0 | CB143: 0 | CC143: 0 | CD143: 0 | CE143: 0 | CF143: 0 | CG143: 0 | CH143: 0 | CI143: 0 | CJ143: 0 | CK143: 0 | CL143: 0 | CM143: 0 | CN143: 0 | CO143: 0 | CP143: 0 | CQ143: 0 | CR143: 0 | CS143: 0 | CT143: 0 | CU143: 0 | CV143: 0 | CW143: 0 | CX143: 0 | CY143: 0 | CZ143: 0 | DA143: 0 | DB143: 0 | DC143: 0 | DD143: 0 | DE143: 0 | DF143: 0
B144: January | D144: =T144 -> 0 | H144: January | J144: =Z144 -> 0 | O144: Jan | P144: =C144*3600/($DL$138*$DL$139)*$O$137 -> 0 | Q144: =(C144*3600)/($DL$140*$C$139)*$O$137 -> 0 | R144: =Q144*$C$138 -> 0 | S144: =P144/($C$140-1) -> 0 | T144: =SUM(S144,R144,P144)/1000 -> 0 | V144: =I144*3600/($DL$138*$DL$139)*$O$143*$O$139 -> 0 | W144: =(I144*3600)/($DL$140*$I$138)*$O$143*$O$139 -> 0 | X144: =W144*$I$137*$O$143 -> 0 | Y144: =V144/($I$139-1) -> 0 | Z144: =SUM(Y144,X144,V144)/1000 -> 0 | BE144: May | BF144: 21 | BG144: 5 | BH144: 3 | BI144: TRUE | BJ144: FALSE | BK144: 0 | BL144: =IF(SUM(BL$140:BL143,BK144)>$BN$4,0,BK144) -> 0 | BM144: 0 | BN144: 0 | BO144: 0 | BP144: 0 | BQ144: 0 | BR144: 0 | BS144: 0 | BT144: 0 | BU144: 0 | BV144: 0 | BW144: 0 | BX144: 0 | BY144: 0 | BZ144: 0 | CA144: 0 | CB144: 0 | CC144: 0 | CD144: 0 | CE144: 0 | CF144: 0 | CG144: 0 | CH144: 0 | CI144: 0 | CJ144: 0 | CK144: 0 | CL144: 0 | CM144: 0 | CN144: 0 | CO144: 0 | CP144: 0 | CQ144: 0 | CR144: 0 | CS144: 0 | CT144: 0 | CU144: 0 | CV144: 0 | CW144: 0 | CX144: 0 | CY144: 0 | CZ144: 0 | DA144: 0 | DB144: 0 | DC144: 0 | DD144: 0 | DE144: 0 | DF144: 0
B145: February | D145: 0 | H145: February | J145: 0 | O145: Feb | P145: 0 | Q145: 0 | R145: 0 | S145: 0 | T145: 0 | V145: =I145*3600/($DL$138*$DL$139)*$O$143*$O$139 -> 0 | W145: =(I145*3600)/($DL$140*$I$138)*$O$143*$O$139 -> 0 | X145: 0 | Y145: 0 | Z145: 0 | BE145: May | BF145: 21 | BG145: 6 | BH145: 4 | BI145: TRUE | BJ145: FALSE | BK145: 0 | BL145: =IF(SUM(BL$140:BL144,BK145)>$BN$4,0,BK145) -> 0 | BM145: 0 | BN145: 0 | BO145: 0 | BP145: 0 | BQ145: 0 | BR145: 0 | BS145: 0 | BT145: 0 | BU145: 0 | BV145: 0 | BW145: 0 | BX145: 0 | BY145: 0 | BZ145: 0 | CA145: 0 | CB145: 0 | CC145: 0 | CD145: 0 | CE145: 0 | CF145: 0 | CG145: 0 | CH145: 0 | CI145: 0 | CJ145: 0 | CK145: 0 | CL145: 0 | CM145: 0 | CN145: 0 | CO145: 0 | CP145: 0 | CQ145: 0 | CR145: 0 | CS145: 0 | CT145: 0 | CU145: 0 | CV145: 0 | CW145: 0 | CX145: 0 | CY145: 0 | CZ145: 0 | DA145: 0 | DB145: 0 | DC145: 0 | DD145: 0 | DE145: 0 | DF145: 0
B146: March | D146: 0 | H146: March | J146: 0 | O146: Mar | P146: 0 | Q146: 0 | R146: 0 | S146: 0 | T146: 0 | V146: 0 | W146: 0 | X146: 0 | Y146: 0 | Z146: 0 | BE146: May | BF146: 21 | BG146: 7 | BH146: 5 | BI146: TRUE | BJ146: FALSE | BK146: 0 | BL146: =IF(SUM(BL$140:BL145,BK146)>$BN$4,0,BK146) -> 0 | BM146: 0 | BN146: 0 | BO146: 0 | BP146: 0 | BQ146: 0 | BR146: 0 | BS146: 0 | BT146: 0 | BU146: 0 | BV146: 0 | BW146: 0 | BX146: 0 | BY146: 0 | BZ146: 0 | CA146: 0 | CB146: 0 | CC146: 0 | CD146: 0 | CE146: 0 | CF146: 0 | CG146: 0 | CH146: 0 | CI146: 0 | CJ146: 0 | CK146: 0 | CL146: 0 | CM146: 0 | CN146: 0 | CO146: 0 | CP146: 0 | CQ146: 0 | CR146: 0 | CS146: 0 | CT146: 0 | CU146: 0 | CV146: 0 | CW146: 0 | CX146: 0 | CY146: 0 | CZ146: 0 | DA146: 0 | DB146: 0 | DC146: 0 | DD146: 0 | DE146: 0 | DF146: 0
B147: April | D147: 0 | H147: April | J147: 0 | O147: Apr | P147: 0 | Q147: 0 | R147: 0 | S147: 0 | T147: 0 | V147: 0 | W147: 0 | X147: 0 | Y147: 0 | Z147: 0 | BE147: May | BF147: 21 | BG147: 8 | BH147: 6 | BI147: FALSE | BJ147: FALSE | BK147: 0 | BL147: =IF(SUM(BL$140:BL146,BK147)>$BN$4,0,BK147) -> 0 | BM147: 0 | BN147: 0 | BO147: 0 | BP147: 0 | BQ147: 0 | BR147: 0 | BS147: 0 | BT147: 0 | BU147: 0 | BV147: 0 | BW147: 0 | BX147: 0 | BY147: 0 | BZ147: 0 | CA147: 0 | CB147: 0 | CC147: 0 | CD147: 0 | CE147: 0 | CF147: 0 | CG147: 0 | CH147: 0 | CI147: 0 | CJ147: 0 | CK147: 0 | CL147: 0 | CM147: 0 | CN147: 0 | CO147: 0 | CP147: 0 | CQ147: 0 | CR147: 0 | CS147: 0 | CT147: 0 | CU147: 0 | CV147: 0 | CW147: 0 | CX147: 0 | CY147: 0 | CZ147: 0 | DA147: 0 | DB147: 0 | DC147: 0 | DD147: 0 | DE147: 0 | DF147: 0
B148: May | D148: 0 | H148: May | J148: 0 | O148: May | P148: 0 | Q148: 0 | R148: 0 | S148: 0 | T148: 0 | V148: 0 | W148: 0 | X148: 0 | Y148: 0 | Z148: 0 | BE148: May | BF148: 21 | BG148: 9 | BH148: 7 | BI148: FALSE | BJ148: FALSE | BK148: 0 | BL148: =IF(SUM(BL$140:BL147,BK148)>$BN$4,0,BK148) -> 0 | BM148: =BL148*$BJ$13 -> 0 | BN148: =$BJ$14*(BL148>0) -> 0 | BO148: 0 | BP148: 0 | BQ148: 0 | BR148: =IF(BP148-(BQ148*$BR$17)>0,BP148-(BQ148*$BR$17),0) -> 0 | BS148: 0 | BT148: 0 | BU148: =IF(BS148-(BT148*BU$17)>0,BS148-(BT148*BU$17),0) -> 0 | BV148: 0 | BW148: 0 | BX148: =IF(BV148-(BW148*BX$17)>0,BV148-(BW148*BX$17),0) -> 0 | BY148: 0 | BZ148: 0 | CA148: =IF(BY148-(BZ148*CA$17)>0,BY148-(BZ148*CA$17),0) -> 0 | CB148: 0 | CC148: 0 | CD148: =IF(CB148-(CC148*CD$17)>0,CB148-(CC148*CD$17),0) -> 0 | CE148: 0 | CF148: 0 | CG148: =IF(CE148-(CF148*CG$17)>0,CE148-(CF148*CG$17),0) -> 0 | CH148: 0 | CI148: 0 | CJ148: =IF(CH148-(CI148*CJ$17)>0,CH148-(CI148*CJ$17),0) -> 0 | CK148: 0 | CL148: 0 | CM148: =IF(CK148-(CL148*CM$17)>0,CK148-(CL148*CM$17),0) -> 0 | CN148: 0 | CO148: 0 | CP148: =IF(CN148-(CO148*CP$17)>0,CN148-(CO148*CP$17),0) -> 0 | CQ148: 0 | CR148: 0 | CS148: =IF(CQ148-(CR148*CS$17)>0,CQ148-(CR148*CS$17),0) -> 0 | CT148: 0 | CU148: 0 | CV148: =IF(CT148-(CU148*CV$17)>0,CT148-(CU148*CV$17),0) -> 0 | CW148: 0 | CX148: 0 | CY148: =IF(CW148-(CX148*CY$17)>0,CW148-(CX148*CY$17),0) -> 0 | CZ148: =BO148 -> 0 | DA148: 0 | DB148: 0 | DC148: 0 | DD148: 0 | DE148: 0 | DF148: 0
B149: June | D149: 0 | H149: June | J149: 0 | O149: Jun | P149: 0 | Q149: 0 | R149: 0 | S149: 0 | T149: 0 | V149: 0 | W149: 0 | X149: 0 | Y149: 0 | Z149: 0 | BE149: May | BF149: 21 | BG149: 10 | BH149: 1 | BI149: =BH149<=5 -> TRUE | BJ149: FALSE | BK149: 0 | BL149: =IF(SUM(BL$140:BL148,BK149)>$BN$4,0,BK149) -> 0 | BM149: 0 | BN149: 0 | BO149: 0 | BP149: 0 | BQ149: 0 | BR149: 0 | BS149: 0 | BT149: 0 | BU149: 0 | BV149: 0 | BW149: 0 | BX149: 0 | BY149: 0 | BZ149: 0 | CA149: 0 | CB149: 0 | CC149: 0 | CD149: 0 | CE149: 0 | CF149: 0 | CG149: 0 | CH149: 0 | CI149: 0 | CJ149: 0 | CK149: 0 | CL149: 0 | CM149: 0 | CN149: 0 | CO149: 0 | CP149: 0 | CQ149: 0 | CR149: 0 | CS149: 0 | CT149: 0 | CU149: 0 | CV149: 0 | CW149: 0 | CX149: 0 | CY149: 0 | CZ149: 0 | DA149: =BR149+BU149+BX149+CA149+CD149+CG149+CJ149+CM149+CP149+CS149+CV149+CY149 -> 0 | DB149: =CZ149-DA149 -> 0 | DC149: =IF(DC148+$DB149<0,0,IF(DC148+$DB149>$F$405,$F$405,DC148+$DB149)) -> 0 | DD149: 0 | DE149: 0 | DF149: 0
B150: July | D150: 0 | H150: July | J150: 0 | O150: Jul | P150: 0 | Q150: 0 | R150: 0 | S150: 0 | T150: 0 | V150: 0 | W150: 0 | X150: 0 | Y150: 0 | Z150: 0 | BE150: May | BF150: 21 | BG150: 11 | BH150: 2 | BI150: TRUE | BJ150: FALSE | BK150: 0 | BL150: =IF(SUM(BL$140:BL149,BK150)>$BN$4,0,BK150) -> 0 | BM150: 0 | BN150: 0 | BO150: 0 | BP150: 0 | BQ150: 0 | BR150: 0 | BS150: 0 | BT150: 0 | BU150: 0 | BV150: 0 | BW150: 0 | BX150: 0 | BY150: 0 | BZ150: 0 | CA150: 0 | CB150: 0 | CC150: 0 | CD150: 0 | CE150: 0 | CF150: 0 | CG150: 0 | CH150: 0 | CI150: 0 | CJ150: 0 | CK150: 0 | CL150: 0 | CM150: 0 | CN150: 0 | CO150: 0 | CP150: 0 | CQ150: 0 | CR150: 0 | CS150: 0 | CT150: 0 | CU150: 0 | CV150: 0 | CW150: 0 | CX150: 0 | CY150: 0 | CZ150: 0 | DA150: 0 | DB150: 0 | DC150: 0 | DD150: 0 | DE150: 0 | DF150: =IF(DA150-(DE149+CZ150)<0,0,DA150-(DE149+CZ150)) -> 0
B151: August | D151: 0 | H151: August | J151: 0 | O151: Aug | P151: 0 | Q151: 0 | R151: 0 | S151: 0 | T151: 0 | V151: 0 | W151: 0 | X151: 0 | Y151: 0 | Z151: 0 | BE151: May | BF151: 21 | BG151: 12 | BH151: 3 | BI151: TRUE | BJ151: FALSE | BK151: 0 | BL151: =IF(SUM(BL$140:BL150,BK151)>$BN$4,0,BK151) -> 0 | BM151: 0 | BN151: 0 | BO151: 0 | BP151: 0 | BQ151: 0 | BR151: 0 | BS151: 0 | BT151: 0 | BU151: 0 | BV151: 0 | BW151: 0 | BX151: 0 | BY151: 0 | BZ151: 0 | CA151: 0 | CB151: 0 | CC151: 0 | CD151: 0 | CE151: 0 | CF151: 0 | CG151: 0 | CH151: 0 | CI151: 0 | CJ151: 0 | CK151: 0 | CL151: 0 | CM151: 0 | CN151: 0 | CO151: 0 | CP151: 0 | CQ151: 0 | CR151: 0 | CS151: 0 | CT151: 0 | CU151: 0 | CV151: 0 | CW151: 0 | CX151: 0 | CY151: 0 | CZ151: 0 | DA151: 0 | DB151: 0 | DC151: 0 | DD151: 0 | DE151: 0 | DF151: =IF(DA151-(DE150+CZ151)<0,0,DA151-(DE150+CZ151)) -> 0
B152: September | D152: 0 | H152: September | J152: 0 | O152: Sep | P152: 0 | Q152: 0 | R152: 0 | S152: 0 | T152: 0 | V152: 0 | W152: 0 | X152: 0 | Y152: 0 | Z152: 0 | BE152: May | BF152: 21 | BG152: 13 | BH152: 4 | BI152: TRUE | BJ152: FALSE | BK152: 0 | BL152: =IF(SUM(BL$140:BL151,BK152)>$BN$4,0,BK152) -> 0 | BM152: 0 | BN152: 0 | BO152: 0 | BP152: 0 | BQ152: 0 | BR152: 0 | BS152: 0 | BT152: 0 | BU152: 0 | BV152: 0 | BW152: 0 | BX152: 0 | BY152: 0 | BZ152: 0 | CA152: 0 | CB152: 0 | CC152: 0 | CD152: 0 | CE152: 0 | CF152: 0 | CG152: 0 | CH152: 0 | CI152: 0 | CJ152: 0 | CK152: 0 | CL152: 0 | CM152: 0 | CN152: 0 | CO152: 0 | CP152: 0 | CQ152: 0 | CR152: 0 | CS152: 0 | CT152: 0 | CU152: 0 | CV152: 0 | CW152: 0 | CX152: 0 | CY152: 0 | CZ152: 0 | DA152: 0 | DB152: 0 | DC152: 0 | DD152: 0 | DE152: 0 | DF152: 0
B153: October | D153: 0 | H153: October | J153: 0 | O153: Oct | P153: 0 | Q153: 0 | R153: 0 | S153: 0 | T153: 0 | V153: 0 | W153: 0 | X153: 0 | Y153: 0 | Z153: 0 | BE153: May | BF153: 21 | BG153: 14 | BH153: 5 | BI153: TRUE | BJ153: FALSE | BK153: 0 | BL153: =IF(SUM(BL$140:BL152,BK153)>$BN$4,0,BK153) -> 0 | BM153: 0 | BN153: 0 | BO153: =BM153-BN153 -> 0 | BP153: 0 | BQ153: 0 | BR153: 0 | BS153: 0 | BT153: 0 | BU153: 0 | BV153: 0 | BW153: 0 | BX153: 0 | BY153: 0 | BZ153: 0 | CA153: 0 | CB153: 0 | CC153: 0 | CD153: 0 | CE153: 0 | CF153: 0 | CG153: 0 | CH153: 0 | CI153: 0 | CJ153: 0 | CK153: 0 | CL153: 0 | CM153: 0 | CN153: 0 | CO153: 0 | CP153: 0 | CQ153: 0 | CR153: 0 | CS153: 0 | CT153: 0 | CU153: 0 | CV153: 0 | CW153: 0 | CX153: 0 | CY153: 0 | CZ153: 0 | DA153: 0 | DB153: 0 | DC153: 0 | DD153: 0 | DE153: 0 | DF153: 0
B154: November | D154: 0 | H154: November | J154: 0 | O154: Nov | P154: 0 | Q154: 0 | R154: 0 | S154: 0 | T154: 0 | V154: 0 | W154: 0 | X154: 0 | Y154: 0 | Z154: 0 | BE154: May | BF154: 21 | BG154: 15 | BH154: 6 | BI154: FALSE | BJ154: FALSE | BK154: 0 | BL154: =IF(SUM(BL$140:BL153,BK154)>$BN$4,0,BK154) -> 0 | BM154: 0 | BN154: 0 | BO154: 0 | BP154: 0 | BQ154: 0 | BR154: 0 | BS154: 0 | BT154: 0 | BU154: 0 | BV154: 0 | BW154: 0 | BX154: 0 | BY154: 0 | BZ154: 0 | CA154: 0 | CB154: 0 | CC154: 0 | CD154: 0 | CE154: 0 | CF154: 0 | CG154: 0 | CH154: 0 | CI154: 0 | CJ154: 0 | CK154: 0 | CL154: 0 | CM154: 0 | CN154: 0 | CO154: 0 | CP154: 0 | CQ154: 0 | CR154: 0 | CS154: 0 | CT154: 0 | CU154: 0 | CV154: 0 | CW154: 0 | CX154: 0 | CY154: 0 | CZ154: 0 | DA154: 0 | DB154: 0 | DC154: 0 | DD154: 0 | DE154: 0 | DF154: 0
B155: December | D155: 0 | H155: December | J155: 0 | O155: Dec | P155: 0 | Q155: 0 | R155: 0 | S155: 0 | T155: 0 | V155: 0 | W155: 0 | X155: 0 | Y155: 0 | Z155: 0 | BE155: May | BF155: 21 | BG155: 16 | BH155: 7 | BI155: FALSE | BJ155: TRUE | BK155: 5.5 | BL155: =IF(SUM(BL$140:BL154,BK155)>$BN$4,0,BK155) -> 5.5 | BM155: 0 | BN155: 0 | BO155: 0 | BP155: 0 | BQ155: 0 | BR155: 0 | BS155: 0 | BT155: 0 | BU155: 0 | BV155: 0 | BW155: 0 | BX155: 0 | BY155: 0 | BZ155: 0 | CA155: 0 | CB155: 0 | CC155: 0 | CD155: 0 | CE155: 0 | CF155: 0 | CG155: 0 | CH155: 0 | CI155: 0 | CJ155: 0 | CK155: 0 | CL155: 0 | CM155: 0 | CN155: 0 | CO155: 0 | CP155: 0 | CQ155: 0 | CR155: 0 | CS155: 0 | CT155: 0 | CU155: 0 | CV155: 0 | CW155: 0 | CX155: 0 | CY155: 0 | CZ155: 0 | DA155: 0 | DB155: 0 | DC155: 0 | DD155: 0 | DE155: 0 | DF155: 0
C156: =SUM(C144:C155) -> 0 | D156: =SUM(D144:D155) -> 0 | I156: =SUM(I144:I155)*O143 -> 0 | J156: =SUM(J144:J155) -> 0 | R156: Total bleed (m3) | S156: =SUM(S144:S155)/1000 -> 0 | BE156: May | BF156: 21 | BG156: 17 | BH156: 1 | BI156: TRUE | BJ156: FALSE | BK156: 0 | BL156: =IF(SUM(BL$140:BL155,BK156)>$BN$4,0,BK156) -> 0 | BM156: 0 | BN156: 0 | BO156: 0 | BP156: 0 | BQ156: 0 | BR156: 0 | BS156: 0 | BT156: 0 | BU156: 0 | BV156: 0 | BW156: 0 | BX156: 0 | BY156: 0 | BZ156: 0 | CA156: 0 | CB156: 0 | CC156: 0 | CD156: 0 | CE156: 0 | CF156: 0 | CG156: 0 | CH156: 0 | CI156: 0 | CJ156: 0 | CK156: 0 | CL156: 0 | CM156: 0 | CN156: 0 | CO156: 0 | CP156: 0 | CQ156: 0 | CR156: 0 | CS156: 0 | CT156: 0 | CU156: 0 | CV156: 0 | CW156: 0 | CX156: 0 | CY156: 0 | CZ156: 0 | DA156: 0 | DB156: 0 | DC156: 0 | DD156: 0 | DE156: 0 | DF156: 0
R157: Total annual (m3) | T157: =SUM(T144:T155) -> 0 | X157: Total annual (m3) | Z157: =SUM(Z144:Z155) -> 0 | BE157: May | BF157: 21 | BG157: 18 | BH157: 2 | BI157: TRUE | BJ157: FALSE | BK157: 0 | BL157: =IF(SUM(BL$140:BL156,BK157)>$BN$4,0,BK157) -> 0 | BM157: 0 | BN157: 0 | BO157: 0 | BP157: 0 | BQ157: 0 | BR157: 0 | BS157: 0 | BT157: 0 | BU157: 0 | BV157: 0 | BW157: 0 | BX157: 0 | BY157: 0 | BZ157: 0 | CA157: 0 | CB157: 0 | CC157: 0 | CD157: 0 | CE157: 0 | CF157: 0 | CG157: 0 | CH157: 0 | CI157: 0 | CJ157: 0 | CK157: 0 | CL157: 0 | CM157: 0 | CN157: 0 | CO157: 0 | CP157: 0 | CQ157: 0 | CR157: 0 | CS157: 0 | CT157: 0 | CU157: 0 | CV157: 0 | CW157: 0 | CX157: 0 | CY157: 0 | CZ157: 0 | DA157: 0 | DB157: 0 | DC157: 0 | DD157: 0 | DE157: 0 | DF157: 0
B158: Does the building have any non-cooling tower water based heat rejection systems? | F158: None | BE158: May | BF158: 21 | BG158: 19 | BH158: 3 | BI158: TRUE | BJ158: FALSE | BK158: 0 | BL158: =IF(SUM(BL$140:BL157,BK158)>$BN$4,0,BK158) -> 0 | BM158: 0 | BN158: 0 | BO158: 0 | BP158: 0 | BQ158: 0 | BR158: 0 | BS158: 0 | BT158: 0 | BU158: 0 | BV158: 0 | BW158: 0 | BX158: 0 | BY158: 0 | BZ158: 0 | CA158: 0 | CB158: 0 | CC158: 0 | CD158: 0 | CE158: 0 | CF158: 0 | CG158: 0 | CH158: 0 | CI158: 0 | CJ158: 0 | CK158: 0 | CL158: 0 | CM158: 0 | CN158: 0 | CO158: 0 | CP158: 0 | CQ158: 0 | CR158: 0 | CS158: 0 | CT158: 0 | CU158: 0 | CV158: 0 | CW158: 0 | CX158: 0 | CY158: 0 | CZ158: 0 | DA158: 0 | DB158: 0 | DC158: 0 | DD158: 0 | DE158: 0 | DF158: 0
BE159: May | BF159: 21 | BG159: 20 | BH159: 4 | BI159: TRUE | BJ159: FALSE | BK159: 0 | BL159: =IF(SUM(BL$140:BL158,BK159)>$BN$4,0,BK159) -> 0 | BM159: 0 | BN159: 0 | BO159: 0 | BP159: 0 | BQ159: 0 | BR159: 0 | BS159: 0 | BT159: 0 | BU159: 0 | BV159: 0 | BW159: 0 | BX159: 0 | BY159: 0 | BZ159: 0 | CA159: 0 | CB159: 0 | CC159: 0 | CD159: 0 | CE159: 0 | CF159: 0 | CG159: 0 | CH159: 0 | CI159: 0 | CJ159: 0 | CK159: 0 | CL159: 0 | CM159: 0 | CN159: 0 | CO159: 0 | CP159: 0 | CQ159: 0 | CR159: 0 | CS159: 0 | CT159: 0 | CU159: 0 | CV159: 0 | CW159: 0 | CX159: 0 | CY159: 0 | CZ159: 0 | DA159: 0 | DB159: 0 | DC159: 0 | DD159: 0 | DE159: 0 | DF159: 0
C160: Non Cooling tower heat rejection water demand (m3/month) | BE160: May | BF160: 21 | BG160: 21 | BH160: 5 | BI160: TRUE | BJ160: FALSE | BK160: 0 | BL160: =IF(SUM(BL$140:BL159,BK160)>$BN$4,0,BK160) -> 0 | BM160: 0 | BN160: 0 | BO160: 0 | BP160: 0 | BQ160: 0 | BR160: 0 | BS160: 0 | BT160: 0 | BU160: 0 | BV160: 0 | BW160: 0 | BX160: 0 | BY160: 0 | BZ160: 0 | CA160: 0 | CB160: 0 | CC160: 0 | CD160: 0 | CE160: 0 | CF160: 0 | CG160: 0 | CH160: 0 | CI160: 0 | CJ160: 0 | CK160: 0 | CL160: 0 | CM160: 0 | CN160: 0 | CO160: 0 | CP160: 0 | CQ160: 0 | CR160: 0 | CS160: 0 | CT160: 0 | CU160: 0 | CV160: 0 | CW160: 0 | CX160: 0 | CY160: 0 | CZ160: 0 | DA160: 0 | DB160: 0 | DC160: 0 | DD160: 0 | DE160: 0 | DF160: 0
BE161: May | BF161: 21 | BG161: 22 | BH161: 6 | BI161: FALSE | BJ161: FALSE | BK161: 0 | BL161: =IF(SUM(BL$140:BL160,BK161)>$BN$4,0,BK161) -> 0 | BM161: 0 | BN161: 0 | BO161: 0 | BP161: 0 | BQ161: 0 | BR161: 0 | BS161: 0 | BT161: 0 | BU161: 0 | BV161: 0 | BW161: 0 | BX161: 0 | BY161: 0 | BZ161: 0 | CA161: 0 | CB161: 0 | CC161: 0 | CD161: 0 | CE161: 0 | CF161: 0 | CG161: 0 | CH161: 0 | CI161: 0 | CJ161: 0 | CK161: 0 | CL161: 0 | CM161: 0 | CN161: 0 | CO161: 0 | CP161: 0 | CQ161: 0 | CR161: 0 | CS161: 0 | CT161: 0 | CU161: 0 | CV161: 0 | CW161: 0 | CX161: 0 | CY161: 0 | CZ161: 0 | DA161: 0 | DB161: 0 | DC161: 0 | DD161: 0 | DE161: 0 | DF161: 0
B162: January | BE162: May | BF162: 21 | BG162: 23 | BH162: 7 | BI162: FALSE | BJ162: FALSE | BK162: 0 | BL162: =IF(SUM(BL$140:BL161,BK162)>$BN$4,0,BK162) -> 0 | BM162: 0 | BN162: 0 | BO162: 0 | BP162: 0 | BQ162: 0 | BR162: 0 | BS162: 0 | BT162: 0 | BU162: 0 | BV162: 0 | BW162: 0 | BX162: 0 | BY162: 0 | BZ162: 0 | CA162: 0 | CB162: 0 | CC162: 0 | CD162: 0 | CE162: 0 | CF162: 0 | CG162: 0 | CH162: 0 | CI162: 0 | CJ162: 0 | CK162: 0 | CL162: 0 | CM162: 0 | CN162: 0 | CO162: 0 | CP162: 0 | CQ162: 0 | CR162: 0 | CS162: 0 | CT162: 0 | CU162: 0 | CV162: 0 | CW162: 0 | CX162: 0 | CY162: 0 | CZ162: 0 | DA162: 0 | DB162: 0 | DC162: 0 | DD162: 0 | DE162: 0 | DF162: 0
B163: February | BE163: May | BF163: 21 | BG163: 24 | BH163: 1 | BI163: TRUE | BJ163: FALSE | BK163: 0 | BL163: =IF(SUM(BL$140:BL162,BK163)>$BN$4,0,BK163) -> 0 | BM163: 0 | BN163: 0 | BO163: 0 | BP163: 0 | BQ163: 0 | BR163: 0 | BS163: 0 | BT163: 0 | BU163: 0 | BV163: 0 | BW163: 0 | BX163: 0 | BY163: 0 | BZ163: 0 | CA163: 0 | CB163: 0 | CC163: 0 | CD163: 0 | CE163: 0 | CF163: 0 | CG163: 0 | CH163: 0 | CI163: 0 | CJ163: 0 | CK163: 0 | CL163: 0 | CM163: 0 | CN163: 0 | CO163: 0 | CP163: 0 | CQ163: 0 | CR163: 0 | CS163: 0 | CT163: 0 | CU163: 0 | CV163: 0 | CW163: 0 | CX163: 0 | CY163: 0 | CZ163: 0 | DA163: 0 | DB163: 0 | DC163: 0 | DD163: 0 | DE163: 0 | DF163: 0
B164: March | BE164: May | BF164: 21 | BG164: 25 | BH164: 2 | BI164: TRUE | BJ164: FALSE | BK164: 0 | BL164: =IF(SUM(BL$140:BL163,BK164)>$BN$4,0,BK164) -> 0 | BM164: 0 | BN164: 0 | BO164: 0 | BP164: 0 | BQ164: 0 | BR164: 0 | BS164: 0 | BT164: 0 | BU164: 0 | BV164: 0 | BW164: 0 | BX164: 0 | BY164: 0 | BZ164: 0 | CA164: 0 | CB164: 0 | CC164: 0 | CD164: 0 | CE164: 0 | CF164: 0 | CG164: 0 | CH164: 0 | CI164: 0 | CJ164: 0 | CK164: 0 | CL164: 0 | CM164: 0 | CN164: 0 | CO164: 0 | CP164: 0 | CQ164: 0 | CR164: 0 | CS164: 0 | CT164: 0 | CU164: 0 | CV164: 0 | CW164: 0 | CX164: 0 | CY164: 0 | CZ164: 0 | DA164: 0 | DB164: 0 | DC164: 0 | DD164: 0 | DE164: 0 | DF164: 0
B165: April | BE165: May | BF165: 21 | BG165: 26 | BH165: 3 | BI165: TRUE | BJ165: FALSE | BK165: 0 | BL165: =IF(SUM(BL$140:BL164,BK165)>$BN$4,0,BK165) -> 0 | BM165: 0 | BN165: 0 | BO165: 0 | BP165: 0 | BQ165: 0 | BR165: 0 | BS165: 0 | BT165: 0 | BU165: 0 | BV165: 0 | BW165: 0 | BX165: 0 | BY165: 0 | BZ165: 0 | CA165: 0 | CB165: 0 | CC165: 0 | CD165: 0 | CE165: 0 | CF165: 0 | CG165: 0 | CH165: 0 | CI165: 0 | CJ165: 0 | CK165: 0 | CL165: 0 | CM165: 0 | CN165: 0 | CO165: 0 | CP165: 0 | CQ165: 0 | CR165: 0 | CS165: 0 | CT165: 0 | CU165: 0 | CV165: 0 | CW165: 0 | CX165: 0 | CY165: 0 | CZ165: 0 | DA165: 0 | DB165: 0 | DC165: 0 | DD165: 0 | DE165: 0 | DF165: 0
B166: May | BE166: May | BF166: 21 | BG166: 27 | BH166: 4 | BI166: TRUE | BJ166: FALSE | BK166: 0 | BL166: =IF(SUM(BL$140:BL165,BK166)>$BN$4,0,BK166) -> 0 | BM166: 0 | BN166: 0 | BO166: 0 | BP166: 0 | BQ166: 0 | BR166: 0 | BS166: 0 | BT166: 0 | BU166: 0 | BV166: 0 | BW166: 0 | BX166: 0 | BY166: 0 | BZ166: 0 | CA166: 0 | CB166: 0 | CC166: 0 | CD166: 0 | CE166: 0 | CF166: 0 | CG166: 0 | CH166: 0 | CI166: 0 | CJ166: 0 | CK166: 0 | CL166: 0 | CM166: 0 | CN166: 0 | CO166: 0 | CP166: 0 | CQ166: 0 | CR166: 0 | CS166: 0 | CT166: 0 | CU166: 0 | CV166: 0 | CW166: 0 | CX166: 0 | CY166: 0 | CZ166: 0 | DA166: 0 | DB166: 0 | DC166: 0 | DD166: 0 | DE166: 0 | DF166: =IF(DA166-(DE165+CZ166)<0,0,DA166-(DE165+CZ166)) -> 0
B167: June | BE167: May | BF167: 21 | BG167: 28 | BH167: 5 | BI167: TRUE | BJ167: FALSE | BK167: 0 | BL167: =IF(SUM(BL$140:BL166,BK167)>$BN$4,0,BK167) -> 0 | BM167: 0 | BN167: 0 | BO167: 0 | BP167: 0 | BQ167: 0 | BR167: 0 | BS167: 0 | BT167: 0 | BU167: 0 | BV167: 0 | BW167: 0 | BX167: 0 | BY167: 0 | BZ167: 0 | CA167: 0 | CB167: 0 | CC167: 0 | CD167: 0 | CE167: 0 | CF167: 0 | CG167: 0 | CH167: 0 | CI167: 0 | CJ167: 0 | CK167: 0 | CL167: 0 | CM167: 0 | CN167: 0 | CO167: 0 | CP167: 0 | CQ167: 0 | CR167: 0 | CS167: 0 | CT167: 0 | CU167: 0 | CV167: 0 | CW167: 0 | CX167: 0 | CY167: 0 | CZ167: 0 | DA167: 0 | DB167: 0 | DC167: 0 | DD167: 0 | DE167: 0 | DF167: 0
B168: July | BE168: May | BF168: 21 | BG168: 29 | BH168: 6 | BI168: FALSE | BJ168: FALSE | BK168: 0 | BL168: =IF(SUM(BL$140:BL167,BK168)>$BN$4,0,BK168) -> 0 | BM168: 0 | BN168: 0 | BO168: 0 | BP168: 0 | BQ168: 0 | BR168: 0 | BS168: 0 | BT168: 0 | BU168: 0 | BV168: 0 | BW168: 0 | BX168: 0 | BY168: 0 | BZ168: 0 | CA168: 0 | CB168: 0 | CC168: 0 | CD168: 0 | CE168: 0 | CF168: 0 | CG168: 0 | CH168: 0 | CI168: 0 | CJ168: 0 | CK168: 0 | CL168: 0 | CM168: 0 | CN168: 0 | CO168: 0 | CP168: 0 | CQ168: 0 | CR168: 0 | CS168: 0 | CT168: 0 | CU168: 0 | CV168: 0 | CW168: 0 | CX168: 0 | CY168: 0 | CZ168: 0 | DA168: 0 | DB168: 0 | DC168: 0 | DD168: 0 | DE168: 0 | DF168: 0
B169: August | BE169: May | BF169: 21 | BG169: 30 | BH169: 7 | BI169: FALSE | BJ169: FALSE | BK169: 0 | BL169: =IF(SUM(BL$140:BL168,BK169)>$BN$4,0,BK169) -> 0 | BM169: 0 | BN169: 0 | BO169: 0 | BP169: 0 | BQ169: 0 | BR169: 0 | BS169: 0 | BT169: 0 | BU169: 0 | BV169: 0 | BW169: 0 | BX169: 0 | BY169: 0 | BZ169: 0 | CA169: 0 | CB169: 0 | CC169: 0 | CD169: 0 | CE169: 0 | CF169: 0 | CG169: 0 | CH169: 0 | CI169: 0 | CJ169: 0 | CK169: 0 | CL169: 0 | CM169: 0 | CN169: 0 | CO169: 0 | CP169: 0 | CQ169: 0 | CR169: 0 | CS169: 0 | CT169: 0 | CU169: 0 | CV169: 0 | CW169: 0 | CX169: 0 | CY169: 0 | CZ169: 0 | DA169: 0 | DB169: 0 | DC169: 0 | DD169: 0 | DE169: 0 | DF169: 0
B170: September | BE170: May | BF170: 21 | BG170: 31 | BH170: 1 | BI170: TRUE | BJ170: FALSE | BK170: 0 | BL170: =$BN$4-SUM(BL140:BL169) -> 5.5 | BM170: 0 | BN170: 0 | BO170: 0 | BP170: 0 | BQ170: 0 | BR170: 0 | BS170: 0 | BT170: 0 | BU170: 0 | BV170: 0 | BW170: 0 | BX170: 0 | BY170: 0 | BZ170: 0 | CA170: 0 | CB170: 0 | CC170: 0 | CD170: 0 | CE170: 0 | CF170: 0 | CG170: 0 | CH170: 0 | CI170: 0 | CJ170: 0 | CK170: 0 | CL170: 0 | CM170: 0 | CN170: 0 | CO170: 0 | CP170: 0 | CQ170: 0 | CR170: 0 | CS170: 0 | CT170: 0 | CU170: 0 | CV170: 0 | CW170: 0 | CX170: 0 | CY170: 0 | CZ170: 0 | DA170: 0 | DB170: 0 | DC170: 0 | DD170: 0 | DE170: 0 | DF170: 0
